Workbook

Sheet Player Stats By Team (hidden)
B1: # | C1: Player | D1: Pos | E1: GP | F1: G | G1: A | H1: PTS | I1: +/- | J1: PIM | K1: PP | L1: PPA | M1: SH | N1: SHA | O1: GW | P1: FG | Q1: IG | R1: OT | S1: UA | T1: EN | U1: SOG | V1: SOA | W1: SOGW | X1: SO% | Y1: Pt/G | Z1: PIM/G | AA1: Shots | AB1: Sh%
B2: 19 | C2: Mark Scheifele | D2: C | E2: 19 | F2: 14 | G2: 18 | H2: 32 | I2: 11 | J2: 11 | K2: 7 | L2: 7 | M2: 0 | N2: 0 | O2: 2 | P2: 3 | Q2: 1 | R2: 1 | S2: 0 | T2: 1 | U2: 1 | V2: 4 | W2: 1 | X2: 0.25 | Y2: 1.68 | Z2: 0.58 | AA2: 0 | AB2: 0
B3: 28 | C3: Zach Hall | D3: C | E3: 18 | F3: 9 | G3: 20 | H3: 29 | I3: 1 | J3: 13 | K3: 6 | L3: 14 | M3: 0 | N3: 0 | O3: 1 | P3: 0 | Q3: 2 | R3: 0 | S3: 0 | T3: 0 | U3: 0 | V3: 0 | W3: 0 | X3: 0 | Y3: 1.61 | Z3: 0.72 | AA3: 0 | AB3: 0
B4: 15 | C4: Anthony Camara | D4: LW | E4: 20 | F4: 14 | G4: 13 | H4: 27 | I4: 8 | J4: 25 | K4: 7 | L4: 7 | M4: 0 | N4: 1 | O4: 2 | P4: 1 | Q4: 1 | R4: 0 | S4: 0 | T4: 0 | U4: 1 | V4: 1 | W4: 0 | X4: 1 | Y4: 1.35 | Z4: 1.25 | AA4: 0 | AB4: 0
B5: 12 | C5: Steven Beyers | D5: RW | E5: 19 | F5: 3 | G5: 20 | H5: 23 | I5: 10 | J5: 2 | K5: 0 | L5: 12 | M5: 0 | N5: 0 | O5: 0 | P5: 1 | Q5: 0 | R5: 0 | S5: 0 | T5: 0 | U5: 1 | V5: 3 | W5: 1 | X5: 0.333 | Y5: 1.21 | Z5: 0.11 | AA5: 0 | AB5: 0
B6: 22 | C6: Andreas Athanasiou | D6: LW | E6: 20 | F6: 9 | G6: 11 | H6: 20 | I6: 2 | J6: 12 | K6: 3 | L6: 4 | M6: 0 | N6: 0 | O6: 3 | P6: 2 | Q6: 1 | R6: 0 | S6: 0 | T6: 0 | U6: 0 | V6: 3 | W6: 0 | X6: 0 | Y6: 1 | Z6: 0.6 | AA6: 0 | AB6: 0
B7: 5 | C7: Aaron Ekblad | D7: D | E7: 20 | F7: 4 | G7: 12 | H7: 16 | I7: 7 | J7: 27 | K7: 4 | L7: 6 | M7: 0 | N7: 0 | O7: 1 | P7: 1 | Q7: 0 | R7: 1 | S7: 0 | T7: 0 | U7: 0 | V7: 0 | W7: 0 | X7: 0 | Y7: 0.8 | Z7: 1.35 | AA7: 0 | AB7: 0
B8: 6 | C8: Ryan O'Connor | D8: D | E8: 17 | F8: 4 | G8: 9 | H8: 13 | I8: 4 | J8: 12 | K8: 3 | L8: 5 | M8: 1 | N8: 0 | O8: 1 | P8: 0 | Q8: 0 | R8: 0 | S8: 0 | T8: 0 | U8: 0 | V8: 0 | W8: 0 | X8: 0 | Y8: 0.76 | Z8: 0.71 | AA8: 0 | AB8: 0
B9: 11 | C9: Josh MacDonald | D9: LW | E9: 20 | F9: 4 | G9: 9 | H9: 13 | I9: -4 | J9: 12 | K9: 2 | L9: 4 | M9: 0 | N9: 0 | O9: 0 | P9: 2 | Q9: 0 | R9: 0 | S9: 0 | T9: 1 | U9: 1 | V9: 1 | W9: 1 | X9: 1 | Y9: 0.65 | Z9: 0.6 | AA9: 0 | AB9: 0
B10: 18 | C10: Erik Bradford | D10: C | E10: 20 | F10: 7 | G10: 3 | H10: 10 | I10: 3 | J10: 18 | K10: 0 | L10: 1 | M10: 0 | N10: 0 | O10: 1 | P10: 0 | Q10: 0 | R10: 0 | S10: 0 | T10: 0 | U10: 0 | V10: 0 | W10: 0 | X10: 0 | Y10: 0.5 | Z10: 0.9 | AA10: 0 | AB10: 0
B11: 10 | C11: Brendan Bell | D11: LW | E11: 20 | F11: 3 | G11: 4 | H11: 7 | I11: 2 | J11: 18 | K11: 0 | L11: 0 | M11: 0 | N11: 0 | O11: 0 | P11: 0 | Q11: 1 | R11: 0 | S11: 0 | T11: 1 | U11: 0 | V11: 0 | W11: 0 | X11: 0 | Y11: 0.35 | Z11: 0.9 | AA11: 0 | AB11: 0
B12: 13 | C12: Tyson Fawcett | D12: C | E12: 17 | F12: 2 | G12: 3 | H12: 5 | I12: 0 | J12: 11 | K12: 1 | L12: 1 | M12: 0 | N12: 1 | O12: 0 | P12: 0 | Q12: 1 | R12: 0 | S12: 0 | T12: 0 | U12: 0 | V12: 0 | W12: 0 | X12: 0 | Y12: 0.29 | Z12: 0.65 | AA12: 0 | AB12: 0
B13: 4 | C13: Alex Lepkowski | D13: D | E13: 20 | F13: 0 | G13: 4 | H13: 4 | I13: 1 | J13: 29 | K13: 0 | L13: 2 | M13: 0 | N13: 0 | O13: 0 | P13: 0 | Q13: 0 | R13: 0 | S13: 0 | T13: 0 | U13: 0 | V13: 0 | W13: 0 | X13: 0 | Y13: 0.2 | Z13: 1.45 | AA13: 0 | AB13: 0
B14: 3 | C14: Jonathan Laser | D14: D | E14: 15 | F14: 1 | G14: 2 | H14: 3 | I14: -1 | J14: 19 | K14: 1 | L14: 0 | M14: 0 | N14: 0 | O14: 0 | P14: 0 | Q14: 0 | R14: 0 | S14: 0 | T14: 0 | U14: 0 | V14: 0 | W14: 0 | X14: 0 | Y14: 0.2 | Z14: 1.27 | AA14: 0 | AB14: 0
A15: * | B15: 24 | C15: Michael Webster | D15: D | E15: 19 | F15: 0 | G15: 3 | H15: 3 | I15: -5 | J15: 11 | K15: 0 | L15: 0 | M15: 0 | N15: 0 | O15: 0 | P15: 0 | Q15: 0 | R15: 0 | S15: 0 | T15: 0 | U15: 0 | V15: 0 | W15: 0 | X15: 0 | Y15: 0.16 | Z15: 0.58 | AA15: 0 | AB15: 0
B16: 7 | C16: Alex Yuill | D16: D | E16: 18 | F16: 0 | G16: 2 | H16: 2 | I16: 0 | J16: 2 | K16: 0 | L16: 0 | M16: 0 | N16: 0 | O16: 0 | P16: 0 | Q16: 0 | R16: 0 | S16: 0 | T16: 0 | U16: 0 | V16: 0 | W16: 0 | X16: 0 | Y16: 0.11 | Z16: 0.11 | AA16: 0 | AB16: 0
B17: 9 | C17: Dylan Corson | D17: C | E17: 19 | F17: 0 | G17: 2 | H17: 2 | I17: -3 | J17: 21 | K17: 0 | L17: 0 | M17: 0 | N17: 0 | O17: 0 | P17: 0 | Q17: 0 | R17: 0 | S17: 0 | T17: 0 | U17: 0 | V17: 0 | W17: 0 | X17: 0 | Y17: 0.11 | Z17: 1.11 | AA17: 0 | AB17: 0
A18: X | B18: 16 | C18: Samu Markkula | D18: LW | E18: 5 | F18: 0 | G18: 1 | H18: 1 | I18: -1 | J18: 4 | K18: 0 | L18: 0 | M18: 0 | N18: 0 | O18: 0 | P18: 0 | Q18: 0 | R18: 0 | S18: 0 | T18: 0 | U18: 0 | V18: 0 | W18: 0 | X18: 0 | Y18: 0.2 | Z18: 0.8 | AA18: 0 | AB18: 0
A19: * | B19: 8 | C19: C.J. Garcia | D19: LD | E19: 6 | F19: 0 | G19: 1 | H19: 1 | I19: -1 | J19: 0 | K19: 0 | L19: 0 | M19: 0 | N19: 0 | O19: 0 | P19: 0 | Q19: 0 | R19: 0 | S19: 0 | T19: 0 | U19: 0 | V19: 0 | W19: 0 | X19: 0 | Y19: 0.17 | Z19: 0 | AA19: 0 | AB19: 0
B20: 2 | C20: Liam Maaskant (total) | D20: D | E20: 6 | F20: 0 | G20: 1 | H20: 1 | I20: -3 | J20: 6 | K20: 0 | L20: 0 | M20: 0 | N20: 0 | O20: 0 | P20: 0 | Q20: 0 | R20: 0 | S20: 0 | T20: 0 | U20: 0 | V20: 0 | W20: 0 | X20: 0 | Y20: 0.17 | Z20: 1 | AA20: 0 | AB20: 0
C21: BAR | D21: D | E21: 6 | F21: 0 | G21: 1 | H21: 1 | I21: -3 | J21: 6 | K21: 0 | L21: 0 | M21: 0 | N21: 0 | O21: 0 | P21: 0 | Q21: 0 | R21: 0 | S21: 0 | T21: 0 | U21: 0 | V21: 0 | W21: 0 | X21: 0 | Y21: 0.17 | Z21: 1 | AA21: 0 | AB21: 0
C22: Brendan Lemieux | D22: D | E22: 2 | F22: 0 | G22: 0 | H22: 0 | I22: -1 | J22: 0 | K22: 0 | L22: 0 | M22: 0 | N22: 0 | O22: 0 | P22: 0 | Q22: 0 | R22: 0 | S22: 0 | T22: 0 | U22: 0 | V22: 0 | W22: 0 | X22: 0 | Y22: 0 | Z22: 0 | AA22: 0 | AB22: 0
B23: 37 | C23: Alex Fotinos | D23: G | E23: 4 | F23: 0 | G23: 0 | H23: 0 | I23: 0 | J23: 0 | K23: 0 | L23: 0 | M23: 0 | N23: 0 | O23: 0 | P23: 0 | Q23: 0 | R23: 0 | S23: 0 | T23: 0 | U23: 0 | V23: 0 | W23: 0 | X23: 0 | Y23: 0 | Z23: 0 | AA23: 0 | AB23: 0
B24: 14 | C24: Cody Brown | D24: RW | E24: 9 | F24: 0 | G24: 0 | H24: 0 | I24: -5 | J24: 2 | K24: 0 | L24: 0 | M24: 0 | N24: 0 | O24: 0 | P24: 0 | Q24: 0 | R24: 0 | S24: 0 | T24: 0 | U24: 0 | V24: 0 | W24: 0 | X24: 0 | Y24: 0 | Z24: 0.22 | AA24: 0 | AB24: 0
A25: * | B25: 27 | C25: Brendan Perlini | D25: LW | E25: 15 | F25: 0 | G25: 0 | H25: 0 | I25: -6 | J25: 0 | K25: 0 | L25: 0 | M25: 0 | N25: 0 | O25: 0 | P25: 0 | Q25: 0 | R25: 0 | S25: 0 | T25: 0 | U25: 0 | V25: 0 | W25: 0 | X25: 0 | Y25: 0 | Z25: 0 | AA25: 0 | AB25: 0
A26: * | B26: 17 | C26: Justin Scott | D26: C | E26: 16 | F26: 0 | G26: 0 | H26: 0 | I26: -5 | J26: 6 | K26: 0 | L26: 0 | M26: 0 | N26: 0 | O26: 0 | P26: 0 | Q26: 0 | R26: 0 | S26: 0 | T26: 0 | U26: 0 | V26: 0 | W26: 0 | X26: 0 | Y26: 0 | Z26: 0.38 | AA26: 0 | AB26: 0
B27: 35 | C27: Mathias Niederberger | D27: G | E27: 18 | F27: 0 | G27: 0 | H27: 0 | I27: 0 | J27: 0 | K27: 0 | L27: 0 | M27: 0 | N27: 0 | O27: 0 | P27: 0 | Q27: 0 | R27: 0 | S27: 0 | T27: 0 | U27: 0 | V27: 0 | W27: 0 | X27: 0 | Y27: 0 | Z27: 0 | AA27: 0 | AB27: 0
C28: BENCH | E28: 20 | F28: 3 | J28: 8 | AA28: 3
C29: TOTALS | E29: 20 | F29: 77 | G29: 138 | H29: 212 | I29: 14 | J29: 269 | K29: 34 | L29: 63 | M29: 1 | N29: 2 | O29: 11 | P29: 10 | Q29: 7 | R29: 2 | S29: 0 | T29: 3 | U29: 4 | V29: 12 | W29: 3 | X29: 0.333 | Y29: 10.6 | Z29: 13.45 | AA29: 3 | AB29: 0
B31: # | C31: Goalie | D31: GP | E31: MINS | F31: W | G31: L | H31: OTL | I31: SL | J31: SO | K31: EN | L31: GA | M31: GAA | N31: SOGP | O31: SOW | P31: SL | Q31: SOGA | R31: SOA | S31: SO% | T31: SA | U31: SVS | V31: SV%
B32: 35 | C32: Mathias Niederberger | D32: 18 | E32: 1026 | F32: 13 | G32: 3 | H32: 0 | I32: 1 | J32: 0 | K32: 0 | L32: 46 | M32: 2.69 | N32: 4 | O32: 3 | P32: 1 | Q32: 2 | R32: 13 | S32: 0.846 | T32: 600 | U32: 554 | V32: 0.923
B33: 37 | C33: Alex Fotinos | D33: 4 | E33: 198 | F33: 1 | G33: 2 | H33: 0 | I33: 0 | J33: 0 | K33: 0 | L33: 14 | M33: 4.23 | N33: 0 | O33: 0 | P33: 0 | Q33: 0 | R33: 0 | S33: 0 | T33: 121 | U33: 107 | V33: 0.884
C34: Empty Net | E34: 1 | L34: 0 | T34: 0
C35: TOTALS | D35: 20 | E35: 1224 | F35: 14 | G35: 5 | H35: 0 | I35: 1 | J35: 0 | K35: 0 | L35: 60 | M35: 2.94 | N35: 4 | O35: 3 | P35: 1 | Q35: 2 | R35: 13 | S35: 0.846 | T35: 721 | U35: 661 | V35: 0.917
B37: # | C37: Player | D37: Pos | E37: GP | F37: G | G37: A | H37: PTS | I37: +/- | J37: PIM | K37: PP | L37: PPA | M37: SH | N37: SHA | O37: GW | P37: FG | Q37: IG | R37: OT | S37: UA | T37: EN | U37: SOG | V37: SOA | W37: SOGW | X37: SO% | Y37: Pt/G | Z37: PIM/G | AA37: Shots | AB37: Sh%
B38: 14 | C38: Jordan Subban | D38: D | E38: 19 | F38: 4 | G38: 11 | H38: 15 | I38: -4 | J38: 6 | K38: 2 | L38: 4 | M38: 0 | N38: 0 | O38: 1 | P38: 0 | Q38: 0 | R38: 0 | S38: 0 | T38: 0 | U38: 2 | V38: 2 | W38: 2 | X38: 1 | Y38: 0.79 | Z38: 0.32 | AA38: 0 | AB38: 0
B39: 17 | C39: Daniil Zharkov | D39: LW | E39: 19 | F39: 6 | G39: 3 | H39: 9 | I39: 1 | J39: 4 | K39: 1 | L39: 1 | M39: 0 | N39: 0 | O39: 1 | P39: 1 | Q39: 1 | R39: 0 | S39: 0 | T39: 0 | U39: 0 | V39: 1 | W39: 0 | X39: 0 | Y39: 0.47 | Z39: 0.21 | AA39: 0 | AB39: 0
B40: 16 | C40: Brendan Gaunce | D40: C | E40: 11 | F40: 4 | G40: 5 | H40: 9 | I40: -6 | J40: 6 | K40: 0 | L40: 3 | M40: 0 | N40: 0 | O40: 0 | P40: 2 | Q40: 0 | R40: 0 | S40: 0 | T40: 0 | U40: 1 | V40: 2 | W40: 0 | X40: 0.5 | Y40: 0.82 | Z40: 0.55 | AA40: 0 | AB40: 0
B41: 13 | C41: Sergey Kuptsov | D41: RW | E41: 16 | F41: 4 | G41: 4 | H41: 8 | I41: -2 | J41: 13 | K41: 1 | L41: 1 | M41: 0 | N41: 0 | O41: 0 | P41: 1 | Q41: 1 | R41: 0 | S41: 0 | T41: 0 | U41: 0 | V41: 1 | W41: 0 | X41: 0 | Y41: 0.5 | Z41: 0.81 | AA41: 0 | AB41: 0
B42: 24 | C42: Garrett Hooey | D42: C | E42: 19 | F42: 4 | G42: 4 | H42: 8 | I42: -4 | J42: 20 | K42: 2 | L42: 1 | M42: 0 | N42: 0 | O42: 0 | P42: 1 | Q42: 0 | R42: 0 | S42: 0 | T42: 0 | U42: 0 | V42: 0 | W42: 0 | X42: 0 | Y42: 0.42 | Z42: 1.05 | AA42: 0 | AB42: 0
B43: 19 | C43: Joseph Cramarossa | D43: C | E43: 19 | F43: 3 | G43: 5 | H43: 8 | I43: -8 | J43: 26 | K43: 2 | L43: 1 | M43: 0 | N43: 0 | O43: 0 | P43: 3 | Q43: 0 | R43: 0 | S43: 0 | T43: 0 | U43: 2 | V43: 3 | W43: 1 | X43: 0.667 | Y43: 0.42 | Z43: 1.37 | AA43: 0 | AB43: 0
B44: 7 | C44: Michael Curtis | D44: LW | E44: 19 | F44: 4 | G44: 3 | H44: 7 | I44: -2 | J44: 6 | K44: 1 | L44: 2 | M44: 0 | N44: 0 | O44: 1 | P44: 0 | Q44: 1 | R44: 0 | S44: 0 | T44: 2 | U44: 0 | V44: 1 | W44: 0 | X44: 0 | Y44: 0.37 | Z44: 0.32 | AA44: 0 | AB44: 0
B45: 26 | C45: Stephen Silas | D45: D | E45: 19 | F45: 1 | G45: 6 | H45: 7 | I45: -10 | J45: 15 | K45: 1 | L45: 1 | M45: 0 | N45: 0 | O45: 0 | P45: 1 | Q45: 0 | R45: 0 | S45: 0 | T45: 0 | U45: 0 | V45: 0 | W45: 0 | X45: 0 | Y45: 0.37 | Z45: 0.79 | AA45: 0 | AB45: 0
B46: 6 | C46: Jake Worrad | D46: D | E46: 17 | F46: 0 | G46: 7 | H46: 7 | I46: 0 | J46: 4 | K46: 0 | L46: 4 | M46: 0 | N46: 0 | O46: 0 | P46: 0 | Q46: 0 | R46: 0 | S46: 0 | T46: 0 | U46: 0 | V46: 0 | W46: 0 | X46: 0 | Y46: 0.41 | Z46: 0.24 | AA46: 0 | AB46: 0
B47: 10 | C47: Austen Brassard | D47: RW | E47: 19 | F47: 5 | G47: 1 | H47: 6 | I47: -5 | J47: 23 | K47: 2 | L47: 0 | M47: 0 | N47: 0 | O47: 3 | P47: 1 | Q47: 0 | R47: 0 | S47: 0 | T47: 0 | U47: 0 | V47: 1 | W47: 0 | X47: 0 | Y47: 0.32 | Z47: 1.21 | AA47: 0 | AB47: 0
A48: * | B48: 23 | C48: Niki Petti | D48: C | E48: 17 | F48: 4 | G48: 2 | H48: 6 | I48: 4 | J48: 4 | K48: 0 | L48: 0 | M48: 0 | N48: 0 | O48: 0 | P48: 1 | Q48: 2 | R48: 0 | S48: 1 | T48: 0 | U48: 0 | V48: 0 | W48: 0 | X48: 0 | Y48: 0.35 | Z48: 0.24 | AA48: 0 | AB48: 0
B49: 22 | C49: Brady Austin | D49: D | E49: 19 | F49: 0 | G49: 6 | H49: 6 | I49: 0 | J49: 6 | K49: 0 | L49: 2 | M49: 0 | N49: 0 | O49: 0 | P49: 0 | Q49: 0 | R49: 0 | S49: 0 | T49: 0 | U49: 0 | V49: 0 | W49: 0 | X49: 0 | Y49: 0.32 | Z49: 0.32 | AA49: 0 | AB49: 0
B50: 28 | C50: Carter Sandlak | D50: LW | E50: 18 | F50: 1 | G50: 4 | H50: 5 | I50: 0 | J50: 26 | K50: 0 | L50: 1 | M50: 0 | N50: 0 | O50: 0 | P50: 0 | Q50: 0 | R50: 0 | S50: 0 | T50: 0 | U50: 0 | V50: 0 | W50: 0 | X50: 0 | Y50: 0.28 | Z50: 1.44 | AA50: 0 | AB50: 0
B51: 25 | C51: Scott Simmonds | D51: LW | E51: 19 | F51: 1 | G51: 3 | H51: 4 | I51: 0 | J51: 7 | K51: 0 | L51: 0 | M51: 0 | N51: 0 | O51: 0 | P51: 0 | Q51: 0 | R51: 0 | S51: 1 | T51: 0 | U51: 0 | V51: 0 | W51: 0 | X51: 0 | Y51: 0.21 | Z51: 0.37 | AA51: 0 | AB51: 0
B52: 5 | C52: Jason Shaw | D52: D | E52: 19 | F52: 0 | G52: 4 | H52: 4 | I52: -9 | J52: 14 | K52: 0 | L52: 1 | M52: 0 | N52: 0 | O52: 0 | P52: 0 | Q52: 0 | R52: 0 | S52: 0 | T52: 0 | U52: 0 | V52: 0 | W52: 0 | X52: 0 | Y52: 0.21 | Z52: 0.74 | AA52: 0 | AB52: 0
A53: * | B53: 8 | C53: Aaron Berisha | D53: C | E53: 13 | F53: 2 | G53: 1 | H53: 3 | I53: 0 | J53: 4 | K53: 0 | L53: 0 | M53: 0 | N53: 0 | O53: 1 | P53: 1 | Q53: 0 | R53: 0 | S53: 0 | T53: 0 | U53: 0 | V53: 0 | W53: 0 | X53: 0 | Y53: 0.23 | Z53: 0.31 | AA53: 0 | AB53: 0
B54: 9 | C54: Adam Bignell | D54: D | E54: 17 | F54: 0 | G54: 3 | H54: 3 | I54: 6 | J54: 33 | K54: 0 | L54: 0 | M54: 0 | N54: 0 | O54: 0 | P54: 0 | Q54: 0 | R54: 0 | S54: 0 | T54: 0 | U54: 0 | V54: 0 | W54: 0 | X54: 0 | Y54: 0.18 | Z54: 1.94 | AA54: 0 | AB54: 0
B55: 31 | C55: Charlie Graham | D55: G | E55: 4 | F55: 0 | G55: 0 | H55: 0 | I55: 0 | J55: 0 | K55: 0 | L55: 0 | M55: 0 | N55: 0 | O55: 0 | P55: 0 | Q55: 0 | R55: 0 | S55: 0 | T55: 0 | U55: 0 | V55: 0 | W55: 0 | X55: 0 | Y55: 0 | Z55: 0 | AA55: 0 | AB55: 0
A56: X | B56: 4 | C56: Alex Carnevale | D56: LW | E56: 6 | F56: 0 | G56: 0 | H56: 0 | I56: 0 | J56: 0 | K56: 0 | L56: 0 | M56: 0 | N56: 0 | O56: 0 | P56: 0 | Q56: 0 | R56: 0 | S56: 0 | T56: 0 | U56: 0 | V56: 0 | W56: 0 | X56: 0 | Y56: 0 | Z56: 0 | AA56: 0 | AB56: 0
A57: X | B57: 20 | C57: Mack Lemmon | D57: RW | E57: 7 | F57: 0 | G57: 0 | H57: 0 | I57: 1 | J57: 21 | K57: 0 | L57: 0 | M57: 0 | N57: 0 | O57: 0 | P57: 0 | Q57: 0 | R57: 0 | S57: 0 | T57: 0 | U57: 0 | V57: 0 | W57: 0 | X57: 0 | Y57: 0 | Z57: 3 | AA57: 0 | AB57: 0
A58: * | B58: 11 | C58: Michael Cramarossa | D58: C | E58: 9 | F58: 0 | G58: 0 | H58: 0 | I58: 2 | J58: 6 | K58: 0 | L58: 0 | M58: 0 | N58: 0 | O58: 0 | P58: 0 | Q58: 0 | R58: 0 | S58: 0 | T58: 0 | U58: 0 | V58: 0 | W58: 0 | X58: 0 | Y58: 0 | Z58: 0.67 | AA58: 0 | AB58: 0
A59: * | B59: 27 | C59: Daniel De Sousa | D59: D | E59: 9 | F59: 0 | G59: 0 | H59: 0 | I59: 0 | J59: 2 | K59: 0 | L59: 0 | M59: 0 | N59: 0 | O59: 0 | P59: 0 | Q59: 0 | R59: 0 | S59: 0 | T59: 0 | U59: 0 | V59: 0 | W59: 0 | X59: 0 | Y59: 0 | Z59: 0.22 | AA59: 0 | AB59: 0
A60: * | B60: 18 | C60: Chad Heffernan | D60: LW | E60: 12 | F60: 0 | G60: 0 | H60: 0 | I60: 0 | J60: 14 | K60: 0 | L60: 0 | M60: 0 | N60: 0 | O60: 0 | P60: 0 | Q60: 0 | R60: 0 | S60: 0 | T60: 0 | U60: 0 | V60: 0 | W60: 0 | X60: 0 | Y60: 0 | Z60: 1.17 | AA60: 0 | AB60: 0
B61: 30 | C61: Malcolm Subban | D61: G | E61: 16 | F61: 0 | G61: 0 | H61: 0 | I61: 0 | J61: 0 | K61: 0 | L61: 0 | M61: 0 | N61: 0 | O61: 0 | P61: 0 | Q61: 0 | R61: 0 | S61: 0 | T61: 0 | U61: 0 | V61: 0 | W61: 0 | X61: 0 | Y61: 0 | Z61: 0 | AA61: 0 | AB61: 0
C62: BENCH | E62: 19 | F62: 3 | J62: 2 | AA62: 3
C63: TOTALS | E63: 19 | F63: 46 | G63: 72 | H63: 115 | I63: -36 | J63: 262 | K63: 12 | L63: 22 | M63: 0 | N63: 0 | O63: 7 | P63: 12 | Q63: 5 | R63: 0 | S63: 2 | T63: 2 | U63: 5 | V63: 11 | W63: 3 | X63: 0.455 | Y63: 6.05 | Z63: 13.79 | AA63: 3 | AB63: 0
B65: # | C65: Goalie | D65: GP | E65: MINS | F65: W | G65: L | H65: OTL | I65: SL | J65: SO | K65: EN | L65: GA | M65: GAA | N65: SOGP | O65: SOW | P65: SL | Q65: SOGA | R65: SOA | S65: SO% | T65: SA | U65: SVS | V65: SV%
B66: 30 | C66: Malcolm Subban | D66: 16 | E66: 937 | F66: 8 | G66: 4 | H66: 3 | I66: 0 | J66: 1 | K66: 2 | L66: 35 | M66: 2.24 | N66: 3 | O66: 3 | P66: 0 | Q66: 2 | R66: 12 | S66: 0.833 | T66: 503 | U66: 468 | V66: 0.93
B67: 31 | C67: Charlie Graham | D67: 4 | E67: 218 | F67: 2 | G67: 2 | H67: 0 | I67: 0 | J67: 1 | K67: 0 | L67: 9 | M67: 2.47 | N67: 0 | O67: 0 | P67: 0 | Q67: 0 | R67: 0 | S67: 0 | T67: 125 | U67: 116 | V67: 0.928
C68: Empty Net | E68: 5 | L68: 2 | T68: 2
C69: TOTALS | D69: 19 | E69: 1155 | F69: 10 | G69: 6 | H69: 3 | I69: 0 | J69: 2 | K69: 2 | L69: 46 | M69: 2.38 | N69: 3 | O69: 3 | P69: 0 | Q69: 2 | R69: 12 | S69: 0.833 | T69: 630 | U69: 584 | V69: 0.927
B71: # | C71: Player | D71: Pos | E71: GP | F71: G | G71: A | H71: PTS | I71: +/- | J71: PIM | K71: PP | L71: PPA | M71: SH | N71: SHA | O71: GW | P71: FG | Q71: IG | R71: OT | S71: UA | T71: EN | U71: SOG | V71: SOA | W71: SOGW | X71: SO% | Y71: Pt/G | Z71: PIM/G | AA71: Shots | AB71: Sh%
A72: * | B72: 19 | C72: Blake Clarke | D72: LW | E72: 21 | F72: 5 | G72: 13 | H72: 18 | I72: -5 | J72: 8 | K72: 3 | L72: 7 | M72: 0 | N72: 0 | O72: 0 | P72: 0 | Q72: 1 | R72: 0 | S72: 0 | T72: 0 | U72: 1 | V72: 1 | W72: 0 | X72: 1 | Y72: 0.86 | Z72: 0.38 | AA72: 0 | AB72: 0
B73: 23 | C73: Barclay Goodrow | D73: RW | E73: 21 | F73: 12 | G73: 3 | H73: 15 | I73: -4 | J73: 20 | K73: 5 | L73: 2 | M73: 2 | N73: 0 | O73: 2 | P73: 1 | Q73: 1 | R73: 0 | S73: 1 | T73: 0 | U73: 0 | V73: 2 | W73: 0 | X73: 0 | Y73: 0.71 | Z73: 0.95 | AA73: 0 | AB73: 0
B74: 20 | C74: Jamie Lewis | D74: C | E74: 21 | F74: 5 | G74: 5 | H74: 10 | I74: -3 | J74: 14 | K74: 1 | L74: 2 | M74: 0 | N74: 0 | O74: 2 | P74: 1 | Q74: 0 | R74: 0 | S74: 1 | T74: 0 | U74: 0 | V74: 0 | W74: 0 | X74: 0 | Y74: 0.48 | Z74: 0.67 | AA74: 0 | AB74: 0
B75: 22 | C75: Brenden Miller | D75: D | E75: 21 | F75: 4 | G75: 6 | H75: 10 | I75: -5 | J75: 30 | K75: 3 | L75: 4 | M75: 0 | N75: 0 | O75: 1 | P75: 1 | Q75: 0 | R75: 0 | S75: 1 | T75: 0 | U75: 0 | V75: 0 | W75: 0 | X75: 0 | Y75: 0.48 | Z75: 1.43 | AA75: 0 | AB75: 0
B76: 11 | C76: Patrik Machac | D76: C | E76: 21 | F76: 3 | G76: 7 | H76: 10 | I76: -4 | J76: 8 | K76: 1 | L76: 5 | M76: 0 | N76: 0 | O76: 1 | P76: 1 | Q76: 1 | R76: 0 | S76: 0 | T76: 0 | U76: 1 | V76: 1 | W76: 0 | X76: 1 | Y76: 0.48 | Z76: 0.38 | AA76: 0 | AB76: 0
B77: 6 | C77: Dylan Blujus | D77: D | E77: 21 | F77: 1 | G77: 8 | H77: 9 | I77: -8 | J77: 20 | K77: 1 | L77: 5 | M77: 0 | N77: 0 | O77: 0 | P77: 0 | Q77: 0 | R77: 0 | S77: 0 | T77: 0 | U77: 0 | V77: 0 | W77: 0 | X77: 0 | Y77: 0.43 | Z77: 0.95 | AA77: 0 | AB77: 0
B78: 24 | C78: Matt MacLeod | D78: RW | E78: 16 | F78: 2 | G78: 6 | H78: 8 | I78: 5 | J78: 12 | K78: 0 | L78: 0 | M78: 0 | N78: 0 | O78: 0 | P78: 0 | Q78: 0 | R78: 0 | S78: 0 | T78: 0 | U78: 0 | V78: 0 | W78: 0 | X78: 0 | Y78: 0.5 | Z78: 0.75 | AA78: 0 | AB78: 0
A79: * | B79: 21 | C79: Nick Paul | D79: LW | E79: 21 | F79: 2 | G79: 5 | H79: 7 | I79: -5 | J79: 9 | K79: 0 | L79: 0 | M79: 0 | N79: 1 | O79: 0 | P79: 0 | Q79: 0 | R79: 0 | S79: 1 | T79: 0 | U79: 0 | V79: 0 | W79: 0 | X79: 0 | Y79: 0.33 | Z79: 0.43 | AA79: 0 | AB79: 0
B80: 27 | C80: Brendan Childerley (total) | D80: RW | E80: 15 | F80: 3 | G80: 3 | H80: 6 | I80: -2 | J80: 12 | K80: 0 | L80: 0 | M80: 0 | N80: 0 | O80: 0 | P80: 2 | Q80: 1 | R80: 0 | S80: 0 | T80: 0 | U80: 0 | V80: 0 | W80: 0 | X80: 0 | Y80: 0.4 | Z80: 0.8 | AA80: 0 | AB80: 0
C81: BRA | D81: RW | E81: 15 | F81: 3 | G81: 3 | H81: 6 | I81: -2 | J81: 12 | K81: 0 | L81: 0 | M81: 0 | N81: 0 | O81: 0 | P81: 2 | Q81: 1 | R81: 0 | S81: 0 | T81: 0 | U81: 0 | V81: 0 | W81: 0 | X81: 0 | Y81: 0.4 | Z81: 0.8 | AA81: 0 | AB81: 0
B82: 17 | C82: Nicholas Foglia | D82: C | E82: 21 | F82: 3 | G82: 3 | H82: 6 | I82: 1 | J82: 8 | K82: 0 | L82: 0 | M82: 0 | N82: 0 | O82: 1 | P82: 0 | Q82: 1 | R82: 0 | S82: 1 | T82: 0 | U82: 0 | V82: 0 | W82: 0 | X82: 0 | Y82: 0.29 | Z82: 0.38 | AA82: 0 | AB82: 0
B83: 9 | C83: Brandon Robinson | D83: LW | E83: 16 | F83: 1 | G83: 5 | H83: 6 | I83: -3 | J83: 2 | K83: 0 | L83: 3 | M83: 0 | N83: 0 | O83: 0 | P83: 0 | Q83: 0 | R83: 0 | S83: 0 | T83: 0 | U83: 0 | V83: 1 | W83: 0 | X83: 0 | Y83: 0.38 | Z83: 0.13 | AA83: 0 | AB83: 0
A84: * | B84: 26 | C84: Mathew Santos | D84: RW | E84: 20 | F84: 5 | G84: 0 | H84: 5 | I84: -6 | J84: 9 | K84: 1 | L84: 0 | M84: 0 | N84: 0 | O84: 0 | P84: 1 | Q84: 0 | R84: 0 | S84: 2 | T84: 0 | U84: 0 | V84: 0 | W84: 0 | X84: 0 | Y84: 0.25 | Z84: 0.45 | AA84: 0 | AB84: 0
B85: 7 | C85: Zach Bell | D85: D | E85: 21 | F85: 2 | G85: 3 | H85: 5 | I85: -2 | J85: 11 | K85: 1 | L85: 0 | M85: 0 | N85: 0 | O85: 0 | P85: 0 | Q85: 1 | R85: 0 | S85: 0 | T85: 0 | U85: 0 | V85: 0 | W85: 0 | X85: 0 | Y85: 0.24 | Z85: 0.52 | AA85: 0 | AB85: 0
A86: * | B86: 18 | C86: Mike Amadio | D86: RW | E86: 20 | F86: 0 | G86: 4 | H86: 4 | I86: -4 | J86: 6 | K86: 0 | L86: 1 | M86: 0 | N86: 0 | O86: 0 | P86: 0 | Q86: 0 | R86: 0 | S86: 0 | T86: 0 | U86: 0 | V86: 1 | W86: 0 | X86: 0 | Y86: 0.2 | Z86: 0.3 | AA86: 0 | AB86: 0
B87: 8 | C87: Cameron Wind | D87: D | E87: 21 | F87: 0 | G87: 3 | H87: 3 | I87: -3 | J87: 19 | K87: 0 | L87: 1 | M87: 0 | N87: 0 | O87: 0 | P87: 0 | Q87: 0 | R87: 0 | S87: 0 | T87: 0 | U87: 0 | V87: 0 | W87: 0 | X87: 0 | Y87: 0.14 | Z87: 0.9 | AA87: 0 | AB87: 0
A88: X | B88: 5 | C88: Spencer Abraham | D88: D | E88: 4 | F88: 1 | G88: 1 | H88: 2 | I88: -2 | J88: 2 | K88: 1 | L88: 1 | M88: 0 | N88: 0 | O88: 0 | P88: 0 | Q88: 0 | R88: 0 | S88: 0 | T88: 0 | U88: 0 | V88: 0 | W88: 0 | X88: 0 | Y88: 0.5 | Z88: 0.5 | AA88: 0 | AB88: 0
B89: 12 | C89: Derek Froats | D89: LW | E89: 13 | F89: 1 | G89: 1 | H89: 2 | I89: -2 | J89: 9 | K89: 0 | L89: 1 | M89: 0 | N89: 0 | O89: 0 | P89: 0 | Q89: 0 | R89: 0 | S89: 0 | T89: 0 | U89: 0 | V89: 0 | W89: 0 | X89: 0 | Y89: 0.15 | Z89: 0.69 | AA89: 0 | AB89: 0
B90: 15 | C90: Connor Jarvis | D90: LW | E90: 15 | F90: 1 | G90: 1 | H90: 2 | I90: 4 | J90: 6 | K90: 0 | L90: 0 | M90: 0 | N90: 0 | O90: 0 | P90: 0 | Q90: 0 | R90: 0 | S90: 0 | T90: 0 | U90: 0 | V90: 0 | W90: 0 | X90: 0 | Y90: 0.13 | Z90: 0.4 | AA90: 0 | AB90: 0
B91: 4 | C91: Marcus McIvor | D91: D | E91: 15 | F91: 1 | G91: 1 | H91: 2 | I91: -5 | J91: 10 | K91: 0 | L91: 0 | M91: 0 | N91: 0 | O91: 0 | P91: 0 | Q91: 0 | R91: 0 | S91: 0 | T91: 0 | U91: 0 | V91: 0 | W91: 0 | X91: 0 | Y91: 0.13 | Z91: 0.67 | AA91: 0 | AB91: 0
A92: * | B92: 2 | C92: Mark Raycroft | D92: D | E92: 17 | F92: 0 | G92: 2 | H92: 2 | I92: 0 | J92: 8 | K92: 0 | L92: 0 | M92: 0 | N92: 0 | O92: 0 | P92: 0 | Q92: 0 | R92: 0 | S92: 0 | T92: 0 | U92: 0 | V92: 0 | W92: 0 | X92: 0 | Y92: 0.12 | Z92: 0.47 | AA92: 0 | AB92: 0
A93: X | B93: 14 | C93: Brennan Feasey | D93: C | E93: 7 | F93: 1 | G93: 0 | H93: 1 | I93: -6 | J93: 0 | K93: 0 | L93: 0 | M93: 0 | N93: 0 | O93: 1 | P93: 0 | Q93: 0 | R93: 0 | S93: 0 | T93: 0 | U93: 0 | V93: 0 | W93: 0 | X93: 0 | Y93: 0.14 | Z93: 0 | AA93: 0 | AB93: 0
A94: *X | B94: 25 | C94: Mitch Amante | D94: RW | E94: 5 | F94: 0 | G94: 1 | H94: 1 | I94: -3 | J94: 4 | K94: 0 | L94: 1 | M94: 0 | N94: 0 | O94: 0 | P94: 0 | Q94: 0 | R94: 0 | S94: 0 | T94: 0 | U94: 0 | V94: 0 | W94: 0 | X94: 0 | Y94: 0.2 | Z94: 0.8 | AA94: 0 | AB94: 0
B95: 35 | C95: Matej Machovsky | D95: G | E95: 18 | F95: 0 | G95: 1 | H95: 1 | I95: 0 | J95: 0 | K95: 0 | L95: 0 | M95: 0 | N95: 0 | O95: 0 | P95: 0 | Q95: 0 | R95: 0 | S95: 0 | T95: 0 | U95: 0 | V95: 0 | W95: 0 | X95: 0 | Y95: 0.06 | Z95: 0 | AA95: 0 | AB95: 0
A96: * | B96: 3 | C96: Kyle Wood | D96: D | E96: 4 | F96: 0 | G96: 0 | H96: 0 | I96: -1 | J96: 0 | K96: 0 | L96: 0 | M96: 0 | N96: 0 | O96: 0 | P96: 0 | Q96: 0 | R96: 0 | S96: 0 | T96: 0 | U96: 0 | V96: 0 | W96: 0 | X96: 0 | Y96: 0 | Z96: 0 | AA96: 0 | AB96: 0
A97: * | B97: 1 | C97: Jake Smith | D97: G | E97: 5 | F97: 0 | G97: 0 | H97: 0 | I97: 0 | J97: 0 | K97: 0 | L97: 0 | M97: 0 | N97: 0 | O97: 0 | P97: 0 | Q97: 0 | R97: 0 | S97: 0 | T97: 0 | U97: 0 | V97: 0 | W97: 0 | X97: 0 | Y97: 0 | Z97: 0 | AA97: 0 | AB97: 0
C98: BENCH | E98: 21 | F98: 0 | J98: 2 | AA98: 0
C99: TOTALS | E99: 21 | F99: 53 | G99: 82 | H99: 135 | I99: -63 | J99: 229 | K99: 17 | L99: 33 | M99: 2 | N99: 1 | O99: 8 | P99: 7 | Q99: 6 | R99: 0 | S99: 7 | T99: 0 | U99: 2 | V99: 6 | W99: 0 | X99: 0.333 | Y99: 6.43 | Z99: 10.9 | AA99: 0 | AB99: 0
B101: # | C101: Goalie | D101: GP | E101: MINS | F101: W | G101: L | H101: OTL | I101: SL | J101: SO | K101: EN | L101: GA | M101: GAA | N101: SOGP | O101: SOW | P101: SL | Q101: SOGA | R101: SOA | S101: SO% | T101: SA | U101: SVS | V101: SV%
B102: 35 | C102: Matej Machovsky | D102: 18 | E102: 1021 | F102: 7 | G102: 5 | H102: 3 | I102: 2 | J102: 1 | K102: 3 | L102: 44 | M102: 2.59 | N102: 2 | O102: 0 | P102: 2 | Q102: 4 | R102: 5 | S102: 0.2 | T102: 457 | U102: 413 | V102: 0.904
A103: * | B103: 1 | C103: Jake Smith | D103: 5 | E103: 256 | F103: 1 | G103: 3 | H103: 0 | I103: 0 | J103: 0 | K103: 1 | L103: 13 | M103: 3.05 | N103: 0 | O103: 0 | P103: 0 | Q103: 0 | R103: 0 | S103: 0 | T103: 78 | U103: 65 | V103: 0.833
C104: Empty Net | E104: 3 | L104: 4 | T104: 4
C105: TOTALS | D105: 21 | E105: 1277 | F105: 8 | G105: 8 | H105: 3 | I105: 2 | J105: 1 | K105: 4 | L105: 61 | M105: 2.86 | N105: 2 | O105: 0 | P105: 2 | Q105: 4 | R105: 5 | S105: 0.2 | T105: 539 | U105: 478 | V105: 0.887
B107: # | C107: Player | D107: Pos | E107: GP | F107: G | G107: A | H107: PTS | I107: +/- | J107: PIM | K107: PP | L107: PPA | M107: SH | N107: SHA | O107: GW | P107: FG | Q107: IG | R107: OT | S107: UA | T107: EN | U107: SOG | V107: SOA | W107: SOGW | X107: SO% | Y107: Pt/G | Z107: PIM/G | AA107: Shots | AB107: Sh%
B108: 28 | C108: Connor Brown | D108: RW | E108: 20 | F108: 16 | G108: 12 | H108: 28 | I108: 2 | J108: 8 | K108: 11 | L108: 1 | M108: 0 | N108: 1 | O108: 0 | P108: 1 | Q108: 1 | R108: 0 | S108: 2 | T108: 0 | U108: 1 | V108: 3 | W108: 1 | X108: 0.333 | Y108: 1.4 | Z108: 0.4 | AA108: 0 | AB108: 0
A109: * | B109: 97 | C109: Connor McDavid | D109: C | E109: 20 | F109: 11 | G109: 15 | H109: 26 | I109: 7 | J109: 16 | K109: 0 | L109: 7 | M109: 1 | N109: 1 | O109: 1 | P109: 1 | Q109: 0 | R109: 0 | S109: 2 | T109: 1 | U109: 0 | V109: 3 | W109: 0 | X109: 0 | Y109: 1.3 | Z109: 0.8 | AA109: 0 | AB109: 0
B110: 22 | C110: J.P. Labardo | D110: C | E110: 19 | F110: 6 | G110: 13 | H110: 19 | I110: 2 | J110: 12 | K110: 1 | L110: 5 | M110: 1 | N110: 1 | O110: 0 | P110: 1 | Q110: 1 | R110: 0 | S110: 0 | T110: 0 | U110: 1 | V110: 3 | W110: 0 | X110: 0.333 | Y110: 1 | Z110: 0.63 | AA110: 0 | AB110: 0
B111: 27 | C111: Adam Pelech | D111: D | E111: 20 | F111: 4 | G111: 15 | H111: 19 | I111: -4 | J111: 38 | K111: 1 | L111: 8 | M111: 1 | N111: 1 | O111: 0 | P111: 0 | Q111: 0 | R111: 0 | S111: 0 | T111: 0 | U111: 0 | V111: 1 | W111: 0 | X111: 0 | Y111: 0.95 | Z111: 1.9 | AA111: 0 | AB111: 0
B112: 40 | C112: Luke Cairns | D112: C | E112: 20 | F112: 4 | G112: 10 | H112: 14 | I112: 1 | J112: 13 | K112: 1 | L112: 4 | M112: 2 | N112: 1 | O112: 0 | P112: 0 | Q112: 2 | R112: 0 | S112: 0 | T112: 0 | U112: 0 | V112: 1 | W112: 0 | X112: 0 | Y112: 0.7 | Z112: 0.65 | AA112: 0 | AB112: 0
B113: 10 | C113: Stephen Harper | D113: LW | E113: 20 | F113: 7 | G113: 6 | H113: 13 | I113: -7 | J113: 14 | K113: 3 | L113: 3 | M113: 0 | N113: 0 | O113: 2 | P113: 1 | Q113: 0 | R113: 0 | S113: 0 | T113: 1 | U113: 0 | V113: 2 | W113: 0 | X113: 0 | Y113: 0.65 | Z113: 0.7 | AA113: 0 | AB113: 0
B114: 23 | C114: Connor Crisp | D114: C | E114: 20 | F114: 6 | G114: 4 | H114: 10 | I114: -6 | J114: 43 | K114: 3 | L114: 1 | M114: 0 | N114: 0 | O114: 1 | P114: 2 | Q114: 0 | R114: 0 | S114: 1 | T114: 0 | U114: 0 | V114: 1 | W114: 0 | X114: 0 | Y114: 0.5 | Z114: 2.15 | AA114: 0 | AB114: 0
B115: 4 | C115: Jimmy McDowell | D115: D | E115: 19 | F115: 2 | G115: 8 | H115: 10 | I115: -3 | J115: 6 | K115: 1 | L115: 5 | M115: 0 | N115: 1 | O115: 0 | P115: 0 | Q115: 0 | R115: 0 | S115: 0 | T115: 0 | U115: 0 | V115: 1 | W115: 0 | X115: 0 | Y115: 0.53 | Z115: 0.32 | AA115: 0 | AB115: 0
B116: 7 | C116: Jake Evans | D116: C | E116: 20 | F116: 1 | G116: 5 | H116: 6 | I116: -8 | J116: 30 | K116: 0 | L116: 1 | M116: 0 | N116: 1 | O116: 0 | P116: 0 | Q116: 1 | R116: 0 | S116: 0 | T116: 0 | U116: 0 | V116: 0 | W116: 0 | X116: 0 | Y116: 0.3 | Z116: 1.5 | AA116: 0 | AB116: 0
B117: 12 | C117: Nick Betz | D117: RW | E117: 11 | F117: 2 | G117: 3 | H117: 5 | I117: 0 | J117: 9 | K117: 0 | L117: 1 | M117: 0 | N117: 0 | O117: 0 | P117: 0 | Q117: 0 | R117: 0 | S117: 0 | T117: 0 | U117: 0 | V117: 0 | W117: 0 | X117: 0 | Y117: 0.45 | Z117: 0.82 | AA117: 0 | AB117: 0
B118: 9 | C118: Spencer Abraham (total) | D118: D | E118: 19 | F118: 2 | G118: 3 | H118: 5 | I118: -5 | J118: 8 | K118: 1 | L118: 1 | M118: 0 | N118: 0 | O118: 0 | P118: 0 | Q118: 0 | R118: 0 | S118: 0 | T118: 0 | U118: 0 | V118: 0 | W118: 0 | X118: 0 | Y118: 0.26 | Z118: 0.42 | AA118: 0 | AB118: 0
C119: BRA | D119: D | E119: 4 | F119: 1 | G119: 1 | H119: 2 | I119: -2 | J119: 2 | K119: 1 | L119: 1 | M119: 0 | N119: 0 | O119: 0 | P119: 0 | Q119: 0 | R119: 0 | S119: 0 | T119: 0 | U119: 0 | V119: 0 | W119: 0 | X119: 0 | Y119: 0.5 | Z119: 0.5 | AA119: 0 | AB119: 0
C120: ER | D120: D | E120: 15 | F120: 1 | G120: 2 | H120: 3 | I120: -3 | J120: 6 | K120: 0 | L120: 0 | M120: 0 | N120: 0 | O120: 0 | P120: 0 | Q120: 0 | R120: 0 | S120: 0 | T120: 0 | U120: 0 | V120: 0 | W120: 0 | X120: 0 | Y120: 0.2 | Z120: 0.4 | AA120: 0 | AB120: 0
B121: 37 | C121: Travis Wood | D121: LW | E121: 19 | F121: 1 | G121: 3 | H121: 4 | I121: -8 | J121: 4 | K121: 0 | L121: 1 | M121: 0 | N121: 0 | O121: 0 | P121: 0 | Q121: 0 | R121: 0 | S121: 0 | T121: 0 | U121: 0 | V121: 0 | W121: 0 | X121: 0 | Y121: 0.21 | Z121: 0.21 | AA121: 0 | AB121: 0
B122: 57 | C122: Troy Donnay | D122: D | E122: 20 | F122: 1 | G122: 3 | H122: 4 | I122: -10 | J122: 13 | K122: 0 | L122: 1 | M122: 0 | N122: 0 | O122: 0 | P122: 0 | Q122: 0 | R122: 0 | S122: 0 | T122: 0 | U122: 0 | V122: 0 | W122: 0 | X122: 0 | Y122: 0.2 | Z122: 0.65 | AA122: 0 | AB122: 0
A123: * | B123: 11 | C123: Hayden Hodgson | D123: RW | E123: 20 | F123: 1 | G123: 2 | H123: 3 | I123: -10 | J123: 10 | K123: 0 | L123: 0 | M123: 0 | N123: 0 | O123: 0 | P123: 0 | Q123: 0 | R123: 0 | S123: 0 | T123: 0 | U123: 0 | V123: 1 | W123: 0 | X123: 0 | Y123: 0.15 | Z123: 0.5 | AA123: 0 | AB123: 0
B124: 3 | C124: Nathan Glass | D124: D | E124: 20 | F124: 0 | G124: 3 | H124: 3 | I124: 2 | J124: 6 | K124: 0 | L124: 0 | M124: 0 | N124: 0 | O124: 0 | P124: 0 | Q124: 0 | R124: 0 | S124: 0 | T124: 0 | U124: 0 | V124: 0 | W124: 0 | X124: 0 | Y124: 0.15 | Z124: 0.3 | AA124: 0 | AB124: 0
B125: 14 | C125: Anthony Cortellessa | D125: LW | E125: 15 | F125: 1 | G125: 1 | H125: 2 | I125: -1 | J125: 10 | K125: 0 | L125: 0 | M125: 0 | N125: 0 | O125: 1 | P125: 0 | Q125: 0 | R125: 0 | S125: 0 | T125: 0 | U125: 0 | V125: 1 | W125: 0 | X125: 0 | Y125: 0.13 | Z125: 0.67 | AA125: 0 | AB125: 0
A126: * | B126: 5 | C126: Justin Felker | D126: D | E126: 8 | F126: 0 | G126: 2 | H126: 2 | I126: 0 | J126: 0 | K126: 0 | L126: 0 | M126: 0 | N126: 0 | O126: 0 | P126: 0 | Q126: 0 | R126: 0 | S126: 0 | T126: 0 | U126: 0 | V126: 0 | W126: 0 | X126: 0 | Y126: 0.25 | Z126: 0 | AA126: 0 | AB126: 0
B127: 21 | C127: Johnny McGuire | D127: RW | E127: 19 | F127: 1 | G127: 0 | H127: 1 | I127: -12 | J127: 30 | K127: 0 | L127: 0 | M127: 0 | N127: 0 | O127: 0 | P127: 1 | Q127: 0 | R127: 0 | S127: 0 | T127: 0 | U127: 0 | V127: 0 | W127: 0 | X127: 0 | Y127: 0.05 | Z127: 1.58 | AA127: 0 | AB127: 0
A128: * | B128: 31 | C128: Devin Williams | D128: G | E128: 4 | F128: 0 | G128: 0 | H128: 0 | I128: 0 | J128: 0 | K128: 0 | L128: 0 | M128: 0 | N128: 0 | O128: 0 | P128: 0 | Q128: 0 | R128: 0 | S128: 0 | T128: 0 | U128: 0 | V128: 0 | W128: 0 | X128: 0 | Y128: 0 | Z128: 0 | AA128: 0 | AB128: 0
A129: * | B129: 19 | C129: Artem Kuleshov | D129: D | E129: 15 | F129: 0 | G129: 0 | H129: 0 | I129: -12 | J129: 8 | K129: 0 | L129: 0 | M129: 0 | N129: 0 | O129: 0 | P129: 0 | Q129: 0 | R129: 0 | S129: 0 | T129: 0 | U129: 0 | V129: 0 | W129: 0 | X129: 0 | Y129: 0 | Z129: 0.53 | AA129: 0 | AB129: 0
B130: 38 | C130: Oscar Dansk | D130: G | E130: 17 | F130: 0 | G130: 0 | H130: 0 | I130: 0 | J130: 0 | K130: 0 | L130: 0 | M130: 0 | N130: 0 | O130: 0 | P130: 0 | Q130: 0 | R130: 0 | S130: 0 | T130: 0 | U130: 0 | V130: 0 | W130: 0 | X130: 0 | Y130: 0 | Z130: 0 | AA130: 0 | AB130: 0
A131: * | B131: 15 | C131: Kyle Pettit | D131: C | E131: 20 | F131: 0 | G131: 0 | H131: 0 | I131: -6 | J131: 4 | K131: 0 | L131: 0 | M131: 0 | N131: 0 | O131: 0 | P131: 0 | Q131: 0 | R131: 0 | S131: 0 | T131: 0 | U131: 0 | V131: 0 | W131: 0 | X131: 0 | Y131: 0 | Z131: 0.2 | AA131: 0 | AB131: 0
C132: BENCH | E132: 20 | F132: 1 | J132: 6 | AA132: 1
C133: TOTALS | E133: 20 | F133: 66 | G133: 107 | H133: 172 | I133: -76 | J133: 286 | K133: 21 | L133: 38 | M133: 5 | N133: 7 | O133: 5 | P133: 7 | Q133: 5 | R133: 0 | S133: 5 | T133: 2 | U133: 2 | V133: 17 | W133: 1 | X133: 0.118 | Y133: 8.6 | Z133: 14.3 | AA133: 1 | AB133: 0
B135: # | C135: Goalie | D135: GP | E135: MINS | F135: W | G135: L | H135: OTL | I135: SL | J135: SO | K135: EN | L135: GA | M135: GAA | N135: SOGP | O135: SOW | P135: SL | Q135: SOGA | R135: SOA | S135: SO% | T135: SA | U135: SVS | V135: SV%
B136: 38 | C136: Oscar Dansk | D136: 17 | E136: 1012 | F136: 6 | G136: 9 | H136: 0 | I136: 2 | J136: 0 | K136: 1 | L136: 64 | M136: 3.8 | N136: 3 | O136: 1 | P136: 2 | Q136: 3 | R136: 17 | S136: 0.824 | T136: 660 | U136: 596 | V136: 0.903
A137: * | B137: 31 | C137: Devin Williams | D137: 4 | E137: 200 | F137: 0 | G137: 2 | H137: 1 | I137: 0 | J137: 0 | K137: 0 | L137: 14 | M137: 4.2 | N137: 0 | O137: 0 | P137: 0 | Q137: 0 | R137: 0 | S137: 0 | T137: 152 | U137: 138 | V137: 0.908
C138: Empty Net | E138: 4 | L138: 1 | T138: 1
C139: TOTALS | D139: 20 | E139: 1212 | F139: 6 | G139: 11 | H139: 1 | I139: 2 | J139: 0 | K139: 1 | L139: 79 | M139: 3.9 | N139: 3 | O139: 1 | P139: 2 | Q139: 3 | R139: 17 | S139: 0.824 | T139: 813 | U139: 734 | V139: 0.903
B141: # | C141: Player | D141: Pos | E141: GP | F141: G | G141: A | H141: PTS | I141: +/- | J141: PIM | K141: PP | L141: PPA | M141: SH | N141: SHA | O141: GW | P141: FG | Q141: IG | R141: OT | S141: UA | T141: EN | U141: SOG | V141: SOA | W141: SOGW | X141: SO% | Y141: Pt/G | Z141: PIM/G | AA141: Shots | AB141: Sh%
B142: 24 | C142: Scott Kosmachuk | D142: RW | E142: 21 | F142: 12 | G142: 12 | H142: 24 | I142: 0 | J142: 36 | K142: 5 | L142: 5 | M142: 0 | N142: 2 | O142: 1 | P142: 3 | Q142: 2 | R142: 0 | S142: 0 | T142: 0 | U142: 0 | V142: 1 | W142: 0 | X142: 0 | Y142: 1.14 | Z142: 1.71 | AA142: 0 | AB142: 0
B143: 27 | C143: Tanner Richard | D143: LW | E143: 18 | F143: 2 | G143: 21 | H143: 23 | I143: 4 | J143: 42 | K143: 1 | L143: 8 | M143: 0 | N143: 0 | O143: 0 | P143: 0 | Q143: 0 | R143: 0 | S143: 1 | T143: 1 | U143: 0 | V143: 0 | W143: 0 | X143: 0 | Y143: 1.28 | Z143: 2.33 | AA143: 0 | AB143: 0
B144: 11 | C144: Jason Dickinson | D144: LW | E144: 21 | F144: 9 | G144: 11 | H144: 20 | I144: 5 | J144: 2 | K144: 4 | L144: 3 | M144: 0 | N144: 1 | O144: 1 | P144: 2 | Q144: 1 | R144: 0 | S144: 1 | T144: 0 | U144: 0 | V144: 1 | W144: 0 | X144: 0 | Y144: 0.95 | Z144: 0.1 | AA144: 0 | AB144: 0
B145: 23 | C145: Zack Mitchell | D145: RW | E145: 21 | F145: 8 | G145: 12 | H145: 20 | I145: 8 | J145: 12 | K145: 4 | L145: 6 | M145: 1 | N145: 0 | O145: 0 | P145: 1 | Q145: 1 | R145: 0 | S145: 0 | T145: 0 | U145: 0 | V145: 1 | W145: 0 | X145: 0 | Y145: 0.95 | Z145: 0.57 | AA145: 0 | AB145: 0
B146: 4 | C146: Matt Finn | D146: D | E146: 21 | F146: 8 | G146: 10 | H146: 18 | I146: 3 | J146: 16 | K146: 3 | L146: 5 | M146: 0 | N146: 0 | O146: 3 | P146: 1 | Q146: 1 | R146: 1 | S146: 0 | T146: 0 | U146: 0 | V146: 0 | W146: 0 | X146: 0 | Y146: 0.86 | Z146: 0.76 | AA146: 0 | AB146: 0
B147: 3 | C147: Andrey Pedan | D147: D | E147: 17 | F147: 6 | G147: 8 | H147: 14 | I147: -2 | J147: 40 | K147: 3 | L147: 5 | M147: 0 | N147: 1 | O147: 1 | P147: 1 | Q147: 0 | R147: 1 | S147: 0 | T147: 0 | U147: 0 | V147: 0 | W147: 0 | X147: 0 | Y147: 0.82 | Z147: 2.35 | AA147: 0 | AB147: 0
B148: 8 | C148: Zac Leslie | D148: D | E148: 21 | F148: 4 | G148: 9 | H148: 13 | I148: 1 | J148: 21 | K148: 3 | L148: 3 | M148: 0 | N148: 1 | O148: 1 | P148: 0 | Q148: 0 | R148: 0 | S148: 0 | T148: 0 | U148: 0 | V148: 1 | W148: 0 | X148: 0 | Y148: 0.62 | Z148: 1 | AA148: 0 | AB148: 0
B149: 21 | C149: Brock McGinn | D149: LW | E149: 21 | F149: 3 | G149: 10 | H149: 13 | I149: -5 | J149: 29 | K149: 2 | L149: 3 | M149: 1 | N149: 0 | O149: 0 | P149: 0 | Q149: 1 | R149: 0 | S149: 0 | T149: 0 | U149: 1 | V149: 1 | W149: 1 | X149: 1 | Y149: 0.62 | Z149: 1.38 | AA149: 0 | AB149: 0
B150: 20 | C150: Justin Auger | D150: RW | E150: 21 | F150: 6 | G150: 6 | H150: 12 | I150: -1 | J150: 6 | K150: 1 | L150: 2 | M150: 0 | N150: 0 | O150: 1 | P150: 0 | Q150: 0 | R150: 0 | S150: 0 | T150: 0 | U150: 0 | V150: 0 | W150: 0 | X150: 0 | Y150: 0.57 | Z150: 0.29 | AA150: 0 | AB150: 0
A151: * | B151: 9 | C151: Robby Fabbri | D151: C | E151: 21 | F151: 3 | G151: 9 | H151: 12 | I151: -4 | J151: 24 | K151: 0 | L151: 6 | M151: 1 | N151: 0 | O151: 0 | P151: 0 | Q151: 0 | R151: 0 | S151: 0 | T151: 0 | U151: 0 | V151: 1 | W151: 0 | X151: 0 | Y151: 0.57 | Z151: 1.14 | AA151: 0 | AB151: 0
B152: 12 | C152: Ryan Horvat | D152: LW | E152: 17 | F152: 4 | G152: 7 | H152: 11 | I152: -3 | J152: 17 | K152: 1 | L152: 1 | M152: 0 | N152: 0 | O152: 0 | P152: 1 | Q152: 0 | R152: 0 | S152: 0 | T152: 1 | U152: 0 | V152: 0 | W152: 0 | X152: 0 | Y152: 0.65 | Z152: 1 | AA152: 0 | AB152: 0
B153: 19 | C153: Hunter Garlent | D153: C | E153: 11 | F153: 4 | G153: 6 | H153: 10 | I153: 5 | J153: 11 | K153: 0 | L153: 3 | M153: 1 | N153: 0 | O153: 0 | P153: 0 | Q153: 2 | R153: 0 | S153: 0 | T153: 0 | U153: 0 | V153: 0 | W153: 0 | X153: 0 | Y153: 0.91 | Z153: 1 | AA153: 0 | AB153: 0
B154: 25 | C154: Brock Beukeboom (total) | D154: D | E154: 22 | F154: 0 | G154: 9 | H154: 9 | I154: -2 | J154: 20 | K154: 0 | L154: 2 | M154: 0 | N154: 1 | O154: 0 | P154: 0 | Q154: 0 | R154: 0 | S154: 0 | T154: 0 | U154: 0 | V154: 0 | W154: 0 | X154: 0 | Y154: 0.41 | Z154: 0.91 | AA154: 0 | AB154: 0
C155: NIAG | D155: D | E155: 16 | F155: 0 | G155: 8 | H155: 8 | I155: 2 | J155: 16 | K155: 0 | L155: 2 | M155: 0 | N155: 1 | O155: 0 | P155: 0 | Q155: 0 | R155: 0 | S155: 0 | T155: 0 | U155: 0 | V155: 0 | W155: 0 | X155: 0 | Y155: 0.5 | Z155: 1 | AA155: 0 | AB155: 0
C156: GUE | D156: D | E156: 6 | F156: 0 | G156: 1 | H156: 1 | I156: -4 | J156: 4 | K156: 0 | L156: 0 | M156: 0 | N156: 0 | O156: 0 | P156: 0 | Q156: 0 | R156: 0 | S156: 0 | T156: 0 | U156: 0 | V156: 0 | W156: 0 | X156: 0 | Y156: 0.17 | Z156: 0.67 | AA156: 0 | AB156: 0
B157: 14 | C157: Patrick Watling | D157: C | E157: 11 | F157: 3 | G157: 3 | H157: 6 | I157: 5 | J157: 4 | K157: 0 | L157: 0 | M157: 0 | N157: 0 | O157: 0 | P157: 1 | Q157: 0 | R157: 0 | S157: 1 | T157: 0 | U157: 0 | V157: 0 | W157: 0 | X157: 0 | Y157: 0.55 | Z157: 0.36 | AA157: 0 | AB157: 0
B158: 6 | C158: Daniel Poliziani | D158: D | E158: 21 | F158: 1 | G158: 5 | H158: 6 | I158: 4 | J158: 0 | K158: 0 | L158: 2 | M158: 0 | N158: 0 | O158: 0 | P158: 0 | Q158: 0 | R158: 0 | S158: 0 | T158: 0 | U158: 0 | V158: 0 | W158: 0 | X158: 0 | Y158: 0.29 | Z158: 0 | AA158: 0 | AB158: 0
B159: 17 | C159: Tyler Bertuzzi | D159: LW | E159: 15 | F159: 4 | G159: 0 | H159: 4 | I159: -5 | J159: 33 | K159: 0 | L159: 0 | M159: 0 | N159: 0 | O159: 2 | P159: 2 | Q159: 0 | R159: 0 | S159: 0 | T159: 0 | U159: 0 | V159: 1 | W159: 0 | X159: 0 | Y159: 0.27 | Z159: 2.2 | AA159: 0 | AB159: 0
B160: 7 | C160: Ben Harpur | D160: D | E160: 21 | F160: 2 | G160: 2 | H160: 4 | I160: 3 | J160: 15 | K160: 1 | L160: 1 | M160: 0 | N160: 0 | O160: 0 | P160: 0 | Q160: 0 | R160: 0 | S160: 0 | T160: 0 | U160: 0 | V160: 0 | W160: 0 | X160: 0 | Y160: 0.19 | Z160: 0.71 | AA160: 0 | AB160: 0
A161: * | B161: 16 | C161: Brody Milne | D161: LW | E161: 19 | F161: 1 | G161: 3 | H161: 4 | I161: -1 | J161: 2 | K161: 0 | L161: 1 | M161: 0 | N161: 0 | O161: 0 | P161: 0 | Q161: 0 | R161: 0 | S161: 0 | T161: 0 | U161: 0 | V161: 0 | W161: 0 | X161: 0 | Y161: 0.21 | Z161: 0.11 | AA161: 0 | AB161: 0
B162: 22 | C162: Cody McNaughton | D162: RW | E162: 15 | F162: 2 | G162: 1 | H162: 3 | I162: -4 | J162: 16 | K162: 0 | L162: 1 | M162: 0 | N162: 0 | O162: 1 | P162: 1 | Q162: 0 | R162: 0 | S162: 0 | T162: 0 | U162: 0 | V162: 0 | W162: 0 | X162: 0 | Y162: 0.2 | Z162: 1.07 | AA162: 0 | AB162: 0
A163: * | B163: 5 | C163: Kyle Locke | D163: D | E163: 15 | F163: 0 | G163: 1 | H163: 1 | I163: -1 | J163: 9 | K163: 0 | L163: 0 | M163: 0 | N163: 0 | O163: 0 | P163: 0 | Q163: 0 | R163: 0 | S163: 0 | T163: 0 | U163: 0 | V163: 0 | W163: 0 | X163: 0 | Y163: 0.07 | Z163: 0.6 | AA163: 0 | AB163: 0
B164: 37 | C164: Jason DaSilva | D164: G | E164: 4 | F164: 0 | G164: 0 | H164: 0 | I164: 0 | J164: 0 | K164: 0 | L164: 0 | M164: 0 | N164: 0 | O164: 0 | P164: 0 | Q164: 0 | R164: 0 | S164: 0 | T164: 0 | U164: 0 | V164: 0 | W164: 0 | X164: 0 | Y164: 0 | Z164: 0 | AA164: 0 | AB164: 0
A165: * | B165: 26 | C165: Chadd Bauman | D165: D | E165: 16 | F165: 0 | G165: 0 | H165: 0 | I165: 0 | J165: 20 | K165: 0 | L165: 0 | M165: 0 | N165: 0 | O165: 0 | P165: 0 | Q165: 0 | R165: 0 | S165: 0 | T165: 0 | U165: 0 | V165: 0 | W165: 0 | X165: 0 | Y165: 0 | Z165: 1.25 | AA165: 0 | AB165: 0
B166: 40 | C166: Garret Sparks | D166: G | E166: 21 | F166: 0 | G166: 0 | H166: 0 | I166: 0 | J166: 2 | K166: 0 | L166: 0 | M166: 0 | N166: 0 | O166: 0 | P166: 0 | Q166: 0 | R166: 0 | S166: 0 | T166: 0 | U166: 0 | V166: 0 | W166: 0 | X166: 0 | Y166: 0 | Z166: 0.1 | AA166: 0 | AB166: 0
C167: BENCH | E167: 21 | F167: 1 | J167: 10 | AA167: 1
C168: TOTALS | E168: 21 | F168: 83 | G168: 137 | H168: 219 | I168: 8 | J168: 371 | K168: 28 | L168: 55 | M168: 4 | N168: 5 | O168: 11 | P168: 13 | Q168: 8 | R168: 2 | S168: 3 | T168: 2 | U168: 1 | V168: 7 | W168: 1 | X168: 0.143 | Y168: 10.43 | Z168: 17.67 | AA168: 1 | AB168: 0
B170: # | C170: Goalie | D170: GP | E170: MINS | F170: W | G170: L | H170: OTL | I170: SL | J170: SO | K170: EN | L170: GA | M170: GAA | N170: SOGP | O170: SOW | P170: SL | Q170: SOGA | R170: SOA | S170: SO% | T170: SA | U170: SVS | V170: SV%
B171: 40 | C171: Garret Sparks | D171: 21 | E171: 1139 | F171: 11 | G171: 6 | H171: 0 | I171: 1 | J171: 2 | K171: 3 | L171: 65 | M171: 3.42 | N171: 2 | O171: 1 | P171: 1 | Q171: 2 | R171: 8 | S171: 0.75 | T171: 696 | U171: 631 | V171: 0.907
B172: 37 | C172: Jason DaSilva | D172: 4 | E172: 129 | F172: 1 | G172: 2 | H172: 0 | I172: 0 | J172: 0 | K172: 1 | L172: 8 | M172: 3.72 | N172: 0 | O172: 0 | P172: 0 | Q172: 0 | R172: 0 | S172: 0 | T172: 65 | U172: 57 | V172: 0.877
C173: Empty Net | E173: 3 | L173: 4 | T173: 4
C174: TOTALS | D174: 21 | E174: 1268 | F174: 12 | G174: 8 | H174: 0 | I174: 1 | J174: 2 | K174: 4 | L174: 77 | M174: 3.63 | N174: 2 | O174: 1 | P174: 1 | Q174: 2 | R174: 8 | S174: 0.75 | T174: 765 | U174: 688 | V174: 0.899
B176: # | C176: Player | D176: Pos | E176: GP | F176: G | G176: A | H176: PTS | I176: +/- | J176: PIM | K176: PP | L176: PPA | M176: SH | N176: SHA | O176: GW | P176: FG | Q176: IG | R176: OT | S176: UA | T176: EN | U176: SOG | V176: SOA | W176: SOGW | X176: SO% | Y176: Pt/G | Z176: PIM/G | AA176: Shots | AB176: Sh%
A177: * | B177: 96 | C177: Spencer Watson | D177: LW | E177: 19 | F177: 8 | G177: 9 | H177: 17 | I177: 5 | J177: 6 | K177: 2 | L177: 1 | M177: 0 | N177: 0 | O177: 1 | P177: 0 | Q177: 1 | R177: 0 | S177: 2 | T177: 0 | U177: 1 | V177: 2 | W177: 1 | X177: 0.5 | Y177: 0.89 | Z177: 0.32 | AA177: 0 | AB177: 0
B178: 4 | C178: Michael Moffat | D178: D | E178: 19 | F178: 1 | G178: 16 | H178: 17 | I178: 2 | J178: 31 | K178: 0 | L178: 6 | M178: 0 | N178: 0 | O178: 0 | P178: 1 | Q178: 0 | R178: 0 | S178: 0 | T178: 0 | U178: 0 | V178: 0 | W178: 0 | X178: 0 | Y178: 0.89 | Z178: 1.63 | AA178: 0 | AB178: 0
B179: 22 | C179: Darcy Greenaway | D179: C | E179: 19 | F179: 9 | G179: 7 | H179: 16 | I179: 0 | J179: 2 | K179: 3 | L179: 2 | M179: 0 | N179: 0 | O179: 1 | P179: 1 | Q179: 1 | R179: 1 | S179: 0 | T179: 0 | U179: 0 | V179: 1 | W179: 0 | X179: 0 | Y179: 0.84 | Z179: 0.11 | AA179: 0 | AB179: 0
B180: 17 | C180: Ryan Kujawinski | D180: C | E180: 19 | F180: 4 | G180: 12 | H180: 16 | I180: -5 | J180: 6 | K180: 2 | L180: 3 | M180: 0 | N180: 1 | O180: 0 | P180: 2 | Q180: 0 | R180: 0 | S180: 0 | T180: 0 | U180: 0 | V180: 1 | W180: 0 | X180: 0 | Y180: 0.84 | Z180: 0.32 | AA180: 0 | AB180: 0
B181: 23 | C181: Henri Ikonen | D181: C | E181: 19 | F181: 6 | G181: 7 | H181: 13 | I181: 3 | J181: 10 | K181: 1 | L181: 3 | M181: 0 | N181: 0 | O181: 1 | P181: 2 | Q181: 0 | R181: 0 | S181: 0 | T181: 0 | U181: 1 | V181: 2 | W181: 0 | X181: 0.5 | Y181: 0.68 | Z181: 0.53 | AA181: 0 | AB181: 0
B182: 9 | C182: Cody Alcock | D182: LW | E182: 18 | F182: 7 | G182: 5 | H182: 12 | I182: -3 | J182: 13 | K182: 2 | L182: 1 | M182: 0 | N182: 0 | O182: 1 | P182: 1 | Q182: 0 | R182: 0 | S182: 0 | T182: 0 | U182: 0 | V182: 0 | W182: 0 | X182: 0 | Y182: 0.67 | Z182: 0.72 | AA182: 0 | AB182: 0
A183: * | B183: 93 | C183: Sam Bennett | D183: LW | E183: 19 | F183: 6 | G183: 6 | H183: 12 | I183: 0 | J183: 24 | K183: 1 | L183: 2 | M183: 0 | N183: 0 | O183: 2 | P183: 0 | Q183: 2 | R183: 1 | S183: 1 | T183: 1 | U183: 1 | V183: 1 | W183: 1 | X183: 1 | Y183: 0.63 | Z183: 1.26 | AA183: 0 | AB183: 0
A184: * | B184: 20 | C184: Roland McKeown | D184: D | E184: 19 | F184: 3 | G184: 9 | H184: 12 | I184: -6 | J184: 8 | K184: 0 | L184: 2 | M184: 0 | N184: 0 | O184: 0 | P184: 0 | Q184: 0 | R184: 0 | S184: 1 | T184: 0 | U184: 0 | V184: 0 | W184: 0 | X184: 0 | Y184: 0.63 | Z184: 0.42 | AA184: 0 | AB184: 0
B185: 10 | C185: Billy Jenkins | D185: LW | E185: 19 | F185: 6 | G185: 4 | H185: 10 | I185: -5 | J185: 5 | K185: 1 | L185: 3 | M185: 1 | N185: 0 | O185: 0 | P185: 1 | Q185: 0 | R185: 0 | S185: 0 | T185: 0 | U185: 0 | V185: 0 | W185: 0 | X185: 0 | Y185: 0.53 | Z185: 0.26 | AA185: 0 | AB185: 0
B186: 77 | C186: Warren Steele | D186: D | E186: 18 | F186: 1 | G186: 8 | H186: 9 | I186: -2 | J186: 10 | K186: 0 | L186: 2 | M186: 0 | N186: 0 | O186: 0 | P186: 0 | Q186: 0 | R186: 0 | S186: 1 | T186: 0 | U186: 0 | V186: 0 | W186: 0 | X186: 0 | Y186: 0.5 | Z186: 0.56 | AA186: 0 | AB186: 0
B187: 12 | C187: Trevor Morbeck | D187: RW | E187: 15 | F187: 5 | G187: 2 | H187: 7 | I187: -7 | J187: 13 | K187: 2 | L187: 0 | M187: 0 | N187: 0 | O187: 2 | P187: 0 | Q187: 0 | R187: 0 | S187: 0 | T187: 0 | U187: 0 | V187: 0 | W187: 0 | X187: 0 | Y187: 0.47 | Z187: 0.87 | AA187: 0 | AB187: 0
B188: 5 | C188: Mikko Vainonen | D188: D | E188: 19 | F188: 1 | G188: 6 | H188: 7 | I188: -4 | J188: 19 | K188: 0 | L188: 3 | M188: 0 | N188: 0 | O188: 0 | P188: 0 | Q188: 0 | R188: 0 | S188: 0 | T188: 0 | U188: 0 | V188: 0 | W188: 0 | X188: 0 | Y188: 0.37 | Z188: 1 | AA188: 0 | AB188: 0
B189: 21 | C189: Samuel Schutt (total) | D189: RW | E189: 18 | F189: 2 | G189: 4 | H189: 6 | I189: -2 | J189: 7 | K189: 1 | L189: 1 | M189: 0 | N189: 0 | O189: 0 | P189: 0 | Q189: 0 | R189: 0 | S189: 1 | T189: 0 | U189: 0 | V189: 0 | W189: 0 | X189: 0 | Y189: 0.33 | Z189: 0.39 | AA189: 0 | AB189: 0
C190: SBY | D190: RW | E190: 10 | F190: 2 | G190: 2 | H190: 4 | I190: -1 | J190: 5 | K190: 1 | L190: 0 | M190: 0 | N190: 0 | O190: 0 | P190: 0 | Q190: 0 | R190: 0 | S190: 1 | T190: 0 | U190: 0 | V190: 0 | W190: 0 | X190: 0 | Y190: 0.4 | Z190: 0.5 | AA190: 0 | AB190: 0
C191: KGN | D191: RW | E191: 8 | F191: 0 | G191: 2 | H191: 2 | I191: -1 | J191: 2 | K191: 0 | L191: 1 | M191: 0 | N191: 0 | O191: 0 | P191: 0 | Q191: 0 | R191: 0 | S191: 0 | T191: 0 | U191: 0 | V191: 0 | W191: 0 | X191: 0 | Y191: 0.25 | Z191: 0.25 | AA191: 0 | AB191: 0
A192: * | B192: 15 | C192: Marc Beckstead | D192: LW | E192: 15 | F192: 2 | G192: 2 | H192: 4 | I192: 2 | J192: 2 | K192: 1 | L192: 1 | M192: 0 | N192: 0 | O192: 0 | P192: 0 | Q192: 0 | R192: 0 | S192: 0 | T192: 1 | U192: 0 | V192: 0 | W192: 0 | X192: 0 | Y192: 0.27 | Z192: 0.13 | AA192: 0 | AB192: 0
A193: * | B193: 61 | C193: Mitchell Fitzmorris | D193: LW | E193: 18 | F193: 2 | G193: 1 | H193: 3 | I193: -5 | J193: 23 | K193: 0 | L193: 0 | M193: 0 | N193: 0 | O193: 0 | P193: 0 | Q193: 0 | R193: 0 | S193: 1 | T193: 0 | U193: 0 | V193: 0 | W193: 0 | X193: 0 | Y193: 0.17 | Z193: 1.28 | AA193: 0 | AB193: 0
B194: 27 | C194: Jean Dupuy | D194: RW | E194: 15 | F194: 1 | G194: 2 | H194: 3 | I194: 0 | J194: 21 | K194: 0 | L194: 0 | M194: 0 | N194: 0 | O194: 0 | P194: 1 | Q194: 0 | R194: 0 | S194: 0 | T194: 0 | U194: 0 | V194: 0 | W194: 0 | X194: 0 | Y194: 0.2 | Z194: 1.4 | AA194: 0 | AB194: 0
A195: X | B195: 14 | C195: Kyler Nixon | D195: D | E195: 8 | F195: 0 | G195: 2 | H195: 2 | I195: -10 | J195: 0 | K195: 0 | L195: 2 | M195: 0 | N195: 0 | O195: 0 | P195: 0 | Q195: 0 | R195: 0 | S195: 0 | T195: 0 | U195: 0 | V195: 0 | W195: 0 | X195: 0 | Y195: 0.25 | Z195: 0 | AA195: 0 | AB195: 0
B196: 18 | C196: Ryan Hutchinson | D196: D | E196: 13 | F196: 0 | G196: 2 | H196: 2 | I196: 0 | J196: 27 | K196: 0 | L196: 0 | M196: 0 | N196: 0 | O196: 0 | P196: 0 | Q196: 0 | R196: 0 | S196: 0 | T196: 0 | U196: 0 | V196: 0 | W196: 0 | X196: 0 | Y196: 0.15 | Z196: 2.08 | AA196: 0 | AB196: 0
A197: * | B197: 8 | C197: Dylan DiPerna | D197: D | E197: 15 | F197: 0 | G197: 2 | H197: 2 | I197: 3 | J197: 2 | K197: 0 | L197: 0 | M197: 0 | N197: 0 | O197: 0 | P197: 0 | Q197: 0 | R197: 0 | S197: 0 | T197: 0 | U197: 0 | V197: 0 | W197: 0 | X197: 0 | Y197: 0.13 | Z197: 0.13 | AA197: 0 | AB197: 0
A198: X | B198: 11 | C198: Nathan Cull | D198: LW | E198: 10 | F198: 1 | G198: 0 | H198: 1 | I198: -6 | J198: 16 | K198: 1 | L198: 0 | M198: 0 | N198: 0 | O198: 0 | P198: 1 | Q198: 0 | R198: 0 | S198: 0 | T198: 0 | U198: 0 | V198: 0 | W198: 0 | X198: 0 | Y198: 0.1 | Z198: 1.6 | AA198: 0 | AB198: 0
B199: 24 | C199: Slater Doggett | D199: LW | E199: 15 | F199: 1 | G199: 0 | H199: 1 | I199: -4 | J199: 7 | K199: 0 | L199: 0 | M199: 0 | N199: 0 | O199: 0 | P199: 0 | Q199: 0 | R199: 0 | S199: 0 | T199: 0 | U199: 0 | V199: 0 | W199: 0 | X199: 0 | Y199: 0.07 | Z199: 0.47 | AA199: 0 | AB199: 0
B200: 29 | C200: Colin Furlong | D200: G | E200: 5 | F200: 0 | G200: 1 | H200: 1 | I200: 0 | J200: 0 | K200: 0 | L200: 0 | M200: 0 | N200: 1 | O200: 0 | P200: 0 | Q200: 0 | R200: 0 | S200: 0 | T200: 0 | U200: 0 | V200: 0 | W200: 0 | X200: 0 | Y200: 0.2 | Z200: 0 | AA200: 0 | AB200: 0
B201: 7 | C201: Ryan Hanes (total) | D201: D | E201: 11 | F201: 0 | G201: 0 | H201: 0 | I201: -1 | J201: 14 | K201: 0 | L201: 0 | M201: 0 | N201: 0 | O201: 0 | P201: 0 | Q201: 0 | R201: 0 | S201: 0 | T201: 0 | U201: 0 | V201: 0 | W201: 0 | X201: 0 | Y201: 0 | Z201: 1.27 | AA201: 0 | AB201: 0
C202: KIT | D202: D | E202: 9 | F202: 0 | G202: 0 | H202: 0 | I202: 0 | J202: 10 | K202: 0 | L202: 0 | M202: 0 | N202: 0 | O202: 0 | P202: 0 | Q202: 0 | R202: 0 | S202: 0 | T202: 0 | U202: 0 | V202: 0 | W202: 0 | X202: 0 | Y202: 0 | Z202: 1.11 | AA202: 0 | AB202: 0
C203: KGN | D203: D | E203: 2 | F203: 0 | G203: 0 | H203: 0 | I203: -1 | J203: 4 | K203: 0 | L203: 0 | M203: 0 | N203: 0 | O203: 0 | P203: 0 | Q203: 0 | R203: 0 | S203: 0 | T203: 0 | U203: 0 | V203: 0 | W203: 0 | X203: 0 | Y203: 0 | Z203: 2 | AA203: 0 | AB203: 0
B204: 33 | C204: Mike Morrison | D204: G | E204: 16 | F204: 0 | G204: 0 | H204: 0 | I204: 0 | J204: 0 | K204: 0 | L204: 0 | M204: 0 | N204: 0 | O204: 0 | P204: 0 | Q204: 0 | R204: 0 | S204: 0 | T204: 0 | U204: 0 | V204: 0 | W204: 0 | X204: 0 | Y204: 0 | Z204: 0 | AA204: 0 | AB204: 0
C205: BENCH | E205: 19 | F205: 2 | J205: 8 | AA205: 2
C206: TOTALS | E206: 19 | F206: 66 | G206: 105 | H206: 169 | I206: -44 | J206: 259 | K206: 16 | L206: 32 | M206: 1 | N206: 2 | O206: 8 | P206: 10 | Q206: 4 | R206: 2 | S206: 6 | T206: 2 | U206: 3 | V206: 7 | W206: 2 | X206: 0.429 | Y206: 8.89 | Z206: 13.63 | AA206: 2 | AB206: 0
B208: # | C208: Goalie | D208: GP | E208: MINS | F208: W | G208: L | H208: OTL | I208: SL | J208: SO | K208: EN | L208: GA | M208: GAA | N208: SOGP | O208: SOW | P208: SL | Q208: SOGA | R208: SOA | S208: SO% | T208: SA | U208: SVS | V208: SV%
B209: 33 | C209: Mike Morrison | D209: 16 | E209: 923 | F209: 9 | G209: 6 | H209: 0 | I209: 0 | J209: 1 | K209: 2 | L209: 51 | M209: 3.32 | N209: 2 | O209: 2 | P209: 0 | Q209: 1 | R209: 8 | S209: 0.875 | T209: 544 | U209: 493 | V209: 0.906
B210: 29 | C210: Colin Furlong | D210: 5 | E210: 226 | F210: 1 | G210: 3 | H210: 0 | I210: 0 | J210: 0 | K210: 2 | L210: 17 | M210: 4.51 | N210: 0 | O210: 0 | P210: 0 | Q210: 0 | R210: 0 | S210: 0 | T210: 147 | U210: 130 | V210: 0.884
C211: Empty Net | E211: 4 | L211: 4 | T211: 4
... 3050 more rows

Sheet ConsolidatedData
W1: TOTALS | AB1: Average
B2: FROM 2010 - 2011 | C2: By League | G2: By Position | U2: Draft Team | V2: Players | W2: GP | X2: Goals | Y2: Assists | Z2: Points | AB2: pts/player | AC2: GP/player | AD2: pts/gp
B3: DRAFTS | U3: Anaheim Ducks | V3: 3 | W3: =SUMIF(Drafted!I6:I205,U3,Drafted!K6:K205) -> 58 | X3: =SUMIF(Drafted!I6:I205,U3,Drafted!L6:L205) -> 13 | Y3: =SUMIF(Drafted!I6:I205,U3,Drafted!M6:M205) -> 21 | Z3: =SUMIF(Drafted!I6:I205,U3,Drafted!N6:N205) -> 34 | AB3: =(Z3/V3) -> 11.33333333 | AC3: =W3/V3 -> 19.33333333 | AD3: =AVERAGEIF(Drafted!I6:I205,U3,Drafted!AE6:AE205) -> 0.5866666667
B4: Draft Team | C4: Players | D4: OHL | E4: QMJHL | F4: WHL | G4: C | H4: LW | I4: RW | J4: D | K4: G | U4: Boston Bruins | V4: 5 | W4: =SUMIF(Drafted!I7:I206,U4,Drafted!K7:K206) ->  | X4: =SUMIF(Drafted!I7:I206,U4,Drafted!L7:L206) ->  | Y4: =SUMIF(Drafted!I7:I206,U4,Drafted!M7:M206) ->  | Z4: =SUMIF(Drafted!I7:I206,U4,Drafted!N7:N206) ->  | AB4: =(Z4/V4) ->  | AC4: =W4/V4 ->  | AD4: =AVERAGEIF(Drafted!I7:I239,U4,Drafted!AE7:AE239) -> 
B5: Anaheim Ducks | C5: 3 | D5: 2 | E5: 0 | F5: 1 | G5: 2 | H5: 0 | I5: 1 | J5: 0 | K5: 0 | U5: Buffalo Sabres | V5: 9 | W5: =SUMIF(Drafted!I8:I207,U5,Drafted!K8:K207) ->  | X5: =SUMIF(Drafted!I8:I207,U5,Drafted!L8:L207) ->  | Y5: =SUMIF(Drafted!I8:I207,U5,Drafted!M8:M207) ->  | Z5: =SUMIF(Drafted!I8:I207,U5,Drafted!N8:N207) ->  | AD5: =AVERAGEIF(Drafted!I7:I245,U5,Drafted!AE7:AE245) -> 
B6: Boston Bruins | C6: 5 | D6: 5 | E6: 0 | F6: 0 | G6: 2 | H6: 1 | I6: 1 | J6: 1 | K6: 0 | U6: Calgary Flames | V6: 7 | W6: =SUMIF(Drafted!I9:I208,U6,Drafted!K9:K208) -> 72 | X6: =SUMIF(Drafted!I9:I208,U6,Drafted!L9:L208) -> 6 | Y6: =SUMIF(Drafted!I9:I208,U6,Drafted!M9:M208) -> 36 | Z6: =SUMIF(Drafted!I9:I208,U6,Drafted!N9:N208) -> 42 | AB6: 6 | AC6: 10.28571429 | AD6: =AVERAGEIF(Drafted!I7:I246,U6,Drafted!AE7:AE246) -> 0.54625
B7: Buffalo Sabres | C7: 9 | D7: 3 | E7: 2 | F7: 4 | G7: 3 | H7: 1 | I7: 1 | J7: 3 | K7: 1 | U7: Carolina Hurricanes | V7: 6 | W7: =SUMIF(Drafted!I10:I209,U7,Drafted!K10:K209) ->  | X7: =SUMIF(Drafted!I10:I209,U7,Drafted!L10:L209) ->  | Y7: =SUMIF(Drafted!I10:I209,U7,Drafted!M10:M209) ->  | Z7: =SUMIF(Drafted!I10:I209,U7,Drafted!N10:N209) ->  | AD7: =AVERAGEIF(Drafted!I7:I247,U7,Drafted!AE7:AE247) -> 
B8: Calgary Flames | C8: 7 | D8: 0 | E8: 0 | F8: 7 | G8: 1 | H8: 2 | I8: 1 | J8: 2 | K8: 1 | U8: Chicago Blackhawks | V8: 5 | W8: =SUMIF(Drafted!I11:I210,U8,Drafted!K11:K210) ->  | X8: =SUMIF(Drafted!I11:I210,U8,Drafted!L11:L210) ->  | Y8: =SUMIF(Drafted!I11:I210,U8,Drafted!M11:M210) ->  | Z8: =SUMIF(Drafted!I11:I210,U8,Drafted!N11:N210) ->  | AD8: =AVERAGEIF(Drafted!I7:I248,U8,Drafted!AE7:AE248) -> 
B9: Carolina Hurricanes | C9: 6 | D9: 2 | E9: 0 | F9: 4 | G9: 0 | H9: 0 | I9: 1 | J9: 4 | K9: 1 | U9: Colorado Avalanche | V9: 8 | W9: =SUMIF(Drafted!I12:I211,U9,Drafted!K12:K211) -> 135 | X9: =SUMIF(Drafted!I12:I211,U9,Drafted!L12:L211) -> 28 | Y9: =SUMIF(Drafted!I12:I211,U9,Drafted!M12:M211) -> 47 | Z9: =SUMIF(Drafted!I12:I211,U9,Drafted!N12:N211) -> 75 | AB9: 9.375 | AC9: 16.875 | AD9: =AVERAGEIF(Drafted!I7:I249,U9,Drafted!AE7:AE249) -> 0.6027272727
B10: Chicago Blackhawks | C10: 5 | D10: 1 | E10: 1 | F10: 3 | G10: 2 | H10: 1 | I10: 0 | J10: 0 | K10: 2 | U10: Columbus Blue Jackets | V10: 6 | W10: =SUMIF(Drafted!I13:I212,U10,Drafted!K13:K212) ->  | X10: =SUMIF(Drafted!I13:I212,U10,Drafted!L13:L212) ->  | Y10: =SUMIF(Drafted!I13:I212,U10,Drafted!M13:M212) ->  | Z10: =SUMIF(Drafted!I13:I212,U10,Drafted!N13:N212) ->  | AD10: =AVERAGEIF(Drafted!I7:I250,U10,Drafted!AE7:AE250) -> 
B11: Colorado Avalanche | C11: 8 | D11: 1 | E11: 3 | F11: 4 | G11: 1 | H11: 0 | I11: 1 | J11: 4 | K11: 1 | U11: Dallas Stars | V11: 4 | W11: =SUMIF(Drafted!I14:I213,U11,Drafted!K14:K213) ->  | X11: =SUMIF(Drafted!I14:I213,U11,Drafted!L14:L213) ->  | Y11: =SUMIF(Drafted!I14:I213,U11,Drafted!M14:M213) ->  | Z11: =SUMIF(Drafted!I14:I213,U11,Drafted!N14:N213) ->  | AD11: =AVERAGEIF(Drafted!I7:I251,U11,Drafted!AE7:AE251) -> 
B12: Columbus Blue Jackets | C12: 6 | D12: 3 | E12: 2 | F12: 1 | G12: 1 | H12: 1 | I12: 1 | J12: 1 | K12: 1 | U12: Detroit Red Wings | V12: 8 | W12: =SUMIF(Drafted!I15:I214,U12,Drafted!K15:K214) -> 149 | X12: =SUMIF(Drafted!I15:I214,U12,Drafted!L15:L214) -> 41 | Y12: =SUMIF(Drafted!I15:I214,U12,Drafted!M15:M214) -> 95 | Z12: =SUMIF(Drafted!I15:I214,U12,Drafted!N15:N214) -> 136 | AB12: 17 | AC12: 18.625 | AD12: =AVERAGEIF(Drafted!I7:I252,U12,Drafted!AE7:AE252) -> 0.885
B13: Dallas Stars | C13: 4 | D13: 1 | E13: 1 | F13: 2 | G13: 0 | H13: 0 | I13: 2 | J13: 2 | K13: 0 | U13: Edmonton Oilers | V13: 6 | W13: =SUMIF(Drafted!I16:I215,U13,Drafted!K16:K215) ->  | X13: =SUMIF(Drafted!I16:I215,U13,Drafted!L16:L215) ->  | Y13: =SUMIF(Drafted!I16:I215,U13,Drafted!M16:M215) ->  | Z13: =SUMIF(Drafted!I16:I215,U13,Drafted!N16:N215) ->  | AD13: =AVERAGEIF(Drafted!I7:I253,U13,Drafted!AE7:AE253) -> 
B14: Detroit Red Wings | C14: 8 | D14: 3 | E14: 2 | F14: 3 | G14: 1 | H14: 1 | I14: 2 | J14: 2 | K14: 1 | U14: Florida Panthers | V14: 8 | W14: =SUMIF(Drafted!I17:I216,U14,Drafted!K17:K216) ->  | X14: =SUMIF(Drafted!I17:I216,U14,Drafted!L17:L216) ->  | Y14: =SUMIF(Drafted!I17:I216,U14,Drafted!M17:M216) ->  | Z14: =SUMIF(Drafted!I17:I216,U14,Drafted!N17:N216) ->  | AD14: =AVERAGEIF(Drafted!I7:I254,U14,Drafted!AE7:AE254) -> 
B15: Edmonton Oilers | C15: 6 | D15: 0 | E15: 1 | F15: 5 | G15: 0 | H15: 1 | I15: 1 | J15: 3 | K15: 1 | U15: Los Angeles Kings | V15: 4 | W15: =SUMIF(Drafted!I18:I217,U15,Drafted!K18:K217) -> 50 | X15: =SUMIF(Drafted!I18:I217,U15,Drafted!L18:L217) -> 10 | Y15: =SUMIF(Drafted!I18:I217,U15,Drafted!M18:M217) -> 22 | Z15: =SUMIF(Drafted!I18:I217,U15,Drafted!N18:N217) -> 32 | AB15: 8 | AC15: 12.5 | AD15: =AVERAGEIF(Drafted!I7:I255,U15,Drafted!AE7:AE255) -> 0.56
B16: Florida Panthers | C16: 8 | D16: 3 | E16: 3 | F16: 2 | G16: 2 | H16: 3 | I16: 1 | J16: 2 | K16: 0 | U16: Minnesota Wild | V16: 4 | W16: =SUMIF(Drafted!I19:I218,U16,Drafted!K19:K218) -> 80 | X16: =SUMIF(Drafted!I19:I218,U16,Drafted!L19:L218) -> 38 | Y16: =SUMIF(Drafted!I19:I218,U16,Drafted!M19:M218) -> 42 | Z16: =SUMIF(Drafted!I19:I218,U16,Drafted!N19:N218) -> 80 | AB16: 20 | AC16: 20 | AD16: =AVERAGEIF(Drafted!I7:I257,U16,Drafted!AE7:AE257) -> 1.01
B17: Los Angeles Kings | C17: 4 | D17: 2 | E17: 1 | F17: 1 | G17: 1 | H17: 1 | I17: 1 | J17: 0 | K17: 1 | U17: Montreal Canadiens | V17: 5 | W17: =SUMIF(Drafted!I20:I219,U17,Drafted!K20:K219) -> 115 | X17: =SUMIF(Drafted!I20:I219,U17,Drafted!L20:L219) -> 46 | Y17: =SUMIF(Drafted!I20:I219,U17,Drafted!M20:M219) -> 64 | Z17: =SUMIF(Drafted!I20:I219,U17,Drafted!N20:N219) -> 110 | AB17: 22 | AC17: 23 | AD17: =AVERAGEIF(Drafted!I7:I258,U17,Drafted!AE7:AE258) -> 0.9275
B18: Minnesota Wild | C18: 4 | D18: 0 | E18: 1 | F18: 3 | G18: 2 | H18: 1 | I18: 1 | J18: 0 | K18: 0 | U18: Nashville Predators | V18: 3 | W18: =SUMIF(Drafted!I21:I220,U18,Drafted!K21:K220) -> 40 | X18: =SUMIF(Drafted!I21:I220,U18,Drafted!L21:L220) -> 14 | Y18: =SUMIF(Drafted!I21:I220,U18,Drafted!M21:M220) -> 19 | Z18: =SUMIF(Drafted!I21:I220,U18,Drafted!N21:N220) -> 33 | AB18: 11 | AC18: 13.33333333 | AD18: =AVERAGEIF(Drafted!I7:I259,U18,Drafted!AE7:AE259) -> 1.02
B19: Montreal Canadiens | C19: 5 | D19: 0 | E19: 3 | F19: 2 | G19: 0 | H19: 1 | I19: 1 | J19: 3 | K19: 0 | U19: New Jersey Devils | V19: 2 | W19: =SUMIF(Drafted!I22:I221,U19,Drafted!K22:K221) ->  | X19: =SUMIF(Drafted!I22:I221,U19,Drafted!L22:L221) ->  | Y19: =SUMIF(Drafted!I22:I221,U19,Drafted!M22:M221) ->  | Z19: =SUMIF(Drafted!I22:I221,U19,Drafted!N22:N221) ->  | AD19: =AVERAGEIF(Drafted!I7:I260,U19,Drafted!AE7:AE260) -> 
B20: Nashville Predators | C20: 3 | D20: 2 | E20: 1 | F20: 0 | G20: 2 | H20: 1 | I20: 0 | J20: 0 | K20: 0 | U20: New York Islanders | V20: 6 | W20: =SUMIF(Drafted!I23:I222,U20,Drafted!K23:K222) ->  | X20: =SUMIF(Drafted!I23:I222,U20,Drafted!L23:L222) ->  | Y20: =SUMIF(Drafted!I23:I222,U20,Drafted!M23:M222) ->  | Z20: =SUMIF(Drafted!I23:I222,U20,Drafted!N23:N222) ->  | AD20: =AVERAGEIF(Drafted!I7:I261,U20,Drafted!AE7:AE261) -> 
B21: New Jersey Devils | C21: 2 | D21: 1 | E21: 0 | F21: 1 | G21: 0 | H21: 0 | I21: 0 | J21: 1 | K21: 1 | U21: New York Rangers | V21: 6 | W21: =SUMIF(Drafted!I24:I223,U21,Drafted!K24:K223) ->  | X21: =SUMIF(Drafted!I24:I223,U21,Drafted!L24:L223) ->  | Y21: =SUMIF(Drafted!I24:I223,U21,Drafted!M24:M223) ->  | Z21: =SUMIF(Drafted!I24:I223,U21,Drafted!N24:N223) ->  | AD21: =AVERAGEIF(Drafted!I8:I262,U21,Drafted!AE8:AE262) -> 
B22: New York Islanders | C22: 6 | D22: 2 | E22: 1 | F22: 3 | G22: 1 | H22: 2 | I22: 1 | J22: 2 | K22: 0 | U22: Ottawa Senators | V22: 8 | W22: =SUMIF(Drafted!I25:I224,U22,Drafted!K25:K224) ->  | X22: =SUMIF(Drafted!I25:I224,U22,Drafted!L25:L224) ->  | Y22: =SUMIF(Drafted!I25:I224,U22,Drafted!M25:M224) ->  | Z22: =SUMIF(Drafted!I25:I224,U22,Drafted!N25:N224) ->  | AD22: =AVERAGEIF(Drafted!I9:I263,U22,Drafted!AE9:AE263) -> 
B23: New York Rangers | C23: 6 | D23: 2 | E23: 2 | F23: 2 | G23: 2 | H23: 0 | I23: 2 | J23: 2 | K23: 0 | N23: http://www.chl.ca/article/99-chl-players-selected-in-the-2012-nhl-entry-draft | U23: Philadelphia Flyers | V23: 6 | W23: =SUMIF(Drafted!I26:I225,U23,Drafted!K26:K225) ->  | X23: =SUMIF(Drafted!I26:I225,U23,Drafted!L26:L225) ->  | Y23: =SUMIF(Drafted!I26:I225,U23,Drafted!M26:M225) ->  | Z23: =SUMIF(Drafted!I26:I225,U23,Drafted!N26:N225) ->  | AD23: =AVERAGEIF(Drafted!I9:I264,U23,Drafted!AE9:AE264) -> 
B24: Ottawa Senators | C24: 8 | D24: 3 | E24: 2 | F24: 3 | G24: 0 | H24: 4 | I24: 3 | J24: 1 | K24: 0 | U24: Phoenix Coyotes | V24: 9 | W24: =SUMIF(Drafted!I27:I226,U24,Drafted!K27:K226) ->  | X24: =SUMIF(Drafted!I27:I226,U24,Drafted!L27:L226) ->  | Y24: =SUMIF(Drafted!I27:I226,U24,Drafted!M27:M226) ->  | Z24: =SUMIF(Drafted!I27:I226,U24,Drafted!N27:N226) ->  | AD24: =AVERAGEIF(Drafted!I10:I265,U24,Drafted!AE10:AE265) -> 
B25: Philadelphia Flyers | C25: 6 | D25: 1 | E25: 1 | F25: 4 | G25: 2 | H25: 2 | I25: 1 | J25: 0 | K25: 0 | U25: Pittsburgh Penguins | V25: 5 | W25: =SUMIF(Drafted!I28:I227,U25,Drafted!K28:K227) -> 155 | X25: =SUMIF(Drafted!I28:I227,U25,Drafted!L28:L227) -> 25 | Y25: =SUMIF(Drafted!I28:I227,U25,Drafted!M28:M227) -> 68 | Z25: =SUMIF(Drafted!I28:I227,U25,Drafted!N28:N227) -> 93 | AB25: 18.6 | AC25: 31 | AD25: =AVERAGEIF(Drafted!I10:I266,U25,Drafted!AE10:AE266) -> 
B26: Phoenix Coyotes | C26: 9 | D26: 4 | E26: 2 | F26: 3 | G26: 0 | H26: 3 | I26: 2 | J26: 2 | K26: 2 | U26: San Jose Sharks | V26: 4 | W26: =SUMIF(Drafted!I29:I228,U26,Drafted!K29:K228) -> 97 | X26: =SUMIF(Drafted!I29:I228,U26,Drafted!L29:L228) -> 14 | Y26: =SUMIF(Drafted!I29:I228,U26,Drafted!M29:M228) -> 57 | Z26: =SUMIF(Drafted!I29:I228,U26,Drafted!N29:N228) -> 71 | AB26: 17.75 | AC26: 24.25 | AD26: =AVERAGEIF(Drafted!I11:I266,U26,Drafted!AE11:AE266) -> 0.736
B27: Pittsburgh Penguins | C27: 5 | D27: 3 | E27: 0 | F27: 2 | G27: 1 | H27: 0 | I27: 0 | J27: 2 | K27: 0 | U27: St Louis Blues | V27: 7 | W27: =SUMIF(Drafted!I30:I229,U27,Drafted!K30:K229) -> 145 | X27: =SUMIF(Drafted!I30:I229,U27,Drafted!L30:L229) -> 43 | Y27: =SUMIF(Drafted!I30:I229,U27,Drafted!M30:M229) -> 56 | Z27: =SUMIF(Drafted!I30:I229,U27,Drafted!N30:N229) -> 99 | AB27: 14.14285714 | AC27: 20.71428571 | AD27: =AVERAGEIF(Drafted!I12:I266,U27,Drafted!AE12:AE266) -> 0.56
B28: San Jose Sharks | C28: 4 | D28: 2 | E28: 1 | F28: 1 | G28: 0 | H28: 1 | I28: 0 | J28: 3 | K28: 0 | U28: Tampa Bay Lightning | V28: 4 | W28: =SUMIF(Drafted!I31:I230,U28,Drafted!K31:K230) ->  | X28: =SUMIF(Drafted!I31:I230,U28,Drafted!L31:L230) ->  | Y28: =SUMIF(Drafted!I31:I230,U28,Drafted!M31:M230) ->  | Z28: =SUMIF(Drafted!I31:I230,U28,Drafted!N31:N230) ->  | AD28: =AVERAGEIF(Drafted!I13:I266,U28,Drafted!AE13:AE266) -> 
B29: St Louis Blues | C29: 7 | D29: 1 | E29: 3 | F29: 3 | G29: 1 | H29: 1 | I29: 3 | J29: 1 | K29: 1 | U29: Toronto Maple Leafs | V29: 8 | W29: =SUMIF(Drafted!I32:I231,U29,Drafted!K32:K231) -> 160 | X29: =SUMIF(Drafted!I32:I231,U29,Drafted!L32:L231) -> 50 | Y29: =SUMIF(Drafted!I32:I231,U29,Drafted!M32:M231) -> 71 | Z29: =SUMIF(Drafted!I32:I231,U29,Drafted!N32:N231) -> 121 | AB29: 15.125 | AC29: 20 | AD29: =AVERAGEIF(Drafted!I14:I266,U29,Drafted!AE14:AE266) -> 0.7475
B30: Tampa Bay Lightning | C30: 4 | D30: 3 | E30: 1 | F30: 0 | G30: 1 | H30: 0 | I30: 0 | J30: 2 | K30: 0 | U30: Vancouver Canucks | V30: 6 | W30: =SUMIF(Drafted!I33:I232,U30,Drafted!K33:K232) ->  | X30: =SUMIF(Drafted!I33:I232,U30,Drafted!L33:L232) ->  | Y30: =SUMIF(Drafted!I33:I232,U30,Drafted!M33:M232) ->  | Z30: =SUMIF(Drafted!I33:I232,U30,Drafted!N33:N232) ->  | AD30: =AVERAGEIF(Drafted!I15:I267,U30,Drafted!AE15:AE267) -> 
B31: Toronto Maple Leafs | C31: 8 | D31: 4 | E31: 0 | F31: 4 | G31: 2 | H31: 3 | I31: 1 | J31: 1 | K31: 1 | U31: Washington Capitals | V31: 2 | W31: =SUMIF(Drafted!I34:I233,U31,Drafted!K34:K233) -> 44 | X31: =SUMIF(Drafted!I34:I233,U31,Drafted!L34:L233) -> 7 | Y31: =SUMIF(Drafted!I34:I233,U31,Drafted!M34:M233) -> 25 | Z31: =SUMIF(Drafted!I34:I233,U31,Drafted!N34:N233) -> 32 | AB31: 16 | AC31: 22 | AD31: =AVERAGEIF(Drafted!I16:I268,U31,Drafted!AE16:AE268) -> 0.74
B32: Vancouver Canucks | C32: 6 | D32: 2 | E32: 3 | F32: 1 | G32: 1 | H32: 0 | I32: 2 | J32: 2 | K32: 1 | U32: Atlanta Thrashers | V32: 2 | W32: =SUMIF(Drafted!I35:I234,U32,Drafted!K35:K234) -> 0 | X32: =SUMIF(Drafted!I35:I234,U32,Drafted!L35:L234) -> 0 | Y32: =SUMIF(Drafted!I35:I234,U32,Drafted!M35:M234) -> 0 | Z32: =SUMIF(Drafted!I35:I234,U32,Drafted!N35:N234) -> 0 | AB32: 0 | AC32: 0 | AD32: =AVERAGEIF(Drafted!I17:I269,U32,Drafted!AE17:AE269) -> 
B33: Washington Capitals | C33: 2 | D33: 0 | E33: 2 | F33: 0 | G33: 0 | H33: 0 | I33: 1 | J33: 1 | K33: 0 | U33: Winnipeg Jets | V33: 4 | W33: =SUMIF(Drafted!I36:I235,U33,Drafted!K36:K235) -> 142 | X33: =SUMIF(Drafted!I36:I235,U33,Drafted!L36:L235) -> 41 | Y33: =SUMIF(Drafted!I36:I235,U33,Drafted!M36:M235) -> 46 | Z33: =SUMIF(Drafted!I36:I235,U33,Drafted!N36:N235) -> 87 | AB33: 21.75 | AC33: 35.5 | AD33: =AVERAGEIF(Drafted!I18:I270,U33,Drafted!AE18:AE270) -> 0.73625
B34: Atlanta Thrashers | C34: 2 | D34: 1 | E34: 0 | F34: 1 | G34: 1 | H34: 0 | I34: 0 | J34: 1 | K34: 0
B35: Winnipeg Jets | C35: 4 | D35: 1 | E35: 0 | F35: 3 | G35: 1 | H35: 1 | I35: 1 | J35: 1 | K35: 0
A42: http://www.ontariohockeyleague.com/roster/list/year/2011/team/1
A43: http://www.ontariohockeyleague.com/roster/list/year/2011/team/2
A44: http://www.ontariohockeyleague.com/roster/list/year/2011/team/3
A45: http://www.ontariohockeyleague.com/roster/list/year/2011/team/4
A46: http://www.ontariohockeyleague.com/roster/list/year/2011/team/5
A47: http://www.ontariohockeyleague.com/roster/list/year/2011/team/6
A48: http://www.ontariohockeyleague.com/roster/list/year/2011/team/7
A49: http://www.ontariohockeyleague.com/roster/list/year/2011/team/8
A50: http://www.ontariohockeyleague.com/roster/list/year/2011/team/9
A51: http://www.ontariohockeyleague.com/roster/list/year/2011/team/10
A52: http://www.ontariohockeyleague.com/roster/list/year/2011/team/11
A53: http://www.ontariohockeyleague.com/roster/list/year/2011/team/12
A54: http://www.ontariohockeyleague.com/roster/list/year/2011/team/13
A55: http://www.ontariohockeyleague.com/roster/list/year/2011/team/14
A56: http://www.ontariohockeyleague.com/roster/list/year/2011/team/15
A57: http://www.ontariohockeyleague.com/roster/list/year/2011/team/16
A58: http://www.ontariohockeyleague.com/roster/list/year/2011/team/17
A59: http://www.ontariohockeyleague.com/roster/list/year/2011/team/18
A60: http://www.ontariohockeyleague.com/roster/list/year/2011/team/19
A61: http://www.ontariohockeyleague.com/roster/list/year/2011/team/20
A65: http://theqmjhl.ca/roster/list/team/43/season/170
A66: http://theqmjhl.ca/roster/list/team/44/season/170
A67: http://theqmjhl.ca/roster/list/team/45/season/170
A68: http://theqmjhl.ca/roster/list/team/46/season/170
A69: http://theqmjhl.ca/roster/list/team/47/season/170
A70: http://theqmjhl.ca/roster/list/team/48/season/170
A71: http://theqmjhl.ca/roster/list/team/49/season/170
A72: http://theqmjhl.ca/roster/list/team/50/season/170
A73: http://theqmjhl.ca/roster/list/team/51/season/170
A74: http://theqmjhl.ca/roster/list/team/52/season/170
A75: http://theqmjhl.ca/roster/list/team/53/season/170
A76: http://theqmjhl.ca/roster/list/team/54/season/170
A77: http://theqmjhl.ca/roster/list/team/55/season/170
A78: http://theqmjhl.ca/roster/list/team/56/season/170
A79: http://theqmjhl.ca/roster/list/team/57/season/170
A80: http://theqmjhl.ca/roster/list/team/58/season/170
A81: http://theqmjhl.ca/roster/list/team/59/season/170
A82: http://theqmjhl.ca/roster/list/team/60/season/170
A83: http://theqmjhl.ca/roster/list/team/77/season/170
A85: http://www.whl.ca/roster/list/year/2011/team/21
A86: http://www.whl.ca/roster/list/year/2011/team/22
A87: http://www.whl.ca/roster/list/year/2011/team/23
A88: http://www.whl.ca/roster/list/year/2011/team/24
A89: http://www.whl.ca/roster/list/year/2011/team/25
A90: http://www.whl.ca/roster/list/year/2011/team/26
A91: http://www.whl.ca/roster/list/year/2011/team/27
A92: http://www.whl.ca/roster/list/year/2011/team/28
A93: http://www.whl.ca/roster/list/year/2011/team/29
A94: http://www.whl.ca/roster/list/year/2011/team/30
A95: http://www.whl.ca/roster/list/year/2011/team/31
A96: http://www.whl.ca/roster/list/year/2011/team/32
A97: http://www.whl.ca/roster/list/year/2011/team/33
A98: http://www.whl.ca/roster/list/year/2011/team/34
A99: http://www.whl.ca/roster/list/year/2011/team/35
A100: http://www.whl.ca/roster/list/year/2011/team/36
A101: http://www.whl.ca/roster/list/year/2011/team/37
A102: http://www.whl.ca/roster/list/year/2011/team/38
A103: http://www.whl.ca/roster/list/year/2011/team/39
A104: http://www.whl.ca/roster/list/year/2011/team/40
A105: http://www.whl.ca/roster/list/year/2011/team/41
A106: http://www.whl.ca/roster/list/year/2011/team/42

Sheet AHL Drafted
B3: Values
A4: Teams/Players | B4: GP | C4: G | D4: A | E4: PTS
A5: Anaheim Ducks | B5: 22 | C5: 4 | D5: 5 | E5: 9
A6: RW | B6: 22 | C6: 4 | D6: 5 | E6: 9
A7: Devante Smith-Pelly | B7: 11 | C7: 1 | D7: 5 | E7: 6
A8: Emerson Etem | B8: 11 | C8: 3 | D8: 0 | E8: 3
A9: Boston Bruins | B9: 23 | C9: 4 | D9: 8 | E9: 12
A10: C | B10: 10 | C10: 2 | D10: 6 | E10: 8
A11: Ryan Spooner | B11: 10 | C11: 2 | D11: 6 | E11: 8
A12: LW | B12: 13 | C12: 2 | D12: 2 | E12: 4
A13: Craig Cunningham | B13: 11 | C13: 2 | D13: 2 | E13: 4
A14: Jared Knight | B14: 2 | C14: 0 | D14: 0 | E14: 0
A15: Buffalo Sabres | B15: 25 | C15: 1 | D15: 6 | E15: 7
A16: C | B16: 4 | C16: 0 | D16: 1 | E16: 1
A17: Kevin Sundher | B17: 4 | C17: 0 | D17: 1 | E17: 1
A18: D | B18: 21 | C18: 1 | D18: 5 | E18: 6
A19: Mark Pysyk | B19: 12 | C19: 1 | D19: 4 | E19: 5
A20: Matt MacKenzie | B20: 9 | C20: 0 | D20: 1 | E20: 1
A21: Calgary Flames | B21: 22 | C21: 4 | D21: 10 | E21: 14
A22: C | B22: 11 | C22: 0 | D22: 2 | E22: 2
A23: Max Reinhart | B23: 11 | C23: 0 | D23: 2 | E23: 2
A24: LW | B24: 11 | C24: 4 | D24: 8 | E24: 12
A25: Sven Baertschi | B25: 11 | C25: 4 | D25: 8 | E25: 12
A26: Chicago Blackhawks | B26: 26 | C26: 2 | D26: 6 | E26: 8
A27: C | B27: 11 | C27: 0 | D27: 2 | E27: 2
A28: Rob Flick | B28: 11 | C28: 0 | D28: 2 | E28: 2
A29: LW | B29: 5 | C29: 1 | D29: 1 | E29: 2
A30: Brandon Saad | B30: 5 | C30: 1 | D30: 1 | E30: 2
A31: RW | B31: 10 | C31: 1 | D31: 3 | E31: 4
A32: Andrew Shaw | B32: 10 | C32: 1 | D32: 3 | E32: 4
A33: Colorado Avalanche | B33: 31 | C33: 10 | D33: 13 | E33: 23
A34: C | B34: 13 | C34: 6 | D34: 7 | E34: 13
A35: Mike Sgarbossa | B35: 13 | C35: 6 | D35: 7 | E35: 13
A36: RW | B36: 10 | C36: 4 | D36: 5 | E36: 9
A37: Luke Walker | B37: 10 | C37: 4 | D37: 5 | E37: 9
A38: G | B38: 8 | C38: 0 | D38: 1 | E38: 1
A39: Calvin Pickard | B39: 8 | C39: 0 | D39: 1 | E39: 1
A40: Columbus Blue Jackets | B40: 26 | C40: 7 | D40: 9 | E40: 16
A41: C | B41: 11 | C41: 5 | D41: 5 | E41: 10
A42: Ryan Johansen | B42: 11 | C42: 5 | D42: 5 | E42: 10
A43: LW | B43: 7 | C43: 1 | D43: 1 | E43: 2
A44: Dalton Smith | B44: 7 | C44: 1 | D44: 1 | E44: 2
A45: D | B45: 8 | C45: 1 | D45: 3 | E45: 4
A46: Dalton Prout | B46: 8 | C46: 1 | D46: 3 | E46: 4
A47: Detroit Red Wings | B47: 26 | C47: 2 | D47: 3 | E47: 5
A48: C | B48: 13 | C48: 1 | D48: 1 | E48: 2
A49: Louis-Marc Aubry | B49: 13 | C49: 1 | D49: 1 | E49: 2
A50: RW | B50: 13 | C50: 1 | D50: 2 | E50: 3
A51: Tomas Jurco | B51: 13 | C51: 1 | D51: 2 | E51: 3
A52: Edmonton Oilers | B52: 30 | C52: 6 | D52: 9 | E52: 15
A53: C | B53: 11 | C53: 3 | D53: 8 | E53: 11
A54: Ryan Nugent-Hopkins | B54: 11 | C54: 3 | D54: 8 | E54: 11
A55: LW | B55: 9 | C55: 1 | D55: 0 | E55: 1
A56: Curtis Hamilton | B56: 9 | C56: 1 | D56: 0 | E56: 1
A57: D | B57: 6 | C57: 0 | D57: 1 | E57: 1
A58: Brandon Davidson | B58: 6 | C58: 0 | D58: 1 | E58: 1
A59: F | B59: 4 | C59: 2 | D59: 0 | E59: 2
A60: Taylor Hall | B60: 4 | C60: 2 | D60: 0 | E60: 2
A61: Florida Panthers | B61: 25 | C61: 1 | D61: 9 | E61: 10
A62: LW | B62: 9 | C62: 0 | D62: 3 | E62: 3
A63: Quinton Howden | B63: 9 | C63: 0 | D63: 3 | E63: 3
A64: RW | B64: 6 | C64: 0 | D64: 2 | E64: 2
A65: John McFarland | B65: 6 | C65: 0 | D65: 2 | E65: 2
A66: D | B66: 10 | C66: 1 | D66: 4 | E66: 5
A67: Alex Petrovic | B67: 10 | C67: 1 | D67: 4 | E67: 5
A68: Los Angeles Kings | B68: 36 | C68: 10 | D68: 5 | E68: 15
A69: C | B69: 15 | C69: 3 | D69: 1 | E69: 4
A70: Andy Andreoff | B70: 11 | C70: 3 | D70: 1 | E70: 4
A71: Jordan Weal | B71: 4 | C71: 0 | D71: 0 | E71: 0
A72: LW | B72: 10 | C72: 3 | D72: 1 | E72: 4
A73: Tanner Pearson | B73: 10 | C73: 3 | D73: 1 | E73: 4
A74: RW | B74: 11 | C74: 4 | D74: 3 | E74: 7
A75: Tyler Toffoli | B75: 11 | C75: 4 | D75: 3 | E75: 7
A76: Minnesota Wild | B76: 24 | C76: 1 | D76: 5 | E76: 6
A77: C | B77: 12 | C77: 1 | D77: 4 | E77: 5
A78: Zack Phillips | B78: 12 | C78: 1 | D78: 4 | E78: 5
A79: LW | B79: 12 | C79: 0 | D79: 1 | E79: 1
A80: Brett Bulmer | B80: 12 | C80: 0 | D80: 1 | E80: 1
A81: Montreal Canadiens | B81: 30 | C81: 4 | D81: 7 | E81: 11
A82: C | B82: 10 | C82: 1 | D82: 3 | E82: 4
A83: Michael Bournival | B83: 10 | C83: 1 | D83: 3 | E83: 4
A84: RW | B84: 10 | C84: 3 | D84: 3 | E84: 6
A85: Brendan Gallagher | B85: 10 | C85: 3 | D85: 3 | E85: 6
A86: D | B86: 10 | C86: 0 | D86: 1 | E86: 1
A87: Nathan Beaulieu | B87: 10 | C87: 0 | D87: 1 | E87: 1
A88: Nashville Predators | B88: 15 | C88: 3 | D88: 4 | E88: 7
A89: C | B89: 12 | C89: 3 | D89: 4 | E89: 7
A90: Austin Watson | B90: 12 | C90: 3 | D90: 4 | E90: 7
A91: LW | B91: 3 | C91: 0 | D91: 0 | E91: 0
A92: Joshua Shalla | B92: 3 | C92: 0 | D92: 0 | E92: 0
A93: New York Islanders | B93: 26 | C93: 10 | D93: 9 | E93: 19
A94: LW | B94: 22 | C94: 10 | D94: 7 | E94: 17
A95: John Persson | B95: 11 | C95: 3 | D95: 1 | E95: 4
A96: Nino Niederreiter | B96: 11 | C96: 7 | D96: 6 | E96: 13
A97: RW | B97: 4 | C97: 0 | D97: 2 | E97: 2
A98: Kirill Kabanov | B98: 4 | C98: 0 | D98: 2 | E98: 2
A99: New York Rangers | B99: 22 | C99: 5 | D99: 3 | E99: 8
A100: LW | B100: 10 | C100: 1 | D100: 0 | E100: 1
A101: Andrew Yogan | B101: 10 | C101: 1 | D101: 0 | E101: 1
A102: RW | B102: 12 | C102: 4 | D102: 3 | E102: 7
A103: Christian Thomas | B103: 12 | C103: 4 | D103: 3 | E103: 7
A104: Ottawa Senators | B104: 15 | C104: 0 | D104: 6 | E104: 6
A105: C | B105: 10 | C105: 0 | D105: 2 | E105: 2
A106: Jean-Gabriel Pageau | B106: 10 | C106: 0 | D106: 2 | E106: 2
A107: RW | B107: 5 | C107: 0 | D107: 4 | E107: 4
A108: Mark Stone | B108: 5 | C108: 0 | D108: 4 | E108: 4
A109: Philadelphia Flyers | B109: 19 | C109: 4 | D109: 9 | E109: 13
A110: C | B110: 19 | C110: 4 | D110: 9 | E110: 13
A111: Michael Chaput | B111: 10 | C111: 2 | D111: 1 | E111: 3
A112: Sean Couturier | B112: 9 | C112: 2 | D112: 8 | E112: 10
A113: Philadelphia Flyers | B113: 11 | C113: 3 | D113: 1 | E113: 4
A114: LW | B114: 11 | C114: 3 | D114: 1 | E114: 4
A115: Tye McGinn | B115: 11 | C115: 3 | D115: 1 | E115: 4
A116: Phoenix Coyotes | B116: 13 | C116: 1 | D116: 3 | E116: 4
A117: D | B117: 10 | C117: 1 | D117: 3 | E117: 4
A118: Brandon Gormley | B118: 10 | C118: 1 | D118: 3 | E118: 4
A119: G | B119: 3 | C119: 0 | D119: 0 | E119: 0
A120: Mark Visentin | B120: 3 | C120: 0 | D120: 0 | E120: 0
A121: San Jose Sharks | B121: 13 | C121: 1 | D121: 3 | E121: 4
A122: C | B122: 13 | C122: 1 | D122: 3 | E122: 4
A123: Freddie Hamilton | B123: 13 | C123: 1 | D123: 3 | E123: 4
A124: Tampa Bay Lightning | B124: 35 | C124: 4 | D124: 20 | E124: 24
A125: C | B125: 5 | C125: 0 | D125: 2 | E125: 2
A126: Vladislav Namestnikov | B126: 5 | C126: 0 | D126: 2 | E126: 2
A127: LW | B127: 11 | C127: 1 | D127: 11 | E127: 12
A128: Ondrej Palat | B128: 11 | C128: 1 | D128: 11 | E128: 12
A129: RW | B129: 11 | C129: 3 | D129: 4 | E129: 7
A130: Brett Connolly | B130: 11 | C130: 3 | D130: 4 | E130: 7
A131: D | B131: 8 | C131: 0 | D131: 3 | E131: 3
A132: Radko Gudas | B132: 8 | C132: 0 | D132: 3 | E132: 3
A133: Toronto Maple Leafs | B133: 13 | C133: 2 | D133: 2 | E133: 4
A134: LW | B134: 13 | C134: 2 | D134: 2 | E134: 4
A135: Brad Ross | B135: 3 | C135: 0 | D135: 0 | E135: 0
A136: Greg McKegg | B136: 10 | C136: 2 | D136: 2 | E136: 4
A137: Vancouver Canucks | B137: 13 | C137: 0 | D137: 2 | E137: 2
A138: C | B138: 13 | C138: 0 | D138: 2 | E138: 2
A139: Alex Friesen | B139: 7 | C139: 0 | D139: 2 | E139: 2
A140: Alex Mallet | B140: 6 | C140: 0 | D140: 0 | E140: 0
A141: Washington Capitals | B141: 9 | C141: 0 | D141: 1 | E141: 1
A142: RW | B142: 9 | C142: 0 | D142: 1 | E142: 1
A143: Stanislav Galiev | B143: 9 | C143: 0 | D143: 1 | E143: 1
A144: Winnipeg Jets | B144: 25 | C144: 3 | D144: 8 | E144: 11
A145: C | B145: 13 | C145: 2 | D145: 5 | E145: 7
A146: Alex Burmistrov | B146: 13 | C146: 2 | D146: 5 | E146: 7
A147: LW | B147: 12 | C147: 1 | D147: 3 | E147: 4
A148: Ivan Telegin | B148: 12 | C148: 1 | D148: 3 | E148: 4
A149: Pittsburgh Penguins | B149: 17 | C149: 1 | D149: 4 | E149: 5
A150: C | B150: 8 | C150: 0 | D150: 2 | E150: 2
A151: Dominik Uher | B151: 8 | C151: 0 | D151: 2 | E151: 2
A152: D | B152: 9 | C152: 1 | D152: 2 | E152: 3
A153: Joe Morrow | B153: 9 | C153: 1 | D153: 2 | E153: 3
A154: Grand Total | B154: 592 | C154: 93 | D154: 170 | E154: 263
G155: 2012-11-05
G156: Teams/Players | H156: GP | I156: G | J156: A | K156: PTS
G157: Anaheim Ducks | H157: 16 | I157: 3 | J157: 5 | K157: 8
G158: RW | H158: 16 | I158: 3 | J158: 5 | K158: 8
G159: Devante Smith-Pelly | H159: 8 | I159: 1 | J159: 5 | K159: 6
G160: Emerson Etem | H160: 8 | I160: 2 | J160: 0 | K160: 2
G161: Boston Bruins | H161: 18 | I161: 3 | J161: 6 | K161: 9
G162: C | H162: 8 | I162: 1 | J162: 5 | K162: 6
G163: Ryan Spooner | H163: 8 | I163: 1 | J163: 5 | K163: 6
G164: LW | H164: 10 | I164: 2 | J164: 1 | K164: 3
G165: Craig Cunningham | H165: 8 | I165: 2 | J165: 1 | K165: 3
G166: Jared Knight | H166: 2 | I166: 0 | J166: 0 | K166: 0
G167: Buffalo Sabres | H167: 19 | I167: 1 | J167: 5 | K167: 6
G168: C | H168: 2 | I168: 0 | J168: 0 | K168: 0
G169: Kevin Sundher | H169: 2 | I169: 0 | J169: 0 | K169: 0
G170: D | H170: 17 | I170: 1 | J170: 5 | K170: 6
G171: Mark Pysyk | H171: 10 | I171: 1 | J171: 4 | K171: 5
G172: Matt MacKenzie | H172: 7 | I172: 0 | J172: 1 | K172: 1
G173: Calgary Flames | H173: 18 | I173: 4 | J173: 9 | K173: 13
G174: C | H174: 9 | I174: 0 | J174: 2 | K174: 2
G175: Max Reinhart | H175: 9 | I175: 0 | J175: 2 | K175: 2
G176: LW | H176: 9 | I176: 4 | J176: 7 | K176: 11
G177: Sven Baertschi | H177: 9 | I177: 4 | J177: 7 | K177: 11
G178: Chicago Blackhawks | H178: 22 | I178: 1 | J178: 5 | K178: 6
G179: C | H179: 9 | I179: 0 | J179: 2 | K179: 2
G180: Rob Flick | H180: 9 | I180: 0 | J180: 2 | K180: 2
G181: LW | H181: 3 | I181: 0 | J181: 0 | K181: 0
G182: Brandon Saad | H182: 3 | I182: 0 | J182: 0 | K182: 0
G183: RW | H183: 10 | I183: 1 | J183: 3 | K183: 4
G184: Andrew Shaw | H184: 10 | I184: 1 | J184: 3 | K184: 4
G185: Colorado Avalanche | H185: 26 | I185: 6 | J185: 10 | K185: 16
G186: C | H186: 11 | I186: 3 | J186: 6 | K186: 9
G187: Mike Sgarbossa | H187: 11 | I187: 3 | J187: 6 | K187: 9
G188: RW | H188: 8 | I188: 3 | J188: 3 | K188: 6
G189: Luke Walker | H189: 8 | I189: 3 | J189: 3 | K189: 6
G190: G | H190: 7 | I190: 0 | J190: 1 | K190: 1
G191: Calvin Pickard | H191: 7 | I191: 0 | J191: 1 | K191: 1
G192: Columbus Blue Jackets | H192: 20 | I192: 7 | J192: 8 | K192: 15
G193: C | H193: 9 | I193: 5 | J193: 4 | K193: 9
G194: Ryan Johansen | H194: 9 | I194: 5 | J194: 4 | K194: 9
G195: LW | H195: 5 | I195: 1 | J195: 1 | K195: 2
G196: Dalton Smith | H196: 5 | I196: 1 | J196: 1 | K196: 2
G197: D | H197: 6 | I197: 1 | J197: 3 | K197: 4
G198: Dalton Prout | H198: 6 | I198: 1 | J198: 3 | K198: 4
G199: Detroit Red Wings | H199: 20 | I199: 2 | J199: 2 | K199: 4
G200: C | H200: 10 | I200: 1 | J200: 1 | K200: 2
G201: Louis-Marc Aubry | H201: 10 | I201: 1 | J201: 1 | K201: 2
G202: RW | H202: 10 | I202: 1 | J202: 1 | K202: 2
... 104 more rows

Sheet Drafted
B6: Player | C6: Draft Team | D6: Pos | G6: LG | H6: Player | I6: Draft Team | J6: Pos | K6: GP | L6: G | M6: A | N6: PTS | O6: +/- | P6: PIM | Q6: PP | R6: PPA | S6: SH | T6: SHA | U6: GW | V6: FG | W6: IG | X6: OT | Y6: UA | Z6: EN | AA6: SOG | AB6: SOA | AC6: SOGW | AD6: SO% | AE6: Pt/G | AF6: PIM/G | AG6: Shots | AH6: Sh%
B7: Phillip Danault | C7: Chicago Blackhawks | D7: =VLOOKUP(B7,'Player Stats By Team'!C:AC,2,FALSE) -> C | G7: OHL | H7: Shane Prince | I7: Ottawa Senators | J7: =VLOOKUP(H7,'Player Stats By Team'!C:AC,2,FALSE) -> LW | K7: =VLOOKUP(H7,'Player Stats By Team'!C:AC,3,FALSE) -> 4 | L7: =VLOOKUP(H7,'Player Stats By Team'!C:AC,4,FALSE) -> 0 | M7: =VLOOKUP(H7,'Player Stats By Team'!C:AC,5,FALSE) -> 1 | N7: =VLOOKUP(H7,'Player Stats By Team'!C:AC,6,FALSE) -> 1 | O7: =VLOOKUP(H7,'Player Stats By Team'!C:AC,7,FALSE) -> -1 | P7: =VLOOKUP(H7,'Player Stats By Team'!C:AC,8,FALSE) -> 2 | Q7: =VLOOKUP(H7,'Player Stats By Team'!C:AC,9,FALSE) -> 0 | R7: =VLOOKUP(H7,'Player Stats By Team'!C:AC,10,FALSE) -> 0 | S7: =VLOOKUP(H7,'Player Stats By Team'!C:AC,11,FALSE) -> 0 | T7: =VLOOKUP(H7,'Player Stats By Team'!C:AC,12,FALSE) -> 0 | U7: =VLOOKUP(H7,'Player Stats By Team'!C:AC,13,FALSE) -> 0 | V7: =VLOOKUP(H7,'Player Stats By Team'!C:AC,14,FALSE) -> 0 | W7: =VLOOKUP(H7,'Player Stats By Team'!C:AC,15,FALSE) -> 0 | X7: =VLOOKUP(H7,'Player Stats By Team'!C:AC,16,FALSE) -> 0 | Y7: =VLOOKUP(H7,'Player Stats By Team'!C:AC,17,FALSE) -> 0 | Z7: =VLOOKUP(H7,'Player Stats By Team'!C:AC,18,FALSE) -> 0 | AA7: =VLOOKUP(H7,'Player Stats By Team'!C:AC,19,FALSE) -> 0 | AB7: =VLOOKUP(H7,'Player Stats By Team'!C:AC,20,FALSE) -> 1 | AC7: =VLOOKUP(H7,'Player Stats By Team'!C:AC,21,FALSE) -> 0 | AD7: =VLOOKUP(H7,'Player Stats By Team'!C:AC,22,FALSE) -> 0 | AE7: =VLOOKUP(H7,'Player Stats By Team'!C:AC,23,FALSE) -> 0.25 | AF7: =VLOOKUP(H7,'Player Stats By Team'!C:AC,24,FALSE) -> 0.5 | AG7: =VLOOKUP(H7,'Player Stats By Team'!C:AC,25,FALSE) -> 3 | AH7: =VLOOKUP(H7,'Player Stats By Team'!C:AC,26,FALSE) -> 0
B8: Tyler Bunz | C8: Edmonton Oilers | D8: =VLOOKUP(B8,'Player Stats By Team'!C:AC,2,FALSE) ->  | G8: OHL | H8: Alexander Khokhlachev | I8: Boston Bruins | J8: =VLOOKUP(H8,'Player Stats By Team'!C:AC,2,FALSE) ->  | K8: =VLOOKUP(H8,'Player Stats By Team'!C:AC,3,FALSE) ->  | L8: =VLOOKUP(H8,'Player Stats By Team'!C:AC,4,FALSE) ->  | M8: =VLOOKUP(H8,'Player Stats By Team'!C:AC,5,FALSE) ->  | N8: =VLOOKUP(H8,'Player Stats By Team'!C:AC,6,FALSE) ->  | O8: =VLOOKUP(H8,'Player Stats By Team'!C:AC,7,FALSE) ->  | P8: =VLOOKUP(H8,'Player Stats By Team'!C:AC,8,FALSE) ->  | Q8: =VLOOKUP(H8,'Player Stats By Team'!C:AC,9,FALSE) ->  | R8: =VLOOKUP(H8,'Player Stats By Team'!C:AC,10,FALSE) ->  | S8: =VLOOKUP(H8,'Player Stats By Team'!C:AC,11,FALSE) ->  | T8: =VLOOKUP(H8,'Player Stats By Team'!C:AC,12,FALSE) ->  | U8: =VLOOKUP(H8,'Player Stats By Team'!C:AC,13,FALSE) ->  | V8: =VLOOKUP(H8,'Player Stats By Team'!C:AC,14,FALSE) ->  | W8: =VLOOKUP(H8,'Player Stats By Team'!C:AC,15,FALSE) ->  | X8: =VLOOKUP(H8,'Player Stats By Team'!C:AC,16,FALSE) ->  | Y8: =VLOOKUP(H8,'Player Stats By Team'!C:AC,17,FALSE) ->  | Z8: =VLOOKUP(H8,'Player Stats By Team'!C:AC,18,FALSE) ->  | AA8: =VLOOKUP(H8,'Player Stats By Team'!C:AC,19,FALSE) ->  | AB8: =VLOOKUP(H8,'Player Stats By Team'!C:AC,20,FALSE) ->  | AC8: =VLOOKUP(H8,'Player Stats By Team'!C:AC,21,FALSE) ->  | AD8: =VLOOKUP(H8,'Player Stats By Team'!C:AC,22,FALSE) ->  | AE8: =VLOOKUP(H8,'Player Stats By Team'!C:AC,23,FALSE) ->  | AF8: =VLOOKUP(H8,'Player Stats By Team'!C:AC,24,FALSE) ->  | AG8: =VLOOKUP(H8,'Player Stats By Team'!C:AC,25,FALSE) ->  | AH8: =VLOOKUP(H8,'Player Stats By Team'!C:AC,26,FALSE) -> 
B9: Zack Phillips | C9: Minnesota Wild | D9: =VLOOKUP(B9,'Player Stats By Team'!C:AC,2,FALSE) -> C | G9: OHL | H9: Dougie Hamilton | I9: Boston Bruins | J9: =VLOOKUP(H9,'Player Stats By Team'!C:AC,2,FALSE) ->  | K9: =VLOOKUP(H9,'Player Stats By Team'!C:AC,3,FALSE) ->  | L9: =VLOOKUP(H9,'Player Stats By Team'!C:AC,4,FALSE) ->  | M9: =VLOOKUP(H9,'Player Stats By Team'!C:AC,5,FALSE) ->  | N9: =VLOOKUP(H9,'Player Stats By Team'!C:AC,6,FALSE) ->  | O9: =VLOOKUP(H9,'Player Stats By Team'!C:AC,7,FALSE) ->  | P9: =VLOOKUP(H9,'Player Stats By Team'!C:AC,8,FALSE) ->  | Q9: =VLOOKUP(H9,'Player Stats By Team'!C:AC,9,FALSE) ->  | R9: =VLOOKUP(H9,'Player Stats By Team'!C:AC,10,FALSE) ->  | S9: =VLOOKUP(H9,'Player Stats By Team'!C:AC,11,FALSE) ->  | T9: =VLOOKUP(H9,'Player Stats By Team'!C:AC,12,FALSE) ->  | U9: =VLOOKUP(H9,'Player Stats By Team'!C:AC,13,FALSE) ->  | V9: =VLOOKUP(H9,'Player Stats By Team'!C:AC,14,FALSE) ->  | W9: =VLOOKUP(H9,'Player Stats By Team'!C:AC,15,FALSE) ->  | X9: =VLOOKUP(H9,'Player Stats By Team'!C:AC,16,FALSE) ->  | Y9: =VLOOKUP(H9,'Player Stats By Team'!C:AC,17,FALSE) ->  | Z9: =VLOOKUP(H9,'Player Stats By Team'!C:AC,18,FALSE) ->  | AA9: =VLOOKUP(H9,'Player Stats By Team'!C:AC,19,FALSE) ->  | AB9: =VLOOKUP(H9,'Player Stats By Team'!C:AC,20,FALSE) ->  | AC9: =VLOOKUP(H9,'Player Stats By Team'!C:AC,21,FALSE) ->  | AD9: =VLOOKUP(H9,'Player Stats By Team'!C:AC,22,FALSE) ->  | AE9: =VLOOKUP(H9,'Player Stats By Team'!C:AC,23,FALSE) ->  | AF9: =VLOOKUP(H9,'Player Stats By Team'!C:AC,24,FALSE) ->  | AG9: =VLOOKUP(H9,'Player Stats By Team'!C:AC,25,FALSE) ->  | AH9: =VLOOKUP(H9,'Player Stats By Team'!C:AC,26,FALSE) -> 
B10: Rickard Rakell | C10: Anaheim Ducks | D10: =VLOOKUP(B10,'Player Stats By Team'!C:AC,2,FALSE) -> C | G10: OHL | H10: Ryan Strome | I10: New York Islanders | J10: =VLOOKUP(H10,'Player Stats By Team'!C:AC,2,FALSE) ->  | K10: =VLOOKUP(H10,'Player Stats By Team'!C:AC,3,FALSE) ->  | L10: =VLOOKUP(H10,'Player Stats By Team'!C:AC,4,FALSE) ->  | M10: =VLOOKUP(H10,'Player Stats By Team'!C:AC,5,FALSE) ->  | N10: =VLOOKUP(H10,'Player Stats By Team'!C:AC,6,FALSE) ->  | O10: =VLOOKUP(H10,'Player Stats By Team'!C:AC,7,FALSE) ->  | P10: =VLOOKUP(H10,'Player Stats By Team'!C:AC,8,FALSE) ->  | Q10: =VLOOKUP(H10,'Player Stats By Team'!C:AC,9,FALSE) ->  | R10: =VLOOKUP(H10,'Player Stats By Team'!C:AC,10,FALSE) ->  | S10: =VLOOKUP(H10,'Player Stats By Team'!C:AC,11,FALSE) ->  | T10: =VLOOKUP(H10,'Player Stats By Team'!C:AC,12,FALSE) ->  | U10: =VLOOKUP(H10,'Player Stats By Team'!C:AC,13,FALSE) ->  | V10: =VLOOKUP(H10,'Player Stats By Team'!C:AC,14,FALSE) ->  | W10: =VLOOKUP(H10,'Player Stats By Team'!C:AC,15,FALSE) ->  | X10: =VLOOKUP(H10,'Player Stats By Team'!C:AC,16,FALSE) ->  | Y10: =VLOOKUP(H10,'Player Stats By Team'!C:AC,17,FALSE) ->  | Z10: =VLOOKUP(H10,'Player Stats By Team'!C:AC,18,FALSE) ->  | AA10: =VLOOKUP(H10,'Player Stats By Team'!C:AC,19,FALSE) ->  | AB10: =VLOOKUP(H10,'Player Stats By Team'!C:AC,20,FALSE) ->  | AC10: =VLOOKUP(H10,'Player Stats By Team'!C:AC,21,FALSE) ->  | AD10: =VLOOKUP(H10,'Player Stats By Team'!C:AC,22,FALSE) ->  | AE10: =VLOOKUP(H10,'Player Stats By Team'!C:AC,23,FALSE) ->  | AF10: =VLOOKUP(H10,'Player Stats By Team'!C:AC,24,FALSE) ->  | AG10: =VLOOKUP(H10,'Player Stats By Team'!C:AC,25,FALSE) ->  | AH10: =VLOOKUP(H10,'Player Stats By Team'!C:AC,26,FALSE) -> 
C11: : | D11: =VLOOKUP(B11,'Player Stats By Team'!C:AC,2,FALSE) ->  | F11: Second Rnd15 | G11: OHL | H11: Alan Quine | I11: Detroit Red Wings | J11: =VLOOKUP(H11,'Player Stats By Team'!C:AC,2,FALSE) -> C | K11: =VLOOKUP(H11,'Player Stats By Team'!C:AC,3,FALSE) -> 7 | L11: =VLOOKUP(H11,'Player Stats By Team'!C:AC,4,FALSE) -> 5 | M11: =VLOOKUP(H11,'Player Stats By Team'!C:AC,5,FALSE) -> 2 | N11: =VLOOKUP(H11,'Player Stats By Team'!C:AC,6,FALSE) -> 7 | O11: =VLOOKUP(H11,'Player Stats By Team'!C:AC,7,FALSE) -> -8 | P11: =VLOOKUP(H11,'Player Stats By Team'!C:AC,8,FALSE) -> 0 | Q11: =VLOOKUP(H11,'Player Stats By Team'!C:AC,9,FALSE) -> 1 | R11: =VLOOKUP(H11,'Player Stats By Team'!C:AC,10,FALSE) -> 1 | S11: =VLOOKUP(H11,'Player Stats By Team'!C:AC,11,FALSE) -> 0 | T11: =VLOOKUP(H11,'Player Stats By Team'!C:AC,12,FALSE) -> 0 | U11: =VLOOKUP(H11,'Player Stats By Team'!C:AC,13,FALSE) -> 0 | V11: =VLOOKUP(H11,'Player Stats By Team'!C:AC,14,FALSE) -> 2 | W11: =VLOOKUP(H11,'Player Stats By Team'!C:AC,15,FALSE) -> 0 | X11: =VLOOKUP(H11,'Player Stats By Team'!C:AC,16,FALSE) -> 0 | Y11: =VLOOKUP(H11,'Player Stats By Team'!C:AC,17,FALSE) -> 0 | Z11: =VLOOKUP(H11,'Player Stats By Team'!C:AC,18,FALSE) -> 0 | AA11: =VLOOKUP(H11,'Player Stats By Team'!C:AC,19,FALSE) -> 0 | AB11: =VLOOKUP(H11,'Player Stats By Team'!C:AC,20,FALSE) -> 0 | AC11: =VLOOKUP(H11,'Player Stats By Team'!C:AC,21,FALSE) -> 0 | AD11: =VLOOKUP(H11,'Player Stats By Team'!C:AC,22,FALSE) -> 0 | AE11: =VLOOKUP(H11,'Player Stats By Team'!C:AC,23,FALSE) -> 1 | AF11: =VLOOKUP(H11,'Player Stats By Team'!C:AC,24,FALSE) -> 0 | AG11: =VLOOKUP(H11,'Player Stats By Team'!C:AC,25,FALSE) -> 0 | AH11: =VLOOKUP(H11,'Player Stats By Team'!C:AC,26,FALSE) -> 0
B12: David Musil | C12: Edmonton Oilers | D12: =VLOOKUP(B12,'Player Stats By Team'!C:AC,2,FALSE) -> D | G12: OHL | H12: Sam Carrick | I12: Toronto Maple Leafs | J12: =VLOOKUP(H12,'Player Stats By Team'!C:AC,2,FALSE) ->  | K12: =VLOOKUP(H12,'Player Stats By Team'!C:AC,3,FALSE) ->  | L12: =VLOOKUP(H12,'Player Stats By Team'!C:AC,4,FALSE) ->  | M12: =VLOOKUP(H12,'Player Stats By Team'!C:AC,5,FALSE) ->  | N12: =VLOOKUP(H12,'Player Stats By Team'!C:AC,6,FALSE) ->  | O12: =VLOOKUP(H12,'Player Stats By Team'!C:AC,7,FALSE) ->  | P12: =VLOOKUP(H12,'Player Stats By Team'!C:AC,8,FALSE) ->  | Q12: =VLOOKUP(H12,'Player Stats By Team'!C:AC,9,FALSE) ->  | R12: =VLOOKUP(H12,'Player Stats By Team'!C:AC,10,FALSE) ->  | S12: =VLOOKUP(H12,'Player Stats By Team'!C:AC,11,FALSE) ->  | T12: =VLOOKUP(H12,'Player Stats By Team'!C:AC,12,FALSE) ->  | U12: =VLOOKUP(H12,'Player Stats By Team'!C:AC,13,FALSE) ->  | V12: =VLOOKUP(H12,'Player Stats By Team'!C:AC,14,FALSE) ->  | W12: =VLOOKUP(H12,'Player Stats By Team'!C:AC,15,FALSE) ->  | X12: =VLOOKUP(H12,'Player Stats By Team'!C:AC,16,FALSE) ->  | Y12: =VLOOKUP(H12,'Player Stats By Team'!C:AC,17,FALSE) ->  | Z12: =VLOOKUP(H12,'Player Stats By Team'!C:AC,18,FALSE) ->  | AA12: =VLOOKUP(H12,'Player Stats By Team'!C:AC,19,FALSE) ->  | AB12: =VLOOKUP(H12,'Player Stats By Team'!C:AC,20,FALSE) ->  | AC12: =VLOOKUP(H12,'Player Stats By Team'!C:AC,21,FALSE) ->  | AD12: =VLOOKUP(H12,'Player Stats By Team'!C:AC,22,FALSE) ->  | AE12: =VLOOKUP(H12,'Player Stats By Team'!C:AC,23,FALSE) ->  | AF12: =VLOOKUP(H12,'Player Stats By Team'!C:AC,24,FALSE) ->  | AG12: =VLOOKUP(H12,'Player Stats By Team'!C:AC,25,FALSE) ->  | AH12: =VLOOKUP(H12,'Player Stats By Team'!C:AC,26,FALSE) -> 
B13: Ty Rattie | C13: St Louis Blues | D13: =VLOOKUP(B13,'Player Stats By Team'!C:AC,2,FALSE) -> RW | G13: OHL | H13: Nicklas Jensen | I13: Vancouver Canucks | J13: =VLOOKUP(H13,'Player Stats By Team'!C:AC,2,FALSE) ->  | K13: =VLOOKUP(H13,'Player Stats By Team'!C:AC,3,FALSE) ->  | L13: =VLOOKUP(H13,'Player Stats By Team'!C:AC,4,FALSE) ->  | M13: =VLOOKUP(H13,'Player Stats By Team'!C:AC,5,FALSE) ->  | N13: =VLOOKUP(H13,'Player Stats By Team'!C:AC,6,FALSE) ->  | O13: =VLOOKUP(H13,'Player Stats By Team'!C:AC,7,FALSE) ->  | P13: =VLOOKUP(H13,'Player Stats By Team'!C:AC,8,FALSE) ->  | Q13: =VLOOKUP(H13,'Player Stats By Team'!C:AC,9,FALSE) ->  | R13: =VLOOKUP(H13,'Player Stats By Team'!C:AC,10,FALSE) ->  | S13: =VLOOKUP(H13,'Player Stats By Team'!C:AC,11,FALSE) ->  | T13: =VLOOKUP(H13,'Player Stats By Team'!C:AC,12,FALSE) ->  | U13: =VLOOKUP(H13,'Player Stats By Team'!C:AC,13,FALSE) ->  | V13: =VLOOKUP(H13,'Player Stats By Team'!C:AC,14,FALSE) ->  | W13: =VLOOKUP(H13,'Player Stats By Team'!C:AC,15,FALSE) ->  | X13: =VLOOKUP(H13,'Player Stats By Team'!C:AC,16,FALSE) ->  | Y13: =VLOOKUP(H13,'Player Stats By Team'!C:AC,17,FALSE) ->  | Z13: =VLOOKUP(H13,'Player Stats By Team'!C:AC,18,FALSE) ->  | AA13: =VLOOKUP(H13,'Player Stats By Team'!C:AC,19,FALSE) ->  | AB13: =VLOOKUP(H13,'Player Stats By Team'!C:AC,20,FALSE) ->  | AC13: =VLOOKUP(H13,'Player Stats By Team'!C:AC,21,FALSE) ->  | AD13: =VLOOKUP(H13,'Player Stats By Team'!C:AC,22,FALSE) ->  | AE13: =VLOOKUP(H13,'Player Stats By Team'!C:AC,23,FALSE) ->  | AF13: =VLOOKUP(H13,'Player Stats By Team'!C:AC,24,FALSE) ->  | AG13: =VLOOKUP(H13,'Player Stats By Team'!C:AC,25,FALSE) ->  | AH13: =VLOOKUP(H13,'Player Stats By Team'!C:AC,26,FALSE) -> 
B14: Tomas Jurco | C14: Detroit Red Wings | D14: =VLOOKUP(B14,'Player Stats By Team'!C:AC,2,FALSE) -> RW | G14: OHL | H14: Steven Shipley | I14: Buffalo Sabres | J14: =VLOOKUP(H14,'Player Stats By Team'!C:AC,2,FALSE) ->  | K14: =VLOOKUP(H14,'Player Stats By Team'!C:AC,3,FALSE) ->  | L14: =VLOOKUP(H14,'Player Stats By Team'!C:AC,4,FALSE) ->  | M14: =VLOOKUP(H14,'Player Stats By Team'!C:AC,5,FALSE) ->  | N14: =VLOOKUP(H14,'Player Stats By Team'!C:AC,6,FALSE) ->  | O14: =VLOOKUP(H14,'Player Stats By Team'!C:AC,7,FALSE) ->  | P14: =VLOOKUP(H14,'Player Stats By Team'!C:AC,8,FALSE) ->  | Q14: =VLOOKUP(H14,'Player Stats By Team'!C:AC,9,FALSE) ->  | R14: =VLOOKUP(H14,'Player Stats By Team'!C:AC,10,FALSE) ->  | S14: =VLOOKUP(H14,'Player Stats By Team'!C:AC,11,FALSE) ->  | T14: =VLOOKUP(H14,'Player Stats By Team'!C:AC,12,FALSE) ->  | U14: =VLOOKUP(H14,'Player Stats By Team'!C:AC,13,FALSE) ->  | V14: =VLOOKUP(H14,'Player Stats By Team'!C:AC,14,FALSE) ->  | W14: =VLOOKUP(H14,'Player Stats By Team'!C:AC,15,FALSE) ->  | X14: =VLOOKUP(H14,'Player Stats By Team'!C:AC,16,FALSE) ->  | Y14: =VLOOKUP(H14,'Player Stats By Team'!C:AC,17,FALSE) ->  | Z14: =VLOOKUP(H14,'Player Stats By Team'!C:AC,18,FALSE) ->  | AA14: =VLOOKUP(H14,'Player Stats By Team'!C:AC,19,FALSE) ->  | AB14: =VLOOKUP(H14,'Player Stats By Team'!C:AC,20,FALSE) ->  | AC14: =VLOOKUP(H14,'Player Stats By Team'!C:AC,21,FALSE) ->  | AD14: =VLOOKUP(H14,'Player Stats By Team'!C:AC,22,FALSE) ->  | AE14: =VLOOKUP(H14,'Player Stats By Team'!C:AC,23,FALSE) ->  | AF14: =VLOOKUP(H14,'Player Stats By Team'!C:AC,24,FALSE) ->  | AG14: =VLOOKUP(H14,'Player Stats By Team'!C:AC,25,FALSE) ->  | AH14: =VLOOKUP(H14,'Player Stats By Team'!C:AC,26,FALSE) -> 
B15: Boone Jenner | C15: Columbus Blue Jackets | D15: =VLOOKUP(B15,'Player Stats By Team'!C:AC,2,FALSE) -> C | G15: OHL | H15: Brett Ritchie | I15: Dallas Stars | J15: =VLOOKUP(H15,'Player Stats By Team'!C:AC,2,FALSE) ->  | K15: =VLOOKUP(H15,'Player Stats By Team'!C:AC,3,FALSE) ->  | L15: =VLOOKUP(H15,'Player Stats By Team'!C:AC,4,FALSE) ->  | M15: =VLOOKUP(H15,'Player Stats By Team'!C:AC,5,FALSE) ->  | N15: =VLOOKUP(H15,'Player Stats By Team'!C:AC,6,FALSE) ->  | O15: =VLOOKUP(H15,'Player Stats By Team'!C:AC,7,FALSE) ->  | P15: =VLOOKUP(H15,'Player Stats By Team'!C:AC,8,FALSE) ->  | Q15: =VLOOKUP(H15,'Player Stats By Team'!C:AC,9,FALSE) ->  | R15: =VLOOKUP(H15,'Player Stats By Team'!C:AC,10,FALSE) ->  | S15: =VLOOKUP(H15,'Player Stats By Team'!C:AC,11,FALSE) ->  | T15: =VLOOKUP(H15,'Player Stats By Team'!C:AC,12,FALSE) ->  | U15: =VLOOKUP(H15,'Player Stats By Team'!C:AC,13,FALSE) ->  | V15: =VLOOKUP(H15,'Player Stats By Team'!C:AC,14,FALSE) ->  | W15: =VLOOKUP(H15,'Player Stats By Team'!C:AC,15,FALSE) ->  | X15: =VLOOKUP(H15,'Player Stats By Team'!C:AC,16,FALSE) ->  | Y15: =VLOOKUP(H15,'Player Stats By Team'!C:AC,17,FALSE) ->  | Z15: =VLOOKUP(H15,'Player Stats By Team'!C:AC,18,FALSE) ->  | AA15: =VLOOKUP(H15,'Player Stats By Team'!C:AC,19,FALSE) ->  | AB15: =VLOOKUP(H15,'Player Stats By Team'!C:AC,20,FALSE) ->  | AC15: =VLOOKUP(H15,'Player Stats By Team'!C:AC,21,FALSE) ->  | AD15: =VLOOKUP(H15,'Player Stats By Team'!C:AC,22,FALSE) ->  | AE15: =VLOOKUP(H15,'Player Stats By Team'!C:AC,23,FALSE) ->  | AF15: =VLOOKUP(H15,'Player Stats By Team'!C:AC,24,FALSE) ->  | AG15: =VLOOKUP(H15,'Player Stats By Team'!C:AC,25,FALSE) ->  | AH15: =VLOOKUP(H15,'Player Stats By Team'!C:AC,26,FALSE) -> 
B16: Alexander Khokhlachev | C16: Boston Bruins | D16: =VLOOKUP(B16,'Player Stats By Team'!C:AC,2,FALSE) ->  | G16: OHL | H16: Philip Lane | I16: Phoenix Coyotes | J16: =VLOOKUP(H16,'Player Stats By Team'!C:AC,2,FALSE) ->  | K16: =VLOOKUP(H16,'Player Stats By Team'!C:AC,3,FALSE) ->  | L16: =VLOOKUP(H16,'Player Stats By Team'!C:AC,4,FALSE) ->  | M16: =VLOOKUP(H16,'Player Stats By Team'!C:AC,5,FALSE) ->  | N16: =VLOOKUP(H16,'Player Stats By Team'!C:AC,6,FALSE) ->  | O16: =VLOOKUP(H16,'Player Stats By Team'!C:AC,7,FALSE) ->  | P16: =VLOOKUP(H16,'Player Stats By Team'!C:AC,8,FALSE) ->  | Q16: =VLOOKUP(H16,'Player Stats By Team'!C:AC,9,FALSE) ->  | R16: =VLOOKUP(H16,'Player Stats By Team'!C:AC,10,FALSE) ->  | S16: =VLOOKUP(H16,'Player Stats By Team'!C:AC,11,FALSE) ->  | T16: =VLOOKUP(H16,'Player Stats By Team'!C:AC,12,FALSE) ->  | U16: =VLOOKUP(H16,'Player Stats By Team'!C:AC,13,FALSE) ->  | V16: =VLOOKUP(H16,'Player Stats By Team'!C:AC,14,FALSE) ->  | W16: =VLOOKUP(H16,'Player Stats By Team'!C:AC,15,FALSE) ->  | X16: =VLOOKUP(H16,'Player Stats By Team'!C:AC,16,FALSE) ->  | Y16: =VLOOKUP(H16,'Player Stats By Team'!C:AC,17,FALSE) ->  | Z16: =VLOOKUP(H16,'Player Stats By Team'!C:AC,18,FALSE) ->  | AA16: =VLOOKUP(H16,'Player Stats By Team'!C:AC,19,FALSE) ->  | AB16: =VLOOKUP(H16,'Player Stats By Team'!C:AC,20,FALSE) ->  | AC16: =VLOOKUP(H16,'Player Stats By Team'!C:AC,21,FALSE) ->  | AD16: =VLOOKUP(H16,'Player Stats By Team'!C:AC,22,FALSE) ->  | AE16: =VLOOKUP(H16,'Player Stats By Team'!C:AC,23,FALSE) ->  | AF16: =VLOOKUP(H16,'Player Stats By Team'!C:AC,24,FALSE) ->  | AG16: =VLOOKUP(H16,'Player Stats By Team'!C:AC,25,FALSE) ->  | AH16: =VLOOKUP(H16,'Player Stats By Team'!C:AC,26,FALSE) -> 
B17: Brandon Saad | C17: Chicago Blackhawks | D17: =VLOOKUP(B17,'Player Stats By Team'!C:AC,2,FALSE) -> LW | G17: OHL | H17: Andrey Pedan | I17: New York Islanders | J17: =VLOOKUP(H17,'Player Stats By Team'!C:AC,2,FALSE) -> D | K17: =VLOOKUP(H17,'Player Stats By Team'!C:AC,3,FALSE) -> 17 | L17: =VLOOKUP(H17,'Player Stats By Team'!C:AC,4,FALSE) -> 6 | M17: =VLOOKUP(H17,'Player Stats By Team'!C:AC,5,FALSE) -> 8 | N17: =VLOOKUP(H17,'Player Stats By Team'!C:AC,6,FALSE) -> 14 | O17: =VLOOKUP(H17,'Player Stats By Team'!C:AC,7,FALSE) -> -2 | P17: =VLOOKUP(H17,'Player Stats By Team'!C:AC,8,FALSE) -> 40 | Q17: =VLOOKUP(H17,'Player Stats By Team'!C:AC,9,FALSE) -> 3 | R17: =VLOOKUP(H17,'Player Stats By Team'!C:AC,10,FALSE) -> 5 | S17: =VLOOKUP(H17,'Player Stats By Team'!C:AC,11,FALSE) -> 0 | T17: =VLOOKUP(H17,'Player Stats By Team'!C:AC,12,FALSE) -> 1 | U17: =VLOOKUP(H17,'Player Stats By Team'!C:AC,13,FALSE) -> 1 | V17: =VLOOKUP(H17,'Player Stats By Team'!C:AC,14,FALSE) -> 1 | W17: =VLOOKUP(H17,'Player Stats By Team'!C:AC,15,FALSE) -> 0 | X17: =VLOOKUP(H17,'Player Stats By Team'!C:AC,16,FALSE) -> 1 | Y17: =VLOOKUP(H17,'Player Stats By Team'!C:AC,17,FALSE) -> 0 | Z17: =VLOOKUP(H17,'Player Stats By Team'!C:AC,18,FALSE) -> 0 | AA17: =VLOOKUP(H17,'Player Stats By Team'!C:AC,19,FALSE) -> 0 | AB17: =VLOOKUP(H17,'Player Stats By Team'!C:AC,20,FALSE) -> 0 | AC17: =VLOOKUP(H17,'Player Stats By Team'!C:AC,21,FALSE) -> 0 | AD17: =VLOOKUP(H17,'Player Stats By Team'!C:AC,22,FALSE) -> 0 | AE17: =VLOOKUP(H17,'Player Stats By Team'!C:AC,23,FALSE) -> 0.82 | AF17: =VLOOKUP(H17,'Player Stats By Team'!C:AC,24,FALSE) -> 2.35 | AG17: =VLOOKUP(H17,'Player Stats By Team'!C:AC,25,FALSE) -> 0 | AH17: =VLOOKUP(H17,'Player Stats By Team'!C:AC,26,FALSE) -> 0
B18: Brett Ritchie | C18: Dallas Stars | D18: =VLOOKUP(B18,'Player Stats By Team'!C:AC,2,FALSE) ->  | G18: OHL | H18: Corey Durocher | I18: Florida Panthers | J18: =VLOOKUP(H18,'Player Stats By Team'!C:AC,2,FALSE) ->  | K18: =VLOOKUP(H18,'Player Stats By Team'!C:AC,3,FALSE) ->  | L18: =VLOOKUP(H18,'Player Stats By Team'!C:AC,4,FALSE) ->  | M18: =VLOOKUP(H18,'Player Stats By Team'!C:AC,5,FALSE) ->  | N18: =VLOOKUP(H18,'Player Stats By Team'!C:AC,6,FALSE) ->  | O18: =VLOOKUP(H18,'Player Stats By Team'!C:AC,7,FALSE) ->  | P18: =VLOOKUP(H18,'Player Stats By Team'!C:AC,8,FALSE) ->  | Q18: =VLOOKUP(H18,'Player Stats By Team'!C:AC,9,FALSE) ->  | R18: =VLOOKUP(H18,'Player Stats By Team'!C:AC,10,FALSE) ->  | S18: =VLOOKUP(H18,'Player Stats By Team'!C:AC,11,FALSE) ->  | T18: =VLOOKUP(H18,'Player Stats By Team'!C:AC,12,FALSE) ->  | U18: =VLOOKUP(H18,'Player Stats By Team'!C:AC,13,FALSE) ->  | V18: =VLOOKUP(H18,'Player Stats By Team'!C:AC,14,FALSE) ->  | W18: =VLOOKUP(H18,'Player Stats By Team'!C:AC,15,FALSE) ->  | X18: =VLOOKUP(H18,'Player Stats By Team'!C:AC,16,FALSE) ->  | Y18: =VLOOKUP(H18,'Player Stats By Team'!C:AC,17,FALSE) ->  | Z18: =VLOOKUP(H18,'Player Stats By Team'!C:AC,18,FALSE) ->  | AA18: =VLOOKUP(H18,'Player Stats By Team'!C:AC,19,FALSE) ->  | AB18: =VLOOKUP(H18,'Player Stats By Team'!C:AC,20,FALSE) ->  | AC18: =VLOOKUP(H18,'Player Stats By Team'!C:AC,21,FALSE) ->  | AD18: =VLOOKUP(H18,'Player Stats By Team'!C:AC,22,FALSE) ->  | AE18: =VLOOKUP(H18,'Player Stats By Team'!C:AC,23,FALSE) ->  | AF18: =VLOOKUP(H18,'Player Stats By Team'!C:AC,24,FALSE) ->  | AG18: =VLOOKUP(H18,'Player Stats By Team'!C:AC,25,FALSE) ->  | AH18: =VLOOKUP(H18,'Player Stats By Team'!C:AC,26,FALSE) -> 
B19: Joel Edmundson | C19: St Louis Blues | D19: =VLOOKUP(B19,'Player Stats By Team'!C:AC,2,FALSE) -> D | G19: OHL | H19: Sondre Olden | I19: Toronto Maple Leafs | J19: =VLOOKUP(H19,'Player Stats By Team'!C:AC,2,FALSE) ->  | K19: =VLOOKUP(H19,'Player Stats By Team'!C:AC,3,FALSE) ->  | L19: =VLOOKUP(H19,'Player Stats By Team'!C:AC,4,FALSE) ->  | M19: =VLOOKUP(H19,'Player Stats By Team'!C:AC,5,FALSE) ->  | N19: =VLOOKUP(H19,'Player Stats By Team'!C:AC,6,FALSE) ->  | O19: =VLOOKUP(H19,'Player Stats By Team'!C:AC,7,FALSE) ->  | P19: =VLOOKUP(H19,'Player Stats By Team'!C:AC,8,FALSE) ->  | Q19: =VLOOKUP(H19,'Player Stats By Team'!C:AC,9,FALSE) ->  | R19: =VLOOKUP(H19,'Player Stats By Team'!C:AC,10,FALSE) ->  | S19: =VLOOKUP(H19,'Player Stats By Team'!C:AC,11,FALSE) ->  | T19: =VLOOKUP(H19,'Player Stats By Team'!C:AC,12,FALSE) ->  | U19: =VLOOKUP(H19,'Player Stats By Team'!C:AC,13,FALSE) ->  | V19: =VLOOKUP(H19,'Player Stats By Team'!C:AC,14,FALSE) ->  | W19: =VLOOKUP(H19,'Player Stats By Team'!C:AC,15,FALSE) ->  | X19: =VLOOKUP(H19,'Player Stats By Team'!C:AC,16,FALSE) ->  | Y19: =VLOOKUP(H19,'Player Stats By Team'!C:AC,17,FALSE) ->  | Z19: =VLOOKUP(H19,'Player Stats By Team'!C:AC,18,FALSE) ->  | AA19: =VLOOKUP(H19,'Player Stats By Team'!C:AC,19,FALSE) ->  | AB19: =VLOOKUP(H19,'Player Stats By Team'!C:AC,20,FALSE) ->  | AC19: =VLOOKUP(H19,'Player Stats By Team'!C:AC,21,FALSE) ->  | AD19: =VLOOKUP(H19,'Player Stats By Team'!C:AC,22,FALSE) ->  | AE19: =VLOOKUP(H19,'Player Stats By Team'!C:AC,23,FALSE) ->  | AF19: =VLOOKUP(H19,'Player Stats By Team'!C:AC,24,FALSE) ->  | AG19: =VLOOKUP(H19,'Player Stats By Team'!C:AC,25,FALSE) ->  | AH19: =VLOOKUP(H19,'Player Stats By Team'!C:AC,26,FALSE) -> 
B20: Xavier Ouellet | C20: Detroit Red Wings | D20: =VLOOKUP(B20,'Player Stats By Team'!C:AC,2,FALSE) -> D | G20: OHL | H20: Austin Levi | I20: Carolina Hurricanes | J20: =VLOOKUP(H20,'Player Stats By Team'!C:AC,2,FALSE) -> D | K20: =VLOOKUP(H20,'Player Stats By Team'!C:AC,3,FALSE) -> 14 | L20: =VLOOKUP(H20,'Player Stats By Team'!C:AC,4,FALSE) -> 0 | M20: =VLOOKUP(H20,'Player Stats By Team'!C:AC,5,FALSE) -> 2 | N20: =VLOOKUP(H20,'Player Stats By Team'!C:AC,6,FALSE) -> 2 | O20: =VLOOKUP(H20,'Player Stats By Team'!C:AC,7,FALSE) -> 6 | P20: =VLOOKUP(H20,'Player Stats By Team'!C:AC,8,FALSE) -> 8 | Q20: =VLOOKUP(H20,'Player Stats By Team'!C:AC,9,FALSE) -> 0 | R20: =VLOOKUP(H20,'Player Stats By Team'!C:AC,10,FALSE) -> 0 | S20: =VLOOKUP(H20,'Player Stats By Team'!C:AC,11,FALSE) -> 0 | T20: =VLOOKUP(H20,'Player Stats By Team'!C:AC,12,FALSE) -> 0 | U20: =VLOOKUP(H20,'Player Stats By Team'!C:AC,13,FALSE) -> 0 | V20: =VLOOKUP(H20,'Player Stats By Team'!C:AC,14,FALSE) -> 0 | W20: =VLOOKUP(H20,'Player Stats By Team'!C:AC,15,FALSE) -> 0 | X20: =VLOOKUP(H20,'Player Stats By Team'!C:AC,16,FALSE) -> 0 | Y20: =VLOOKUP(H20,'Player Stats By Team'!C:AC,17,FALSE) -> 0 | Z20: =VLOOKUP(H20,'Player Stats By Team'!C:AC,18,FALSE) -> 0 | AA20: =VLOOKUP(H20,'Player Stats By Team'!C:AC,19,FALSE) -> 0 | AB20: =VLOOKUP(H20,'Player Stats By Team'!C:AC,20,FALSE) -> 0 | AC20: =VLOOKUP(H20,'Player Stats By Team'!C:AC,21,FALSE) -> 0 | AD20: =VLOOKUP(H20,'Player Stats By Team'!C:AC,22,FALSE) -> 0 | AE20: =VLOOKUP(H20,'Player Stats By Team'!C:AC,23,FALSE) -> 0.14 | AF20: =VLOOKUP(H20,'Player Stats By Team'!C:AC,24,FALSE) -> 0.57 | AG20: =VLOOKUP(H20,'Player Stats By Team'!C:AC,25,FALSE) -> 0 | AH20: =VLOOKUP(H20,'Player Stats By Team'!C:AC,26,FALSE) -> 0
B21: Christopher Gibson | C21: Los Angeles Kings | D21: =VLOOKUP(B21,'Player Stats By Team'!C:AC,2,FALSE) -> G | G21: OHL | H21: Gregg Sutch | I21: Buffalo Sabres | J21: =VLOOKUP(H21,'Player Stats By Team'!C:AC,2,FALSE) ->  | K21: =VLOOKUP(H21,'Player Stats By Team'!C:AC,3,FALSE) ->  | L21: =VLOOKUP(H21,'Player Stats By Team'!C:AC,4,FALSE) ->  | M21: =VLOOKUP(H21,'Player Stats By Team'!C:AC,5,FALSE) ->  | N21: =VLOOKUP(H21,'Player Stats By Team'!C:AC,6,FALSE) ->  | O21: =VLOOKUP(H21,'Player Stats By Team'!C:AC,7,FALSE) ->  | P21: =VLOOKUP(H21,'Player Stats By Team'!C:AC,8,FALSE) ->  | Q21: =VLOOKUP(H21,'Player Stats By Team'!C:AC,9,FALSE) ->  | R21: =VLOOKUP(H21,'Player Stats By Team'!C:AC,10,FALSE) ->  | S21: =VLOOKUP(H21,'Player Stats By Team'!C:AC,11,FALSE) ->  | T21: =VLOOKUP(H21,'Player Stats By Team'!C:AC,12,FALSE) ->  | U21: =VLOOKUP(H21,'Player Stats By Team'!C:AC,13,FALSE) ->  | V21: =VLOOKUP(H21,'Player Stats By Team'!C:AC,14,FALSE) ->  | W21: =VLOOKUP(H21,'Player Stats By Team'!C:AC,15,FALSE) ->  | X21: =VLOOKUP(H21,'Player Stats By Team'!C:AC,16,FALSE) ->  | Y21: =VLOOKUP(H21,'Player Stats By Team'!C:AC,17,FALSE) ->  | Z21: =VLOOKUP(H21,'Player Stats By Team'!C:AC,18,FALSE) ->  | AA21: =VLOOKUP(H21,'Player Stats By Team'!C:AC,19,FALSE) ->  | AB21: =VLOOKUP(H21,'Player Stats By Team'!C:AC,20,FALSE) ->  | AC21: =VLOOKUP(H21,'Player Stats By Team'!C:AC,21,FALSE) ->  | AD21: =VLOOKUP(H21,'Player Stats By Team'!C:AC,22,FALSE) ->  | AE21: =VLOOKUP(H21,'Player Stats By Team'!C:AC,23,FALSE) ->  | AF21: =VLOOKUP(H21,'Player Stats By Team'!C:AC,24,FALSE) ->  | AG21: =VLOOKUP(H21,'Player Stats By Team'!C:AC,25,FALSE) ->  | AH21: =VLOOKUP(H21,'Player Stats By Team'!C:AC,26,FALSE) -> 
B22: Scott Harrington | C22: Pittsburgh Penguins | D22: =VLOOKUP(B22,'Player Stats By Team'!C:AC,2,FALSE) -> D | G22: OHL | H22: Joe Rogalski | I22: Pittsburgh Penguins | J22: =VLOOKUP(H22,'Player Stats By Team'!C:AC,2,FALSE) ->  | K22: =VLOOKUP(H22,'Player Stats By Team'!C:AC,3,FALSE) ->  | L22: =VLOOKUP(H22,'Player Stats By Team'!C:AC,4,FALSE) ->  | M22: =VLOOKUP(H22,'Player Stats By Team'!C:AC,5,FALSE) ->  | N22: =VLOOKUP(H22,'Player Stats By Team'!C:AC,6,FALSE) ->  | O22: =VLOOKUP(H22,'Player Stats By Team'!C:AC,7,FALSE) ->  | P22: =VLOOKUP(H22,'Player Stats By Team'!C:AC,8,FALSE) ->  | Q22: =VLOOKUP(H22,'Player Stats By Team'!C:AC,9,FALSE) ->  | R22: =VLOOKUP(H22,'Player Stats By Team'!C:AC,10,FALSE) ->  | S22: =VLOOKUP(H22,'Player Stats By Team'!C:AC,11,FALSE) ->  | T22: =VLOOKUP(H22,'Player Stats By Team'!C:AC,12,FALSE) ->  | U22: =VLOOKUP(H22,'Player Stats By Team'!C:AC,13,FALSE) ->  | V22: =VLOOKUP(H22,'Player Stats By Team'!C:AC,14,FALSE) ->  | W22: =VLOOKUP(H22,'Player Stats By Team'!C:AC,15,FALSE) ->  | X22: =VLOOKUP(H22,'Player Stats By Team'!C:AC,16,FALSE) ->  | Y22: =VLOOKUP(H22,'Player Stats By Team'!C:AC,17,FALSE) ->  | Z22: =VLOOKUP(H22,'Player Stats By Team'!C:AC,18,FALSE) ->  | AA22: =VLOOKUP(H22,'Player Stats By Team'!C:AC,19,FALSE) ->  | AB22: =VLOOKUP(H22,'Player Stats By Team'!C:AC,20,FALSE) ->  | AC22: =VLOOKUP(H22,'Player Stats By Team'!C:AC,21,FALSE) ->  | AD22: =VLOOKUP(H22,'Player Stats By Team'!C:AC,22,FALSE) ->  | AE22: =VLOOKUP(H22,'Player Stats By Team'!C:AC,23,FALSE) ->  | AF22: =VLOOKUP(H22,'Player Stats By Team'!C:AC,24,FALSE) ->  | AG22: =VLOOKUP(H22,'Player Stats By Team'!C:AC,25,FALSE) ->  | AH22: =VLOOKUP(H22,'Player Stats By Team'!C:AC,26,FALSE) -> 
B23: Ryan Sproul | C23: Detroit Red Wings | D23: =VLOOKUP(B23,'Player Stats By Team'!C:AC,2,FALSE) -> D | G23: OHL | H23: Brandon Archibald | I23: Columbus Blue Jackets | J23: =VLOOKUP(H23,'Player Stats By Team'!C:AC,2,FALSE) -> D | K23: =VLOOKUP(H23,'Player Stats By Team'!C:AC,3,FALSE) -> 7 | L23: =VLOOKUP(H23,'Player Stats By Team'!C:AC,4,FALSE) -> 0 | M23: =VLOOKUP(H23,'Player Stats By Team'!C:AC,5,FALSE) -> 0 | N23: =VLOOKUP(H23,'Player Stats By Team'!C:AC,6,FALSE) -> 0 | O23: =VLOOKUP(H23,'Player Stats By Team'!C:AC,7,FALSE) -> -4 | P23: =VLOOKUP(H23,'Player Stats By Team'!C:AC,8,FALSE) -> 2 | Q23: =VLOOKUP(H23,'Player Stats By Team'!C:AC,9,FALSE) -> 0 | R23: =VLOOKUP(H23,'Player Stats By Team'!C:AC,10,FALSE) -> 0 | S23: =VLOOKUP(H23,'Player Stats By Team'!C:AC,11,FALSE) -> 0 | T23: =VLOOKUP(H23,'Player Stats By Team'!C:AC,12,FALSE) -> 0 | U23: =VLOOKUP(H23,'Player Stats By Team'!C:AC,13,FALSE) -> 0 | V23: =VLOOKUP(H23,'Player Stats By Team'!C:AC,14,FALSE) -> 0 | W23: =VLOOKUP(H23,'Player Stats By Team'!C:AC,15,FALSE) -> 0 | X23: =VLOOKUP(H23,'Player Stats By Team'!C:AC,16,FALSE) -> 0 | Y23: =VLOOKUP(H23,'Player Stats By Team'!C:AC,17,FALSE) -> 0 | Z23: =VLOOKUP(H23,'Player Stats By Team'!C:AC,18,FALSE) -> 0 | AA23: =VLOOKUP(H23,'Player Stats By Team'!C:AC,19,FALSE) -> 0 | AB23: =VLOOKUP(H23,'Player Stats By Team'!C:AC,20,FALSE) -> 0 | AC23: =VLOOKUP(H23,'Player Stats By Team'!C:AC,21,FALSE) -> 0 | AD23: =VLOOKUP(H23,'Player Stats By Team'!C:AC,22,FALSE) -> 0 | AE23: =VLOOKUP(H23,'Player Stats By Team'!C:AC,23,FALSE) -> 0 | AF23: =VLOOKUP(H23,'Player Stats By Team'!C:AC,24,FALSE) -> 0.29 | AG23: =VLOOKUP(H23,'Player Stats By Team'!C:AC,25,FALSE) -> 0 | AH23: =VLOOKUP(H23,'Player Stats By Team'!C:AC,26,FALSE) -> 0
B24: Lucas Lessio | C24: Phoenix Coyotes | D24: =VLOOKUP(B24,'Player Stats By Team'!C:AC,2,FALSE) -> LW | G24: OHL | H24: Brock Beukeboom | I24: Tampa Bay Lightning | J24: =VLOOKUP(H24,'Player Stats By Team'!C:AC,2,FALSE) ->  | K24: =VLOOKUP(H24,'Player Stats By Team'!C:AC,3,FALSE) ->  | L24: =VLOOKUP(H24,'Player Stats By Team'!C:AC,4,FALSE) ->  | M24: =VLOOKUP(H24,'Player Stats By Team'!C:AC,5,FALSE) ->  | N24: =VLOOKUP(H24,'Player Stats By Team'!C:AC,6,FALSE) ->  | O24: =VLOOKUP(H24,'Player Stats By Team'!C:AC,7,FALSE) ->  | P24: =VLOOKUP(H24,'Player Stats By Team'!C:AC,8,FALSE) ->  | Q24: =VLOOKUP(H24,'Player Stats By Team'!C:AC,9,FALSE) ->  | R24: =VLOOKUP(H24,'Player Stats By Team'!C:AC,10,FALSE) ->  | S24: =VLOOKUP(H24,'Player Stats By Team'!C:AC,11,FALSE) ->  | T24: =VLOOKUP(H24,'Player Stats By Team'!C:AC,12,FALSE) ->  | U24: =VLOOKUP(H24,'Player Stats By Team'!C:AC,13,FALSE) ->  | V24: =VLOOKUP(H24,'Player Stats By Team'!C:AC,14,FALSE) ->  | W24: =VLOOKUP(H24,'Player Stats By Team'!C:AC,15,FALSE) ->  | X24: =VLOOKUP(H24,'Player Stats By Team'!C:AC,16,FALSE) ->  | Y24: =VLOOKUP(H24,'Player Stats By Team'!C:AC,17,FALSE) ->  | Z24: =VLOOKUP(H24,'Player Stats By Team'!C:AC,18,FALSE) ->  | AA24: =VLOOKUP(H24,'Player Stats By Team'!C:AC,19,FALSE) ->  | AB24: =VLOOKUP(H24,'Player Stats By Team'!C:AC,20,FALSE) ->  | AC24: =VLOOKUP(H24,'Player Stats By Team'!C:AC,21,FALSE) ->  | AD24: =VLOOKUP(H24,'Player Stats By Team'!C:AC,22,FALSE) ->  | AE24: =VLOOKUP(H24,'Player Stats By Team'!C:AC,23,FALSE) ->  | AF24: =VLOOKUP(H24,'Player Stats By Team'!C:AC,24,FALSE) ->  | AG24: =VLOOKUP(H24,'Player Stats By Team'!C:AC,25,FALSE) ->  | AH24: =VLOOKUP(H24,'Player Stats By Team'!C:AC,26,FALSE) -> 
B25: Tyler Wotherspoon | C25: Calgary Flames | D25: =VLOOKUP(B25,'Player Stats By Team'!C:AC,2,FALSE) -> D | G25: OHL | H25: Reid McNeill | I25: Pittsburgh Penguins | J25: =VLOOKUP(H25,'Player Stats By Team'!C:AC,2,FALSE) ->  | K25: =VLOOKUP(H25,'Player Stats By Team'!C:AC,3,FALSE) ->  | L25: =VLOOKUP(H25,'Player Stats By Team'!C:AC,4,FALSE) ->  | M25: =VLOOKUP(H25,'Player Stats By Team'!C:AC,5,FALSE) ->  | N25: =VLOOKUP(H25,'Player Stats By Team'!C:AC,6,FALSE) ->  | O25: =VLOOKUP(H25,'Player Stats By Team'!C:AC,7,FALSE) ->  | P25: =VLOOKUP(H25,'Player Stats By Team'!C:AC,8,FALSE) ->  | Q25: =VLOOKUP(H25,'Player Stats By Team'!C:AC,9,FALSE) ->  | R25: =VLOOKUP(H25,'Player Stats By Team'!C:AC,10,FALSE) ->  | S25: =VLOOKUP(H25,'Player Stats By Team'!C:AC,11,FALSE) ->  | T25: =VLOOKUP(H25,'Player Stats By Team'!C:AC,12,FALSE) ->  | U25: =VLOOKUP(H25,'Player Stats By Team'!C:AC,13,FALSE) ->  | V25: =VLOOKUP(H25,'Player Stats By Team'!C:AC,14,FALSE) ->  | W25: =VLOOKUP(H25,'Player Stats By Team'!C:AC,15,FALSE) ->  | X25: =VLOOKUP(H25,'Player Stats By Team'!C:AC,16,FALSE) ->  | Y25: =VLOOKUP(H25,'Player Stats By Team'!C:AC,17,FALSE) ->  | Z25: =VLOOKUP(H25,'Player Stats By Team'!C:AC,18,FALSE) ->  | AA25: =VLOOKUP(H25,'Player Stats By Team'!C:AC,19,FALSE) ->  | AB25: =VLOOKUP(H25,'Player Stats By Team'!C:AC,20,FALSE) ->  | AC25: =VLOOKUP(H25,'Player Stats By Team'!C:AC,21,FALSE) ->  | AD25: =VLOOKUP(H25,'Player Stats By Team'!C:AC,22,FALSE) ->  | AE25: =VLOOKUP(H25,'Player Stats By Team'!C:AC,23,FALSE) ->  | AF25: =VLOOKUP(H25,'Player Stats By Team'!C:AC,24,FALSE) ->  | AG25: =VLOOKUP(H25,'Player Stats By Team'!C:AC,25,FALSE) ->  | AH25: =VLOOKUP(H25,'Player Stats By Team'!C:AC,26,FALSE) -> 
B26: Shane Prince | C26: Ottawa Senators | D26: =VLOOKUP(B26,'Player Stats By Team'!C:AC,2,FALSE) -> LW | G26: OHL | H26: Scott Wedgewood | I26: New Jersey Devils | J26: =VLOOKUP(H26,'Player Stats By Team'!C:AC,2,FALSE) ->  | K26: =VLOOKUP(H26,'Player Stats By Team'!C:AC,3,FALSE) ->  | L26: =VLOOKUP(H26,'Player Stats By Team'!C:AC,4,FALSE) ->  | M26: =VLOOKUP(H26,'Player Stats By Team'!C:AC,5,FALSE) ->  | N26: =VLOOKUP(H26,'Player Stats By Team'!C:AC,6,FALSE) ->  | O26: =VLOOKUP(H26,'Player Stats By Team'!C:AC,7,FALSE) ->  | P26: =VLOOKUP(H26,'Player Stats By Team'!C:AC,8,FALSE) ->  | Q26: =VLOOKUP(H26,'Player Stats By Team'!C:AC,9,FALSE) ->  | R26: =VLOOKUP(H26,'Player Stats By Team'!C:AC,10,FALSE) ->  | S26: =VLOOKUP(H26,'Player Stats By Team'!C:AC,11,FALSE) ->  | T26: =VLOOKUP(H26,'Player Stats By Team'!C:AC,12,FALSE) ->  | U26: =VLOOKUP(H26,'Player Stats By Team'!C:AC,13,FALSE) ->  | V26: =VLOOKUP(H26,'Player Stats By Team'!C:AC,14,FALSE) ->  | W26: =VLOOKUP(H26,'Player Stats By Team'!C:AC,15,FALSE) ->  | X26: =VLOOKUP(H26,'Player Stats By Team'!C:AC,16,FALSE) ->  | Y26: =VLOOKUP(H26,'Player Stats By Team'!C:AC,17,FALSE) ->  | Z26: =VLOOKUP(H26,'Player Stats By Team'!C:AC,18,FALSE) ->  | AA26: =VLOOKUP(H26,'Player Stats By Team'!C:AC,19,FALSE) ->  | AB26: =VLOOKUP(H26,'Player Stats By Team'!C:AC,20,FALSE) ->  | AC26: =VLOOKUP(H26,'Player Stats By Team'!C:AC,21,FALSE) ->  | AD26: =VLOOKUP(H26,'Player Stats By Team'!C:AC,22,FALSE) ->  | AE26: =VLOOKUP(H26,'Player Stats By Team'!C:AC,23,FALSE) ->  | AF26: =VLOOKUP(H26,'Player Stats By Team'!C:AC,24,FALSE) ->  | AG26: =VLOOKUP(H26,'Player Stats By Team'!C:AC,25,FALSE) ->  | AH26: =VLOOKUP(H26,'Player Stats By Team'!C:AC,26,FALSE) -> 
B27: Andrei Pedan | C27: New York Islanders | D27: =VLOOKUP(B27,'Player Stats By Team'!C:AC,2,FALSE) ->  | G27: OHL | H27: Petr Mrazek | I27: Detroit Red Wings | J27: =VLOOKUP(H27,'Player Stats By Team'!C:AC,2,FALSE) -> G | K27: =VLOOKUP(H27,'Player Stats By Team'!C:AC,3,FALSE) -> 4 | L27: =VLOOKUP(H27,'Player Stats By Team'!C:AC,4,FALSE) -> 0 | M27: =VLOOKUP(H27,'Player Stats By Team'!C:AC,5,FALSE) -> 0 | N27: =VLOOKUP(H27,'Player Stats By Team'!C:AC,6,FALSE) -> 0 | O27: =VLOOKUP(H27,'Player Stats By Team'!C:AC,7,FALSE) -> 0 | P27: =VLOOKUP(H27,'Player Stats By Team'!C:AC,8,FALSE) -> 0 | Q27: =VLOOKUP(H27,'Player Stats By Team'!C:AC,9,FALSE) -> 0 | R27: =VLOOKUP(H27,'Player Stats By Team'!C:AC,10,FALSE) -> 0 | S27: =VLOOKUP(H27,'Player Stats By Team'!C:AC,11,FALSE) -> 0 | T27: =VLOOKUP(H27,'Player Stats By Team'!C:AC,12,FALSE) -> 0 | U27: =VLOOKUP(H27,'Player Stats By Team'!C:AC,13,FALSE) -> 0 | V27: =VLOOKUP(H27,'Player Stats By Team'!C:AC,14,FALSE) -> 0 | W27: =VLOOKUP(H27,'Player Stats By Team'!C:AC,15,FALSE) -> 0 | X27: =VLOOKUP(H27,'Player Stats By Team'!C:AC,16,FALSE) -> 0 | Y27: =VLOOKUP(H27,'Player Stats By Team'!C:AC,17,FALSE) -> 0 | Z27: =VLOOKUP(H27,'Player Stats By Team'!C:AC,18,FALSE) -> 0 | AA27: =VLOOKUP(H27,'Player Stats By Team'!C:AC,19,FALSE) -> 0 | AB27: =VLOOKUP(H27,'Player Stats By Team'!C:AC,20,FALSE) -> 0 | AC27: =VLOOKUP(H27,'Player Stats By Team'!C:AC,21,FALSE) -> 0 | AD27: =VLOOKUP(H27,'Player Stats By Team'!C:AC,22,FALSE) -> 0 | AE27: =VLOOKUP(H27,'Player Stats By Team'!C:AC,23,FALSE) -> 0 | AF27: =VLOOKUP(H27,'Player Stats By Team'!C:AC,24,FALSE) -> 0 | AG27: =VLOOKUP(H27,'Player Stats By Team'!C:AC,25,FALSE) -> 0 | AH27: =VLOOKUP(H27,'Player Stats By Team'!C:AC,26,FALSE) -> 0
B28: Vincent Trocheck | C28: Florida Panthers | D28: =VLOOKUP(B28,'Player Stats By Team'!C:AC,2,FALSE) -> C | G28: OHL | H28: Mark Scheifele | I28: Winnipeg Jets | J28: =VLOOKUP(H28,'Player Stats By Team'!C:AC,2,FALSE) -> C | K28: =VLOOKUP(H28,'Player Stats By Team'!C:AC,3,FALSE) -> 19 | L28: =VLOOKUP(H28,'Player Stats By Team'!C:AC,4,FALSE) -> 14 | M28: =VLOOKUP(H28,'Player Stats By Team'!C:AC,5,FALSE) -> 18 | N28: =VLOOKUP(H28,'Player Stats By Team'!C:AC,6,FALSE) -> 32 | O28: =VLOOKUP(H28,'Player Stats By Team'!C:AC,7,FALSE) -> 11 | P28: =VLOOKUP(H28,'Player Stats By Team'!C:AC,8,FALSE) -> 11 | Q28: =VLOOKUP(H28,'Player Stats By Team'!C:AC,9,FALSE) -> 7 | R28: =VLOOKUP(H28,'Player Stats By Team'!C:AC,10,FALSE) -> 7 | S28: =VLOOKUP(H28,'Player Stats By Team'!C:AC,11,FALSE) -> 0 | T28: =VLOOKUP(H28,'Player Stats By Team'!C:AC,12,FALSE) -> 0 | U28: =VLOOKUP(H28,'Player Stats By Team'!C:AC,13,FALSE) -> 2 | V28: =VLOOKUP(H28,'Player Stats By Team'!C:AC,14,FALSE) -> 3 | W28: =VLOOKUP(H28,'Player Stats By Team'!C:AC,15,FALSE) -> 1 | X28: =VLOOKUP(H28,'Player Stats By Team'!C:AC,16,FALSE) -> 1 | Y28: =VLOOKUP(H28,'Player Stats By Team'!C:AC,17,FALSE) -> 0 | Z28: =VLOOKUP(H28,'Player Stats By Team'!C:AC,18,FALSE) -> 1 | AA28: =VLOOKUP(H28,'Player Stats By Team'!C:AC,19,FALSE) -> 1 | AB28: =VLOOKUP(H28,'Player Stats By Team'!C:AC,20,FALSE) -> 4 | AC28: =VLOOKUP(H28,'Player Stats By Team'!C:AC,21,FALSE) -> 1 | AD28: =VLOOKUP(H28,'Player Stats By Team'!C:AC,22,FALSE) -> 0.25 | AE28: =VLOOKUP(H28,'Player Stats By Team'!C:AC,23,FALSE) -> 1.68 | AF28: =VLOOKUP(H28,'Player Stats By Team'!C:AC,24,FALSE) -> 0.58 | AG28: =VLOOKUP(H28,'Player Stats By Team'!C:AC,25,FALSE) -> 0 | AH28: =VLOOKUP(H28,'Player Stats By Team'!C:AC,26,FALSE) -> 0
B29: Joseph Cramarossa | C29: Anaheim Ducks | D29: =VLOOKUP(B29,'Player Stats By Team'!C:AC,2,FALSE) -> C | G29: OHL | H29: Daniel Catenacci | I29: Buffalo Sabres | J29: =VLOOKUP(H29,'Player Stats By Team'!C:AC,2,FALSE) -> C | K29: =VLOOKUP(H29,'Player Stats By Team'!C:AC,3,FALSE) -> 20 | L29: =VLOOKUP(H29,'Player Stats By Team'!C:AC,4,FALSE) -> 14 | M29: =VLOOKUP(H29,'Player Stats By Team'!C:AC,5,FALSE) -> 18 | N29: =VLOOKUP(H29,'Player Stats By Team'!C:AC,6,FALSE) -> 32 | O29: =VLOOKUP(H29,'Player Stats By Team'!C:AC,7,FALSE) -> 12 | P29: =VLOOKUP(H29,'Player Stats By Team'!C:AC,8,FALSE) -> 35 | Q29: =VLOOKUP(H29,'Player Stats By Team'!C:AC,9,FALSE) -> 4 | R29: =VLOOKUP(H29,'Player Stats By Team'!C:AC,10,FALSE) -> 9 | S29: =VLOOKUP(H29,'Player Stats By Team'!C:AC,11,FALSE) -> 0 | T29: =VLOOKUP(H29,'Player Stats By Team'!C:AC,12,FALSE) -> 1 | U29: =VLOOKUP(H29,'Player Stats By Team'!C:AC,13,FALSE) -> 3 | V29: =VLOOKUP(H29,'Player Stats By Team'!C:AC,14,FALSE) -> 1 | W29: =VLOOKUP(H29,'Player Stats By Team'!C:AC,15,FALSE) -> 1 | X29: =VLOOKUP(H29,'Player Stats By Team'!C:AC,16,FALSE) -> 0 | Y29: =VLOOKUP(H29,'Player Stats By Team'!C:AC,17,FALSE) -> 0 | Z29: =VLOOKUP(H29,'Player Stats By Team'!C:AC,18,FALSE) -> 0 | AA29: =VLOOKUP(H29,'Player Stats By Team'!C:AC,19,FALSE) -> 2 | AB29: =VLOOKUP(H29,'Player Stats By Team'!C:AC,20,FALSE) -> 4 | AC29: =VLOOKUP(H29,'Player Stats By Team'!C:AC,21,FALSE) -> 0 | AD29: =VLOOKUP(H29,'Player Stats By Team'!C:AC,22,FALSE) -> 0.5 | AE29: =VLOOKUP(H29,'Player Stats By Team'!C:AC,23,FALSE) -> 1.6 | AF29: =VLOOKUP(H29,'Player Stats By Team'!C:AC,24,FALSE) -> 1.75 | AG29: =VLOOKUP(H29,'Player Stats By Team'!C:AC,25,FALSE) -> 0 | AH29: =VLOOKUP(H29,'Player Stats By Team'!C:AC,26,FALSE) -> 0
B30: Adam Lowry | C30: Winnipeg Jets | D30: =VLOOKUP(B30,'Player Stats By Team'!C:AC,2,FALSE) -> LW | G30: OHL | H30: Ryan Sproul | I30: Detroit Red Wings | J30: =VLOOKUP(H30,'Player Stats By Team'!C:AC,2,FALSE) -> D | K30: =VLOOKUP(H30,'Player Stats By Team'!C:AC,3,FALSE) -> 7 | L30: =VLOOKUP(H30,'Player Stats By Team'!C:AC,4,FALSE) -> 1 | M30: =VLOOKUP(H30,'Player Stats By Team'!C:AC,5,FALSE) -> 8 | N30: =VLOOKUP(H30,'Player Stats By Team'!C:AC,6,FALSE) -> 9 | O30: =VLOOKUP(H30,'Player Stats By Team'!C:AC,7,FALSE) -> 1 | P30: =VLOOKUP(H30,'Player Stats By Team'!C:AC,8,FALSE) -> 12 | Q30: =VLOOKUP(H30,'Player Stats By Team'!C:AC,9,FALSE) -> 1 | R30: =VLOOKUP(H30,'Player Stats By Team'!C:AC,10,FALSE) -> 2 | S30: =VLOOKUP(H30,'Player Stats By Team'!C:AC,11,FALSE) -> 0 | T30: =VLOOKUP(H30,'Player Stats By Team'!C:AC,12,FALSE) -> 1 | U30: =VLOOKUP(H30,'Player Stats By Team'!C:AC,13,FALSE) -> 0 | V30: =VLOOKUP(H30,'Player Stats By Team'!C:AC,14,FALSE) -> 0 | W30: =VLOOKUP(H30,'Player Stats By Team'!C:AC,15,FALSE) -> 0 | X30: =VLOOKUP(H30,'Player Stats By Team'!C:AC,16,FALSE) -> 0 | Y30: =VLOOKUP(H30,'Player Stats By Team'!C:AC,17,FALSE) -> 0 | Z30: =VLOOKUP(H30,'Player Stats By Team'!C:AC,18,FALSE) -> 0 | AA30: =VLOOKUP(H30,'Player Stats By Team'!C:AC,19,FALSE) -> 0 | AB30: =VLOOKUP(H30,'Player Stats By Team'!C:AC,20,FALSE) -> 0 | AC30: =VLOOKUP(H30,'Player Stats By Team'!C:AC,21,FALSE) -> 0 | AD30: =VLOOKUP(H30,'Player Stats By Team'!C:AC,22,FALSE) -> 0 | AE30: =VLOOKUP(H30,'Player Stats By Team'!C:AC,23,FALSE) -> 1.29 | AF30: =VLOOKUP(H30,'Player Stats By Team'!C:AC,24,FALSE) -> 1.71 | AG30: =VLOOKUP(H30,'Player Stats By Team'!C:AC,25,FALSE) -> 0 | AH30: =VLOOKUP(H30,'Player Stats By Team'!C:AC,26,FALSE) -> 0
B31: Nick Cousins | C31: Philadelphia Flyers | D31: =VLOOKUP(B31,'Player Stats By Team'!C:AC,2,FALSE) -> C | G31: OHL | H31: Boone Jenner | I31: Columbus Blue Jackets | J31: =VLOOKUP(H31,'Player Stats By Team'!C:AC,2,FALSE) -> C | K31: =VLOOKUP(H31,'Player Stats By Team'!C:AC,3,FALSE) -> 22 | L31: =VLOOKUP(H31,'Player Stats By Team'!C:AC,4,FALSE) -> 17 | M31: =VLOOKUP(H31,'Player Stats By Team'!C:AC,5,FALSE) -> 16 | N31: =VLOOKUP(H31,'Player Stats By Team'!C:AC,6,FALSE) -> 33 | O31: =VLOOKUP(H31,'Player Stats By Team'!C:AC,7,FALSE) -> 6 | P31: =VLOOKUP(H31,'Player Stats By Team'!C:AC,8,FALSE) -> 20 | Q31: =VLOOKUP(H31,'Player Stats By Team'!C:AC,9,FALSE) -> 4 | R31: =VLOOKUP(H31,'Player Stats By Team'!C:AC,10,FALSE) -> 7 | S31: =VLOOKUP(H31,'Player Stats By Team'!C:AC,11,FALSE) -> 0 | T31: =VLOOKUP(H31,'Player Stats By Team'!C:AC,12,FALSE) -> 1 | U31: =VLOOKUP(H31,'Player Stats By Team'!C:AC,13,FALSE) -> 3 | V31: =VLOOKUP(H31,'Player Stats By Team'!C:AC,14,FALSE) -> 5 | W31: =VLOOKUP(H31,'Player Stats By Team'!C:AC,15,FALSE) -> 1 | X31: =VLOOKUP(H31,'Player Stats By Team'!C:AC,16,FALSE) -> 0 | Y31: =VLOOKUP(H31,'Player Stats By Team'!C:AC,17,FALSE) -> 2 | Z31: =VLOOKUP(H31,'Player Stats By Team'!C:AC,18,FALSE) -> 1 | AA31: =VLOOKUP(H31,'Player Stats By Team'!C:AC,19,FALSE) -> 1 | AB31: =VLOOKUP(H31,'Player Stats By Team'!C:AC,20,FALSE) -> 3 | AC31: =VLOOKUP(H31,'Player Stats By Team'!C:AC,21,FALSE) -> 0 | AD31: =VLOOKUP(H31,'Player Stats By Team'!C:AC,22,FALSE) -> 0.333 | AE31: =VLOOKUP(H31,'Player Stats By Team'!C:AC,23,FALSE) -> 1.5 | AF31: =VLOOKUP(H31,'Player Stats By Team'!C:AC,24,FALSE) -> 0.91 | AG31: =VLOOKUP(H31,'Player Stats By Team'!C:AC,25,FALSE) -> 0 | AH31: =VLOOKUP(H31,'Player Stats By Team'!C:AC,26,FALSE) -> 0
B32: David Honzik | C32: Vancouver Canucks | D32: =VLOOKUP(B32,'Player Stats By Team'!C:AC,2,FALSE) -> G | G32: OHL | H32: Anthony Camara | I32: Boston Bruins | J32: =VLOOKUP(H32,'Player Stats By Team'!C:AC,2,FALSE) -> LW | K32: =VLOOKUP(H32,'Player Stats By Team'!C:AC,3,FALSE) -> 20 | L32: =VLOOKUP(H32,'Player Stats By Team'!C:AC,4,FALSE) -> 14 | M32: =VLOOKUP(H32,'Player Stats By Team'!C:AC,5,FALSE) -> 13 | N32: =VLOOKUP(H32,'Player Stats By Team'!C:AC,6,FALSE) -> 27 | O32: =VLOOKUP(H32,'Player Stats By Team'!C:AC,7,FALSE) -> 8 | P32: =VLOOKUP(H32,'Player Stats By Team'!C:AC,8,FALSE) -> 25 | Q32: =VLOOKUP(H32,'Player Stats By Team'!C:AC,9,FALSE) -> 7 | R32: =VLOOKUP(H32,'Player Stats By Team'!C:AC,10,FALSE) -> 7 | S32: =VLOOKUP(H32,'Player Stats By Team'!C:AC,11,FALSE) -> 0 | T32: =VLOOKUP(H32,'Player Stats By Team'!C:AC,12,FALSE) -> 1 | U32: =VLOOKUP(H32,'Player Stats By Team'!C:AC,13,FALSE) -> 2 | V32: =VLOOKUP(H32,'Player Stats By Team'!C:AC,14,FALSE) -> 1 | W32: =VLOOKUP(H32,'Player Stats By Team'!C:AC,15,FALSE) -> 1 | X32: =VLOOKUP(H32,'Player Stats By Team'!C:AC,16,FALSE) -> 0 | Y32: =VLOOKUP(H32,'Player Stats By Team'!C:AC,17,FALSE) -> 0 | Z32: =VLOOKUP(H32,'Player Stats By Team'!C:AC,18,FALSE) -> 0 | AA32: =VLOOKUP(H32,'Player Stats By Team'!C:AC,19,FALSE) -> 1 | AB32: =VLOOKUP(H32,'Player Stats By Team'!C:AC,20,FALSE) -> 1 | AC32: =VLOOKUP(H32,'Player Stats By Team'!C:AC,21,FALSE) -> 0 | AD32: =VLOOKUP(H32,'Player Stats By Team'!C:AC,22,FALSE) -> 1 | AE32: =VLOOKUP(H32,'Player Stats By Team'!C:AC,23,FALSE) -> 1.35 | AF32: =VLOOKUP(H32,'Player Stats By Team'!C:AC,24,FALSE) -> 1.25 | AG32: =VLOOKUP(H32,'Player Stats By Team'!C:AC,25,FALSE) -> 0 | AH32: =VLOOKUP(H32,'Player Stats By Team'!C:AC,26,FALSE) -> 0
B33: Keegan Lowe | C33: Carolina Hurricanes | D33: =VLOOKUP(B33,'Player Stats By Team'!C:AC,2,FALSE) -> D | G33: OHL | H33: Vincent Trocheck | I33: Florida Panthers | J33: =VLOOKUP(H33,'Player Stats By Team'!C:AC,2,FALSE) -> C | K33: =VLOOKUP(H33,'Player Stats By Team'!C:AC,3,FALSE) -> 21 | L33: =VLOOKUP(H33,'Player Stats By Team'!C:AC,4,FALSE) -> 13 | M33: =VLOOKUP(H33,'Player Stats By Team'!C:AC,5,FALSE) -> 18 | N33: =VLOOKUP(H33,'Player Stats By Team'!C:AC,6,FALSE) -> 31 | O33: =VLOOKUP(H33,'Player Stats By Team'!C:AC,7,FALSE) -> 9 | P33: =VLOOKUP(H33,'Player Stats By Team'!C:AC,8,FALSE) -> 22 | Q33: =VLOOKUP(H33,'Player Stats By Team'!C:AC,9,FALSE) -> 3 | R33: =VLOOKUP(H33,'Player Stats By Team'!C:AC,10,FALSE) -> 6 | S33: =VLOOKUP(H33,'Player Stats By Team'!C:AC,11,FALSE) -> 0 | T33: =VLOOKUP(H33,'Player Stats By Team'!C:AC,12,FALSE) -> 0 | U33: =VLOOKUP(H33,'Player Stats By Team'!C:AC,13,FALSE) -> 2 | V33: =VLOOKUP(H33,'Player Stats By Team'!C:AC,14,FALSE) -> 1 | W33: =VLOOKUP(H33,'Player Stats By Team'!C:AC,15,FALSE) -> 1 | X33: =VLOOKUP(H33,'Player Stats By Team'!C:AC,16,FALSE) -> 0 | Y33: =VLOOKUP(H33,'Player Stats By Team'!C:AC,17,FALSE) -> 0 | Z33: =VLOOKUP(H33,'Player Stats By Team'!C:AC,18,FALSE) -> 0 | AA33: =VLOOKUP(H33,'Player Stats By Team'!C:AC,19,FALSE) -> 1 | AB33: =VLOOKUP(H33,'Player Stats By Team'!C:AC,20,FALSE) -> 2 | AC33: =VLOOKUP(H33,'Player Stats By Team'!C:AC,21,FALSE) -> 0 | AD33: =VLOOKUP(H33,'Player Stats By Team'!C:AC,22,FALSE) -> 0.5 | AE33: =VLOOKUP(H33,'Player Stats By Team'!C:AC,23,FALSE) -> 1.48 | AF33: =VLOOKUP(H33,'Player Stats By Team'!C:AC,24,FALSE) -> 1.05 | AG33: =VLOOKUP(H33,'Player Stats By Team'!C:AC,25,FALSE) -> 0 | AH33: =VLOOKUP(H33,'Player Stats By Team'!C:AC,26,FALSE) -> 0
B34: Travis Ewanyk | C34: Edmonton Oilers | D34: =VLOOKUP(B34,'Player Stats By Team'!C:AC,2,FALSE) -> C | G34: OHL | H34: Nick Cousins | I34: Philadelphia Flyers | J34: =VLOOKUP(H34,'Player Stats By Team'!C:AC,2,FALSE) -> C | K34: =VLOOKUP(H34,'Player Stats By Team'!C:AC,3,FALSE) -> 21 | L34: =VLOOKUP(H34,'Player Stats By Team'!C:AC,4,FALSE) -> 8 | M34: =VLOOKUP(H34,'Player Stats By Team'!C:AC,5,FALSE) -> 21 | N34: =VLOOKUP(H34,'Player Stats By Team'!C:AC,6,FALSE) -> 29 | O34: =VLOOKUP(H34,'Player Stats By Team'!C:AC,7,FALSE) -> 4 | P34: =VLOOKUP(H34,'Player Stats By Team'!C:AC,8,FALSE) -> 32 | Q34: =VLOOKUP(H34,'Player Stats By Team'!C:AC,9,FALSE) -> 1 | R34: =VLOOKUP(H34,'Player Stats By Team'!C:AC,10,FALSE) -> 7 | S34: =VLOOKUP(H34,'Player Stats By Team'!C:AC,11,FALSE) -> 0 | T34: =VLOOKUP(H34,'Player Stats By Team'!C:AC,12,FALSE) -> 1 | U34: =VLOOKUP(H34,'Player Stats By Team'!C:AC,13,FALSE) -> 2 | V34: =VLOOKUP(H34,'Player Stats By Team'!C:AC,14,FALSE) -> 0 | W34: =VLOOKUP(H34,'Player Stats By Team'!C:AC,15,FALSE) -> 1 | X34: =VLOOKUP(H34,'Player Stats By Team'!C:AC,16,FALSE) -> 1 | Y34: =VLOOKUP(H34,'Player Stats By Team'!C:AC,17,FALSE) -> 0 | Z34: =VLOOKUP(H34,'Player Stats By Team'!C:AC,18,FALSE) -> 1 | AA34: =VLOOKUP(H34,'Player Stats By Team'!C:AC,19,FALSE) -> 0 | AB34: =VLOOKUP(H34,'Player Stats By Team'!C:AC,20,FALSE) -> 1 | AC34: =VLOOKUP(H34,'Player Stats By Team'!C:AC,21,FALSE) -> 0 | AD34: =VLOOKUP(H34,'Player Stats By Team'!C:AC,22,FALSE) -> 0 | AE34: =VLOOKUP(H34,'Player Stats By Team'!C:AC,23,FALSE) -> 1.38 | AF34: =VLOOKUP(H34,'Player Stats By Team'!C:AC,24,FALSE) -> 1.52 | AG34: =VLOOKUP(H34,'Player Stats By Team'!C:AC,25,FALSE) -> 0 | AH34: =VLOOKUP(H34,'Player Stats By Team'!C:AC,26,FALSE) -> 0
B35: Logan Shaw | C35: Florida Panthers | D35: =VLOOKUP(B35,'Player Stats By Team'!C:AC,2,FALSE) -> RW | G35: OHL | H35: Lucas Lessio | I35: Phoenix Coyotes | J35: =VLOOKUP(H35,'Player Stats By Team'!C:AC,2,FALSE) -> LW | K35: =VLOOKUP(H35,'Player Stats By Team'!C:AC,3,FALSE) -> 13 | L35: =VLOOKUP(H35,'Player Stats By Team'!C:AC,4,FALSE) -> 7 | M35: =VLOOKUP(H35,'Player Stats By Team'!C:AC,5,FALSE) -> 6 | N35: =VLOOKUP(H35,'Player Stats By Team'!C:AC,6,FALSE) -> 13 | O35: =VLOOKUP(H35,'Player Stats By Team'!C:AC,7,FALSE) -> 0 | P35: =VLOOKUP(H35,'Player Stats By Team'!C:AC,8,FALSE) -> 22 | Q35: =VLOOKUP(H35,'Player Stats By Team'!C:AC,9,FALSE) -> 6 | R35: =VLOOKUP(H35,'Player Stats By Team'!C:AC,10,FALSE) -> 2 | S35: =VLOOKUP(H35,'Player Stats By Team'!C:AC,11,FALSE) -> 0 | T35: =VLOOKUP(H35,'Player Stats By Team'!C:AC,12,FALSE) -> 0 | U35: =VLOOKUP(H35,'Player Stats By Team'!C:AC,13,FALSE) -> 0 | V35: =VLOOKUP(H35,'Player Stats By Team'!C:AC,14,FALSE) -> 2 | W35: =VLOOKUP(H35,'Player Stats By Team'!C:AC,15,FALSE) -> 0 | X35: =VLOOKUP(H35,'Player Stats By Team'!C:AC,16,FALSE) -> 0 | Y35: =VLOOKUP(H35,'Player Stats By Team'!C:AC,17,FALSE) -> 0 | Z35: =VLOOKUP(H35,'Player Stats By Team'!C:AC,18,FALSE) -> 0 | AA35: =VLOOKUP(H35,'Player Stats By Team'!C:AC,19,FALSE) -> 0 | AB35: =VLOOKUP(H35,'Player Stats By Team'!C:AC,20,FALSE) -> 1 | AC35: =VLOOKUP(H35,'Player Stats By Team'!C:AC,21,FALSE) -> 0 | AD35: =VLOOKUP(H35,'Player Stats By Team'!C:AC,22,FALSE) -> 0 | AE35: =VLOOKUP(H35,'Player Stats By Team'!C:AC,23,FALSE) -> 1 | AF35: =VLOOKUP(H35,'Player Stats By Team'!C:AC,24,FALSE) -> 1.69 | AG35: =VLOOKUP(H35,'Player Stats By Team'!C:AC,25,FALSE) -> 0 | AH35: =VLOOKUP(H35,'Player Stats By Team'!C:AC,26,FALSE) -> 0
B36: Daniel Catenacci | C36: Buffalo Sabres | D36: =VLOOKUP(B36,'Player Stats By Team'!C:AC,2,FALSE) -> C | G36: OHL | H36: Stefan Noesen | I36: Ottawa Senators | J36: =VLOOKUP(H36,'Player Stats By Team'!C:AC,2,FALSE) -> LW | K36: =VLOOKUP(H36,'Player Stats By Team'!C:AC,3,FALSE) -> 19 | L36: =VLOOKUP(H36,'Player Stats By Team'!C:AC,4,FALSE) -> 12 | M36: =VLOOKUP(H36,'Player Stats By Team'!C:AC,5,FALSE) -> 6 | N36: =VLOOKUP(H36,'Player Stats By Team'!C:AC,6,FALSE) -> 18 | O36: =VLOOKUP(H36,'Player Stats By Team'!C:AC,7,FALSE) -> -5 | P36: =VLOOKUP(H36,'Player Stats By Team'!C:AC,8,FALSE) -> 18 | Q36: =VLOOKUP(H36,'Player Stats By Team'!C:AC,9,FALSE) -> 4 | R36: =VLOOKUP(H36,'Player Stats By Team'!C:AC,10,FALSE) -> 3 | S36: =VLOOKUP(H36,'Player Stats By Team'!C:AC,11,FALSE) -> 0 | T36: =VLOOKUP(H36,'Player Stats By Team'!C:AC,12,FALSE) -> 0 | U36: =VLOOKUP(H36,'Player Stats By Team'!C:AC,13,FALSE) -> 2 | V36: =VLOOKUP(H36,'Player Stats By Team'!C:AC,14,FALSE) -> 2 | W36: =VLOOKUP(H36,'Player Stats By Team'!C:AC,15,FALSE) -> 1 | X36: =VLOOKUP(H36,'Player Stats By Team'!C:AC,16,FALSE) -> 0 | Y36: =VLOOKUP(H36,'Player Stats By Team'!C:AC,17,FALSE) -> 2 | Z36: =VLOOKUP(H36,'Player Stats By Team'!C:AC,18,FALSE) -> 1 | AA36: =VLOOKUP(H36,'Player Stats By Team'!C:AC,19,FALSE) -> 0 | AB36: =VLOOKUP(H36,'Player Stats By Team'!C:AC,20,FALSE) -> 1 | AC36: =VLOOKUP(H36,'Player Stats By Team'!C:AC,21,FALSE) -> 0 | AD36: =VLOOKUP(H36,'Player Stats By Team'!C:AC,22,FALSE) -> 0 | AE36: =VLOOKUP(H36,'Player Stats By Team'!C:AC,23,FALSE) -> 0.95 | AF36: =VLOOKUP(H36,'Player Stats By Team'!C:AC,24,FALSE) -> 0.95 | AG36: =VLOOKUP(H36,'Player Stats By Team'!C:AC,25,FALSE) -> 0 | AH36: =VLOOKUP(H36,'Player Stats By Team'!C:AC,26,FALSE) -> 0
B37: Andy Andreoff | C37: Los Angeles Kings | D37: =VLOOKUP(B37,'Player Stats By Team'!C:AC,2,FALSE) -> C | G37: OHL | H37: Rickard Rakell | I37: Anaheim Ducks | J37: =VLOOKUP(H37,'Player Stats By Team'!C:AC,2,FALSE) -> C | K37: =VLOOKUP(H37,'Player Stats By Team'!C:AC,3,FALSE) -> 19 | L37: =VLOOKUP(H37,'Player Stats By Team'!C:AC,4,FALSE) -> 8 | M37: =VLOOKUP(H37,'Player Stats By Team'!C:AC,5,FALSE) -> 9 | N37: =VLOOKUP(H37,'Player Stats By Team'!C:AC,6,FALSE) -> 17 | O37: =VLOOKUP(H37,'Player Stats By Team'!C:AC,7,FALSE) -> 5 | P37: =VLOOKUP(H37,'Player Stats By Team'!C:AC,8,FALSE) -> 12 | Q37: =VLOOKUP(H37,'Player Stats By Team'!C:AC,9,FALSE) -> 1 | R37: =VLOOKUP(H37,'Player Stats By Team'!C:AC,10,FALSE) -> 2 | S37: =VLOOKUP(H37,'Player Stats By Team'!C:AC,11,FALSE) -> 1 | T37: =VLOOKUP(H37,'Player Stats By Team'!C:AC,12,FALSE) -> 0 | U37: =VLOOKUP(H37,'Player Stats By Team'!C:AC,13,FALSE) -> 1 | V37: =VLOOKUP(H37,'Player Stats By Team'!C:AC,14,FALSE) -> 1 | W37: =VLOOKUP(H37,'Player Stats By Team'!C:AC,15,FALSE) -> 1 | X37: =VLOOKUP(H37,'Player Stats By Team'!C:AC,16,FALSE) -> 0 | Y37: =VLOOKUP(H37,'Player Stats By Team'!C:AC,17,FALSE) -> 1 | Z37: =VLOOKUP(H37,'Player Stats By Team'!C:AC,18,FALSE) -> 0 | AA37: =VLOOKUP(H37,'Player Stats By Team'!C:AC,19,FALSE) -> 0 | AB37: =VLOOKUP(H37,'Player Stats By Team'!C:AC,20,FALSE) -> 0 | AC37: =VLOOKUP(H37,'Player Stats By Team'!C:AC,21,FALSE) -> 0 | AD37: =VLOOKUP(H37,'Player Stats By Team'!C:AC,22,FALSE) -> 0 | AE37: =VLOOKUP(H37,'Player Stats By Team'!C:AC,23,FALSE) -> 0.89 | AF37: =VLOOKUP(H37,'Player Stats By Team'!C:AC,24,FALSE) -> 0.63 | AG37: =VLOOKUP(H37,'Player Stats By Team'!C:AC,25,FALSE) -> 0 | AH37: =VLOOKUP(H37,'Player Stats By Team'!C:AC,26,FALSE) -> 0
B38: Anthony Camara | C38: Boston Bruins | D38: =VLOOKUP(B38,'Player Stats By Team'!C:AC,2,FALSE) -> LW | G38: OHL | H38: Matt Puempel | I38: Ottawa Senators | J38: =VLOOKUP(H38,'Player Stats By Team'!C:AC,2,FALSE) -> LW | K38: =VLOOKUP(H38,'Player Stats By Team'!C:AC,3,FALSE) -> 20 | L38: =VLOOKUP(H38,'Player Stats By Team'!C:AC,4,FALSE) -> 16 | M38: =VLOOKUP(H38,'Player Stats By Team'!C:AC,5,FALSE) -> 5 | N38: =VLOOKUP(H38,'Player Stats By Team'!C:AC,6,FALSE) -> 21 | O38: =VLOOKUP(H38,'Player Stats By Team'!C:AC,7,FALSE) -> 5 | P38: =VLOOKUP(H38,'Player Stats By Team'!C:AC,8,FALSE) -> 10 | Q38: =VLOOKUP(H38,'Player Stats By Team'!C:AC,9,FALSE) -> 6 | R38: =VLOOKUP(H38,'Player Stats By Team'!C:AC,10,FALSE) -> 4 | S38: =VLOOKUP(H38,'Player Stats By Team'!C:AC,11,FALSE) -> 0 | T38: =VLOOKUP(H38,'Player Stats By Team'!C:AC,12,FALSE) -> 0 | U38: =VLOOKUP(H38,'Player Stats By Team'!C:AC,13,FALSE) -> 1 | V38: =VLOOKUP(H38,'Player Stats By Team'!C:AC,14,FALSE) -> 2 | W38: =VLOOKUP(H38,'Player Stats By Team'!C:AC,15,FALSE) -> 2 | X38: =VLOOKUP(H38,'Player Stats By Team'!C:AC,16,FALSE) -> 0 | Y38: =VLOOKUP(H38,'Player Stats By Team'!C:AC,17,FALSE) -> 3 | Z38: =VLOOKUP(H38,'Player Stats By Team'!C:AC,18,FALSE) -> 1 | AA38: =VLOOKUP(H38,'Player Stats By Team'!C:AC,19,FALSE) -> 1 | AB38: =VLOOKUP(H38,'Player Stats By Team'!C:AC,20,FALSE) -> 3 | AC38: =VLOOKUP(H38,'Player Stats By Team'!C:AC,21,FALSE) -> 0 | AD38: =VLOOKUP(H38,'Player Stats By Team'!C:AC,22,FALSE) -> 0.333 | AE38: =VLOOKUP(H38,'Player Stats By Team'!C:AC,23,FALSE) -> 1.05 | AF38: =VLOOKUP(H38,'Player Stats By Team'!C:AC,24,FALSE) -> 0.5 | AG38: =VLOOKUP(H38,'Player Stats By Team'!C:AC,25,FALSE) -> 0 | AH38: =VLOOKUP(H38,'Player Stats By Team'!C:AC,26,FALSE) -> 0
B39: Harrison Ruopp | C39: Phoenix Coyotes | D39: =VLOOKUP(B39,'Player Stats By Team'!C:AC,2,FALSE) -> D | G39: OHL | H39: Andrew Fritsch | I39: Phoenix Coyotes | J39: =VLOOKUP(H39,'Player Stats By Team'!C:AC,2,FALSE) -> RW | K39: =VLOOKUP(H39,'Player Stats By Team'!C:AC,3,FALSE) -> 21 | L39: =VLOOKUP(H39,'Player Stats By Team'!C:AC,4,FALSE) -> 7 | M39: =VLOOKUP(H39,'Player Stats By Team'!C:AC,5,FALSE) -> 9 | N39: =VLOOKUP(H39,'Player Stats By Team'!C:AC,6,FALSE) -> 16 | O39: =VLOOKUP(H39,'Player Stats By Team'!C:AC,7,FALSE) -> -5 | P39: =VLOOKUP(H39,'Player Stats By Team'!C:AC,8,FALSE) -> 2 | Q39: =VLOOKUP(H39,'Player Stats By Team'!C:AC,9,FALSE) -> 1 | R39: =VLOOKUP(H39,'Player Stats By Team'!C:AC,10,FALSE) -> 5 | S39: =VLOOKUP(H39,'Player Stats By Team'!C:AC,11,FALSE) -> 0 | T39: =VLOOKUP(H39,'Player Stats By Team'!C:AC,12,FALSE) -> 1 | U39: =VLOOKUP(H39,'Player Stats By Team'!C:AC,13,FALSE) -> 1 | V39: =VLOOKUP(H39,'Player Stats By Team'!C:AC,14,FALSE) -> 0 | W39: =VLOOKUP(H39,'Player Stats By Team'!C:AC,15,FALSE) -> 1 | X39: =VLOOKUP(H39,'Player Stats By Team'!C:AC,16,FALSE) -> 1 | Y39: =VLOOKUP(H39,'Player Stats By Team'!C:AC,17,FALSE) -> 0 | Z39: =VLOOKUP(H39,'Player Stats By Team'!C:AC,18,FALSE) -> 0 | AA39: =VLOOKUP(H39,'Player Stats By Team'!C:AC,19,FALSE) -> 1 | AB39: =VLOOKUP(H39,'Player Stats By Team'!C:AC,20,FALSE) -> 1 | AC39: =VLOOKUP(H39,'Player Stats By Team'!C:AC,21,FALSE) -> 1 | AD39: =VLOOKUP(H39,'Player Stats By Team'!C:AC,22,FALSE) -> 1 | AE39: =VLOOKUP(H39,'Player Stats By Team'!C:AC,23,FALSE) -> 0.76 | AF39: =VLOOKUP(H39,'Player Stats By Team'!C:AC,24,FALSE) -> 0.1 | AG39: =VLOOKUP(H39,'Player Stats By Team'!C:AC,25,FALSE) -> 0 | AH39: =VLOOKUP(H39,'Player Stats By Team'!C:AC,26,FALSE) -> 0
B40: Alan Quine | C40: Detroit Red Wings | D40: =VLOOKUP(B40,'Player Stats By Team'!C:AC,2,FALSE) -> C | G40: OHL | H40: Joseph Cramarossa | I40: Anaheim Ducks | J40: =VLOOKUP(H40,'Player Stats By Team'!C:AC,2,FALSE) -> C | K40: =VLOOKUP(H40,'Player Stats By Team'!C:AC,3,FALSE) -> 19 | L40: =VLOOKUP(H40,'Player Stats By Team'!C:AC,4,FALSE) -> 3 | M40: =VLOOKUP(H40,'Player Stats By Team'!C:AC,5,FALSE) -> 5 | N40: =VLOOKUP(H40,'Player Stats By Team'!C:AC,6,FALSE) -> 8 | O40: =VLOOKUP(H40,'Player Stats By Team'!C:AC,7,FALSE) -> -8 | P40: =VLOOKUP(H40,'Player Stats By Team'!C:AC,8,FALSE) -> 26 | Q40: =VLOOKUP(H40,'Player Stats By Team'!C:AC,9,FALSE) -> 2 | R40: =VLOOKUP(H40,'Player Stats By Team'!C:AC,10,FALSE) -> 1 | S40: =VLOOKUP(H40,'Player Stats By Team'!C:AC,11,FALSE) -> 0 | T40: =VLOOKUP(H40,'Player Stats By Team'!C:AC,12,FALSE) -> 0 | U40: =VLOOKUP(H40,'Player Stats By Team'!C:AC,13,FALSE) -> 0 | V40: =VLOOKUP(H40,'Player Stats By Team'!C:AC,14,FALSE) -> 3 | W40: =VLOOKUP(H40,'Player Stats By Team'!C:AC,15,FALSE) -> 0 | X40: =VLOOKUP(H40,'Player Stats By Team'!C:AC,16,FALSE) -> 0 | Y40: =VLOOKUP(H40,'Player Stats By Team'!C:AC,17,FALSE) -> 0 | Z40: =VLOOKUP(H40,'Player Stats By Team'!C:AC,18,FALSE) -> 0 | AA40: =VLOOKUP(H40,'Player Stats By Team'!C:AC,19,FALSE) -> 2 | AB40: =VLOOKUP(H40,'Player Stats By Team'!C:AC,20,FALSE) -> 3 | AC40: =VLOOKUP(H40,'Player Stats By Team'!C:AC,21,FALSE) -> 1 | AD40: =VLOOKUP(H40,'Player Stats By Team'!C:AC,22,FALSE) -> 0.667 | AE40: =VLOOKUP(H40,'Player Stats By Team'!C:AC,23,FALSE) -> 0.42 | AF40: =VLOOKUP(H40,'Player Stats By Team'!C:AC,24,FALSE) -> 1.37 | AG40: =VLOOKUP(H40,'Player Stats By Team'!C:AC,25,FALSE) -> 0 | AH40: =VLOOKUP(H40,'Player Stats By Team'!C:AC,26,FALSE) -> 0
B41: Josh Leivo | C41: Toronto Maple Leafs | D41: =VLOOKUP(B41,'Player Stats By Team'!C:AC,2,FALSE) ->  | G41: OHL | H41: Scott Harrington | I41: Pittsburgh Penguins | J41: =VLOOKUP(H41,'Player Stats By Team'!C:AC,2,FALSE) -> D | K41: =VLOOKUP(H41,'Player Stats By Team'!C:AC,3,FALSE) -> 20 | L41: =VLOOKUP(H41,'Player Stats By Team'!C:AC,4,FALSE) -> 1 | M41: =VLOOKUP(H41,'Player Stats By Team'!C:AC,5,FALSE) -> 4 | N41: =VLOOKUP(H41,'Player Stats By Team'!C:AC,6,FALSE) -> 5 | O41: =VLOOKUP(H41,'Player Stats By Team'!C:AC,7,FALSE) -> 6 | P41: =VLOOKUP(H41,'Player Stats By Team'!C:AC,8,FALSE) -> 10 | Q41: =VLOOKUP(H41,'Player Stats By Team'!C:AC,9,FALSE) -> 1 | R41: =VLOOKUP(H41,'Player Stats By Team'!C:AC,10,FALSE) -> 1 | S41: =VLOOKUP(H41,'Player Stats By Team'!C:AC,11,FALSE) -> 0 | T41: =VLOOKUP(H41,'Player Stats By Team'!C:AC,12,FALSE) -> 1 | U41: =VLOOKUP(H41,'Player Stats By Team'!C:AC,13,FALSE) -> 1 | V41: =VLOOKUP(H41,'Player Stats By Team'!C:AC,14,FALSE) -> 0 | W41: =VLOOKUP(H41,'Player Stats By Team'!C:AC,15,FALSE) -> 0 | X41: =VLOOKUP(H41,'Player Stats By Team'!C:AC,16,FALSE) -> 0 | Y41: =VLOOKUP(H41,'Player Stats By Team'!C:AC,17,FALSE) -> 0 | Z41: =VLOOKUP(H41,'Player Stats By Team'!C:AC,18,FALSE) -> 0 | AA41: =VLOOKUP(H41,'Player Stats By Team'!C:AC,19,FALSE) -> 0 | AB41: =VLOOKUP(H41,'Player Stats By Team'!C:AC,20,FALSE) -> 0 | AC41: =VLOOKUP(H41,'Player Stats By Team'!C:AC,21,FALSE) -> 0 | AD41: =VLOOKUP(H41,'Player Stats By Team'!C:AC,22,FALSE) -> 0 | AE41: =VLOOKUP(H41,'Player Stats By Team'!C:AC,23,FALSE) -> 0.25 | AF41: =VLOOKUP(H41,'Player Stats By Team'!C:AC,24,FALSE) -> 0.5 | AG41: =VLOOKUP(H41,'Player Stats By Team'!C:AC,25,FALSE) -> 0 | AH41: =VLOOKUP(H41,'Player Stats By Team'!C:AC,26,FALSE) -> 0
B42: Jonathan Racine | C42: Florida Panthers | D42: =VLOOKUP(B42,'Player Stats By Team'!C:AC,2,FALSE) -> D | G42: OHL | H42: Geoffrey Schemitsch | I42: Tampa Bay Lightning | J42: =VLOOKUP(H42,'Player Stats By Team'!C:AC,2,FALSE) -> D | K42: =VLOOKUP(H42,'Player Stats By Team'!C:AC,3,FALSE) -> 22 | L42: =VLOOKUP(H42,'Player Stats By Team'!C:AC,4,FALSE) -> 2 | M42: =VLOOKUP(H42,'Player Stats By Team'!C:AC,5,FALSE) -> 11 | N42: =VLOOKUP(H42,'Player Stats By Team'!C:AC,6,FALSE) -> 13 | O42: =VLOOKUP(H42,'Player Stats By Team'!C:AC,7,FALSE) -> 1 | P42: =VLOOKUP(H42,'Player Stats By Team'!C:AC,8,FALSE) -> 6 | Q42: =VLOOKUP(H42,'Player Stats By Team'!C:AC,9,FALSE) -> 0 | R42: =VLOOKUP(H42,'Player Stats By Team'!C:AC,10,FALSE) -> 5 | S42: =VLOOKUP(H42,'Player Stats By Team'!C:AC,11,FALSE) -> 0 | T42: =VLOOKUP(H42,'Player Stats By Team'!C:AC,12,FALSE) -> 0 | U42: =VLOOKUP(H42,'Player Stats By Team'!C:AC,13,FALSE) -> 1 | V42: =VLOOKUP(H42,'Player Stats By Team'!C:AC,14,FALSE) -> 0 | W42: =VLOOKUP(H42,'Player Stats By Team'!C:AC,15,FALSE) -> 0 | X42: =VLOOKUP(H42,'Player Stats By Team'!C:AC,16,FALSE) -> 0 | Y42: =VLOOKUP(H42,'Player Stats By Team'!C:AC,17,FALSE) -> 0 | Z42: =VLOOKUP(H42,'Player Stats By Team'!C:AC,18,FALSE) -> 0 | AA42: =VLOOKUP(H42,'Player Stats By Team'!C:AC,19,FALSE) -> 0 | AB42: =VLOOKUP(H42,'Player Stats By Team'!C:AC,20,FALSE) -> 0 | AC42: =VLOOKUP(H42,'Player Stats By Team'!C:AC,21,FALSE) -> 0 | AD42: =VLOOKUP(H42,'Player Stats By Team'!C:AC,22,FALSE) -> 0 | AE42: =VLOOKUP(H42,'Player Stats By Team'!C:AC,23,FALSE) -> 0.59 | AF42: =VLOOKUP(H42,'Player Stats By Team'!C:AC,24,FALSE) -> 0.27 | AG42: =VLOOKUP(H42,'Player Stats By Team'!C:AC,25,FALSE) -> 0 | AH42: =VLOOKUP(H42,'Player Stats By Team'!C:AC,26,FALSE) -> 0
B43: Jordan Binnington | C43: St Louis Blues | D43: =VLOOKUP(B43,'Player Stats By Team'!C:AC,2,FALSE) -> G | G43: OHL | H43: Ryan Murphy | I43: Carolina Hurricanes | J43: =VLOOKUP(H43,'Player Stats By Team'!C:AC,2,FALSE) -> D | K43: =VLOOKUP(H43,'Player Stats By Team'!C:AC,3,FALSE) -> 20 | L43: =VLOOKUP(H43,'Player Stats By Team'!C:AC,4,FALSE) -> 4 | M43: =VLOOKUP(H43,'Player Stats By Team'!C:AC,5,FALSE) -> 12 | N43: =VLOOKUP(H43,'Player Stats By Team'!C:AC,6,FALSE) -> 16 | O43: =VLOOKUP(H43,'Player Stats By Team'!C:AC,7,FALSE) -> 4 | P43: =VLOOKUP(H43,'Player Stats By Team'!C:AC,8,FALSE) -> 20 | Q43: =VLOOKUP(H43,'Player Stats By Team'!C:AC,9,FALSE) -> 3 | R43: =VLOOKUP(H43,'Player Stats By Team'!C:AC,10,FALSE) -> 5 | S43: =VLOOKUP(H43,'Player Stats By Team'!C:AC,11,FALSE) -> 0 | T43: =VLOOKUP(H43,'Player Stats By Team'!C:AC,12,FALSE) -> 0 | U43: =VLOOKUP(H43,'Player Stats By Team'!C:AC,13,FALSE) -> 2 | V43: =VLOOKUP(H43,'Player Stats By Team'!C:AC,14,FALSE) -> 0 | W43: =VLOOKUP(H43,'Player Stats By Team'!C:AC,15,FALSE) -> 2 | X43: =VLOOKUP(H43,'Player Stats By Team'!C:AC,16,FALSE) -> 1 | Y43: =VLOOKUP(H43,'Player Stats By Team'!C:AC,17,FALSE) -> 1 | Z43: =VLOOKUP(H43,'Player Stats By Team'!C:AC,18,FALSE) -> 1 | AA43: =VLOOKUP(H43,'Player Stats By Team'!C:AC,19,FALSE) -> 0 | AB43: =VLOOKUP(H43,'Player Stats By Team'!C:AC,20,FALSE) -> 2 | AC43: =VLOOKUP(H43,'Player Stats By Team'!C:AC,21,FALSE) -> 0 | AD43: =VLOOKUP(H43,'Player Stats By Team'!C:AC,22,FALSE) -> 0 | AE43: =VLOOKUP(H43,'Player Stats By Team'!C:AC,23,FALSE) -> 0.8 | AF43: =VLOOKUP(H43,'Player Stats By Team'!C:AC,24,FALSE) -> 1 | AG43: =VLOOKUP(H43,'Player Stats By Team'!C:AC,25,FALSE) -> 0 | AH43: =VLOOKUP(H43,'Player Stats By Team'!C:AC,26,FALSE) -> 0
B44: Mathieu Corbeil-Theriault | C44: Columbus Blue Jackets | D44: =VLOOKUP(B44,'Player Stats By Team'!C:AC,2,FALSE) ->  | G44: OHL | H44: Stephen Silas | I44: Colorado Avalanche | J44: =VLOOKUP(H44,'Player Stats By Team'!C:AC,2,FALSE) -> D | K44: =VLOOKUP(H44,'Player Stats By Team'!C:AC,3,FALSE) -> 19 | L44: =VLOOKUP(H44,'Player Stats By Team'!C:AC,4,FALSE) -> 1 | M44: =VLOOKUP(H44,'Player Stats By Team'!C:AC,5,FALSE) -> 6 | N44: =VLOOKUP(H44,'Player Stats By Team'!C:AC,6,FALSE) -> 7 | O44: =VLOOKUP(H44,'Player Stats By Team'!C:AC,7,FALSE) -> -10 | P44: =VLOOKUP(H44,'Player Stats By Team'!C:AC,8,FALSE) -> 15 | Q44: =VLOOKUP(H44,'Player Stats By Team'!C:AC,9,FALSE) -> 1 | R44: =VLOOKUP(H44,'Player Stats By Team'!C:AC,10,FALSE) -> 1 | S44: =VLOOKUP(H44,'Player Stats By Team'!C:AC,11,FALSE) -> 0 | T44: =VLOOKUP(H44,'Player Stats By Team'!C:AC,12,FALSE) -> 0 | U44: =VLOOKUP(H44,'Player Stats By Team'!C:AC,13,FALSE) -> 0 | V44: =VLOOKUP(H44,'Player Stats By Team'!C:AC,14,FALSE) -> 1 | W44: =VLOOKUP(H44,'Player Stats By Team'!C:AC,15,FALSE) -> 0 | X44: =VLOOKUP(H44,'Player Stats By Team'!C:AC,16,FALSE) -> 0 | Y44: =VLOOKUP(H44,'Player Stats By Team'!C:AC,17,FALSE) -> 0 | Z44: =VLOOKUP(H44,'Player Stats By Team'!C:AC,18,FALSE) -> 0 | AA44: =VLOOKUP(H44,'Player Stats By Team'!C:AC,19,FALSE) -> 0 | AB44: =VLOOKUP(H44,'Player Stats By Team'!C:AC,20,FALSE) -> 0 | AC44: =VLOOKUP(H44,'Player Stats By Team'!C:AC,21,FALSE) -> 0 | AD44: =VLOOKUP(H44,'Player Stats By Team'!C:AC,22,FALSE) -> 0 | AE44: =VLOOKUP(H44,'Player Stats By Team'!C:AC,23,FALSE) -> 0.37 | AF44: =VLOOKUP(H44,'Player Stats By Team'!C:AC,24,FALSE) -> 0.79 | AG44: =VLOOKUP(H44,'Player Stats By Team'!C:AC,25,FALSE) -> 0 | AH44: =VLOOKUP(H44,'Player Stats By Team'!C:AC,26,FALSE) -> 0
B45: Michael Chaput | C45: Philadelphia Flyers | D45: =VLOOKUP(B45,'Player Stats By Team'!C:AC,2,FALSE) -> C | G45: OHL | H45: Stuart Percy | I45: Toronto Maple Leafs | J45: =VLOOKUP(H45,'Player Stats By Team'!C:AC,2,FALSE) -> D | K45: =VLOOKUP(H45,'Player Stats By Team'!C:AC,3,FALSE) -> 19 | L45: =VLOOKUP(H45,'Player Stats By Team'!C:AC,4,FALSE) -> 5 | M45: =VLOOKUP(H45,'Player Stats By Team'!C:AC,5,FALSE) -> 6 | N45: =VLOOKUP(H45,'Player Stats By Team'!C:AC,6,FALSE) -> 11 | O45: =VLOOKUP(H45,'Player Stats By Team'!C:AC,7,FALSE) -> 3 | P45: =VLOOKUP(H45,'Player Stats By Team'!C:AC,8,FALSE) -> 2 | Q45: =VLOOKUP(H45,'Player Stats By Team'!C:AC,9,FALSE) -> 2 | R45: =VLOOKUP(H45,'Player Stats By Team'!C:AC,10,FALSE) -> 3 | S45: =VLOOKUP(H45,'Player Stats By Team'!C:AC,11,FALSE) -> 0 | T45: =VLOOKUP(H45,'Player Stats By Team'!C:AC,12,FALSE) -> 0 | U45: =VLOOKUP(H45,'Player Stats By Team'!C:AC,13,FALSE) -> 1 | V45: =VLOOKUP(H45,'Player Stats By Team'!C:AC,14,FALSE) -> 1 | W45: =VLOOKUP(H45,'Player Stats By Team'!C:AC,15,FALSE) -> 0 | X45: =VLOOKUP(H45,'Player Stats By Team'!C:AC,16,FALSE) -> 0 | Y45: =VLOOKUP(H45,'Player Stats By Team'!C:AC,17,FALSE) -> 0 | Z45: =VLOOKUP(H45,'Player Stats By Team'!C:AC,18,FALSE) -> 0 | AA45: =VLOOKUP(H45,'Player Stats By Team'!C:AC,19,FALSE) -> 1 | AB45: =VLOOKUP(H45,'Player Stats By Team'!C:AC,20,FALSE) -> 2 | AC45: =VLOOKUP(H45,'Player Stats By Team'!C:AC,21,FALSE) -> 0 | AD45: =VLOOKUP(H45,'Player Stats By Team'!C:AC,22,FALSE) -> 0.5 | AE45: =VLOOKUP(H45,'Player Stats By Team'!C:AC,23,FALSE) -> 0.58 | AF45: =VLOOKUP(H45,'Player Stats By Team'!C:AC,24,FALSE) -> 0.11 | AG45: =VLOOKUP(H45,'Player Stats By Team'!C:AC,25,FALSE) -> 0 | AH45: =VLOOKUP(H45,'Player Stats By Team'!C:AC,26,FALSE) -> 0
B46: Justin Sefton | C46: San Jose Sharks | D46: =VLOOKUP(B46,'Player Stats By Team'!C:AC,2,FALSE) -> D | G46: OHL | H46: Justin Sefton | I46: San Jose Sharks | J46: =VLOOKUP(H46,'Player Stats By Team'!C:AC,2,FALSE) -> D | K46: =VLOOKUP(H46,'Player Stats By Team'!C:AC,3,FALSE) -> 20 | L46: =VLOOKUP(H46,'Player Stats By Team'!C:AC,4,FALSE) -> 1 | M46: =VLOOKUP(H46,'Player Stats By Team'!C:AC,5,FALSE) -> 3 | N46: =VLOOKUP(H46,'Player Stats By Team'!C:AC,6,FALSE) -> 4 | O46: =VLOOKUP(H46,'Player Stats By Team'!C:AC,7,FALSE) -> 4 | P46: =VLOOKUP(H46,'Player Stats By Team'!C:AC,8,FALSE) -> 26 | Q46: =VLOOKUP(H46,'Player Stats By Team'!C:AC,9,FALSE) -> 0 | R46: =VLOOKUP(H46,'Player Stats By Team'!C:AC,10,FALSE) -> 2 | S46: =VLOOKUP(H46,'Player Stats By Team'!C:AC,11,FALSE) -> 0 | T46: =VLOOKUP(H46,'Player Stats By Team'!C:AC,12,FALSE) -> 0 | U46: =VLOOKUP(H46,'Player Stats By Team'!C:AC,13,FALSE) -> 0 | V46: =VLOOKUP(H46,'Player Stats By Team'!C:AC,14,FALSE) -> 0 | W46: =VLOOKUP(H46,'Player Stats By Team'!C:AC,15,FALSE) -> 0 | X46: =VLOOKUP(H46,'Player Stats By Team'!C:AC,16,FALSE) -> 0 | Y46: =VLOOKUP(H46,'Player Stats By Team'!C:AC,17,FALSE) -> 0 | Z46: =VLOOKUP(H46,'Player Stats By Team'!C:AC,18,FALSE) -> 0 | AA46: =VLOOKUP(H46,'Player Stats By Team'!C:AC,19,FALSE) -> 0 | AB46: =VLOOKUP(H46,'Player Stats By Team'!C:AC,20,FALSE) -> 0 | AC46: =VLOOKUP(H46,'Player Stats By Team'!C:AC,21,FALSE) -> 0 | AD46: =VLOOKUP(H46,'Player Stats By Team'!C:AC,22,FALSE) -> 0 | AE46: =VLOOKUP(H46,'Player Stats By Team'!C:AC,23,FALSE) -> 0.2 | AF46: =VLOOKUP(H46,'Player Stats By Team'!C:AC,24,FALSE) -> 1.3 | AG46: =VLOOKUP(H46,'Player Stats By Team'!C:AC,25,FALSE) -> 0 | AH46: =VLOOKUP(H46,'Player Stats By Team'!C:AC,26,FALSE) -> 0
B47: Alexandre Grenier | C47: Vancouver Canucks | D47: =VLOOKUP(B47,'Player Stats By Team'!C:AC,2,FALSE) -> RW | G47: OHL | H47: Jordan Binnington | I47: St Louis Blues | J47: =VLOOKUP(H47,'Player Stats By Team'!C:AC,2,FALSE) -> G | K47: =VLOOKUP(H47,'Player Stats By Team'!C:AC,3,FALSE) -> 16 | L47: =VLOOKUP(H47,'Player Stats By Team'!C:AC,4,FALSE) -> 0 | M47: =VLOOKUP(H47,'Player Stats By Team'!C:AC,5,FALSE) -> 0 | N47: =VLOOKUP(H47,'Player Stats By Team'!C:AC,6,FALSE) -> 0 | O47: =VLOOKUP(H47,'Player Stats By Team'!C:AC,7,FALSE) -> 0 | P47: =VLOOKUP(H47,'Player Stats By Team'!C:AC,8,FALSE) -> 2 | Q47: =VLOOKUP(H47,'Player Stats By Team'!C:AC,9,FALSE) -> 0 | R47: =VLOOKUP(H47,'Player Stats By Team'!C:AC,10,FALSE) -> 0 | S47: =VLOOKUP(H47,'Player Stats By Team'!C:AC,11,FALSE) -> 0 | T47: =VLOOKUP(H47,'Player Stats By Team'!C:AC,12,FALSE) -> 0 | U47: =VLOOKUP(H47,'Player Stats By Team'!C:AC,13,FALSE) -> 0 | V47: =VLOOKUP(H47,'Player Stats By Team'!C:AC,14,FALSE) -> 0 | W47: =VLOOKUP(H47,'Player Stats By Team'!C:AC,15,FALSE) -> 0 | X47: =VLOOKUP(H47,'Player Stats By Team'!C:AC,16,FALSE) -> 0 | Y47: =VLOOKUP(H47,'Player Stats By Team'!C:AC,17,FALSE) -> 0 | Z47: =VLOOKUP(H47,'Player Stats By Team'!C:AC,18,FALSE) -> 0 | AA47: =VLOOKUP(H47,'Player Stats By Team'!C:AC,19,FALSE) -> 0 | AB47: =VLOOKUP(H47,'Player Stats By Team'!C:AC,20,FALSE) -> 0 | AC47: =VLOOKUP(H47,'Player Stats By Team'!C:AC,21,FALSE) -> 0 | AD47: =VLOOKUP(H47,'Player Stats By Team'!C:AC,22,FALSE) -> 0 | AE47: =VLOOKUP(H47,'Player Stats By Team'!C:AC,23,FALSE) -> 0 | AF47: =VLOOKUP(H47,'Player Stats By Team'!C:AC,24,FALSE) -> 0.13 | AG47: =VLOOKUP(H47,'Player Stats By Team'!C:AC,25,FALSE) -> 0 | AH47: =VLOOKUP(H47,'Player Stats By Team'!C:AC,26,FALSE) -> 0
B48: Ryan Martindale | C48: Edmonton Oilers | D48: =VLOOKUP(B48,'Player Stats By Team'!C:AC,2,FALSE) -> C | G48: OHL | H48: Garret Sparks | I48: Toronto Maple Leafs | J48: =VLOOKUP(H48,'Player Stats By Team'!C:AC,2,FALSE) -> G | K48: =VLOOKUP(H48,'Player Stats By Team'!C:AC,3,FALSE) -> 21 | L48: =VLOOKUP(H48,'Player Stats By Team'!C:AC,4,FALSE) -> 0 | M48: =VLOOKUP(H48,'Player Stats By Team'!C:AC,5,FALSE) -> 0 | N48: =VLOOKUP(H48,'Player Stats By Team'!C:AC,6,FALSE) -> 0 | O48: =VLOOKUP(H48,'Player Stats By Team'!C:AC,7,FALSE) -> 0 | P48: =VLOOKUP(H48,'Player Stats By Team'!C:AC,8,FALSE) -> 2 | Q48: =VLOOKUP(H48,'Player Stats By Team'!C:AC,9,FALSE) -> 0 | R48: =VLOOKUP(H48,'Player Stats By Team'!C:AC,10,FALSE) -> 0 | S48: =VLOOKUP(H48,'Player Stats By Team'!C:AC,11,FALSE) -> 0 | T48: =VLOOKUP(H48,'Player Stats By Team'!C:AC,12,FALSE) -> 0 | U48: =VLOOKUP(H48,'Player Stats By Team'!C:AC,13,FALSE) -> 0 | V48: =VLOOKUP(H48,'Player Stats By Team'!C:AC,14,FALSE) -> 0 | W48: =VLOOKUP(H48,'Player Stats By Team'!C:AC,15,FALSE) -> 0 | X48: =VLOOKUP(H48,'Player Stats By Team'!C:AC,16,FALSE) -> 0 | Y48: =VLOOKUP(H48,'Player Stats By Team'!C:AC,17,FALSE) -> 0 | Z48: =VLOOKUP(H48,'Player Stats By Team'!C:AC,18,FALSE) -> 0 | AA48: =VLOOKUP(H48,'Player Stats By Team'!C:AC,19,FALSE) -> 0 | AB48: =VLOOKUP(H48,'Player Stats By Team'!C:AC,20,FALSE) -> 0 | AC48: =VLOOKUP(H48,'Player Stats By Team'!C:AC,21,FALSE) -> 0 | AD48: =VLOOKUP(H48,'Player Stats By Team'!C:AC,22,FALSE) -> 0 | AE48: =VLOOKUP(H48,'Player Stats By Team'!C:AC,23,FALSE) -> 0 | AF48: =VLOOKUP(H48,'Player Stats By Team'!C:AC,24,FALSE) -> 0.1 | AG48: =VLOOKUP(H48,'Player Stats By Team'!C:AC,25,FALSE) -> 0 | AH48: =VLOOKUP(H48,'Player Stats By Team'!C:AC,26,FALSE) -> 0
B49: Brett Bulmer | C49: Minnesota Wild | D49: =VLOOKUP(B49,'Player Stats By Team'!C:AC,2,FALSE) -> LW | G49: OHL | H49: Joshua Leivo | I49: Toronto Maple Leafs | J49: =VLOOKUP(H49,'Player Stats By Team'!C:AC,2,FALSE) -> LW | K49: =VLOOKUP(H49,'Player Stats By Team'!C:AC,3,FALSE) -> 21 | L49: =VLOOKUP(H49,'Player Stats By Team'!C:AC,4,FALSE) -> 11 | M49: =VLOOKUP(H49,'Player Stats By Team'!C:AC,5,FALSE) -> 11 | N49: =VLOOKUP(H49,'Player Stats By Team'!C:AC,6,FALSE) -> 22 | O49: =VLOOKUP(H49,'Player Stats By Team'!C:AC,7,FALSE) -> 5 | P49: =VLOOKUP(H49,'Player Stats By Team'!C:AC,8,FALSE) -> 18 | Q49: =VLOOKUP(H49,'Player Stats By Team'!C:AC,9,FALSE) -> 3 | R49: =VLOOKUP(H49,'Player Stats By Team'!C:AC,10,FALSE) -> 1 | S49: =VLOOKUP(H49,'Player Stats By Team'!C:AC,11,FALSE) -> 0 | T49: =VLOOKUP(H49,'Player Stats By Team'!C:AC,12,FALSE) -> 0 | U49: =VLOOKUP(H49,'Player Stats By Team'!C:AC,13,FALSE) -> 2 | V49: =VLOOKUP(H49,'Player Stats By Team'!C:AC,14,FALSE) -> 2 | W49: =VLOOKUP(H49,'Player Stats By Team'!C:AC,15,FALSE) -> 0 | X49: =VLOOKUP(H49,'Player Stats By Team'!C:AC,16,FALSE) -> 0 | Y49: =VLOOKUP(H49,'Player Stats By Team'!C:AC,17,FALSE) -> 0 | Z49: =VLOOKUP(H49,'Player Stats By Team'!C:AC,18,FALSE) -> 0 | AA49: =VLOOKUP(H49,'Player Stats By Team'!C:AC,19,FALSE) -> 1 | AB49: =VLOOKUP(H49,'Player Stats By Team'!C:AC,20,FALSE) -> 1 | AC49: =VLOOKUP(H49,'Player Stats By Team'!C:AC,21,FALSE) -> 0 | AD49: =VLOOKUP(H49,'Player Stats By Team'!C:AC,22,FALSE) -> 1 | AE49: =VLOOKUP(H49,'Player Stats By Team'!C:AC,23,FALSE) -> 1.05 | AF49: =VLOOKUP(H49,'Player Stats By Team'!C:AC,24,FALSE) -> 0.86 | AG49: =VLOOKUP(H49,'Player Stats By Team'!C:AC,25,FALSE) -> 0 | AH49: =VLOOKUP(H49,'Player Stats By Team'!C:AC,26,FALSE) -> 0
C50: : | D50: =VLOOKUP(B50,'Player Stats By Team'!C:AC,2,FALSE) ->  | F50: Rnd Four15 | G50: OHL | H50: David Broll | I50: Toronto Maple Leafs | J50: =VLOOKUP(H50,'Player Stats By Team'!C:AC,2,FALSE) -> LW | K50: =VLOOKUP(H50,'Player Stats By Team'!C:AC,3,FALSE) -> 21 | L50: =VLOOKUP(H50,'Player Stats By Team'!C:AC,4,FALSE) -> 6 | M50: =VLOOKUP(H50,'Player Stats By Team'!C:AC,5,FALSE) -> 8 | N50: =VLOOKUP(H50,'Player Stats By Team'!C:AC,6,FALSE) -> 14 | O50: =VLOOKUP(H50,'Player Stats By Team'!C:AC,7,FALSE) -> 0 | P50: =VLOOKUP(H50,'Player Stats By Team'!C:AC,8,FALSE) -> 25 | Q50: =VLOOKUP(H50,'Player Stats By Team'!C:AC,9,FALSE) -> 3 | R50: =VLOOKUP(H50,'Player Stats By Team'!C:AC,10,FALSE) -> 4 | S50: =VLOOKUP(H50,'Player Stats By Team'!C:AC,11,FALSE) -> 0 | T50: =VLOOKUP(H50,'Player Stats By Team'!C:AC,12,FALSE) -> 0 | U50: =VLOOKUP(H50,'Player Stats By Team'!C:AC,13,FALSE) -> 0 | V50: =VLOOKUP(H50,'Player Stats By Team'!C:AC,14,FALSE) -> 1 | W50: =VLOOKUP(H50,'Player Stats By Team'!C:AC,15,FALSE) -> 0 | X50: =VLOOKUP(H50,'Player Stats By Team'!C:AC,16,FALSE) -> 0 | Y50: =VLOOKUP(H50,'Player Stats By Team'!C:AC,17,FALSE) -> 1 | Z50: =VLOOKUP(H50,'Player Stats By Team'!C:AC,18,FALSE) -> 0 | AA50: =VLOOKUP(H50,'Player Stats By Team'!C:AC,19,FALSE) -> 0 | AB50: =VLOOKUP(H50,'Player Stats By Team'!C:AC,20,FALSE) -> 0 | AC50: =VLOOKUP(H50,'Player Stats By Team'!C:AC,21,FALSE) -> 0 | AD50: =VLOOKUP(H50,'Player Stats By Team'!C:AC,22,FALSE) -> 0 | AE50: =VLOOKUP(H50,'Player Stats By Team'!C:AC,23,FALSE) -> 0.67 | AF50: =VLOOKUP(H50,'Player Stats By Team'!C:AC,24,FALSE) -> 1.19 | AG50: =VLOOKUP(H50,'Player Stats By Team'!C:AC,25,FALSE) -> 0 | AH50: =VLOOKUP(H50,'Player Stats By Team'!C:AC,26,FALSE) -> 0
B51: Jerome Gauthier-Leduc | C51: Buffalo Sabres | D51: =VLOOKUP(B51,'Player Stats By Team'!C:AC,2,FALSE) ->  | G51: OHL | H51: Colin Suellentrop | I51: Philadelphia Flyers | J51: =VLOOKUP(H51,'Player Stats By Team'!C:AC,2,FALSE) -> D | K51: =VLOOKUP(H51,'Player Stats By Team'!C:AC,3,FALSE) -> 22 | L51: =VLOOKUP(H51,'Player Stats By Team'!C:AC,4,FALSE) -> 3 | M51: =VLOOKUP(H51,'Player Stats By Team'!C:AC,5,FALSE) -> 9 | N51: =VLOOKUP(H51,'Player Stats By Team'!C:AC,6,FALSE) -> 12 | O51: =VLOOKUP(H51,'Player Stats By Team'!C:AC,7,FALSE) -> 0 | P51: =VLOOKUP(H51,'Player Stats By Team'!C:AC,8,FALSE) -> 16 | Q51: =VLOOKUP(H51,'Player Stats By Team'!C:AC,9,FALSE) -> 3 | R51: =VLOOKUP(H51,'Player Stats By Team'!C:AC,10,FALSE) -> 6 | S51: =VLOOKUP(H51,'Player Stats By Team'!C:AC,11,FALSE) -> 0 | T51: =VLOOKUP(H51,'Player Stats By Team'!C:AC,12,FALSE) -> 0 | U51: =VLOOKUP(H51,'Player Stats By Team'!C:AC,13,FALSE) -> 0 | V51: =VLOOKUP(H51,'Player Stats By Team'!C:AC,14,FALSE) -> 0 | W51: =VLOOKUP(H51,'Player Stats By Team'!C:AC,15,FALSE) -> 0 | X51: =VLOOKUP(H51,'Player Stats By Team'!C:AC,16,FALSE) -> 0 | Y51: =VLOOKUP(H51,'Player Stats By Team'!C:AC,17,FALSE) -> 0 | Z51: =VLOOKUP(H51,'Player Stats By Team'!C:AC,18,FALSE) -> 0 | AA51: =VLOOKUP(H51,'Player Stats By Team'!C:AC,19,FALSE) -> 0 | AB51: =VLOOKUP(H51,'Player Stats By Team'!C:AC,20,FALSE) -> 0 | AC51: =VLOOKUP(H51,'Player Stats By Team'!C:AC,21,FALSE) -> 0 | AD51: =VLOOKUP(H51,'Player Stats By Team'!C:AC,22,FALSE) -> 0 | AE51: =VLOOKUP(H51,'Player Stats By Team'!C:AC,23,FALSE) -> 0.55 | AF51: =VLOOKUP(H51,'Player Stats By Team'!C:AC,24,FALSE) -> 0.73 | AG51: =VLOOKUP(H51,'Player Stats By Team'!C:AC,25,FALSE) -> 0 | AH51: =VLOOKUP(H51,'Player Stats By Team'!C:AC,26,FALSE) -> 0
G52: OHL | H52: Frank Corrado | I52: Vancouver Canucks | J52: =VLOOKUP(H52,'Player Stats By Team'!C:AC,2,FALSE) -> D | K52: =VLOOKUP(H52,'Player Stats By Team'!C:AC,3,FALSE) -> 21 | L52: =VLOOKUP(H52,'Player Stats By Team'!C:AC,4,FALSE) -> 1 | M52: =VLOOKUP(H52,'Player Stats By Team'!C:AC,5,FALSE) -> 16 | N52: =VLOOKUP(H52,'Player Stats By Team'!C:AC,6,FALSE) -> 17 | O52: =VLOOKUP(H52,'Player Stats By Team'!C:AC,7,FALSE) -> -2 | P52: =VLOOKUP(H52,'Player Stats By Team'!C:AC,8,FALSE) -> 22 | Q52: =VLOOKUP(H52,'Player Stats By Team'!C:AC,9,FALSE) -> 0 | R52: =VLOOKUP(H52,'Player Stats By Team'!C:AC,10,FALSE) -> 10 | S52: =VLOOKUP(H52,'Player Stats By Team'!C:AC,11,FALSE) -> 0 | T52: =VLOOKUP(H52,'Player Stats By Team'!C:AC,12,FALSE) -> 0 | U52: =VLOOKUP(H52,'Player Stats By Team'!C:AC,13,FALSE) -> 0 | V52: =VLOOKUP(H52,'Player Stats By Team'!C:AC,14,FALSE) -> 0 | W52: =VLOOKUP(H52,'Player Stats By Team'!C:AC,15,FALSE) -> 0 | X52: =VLOOKUP(H52,'Player Stats By Team'!C:AC,16,FALSE) -> 0 | Y52: =VLOOKUP(H52,'Player Stats By Team'!C:AC,17,FALSE) -> 0 | Z52: =VLOOKUP(H52,'Player Stats By Team'!C:AC,18,FALSE) -> 0 | AA52: =VLOOKUP(H52,'Player Stats By Team'!C:AC,19,FALSE) -> 0 | AB52: =VLOOKUP(H52,'Player Stats By Team'!C:AC,20,FALSE) -> 1 | AC52: =VLOOKUP(H52,'Player Stats By Team'!C:AC,21,FALSE) -> 0 | AD52: =VLOOKUP(H52,'Player Stats By Team'!C:AC,22,FALSE) -> 0 | AE52: =VLOOKUP(H52,'Player Stats By Team'!C:AC,23,FALSE) -> 0.81 | AF52: =VLOOKUP(H52,'Player Stats By Team'!C:AC,24,FALSE) -> 1.05 | AG52: =VLOOKUP(H52,'Player Stats By Team'!C:AC,25,FALSE) -> 0 | AH52: =VLOOKUP(H52,'Player Stats By Team'!C:AC,26,FALSE) -> 0
G53: OHL | H53: Nail Yakupov | I53: Edmonton Oilers | J53: =VLOOKUP(H53,'Player Stats By Team'!C:AC,2,FALSE) ->  | K53: =VLOOKUP(H53,'Player Stats By Team'!C:AC,3,FALSE) ->  | L53: =VLOOKUP(H53,'Player Stats By Team'!C:AC,4,FALSE) ->  | M53: =VLOOKUP(H53,'Player Stats By Team'!C:AC,5,FALSE) ->  | N53: =VLOOKUP(H53,'Player Stats By Team'!C:AC,6,FALSE) ->  | O53: =VLOOKUP(H53,'Player Stats By Team'!C:AC,7,FALSE) ->  | P53: =VLOOKUP(H53,'Player Stats By Team'!C:AC,8,FALSE) ->  | Q53: =VLOOKUP(H53,'Player Stats By Team'!C:AC,9,FALSE) ->  | R53: =VLOOKUP(H53,'Player Stats By Team'!C:AC,10,FALSE) ->  | S53: =VLOOKUP(H53,'Player Stats By Team'!C:AC,11,FALSE) ->  | T53: =VLOOKUP(H53,'Player Stats By Team'!C:AC,12,FALSE) ->  | U53: =VLOOKUP(H53,'Player Stats By Team'!C:AC,13,FALSE) ->  | V53: =VLOOKUP(H53,'Player Stats By Team'!C:AC,14,FALSE) ->  | W53: =VLOOKUP(H53,'Player Stats By Team'!C:AC,15,FALSE) ->  | X53: =VLOOKUP(H53,'Player Stats By Team'!C:AC,16,FALSE) ->  | Y53: =VLOOKUP(H53,'Player Stats By Team'!C:AC,17,FALSE) ->  | Z53: =VLOOKUP(H53,'Player Stats By Team'!C:AC,18,FALSE) ->  | AA53: =VLOOKUP(H53,'Player Stats By Team'!C:AC,19,FALSE) ->  | AB53: =VLOOKUP(H53,'Player Stats By Team'!C:AC,20,FALSE) ->  | AC53: =VLOOKUP(H53,'Player Stats By Team'!C:AC,21,FALSE) ->  | AD53: =VLOOKUP(H53,'Player Stats By Team'!C:AC,22,FALSE) ->  | AE53: =VLOOKUP(H53,'Player Stats By Team'!C:AC,23,FALSE) ->  | AF53: =VLOOKUP(H53,'Player Stats By Team'!C:AC,24,FALSE) ->  | AG53: =VLOOKUP(H53,'Player Stats By Team'!C:AC,25,FALSE) ->  | AH53: =VLOOKUP(H53,'Player Stats By Team'!C:AC,26,FALSE) -> 
G54: OHL | H54: Alex Galchenyuk | I54: Montreal Canadiens | J54: =VLOOKUP(H54,'Player Stats By Team'!C:AC,2,FALSE) -> C | K54: =VLOOKUP(H54,'Player Stats By Team'!C:AC,3,FALSE) -> 20 | L54: =VLOOKUP(H54,'Player Stats By Team'!C:AC,4,FALSE) -> 13 | M54: =VLOOKUP(H54,'Player Stats By Team'!C:AC,5,FALSE) -> 19 | N54: =VLOOKUP(H54,'Player Stats By Team'!C:AC,6,FALSE) -> 32 | O54: =VLOOKUP(H54,'Player Stats By Team'!C:AC,7,FALSE) -> 6 | P54: =VLOOKUP(H54,'Player Stats By Team'!C:AC,8,FALSE) -> 16 | Q54: =VLOOKUP(H54,'Player Stats By Team'!C:AC,9,FALSE) -> 2 | R54: =VLOOKUP(H54,'Player Stats By Team'!C:AC,10,FALSE) -> 9 | S54: =VLOOKUP(H54,'Player Stats By Team'!C:AC,11,FALSE) -> 0 | T54: =VLOOKUP(H54,'Player Stats By Team'!C:AC,12,FALSE) -> 0 | U54: =VLOOKUP(H54,'Player Stats By Team'!C:AC,13,FALSE) -> 2 | V54: =VLOOKUP(H54,'Player Stats By Team'!C:AC,14,FALSE) -> 1 | W54: =VLOOKUP(H54,'Player Stats By Team'!C:AC,15,FALSE) -> 2 | X54: =VLOOKUP(H54,'Player Stats By Team'!C:AC,16,FALSE) -> 0 | Y54: =VLOOKUP(H54,'Player Stats By Team'!C:AC,17,FALSE) -> 1 | Z54: =VLOOKUP(H54,'Player Stats By Team'!C:AC,18,FALSE) -> 1 | AA54: =VLOOKUP(H54,'Player Stats By Team'!C:AC,19,FALSE) -> 1 | AB54: =VLOOKUP(H54,'Player Stats By Team'!C:AC,20,FALSE) -> 2 | AC54: =VLOOKUP(H54,'Player Stats By Team'!C:AC,21,FALSE) -> 0 | AD54: =VLOOKUP(H54,'Player Stats By Team'!C:AC,22,FALSE) -> 0.5 | AE54: =VLOOKUP(H54,'Player Stats By Team'!C:AC,23,FALSE) -> 1.6 | AF54: =VLOOKUP(H54,'Player Stats By Team'!C:AC,24,FALSE) -> 0.8 | AG54: =VLOOKUP(H54,'Player Stats By Team'!C:AC,25,FALSE) -> 0 | AH54: =VLOOKUP(H54,'Player Stats By Team'!C:AC,26,FALSE) -> 0
G55: OHL | H55: Slater Koekkoek | I55: Tampa Bay Lightning | J55: =VLOOKUP(H55,'Player Stats By Team'!C:AC,2,FALSE) -> D | K55: =VLOOKUP(H55,'Player Stats By Team'!C:AC,3,FALSE) -> 21 | L55: =VLOOKUP(H55,'Player Stats By Team'!C:AC,4,FALSE) -> 2 | M55: =VLOOKUP(H55,'Player Stats By Team'!C:AC,5,FALSE) -> 14 | N55: =VLOOKUP(H55,'Player Stats By Team'!C:AC,6,FALSE) -> 16 | O55: =VLOOKUP(H55,'Player Stats By Team'!C:AC,7,FALSE) -> -16 | P55: =VLOOKUP(H55,'Player Stats By Team'!C:AC,8,FALSE) -> 18 | Q55: =VLOOKUP(H55,'Player Stats By Team'!C:AC,9,FALSE) -> 1 | R55: =VLOOKUP(H55,'Player Stats By Team'!C:AC,10,FALSE) -> 4 | S55: =VLOOKUP(H55,'Player Stats By Team'!C:AC,11,FALSE) -> 0 | T55: =VLOOKUP(H55,'Player Stats By Team'!C:AC,12,FALSE) -> 0 | U55: =VLOOKUP(H55,'Player Stats By Team'!C:AC,13,FALSE) -> 1 | V55: =VLOOKUP(H55,'Player Stats By Team'!C:AC,14,FALSE) -> 0 | W55: =VLOOKUP(H55,'Player Stats By Team'!C:AC,15,FALSE) -> 0 | X55: =VLOOKUP(H55,'Player Stats By Team'!C:AC,16,FALSE) -> 0 | Y55: =VLOOKUP(H55,'Player Stats By Team'!C:AC,17,FALSE) -> 0 | Z55: =VLOOKUP(H55,'Player Stats By Team'!C:AC,18,FALSE) -> 0 | AA55: =VLOOKUP(H55,'Player Stats By Team'!C:AC,19,FALSE) -> 0 | AB55: =VLOOKUP(H55,'Player Stats By Team'!C:AC,20,FALSE) -> 0 | AC55: =VLOOKUP(H55,'Player Stats By Team'!C:AC,21,FALSE) -> 0 | AD55: =VLOOKUP(H55,'Player Stats By Team'!C:AC,22,FALSE) -> 0 | AE55: =VLOOKUP(H55,'Player Stats By Team'!C:AC,23,FALSE) -> 0.76 | AF55: =VLOOKUP(H55,'Player Stats By Team'!C:AC,24,FALSE) -> 0.86 | AG55: =VLOOKUP(H55,'Player Stats By Team'!C:AC,25,FALSE) -> 0 | AH55: =VLOOKUP(H55,'Player Stats By Team'!C:AC,26,FALSE) -> 0
G56: OHL | H56: Radek Faksa | I56: Dallas Stars | J56: =VLOOKUP(H56,'Player Stats By Team'!C:AC,2,FALSE) -> C | K56: =VLOOKUP(H56,'Player Stats By Team'!C:AC,3,FALSE) -> 19 | L56: =VLOOKUP(H56,'Player Stats By Team'!C:AC,4,FALSE) -> 6 | M56: =VLOOKUP(H56,'Player Stats By Team'!C:AC,5,FALSE) -> 8 | N56: =VLOOKUP(H56,'Player Stats By Team'!C:AC,6,FALSE) -> 14 | O56: =VLOOKUP(H56,'Player Stats By Team'!C:AC,7,FALSE) -> -1 | P56: =VLOOKUP(H56,'Player Stats By Team'!C:AC,8,FALSE) -> 14 | Q56: =VLOOKUP(H56,'Player Stats By Team'!C:AC,9,FALSE) -> 4 | R56: =VLOOKUP(H56,'Player Stats By Team'!C:AC,10,FALSE) -> 3 | S56: =VLOOKUP(H56,'Player Stats By Team'!C:AC,11,FALSE) -> 0 | T56: =VLOOKUP(H56,'Player Stats By Team'!C:AC,12,FALSE) -> 0 | U56: =VLOOKUP(H56,'Player Stats By Team'!C:AC,13,FALSE) -> 4 | V56: =VLOOKUP(H56,'Player Stats By Team'!C:AC,14,FALSE) -> 1 | W56: =VLOOKUP(H56,'Player Stats By Team'!C:AC,15,FALSE) -> 0 | X56: =VLOOKUP(H56,'Player Stats By Team'!C:AC,16,FALSE) -> 0 | Y56: =VLOOKUP(H56,'Player Stats By Team'!C:AC,17,FALSE) -> 1 | Z56: =VLOOKUP(H56,'Player Stats By Team'!C:AC,18,FALSE) -> 1 | AA56: =VLOOKUP(H56,'Player Stats By Team'!C:AC,19,FALSE) -> 1 | AB56: =VLOOKUP(H56,'Player Stats By Team'!C:AC,20,FALSE) -> 3 | AC56: =VLOOKUP(H56,'Player Stats By Team'!C:AC,21,FALSE) -> 1 | AD56: =VLOOKUP(H56,'Player Stats By Team'!C:AC,22,FALSE) -> 0.333 | AE56: =VLOOKUP(H56,'Player Stats By Team'!C:AC,23,FALSE) -> 0.74 | AF56: =VLOOKUP(H56,'Player Stats By Team'!C:AC,24,FALSE) -> 0.74 | AG56: =VLOOKUP(H56,'Player Stats By Team'!C:AC,25,FALSE) -> 0 | AH56: =VLOOKUP(H56,'Player Stats By Team'!C:AC,26,FALSE) -> 0
G57: OHL | H57: Cody Ceci | I57: Ottawa Senators | J57: =VLOOKUP(H57,'Player Stats By Team'!C:AC,2,FALSE) -> D | K57: =VLOOKUP(H57,'Player Stats By Team'!C:AC,3,FALSE) -> 19 | L57: =VLOOKUP(H57,'Player Stats By Team'!C:AC,4,FALSE) -> 5 | M57: =VLOOKUP(H57,'Player Stats By Team'!C:AC,5,FALSE) -> 14 | N57: =VLOOKUP(H57,'Player Stats By Team'!C:AC,6,FALSE) -> 19 | O57: =VLOOKUP(H57,'Player Stats By Team'!C:AC,7,FALSE) -> -3 | P57: =VLOOKUP(H57,'Player Stats By Team'!C:AC,8,FALSE) -> 6 | Q57: =VLOOKUP(H57,'Player Stats By Team'!C:AC,9,FALSE) -> 4 | R57: =VLOOKUP(H57,'Player Stats By Team'!C:AC,10,FALSE) -> 10 | S57: =VLOOKUP(H57,'Player Stats By Team'!C:AC,11,FALSE) -> 0 | T57: =VLOOKUP(H57,'Player Stats By Team'!C:AC,12,FALSE) -> 0 | U57: =VLOOKUP(H57,'Player Stats By Team'!C:AC,13,FALSE) -> 0 | V57: =VLOOKUP(H57,'Player Stats By Team'!C:AC,14,FALSE) -> 0 | W57: =VLOOKUP(H57,'Player Stats By Team'!C:AC,15,FALSE) -> 0 | X57: =VLOOKUP(H57,'Player Stats By Team'!C:AC,16,FALSE) -> 0 | Y57: =VLOOKUP(H57,'Player Stats By Team'!C:AC,17,FALSE) -> 0 | Z57: =VLOOKUP(H57,'Player Stats By Team'!C:AC,18,FALSE) -> 0 | AA57: =VLOOKUP(H57,'Player Stats By Team'!C:AC,19,FALSE) -> 0 | AB57: =VLOOKUP(H57,'Player Stats By Team'!C:AC,20,FALSE) -> 0 | AC57: =VLOOKUP(H57,'Player Stats By Team'!C:AC,21,FALSE) -> 0 | AD57: =VLOOKUP(H57,'Player Stats By Team'!C:AC,22,FALSE) -> 0 | AE57: =VLOOKUP(H57,'Player Stats By Team'!C:AC,23,FALSE) -> 1 | AF57: =VLOOKUP(H57,'Player Stats By Team'!C:AC,24,FALSE) -> 0.32 | AG57: =VLOOKUP(H57,'Player Stats By Team'!C:AC,25,FALSE) -> 0 | AH57: =VLOOKUP(H57,'Player Stats By Team'!C:AC,26,FALSE) -> 0
G58: OHL | H58: Tom Wilson | I58: Washington Capitals | J58: =VLOOKUP(H58,'Player Stats By Team'!C:AC,2,FALSE) -> RW | K58: =VLOOKUP(H58,'Player Stats By Team'!C:AC,3,FALSE) -> 10 | L58: =VLOOKUP(H58,'Player Stats By Team'!C:AC,4,FALSE) -> 2 | M58: =VLOOKUP(H58,'Player Stats By Team'!C:AC,5,FALSE) -> 9 | N58: =VLOOKUP(H58,'Player Stats By Team'!C:AC,6,FALSE) -> 11 | O58: =VLOOKUP(H58,'Player Stats By Team'!C:AC,7,FALSE) -> 3 | P58: =VLOOKUP(H58,'Player Stats By Team'!C:AC,8,FALSE) -> 33 | Q58: =VLOOKUP(H58,'Player Stats By Team'!C:AC,9,FALSE) -> 1 | R58: =VLOOKUP(H58,'Player Stats By Team'!C:AC,10,FALSE) -> 2 | S58: =VLOOKUP(H58,'Player Stats By Team'!C:AC,11,FALSE) -> 0 | T58: =VLOOKUP(H58,'Player Stats By Team'!C:AC,12,FALSE) -> 0 | U58: =VLOOKUP(H58,'Player Stats By Team'!C:AC,13,FALSE) -> 1 | V58: =VLOOKUP(H58,'Player Stats By Team'!C:AC,14,FALSE) -> 0 | W58: =VLOOKUP(H58,'Player Stats By Team'!C:AC,15,FALSE) -> 1 | X58: =VLOOKUP(H58,'Player Stats By Team'!C:AC,16,FALSE) -> 0 | Y58: =VLOOKUP(H58,'Player Stats By Team'!C:AC,17,FALSE) -> 1 | Z58: =VLOOKUP(H58,'Player Stats By Team'!C:AC,18,FALSE) -> 0 | AA58: =VLOOKUP(H58,'Player Stats By Team'!C:AC,19,FALSE) -> 0 | AB58: =VLOOKUP(H58,'Player Stats By Team'!C:AC,20,FALSE) -> 0 | AC58: =VLOOKUP(H58,'Player Stats By Team'!C:AC,21,FALSE) -> 0 | AD58: =VLOOKUP(H58,'Player Stats By Team'!C:AC,22,FALSE) -> 0 | AE58: =VLOOKUP(H58,'Player Stats By Team'!C:AC,23,FALSE) -> 1.1 | AF58: =VLOOKUP(H58,'Player Stats By Team'!C:AC,24,FALSE) -> 3.3 | AG58: =VLOOKUP(H58,'Player Stats By Team'!C:AC,25,FALSE) -> 0 | AH58: =VLOOKUP(H58,'Player Stats By Team'!C:AC,26,FALSE) -> 0
G59: OHL | H59: Scott Laughton | I59: Philadelphia Flyers | J59: =VLOOKUP(H59,'Player Stats By Team'!C:AC,2,FALSE) -> C | K59: =VLOOKUP(H59,'Player Stats By Team'!C:AC,3,FALSE) -> 14 | L59: =VLOOKUP(H59,'Player Stats By Team'!C:AC,4,FALSE) -> 5 | M59: =VLOOKUP(H59,'Player Stats By Team'!C:AC,5,FALSE) -> 8 | N59: =VLOOKUP(H59,'Player Stats By Team'!C:AC,6,FALSE) -> 13 | O59: =VLOOKUP(H59,'Player Stats By Team'!C:AC,7,FALSE) -> 1 | P59: =VLOOKUP(H59,'Player Stats By Team'!C:AC,8,FALSE) -> 28 | Q59: =VLOOKUP(H59,'Player Stats By Team'!C:AC,9,FALSE) -> 2 | R59: =VLOOKUP(H59,'Player Stats By Team'!C:AC,10,FALSE) -> 5 | S59: =VLOOKUP(H59,'Player Stats By Team'!C:AC,11,FALSE) -> 0 | T59: =VLOOKUP(H59,'Player Stats By Team'!C:AC,12,FALSE) -> 0 | U59: =VLOOKUP(H59,'Player Stats By Team'!C:AC,13,FALSE) -> 2 | V59: =VLOOKUP(H59,'Player Stats By Team'!C:AC,14,FALSE) -> 1 | W59: =VLOOKUP(H59,'Player Stats By Team'!C:AC,15,FALSE) -> 0 | X59: =VLOOKUP(H59,'Player Stats By Team'!C:AC,16,FALSE) -> 1 | Y59: =VLOOKUP(H59,'Player Stats By Team'!C:AC,17,FALSE) -> 0 | Z59: =VLOOKUP(H59,'Player Stats By Team'!C:AC,18,FALSE) -> 0 | AA59: =VLOOKUP(H59,'Player Stats By Team'!C:AC,19,FALSE) -> 0 | AB59: =VLOOKUP(H59,'Player Stats By Team'!C:AC,20,FALSE) -> 1 | AC59: =VLOOKUP(H59,'Player Stats By Team'!C:AC,21,FALSE) -> 0 | AD59: =VLOOKUP(H59,'Player Stats By Team'!C:AC,22,FALSE) -> 0 | AE59: =VLOOKUP(H59,'Player Stats By Team'!C:AC,23,FALSE) -> 0.93 | AF59: =VLOOKUP(H59,'Player Stats By Team'!C:AC,24,FALSE) -> 2 | AG59: =VLOOKUP(H59,'Player Stats By Team'!C:AC,25,FALSE) -> 0 | AH59: =VLOOKUP(H59,'Player Stats By Team'!C:AC,26,FALSE) -> 0
G60: OHL | H60: Olli Maatta | I60: Pittsburgh Penguins | J60: =VLOOKUP(H60,'Player Stats By Team'!C:AC,2,FALSE) -> D | K60: =VLOOKUP(H60,'Player Stats By Team'!C:AC,3,FALSE) -> 20 | L60: =VLOOKUP(H60,'Player Stats By Team'!C:AC,4,FALSE) -> 3 | M60: =VLOOKUP(H60,'Player Stats By Team'!C:AC,5,FALSE) -> 15 | N60: =VLOOKUP(H60,'Player Stats By Team'!C:AC,6,FALSE) -> 18 | O60: =VLOOKUP(H60,'Player Stats By Team'!C:AC,7,FALSE) -> 3 | P60: =VLOOKUP(H60,'Player Stats By Team'!C:AC,8,FALSE) -> 14 | Q60: =VLOOKUP(H60,'Player Stats By Team'!C:AC,9,FALSE) -> 1 | R60: =VLOOKUP(H60,'Player Stats By Team'!C:AC,10,FALSE) -> 8 | S60: =VLOOKUP(H60,'Player Stats By Team'!C:AC,11,FALSE) -> 1 | T60: =VLOOKUP(H60,'Player Stats By Team'!C:AC,12,FALSE) -> 0 | U60: =VLOOKUP(H60,'Player Stats By Team'!C:AC,13,FALSE) -> 0 | V60: =VLOOKUP(H60,'Player Stats By Team'!C:AC,14,FALSE) -> 0 | W60: =VLOOKUP(H60,'Player Stats By Team'!C:AC,15,FALSE) -> 0 | X60: =VLOOKUP(H60,'Player Stats By Team'!C:AC,16,FALSE) -> 0 | Y60: =VLOOKUP(H60,'Player Stats By Team'!C:AC,17,FALSE) -> 0 | Z60: =VLOOKUP(H60,'Player Stats By Team'!C:AC,18,FALSE) -> 1 | AA60: =VLOOKUP(H60,'Player Stats By Team'!C:AC,19,FALSE) -> 0 | AB60: =VLOOKUP(H60,'Player Stats By Team'!C:AC,20,FALSE) -> 0 | AC60: =VLOOKUP(H60,'Player Stats By Team'!C:AC,21,FALSE) -> 0 | AD60: =VLOOKUP(H60,'Player Stats By Team'!C:AC,22,FALSE) -> 0 | AE60: =VLOOKUP(H60,'Player Stats By Team'!C:AC,23,FALSE) -> 0.9 | AF60: =VLOOKUP(H60,'Player Stats By Team'!C:AC,24,FALSE) -> 0.7 | AG60: =VLOOKUP(H60,'Player Stats By Team'!C:AC,25,FALSE) -> 0 | AH60: =VLOOKUP(H60,'Player Stats By Team'!C:AC,26,FALSE) -> 0
G61: OHL | H61: Malcolm Subban | I61: Boston Bruins | J61: =VLOOKUP(H61,'Player Stats By Team'!C:AC,2,FALSE) -> G | K61: =VLOOKUP(H61,'Player Stats By Team'!C:AC,3,FALSE) -> 16 | L61: =VLOOKUP(H61,'Player Stats By Team'!C:AC,4,FALSE) -> 0 | M61: =VLOOKUP(H61,'Player Stats By Team'!C:AC,5,FALSE) -> 0 | N61: =VLOOKUP(H61,'Player Stats By Team'!C:AC,6,FALSE) -> 0 | O61: =VLOOKUP(H61,'Player Stats By Team'!C:AC,7,FALSE) -> 0 | P61: =VLOOKUP(H61,'Player Stats By Team'!C:AC,8,FALSE) -> 0 | Q61: =VLOOKUP(H61,'Player Stats By Team'!C:AC,9,FALSE) -> 0 | R61: =VLOOKUP(H61,'Player Stats By Team'!C:AC,10,FALSE) -> 0 | S61: =VLOOKUP(H61,'Player Stats By Team'!C:AC,11,FALSE) -> 0 | T61: =VLOOKUP(H61,'Player Stats By Team'!C:AC,12,FALSE) -> 0 | U61: =VLOOKUP(H61,'Player Stats By Team'!C:AC,13,FALSE) -> 0 | V61: =VLOOKUP(H61,'Player Stats By Team'!C:AC,14,FALSE) -> 0 | W61: =VLOOKUP(H61,'Player Stats By Team'!C:AC,15,FALSE) -> 0 | X61: =VLOOKUP(H61,'Player Stats By Team'!C:AC,16,FALSE) -> 0 | Y61: =VLOOKUP(H61,'Player Stats By Team'!C:AC,17,FALSE) -> 0 | Z61: =VLOOKUP(H61,'Player Stats By Team'!C:AC,18,FALSE) -> 0 | AA61: =VLOOKUP(H61,'Player Stats By Team'!C:AC,19,FALSE) -> 0 | AB61: =VLOOKUP(H61,'Player Stats By Team'!C:AC,20,FALSE) -> 0 | AC61: =VLOOKUP(H61,'Player Stats By Team'!C:AC,21,FALSE) -> 0 | AD61: =VLOOKUP(H61,'Player Stats By Team'!C:AC,22,FALSE) -> 0 | AE61: =VLOOKUP(H61,'Player Stats By Team'!C:AC,23,FALSE) -> 0 | AF61: =VLOOKUP(H61,'Player Stats By Team'!C:AC,24,FALSE) -> 0 | AG61: =VLOOKUP(H61,'Player Stats By Team'!C:AC,25,FALSE) -> 0 | AH61: =VLOOKUP(H61,'Player Stats By Team'!C:AC,26,FALSE) -> 0
G62: OHL | H62: Brendan Gaunce | I62: Vancouver Canucks | J62: =VLOOKUP(H62,'Player Stats By Team'!C:AC,2,FALSE) -> C | K62: =VLOOKUP(H62,'Player Stats By Team'!C:AC,3,FALSE) -> 11 | L62: =VLOOKUP(H62,'Player Stats By Team'!C:AC,4,FALSE) -> 4 | M62: =VLOOKUP(H62,'Player Stats By Team'!C:AC,5,FALSE) -> 5 | N62: =VLOOKUP(H62,'Player Stats By Team'!C:AC,6,FALSE) -> 9 | O62: =VLOOKUP(H62,'Player Stats By Team'!C:AC,7,FALSE) -> -6 | P62: =VLOOKUP(H62,'Player Stats By Team'!C:AC,8,FALSE) -> 6 | Q62: =VLOOKUP(H62,'Player Stats By Team'!C:AC,9,FALSE) -> 0 | R62: =VLOOKUP(H62,'Player Stats By Team'!C:AC,10,FALSE) -> 3 | S62: =VLOOKUP(H62,'Player Stats By Team'!C:AC,11,FALSE) -> 0 | T62: =VLOOKUP(H62,'Player Stats By Team'!C:AC,12,FALSE) -> 0 | U62: =VLOOKUP(H62,'Player Stats By Team'!C:AC,13,FALSE) -> 0 | V62: =VLOOKUP(H62,'Player Stats By Team'!C:AC,14,FALSE) -> 2 | W62: =VLOOKUP(H62,'Player Stats By Team'!C:AC,15,FALSE) -> 0 | X62: =VLOOKUP(H62,'Player Stats By Team'!C:AC,16,FALSE) -> 0 | Y62: =VLOOKUP(H62,'Player Stats By Team'!C:AC,17,FALSE) -> 0 | Z62: =VLOOKUP(H62,'Player Stats By Team'!C:AC,18,FALSE) -> 0 | AA62: =VLOOKUP(H62,'Player Stats By Team'!C:AC,19,FALSE) -> 1 | AB62: =VLOOKUP(H62,'Player Stats By Team'!C:AC,20,FALSE) -> 2 | AC62: =VLOOKUP(H62,'Player Stats By Team'!C:AC,21,FALSE) -> 0 | AD62: =VLOOKUP(H62,'Player Stats By Team'!C:AC,22,FALSE) -> 0.5 | AE62: =VLOOKUP(H62,'Player Stats By Team'!C:AC,23,FALSE) -> 0.82 | AF62: =VLOOKUP(H62,'Player Stats By Team'!C:AC,24,FALSE) -> 0.55 | AG62: =VLOOKUP(H62,'Player Stats By Team'!C:AC,25,FALSE) -> 0 | AH62: =VLOOKUP(H62,'Player Stats By Team'!C:AC,26,FALSE) -> 0
G63: OHL | H63: Matt Finn | I63: Toronto Maple Leafs | J63: =VLOOKUP(H63,'Player Stats By Team'!C:AC,2,FALSE) -> D | K63: =VLOOKUP(H63,'Player Stats By Team'!C:AC,3,FALSE) -> 21 | L63: =VLOOKUP(H63,'Player Stats By Team'!C:AC,4,FALSE) -> 8 | M63: =VLOOKUP(H63,'Player Stats By Team'!C:AC,5,FALSE) -> 10 | N63: =VLOOKUP(H63,'Player Stats By Team'!C:AC,6,FALSE) -> 18 | O63: =VLOOKUP(H63,'Player Stats By Team'!C:AC,7,FALSE) -> 3 | P63: =VLOOKUP(H63,'Player Stats By Team'!C:AC,8,FALSE) -> 16 | Q63: =VLOOKUP(H63,'Player Stats By Team'!C:AC,9,FALSE) -> 3 | R63: =VLOOKUP(H63,'Player Stats By Team'!C:AC,10,FALSE) -> 5 | S63: =VLOOKUP(H63,'Player Stats By Team'!C:AC,11,FALSE) -> 0 | T63: =VLOOKUP(H63,'Player Stats By Team'!C:AC,12,FALSE) -> 0 | U63: =VLOOKUP(H63,'Player Stats By Team'!C:AC,13,FALSE) -> 3 | V63: =VLOOKUP(H63,'Player Stats By Team'!C:AC,14,FALSE) -> 1 | W63: =VLOOKUP(H63,'Player Stats By Team'!C:AC,15,FALSE) -> 1 | X63: =VLOOKUP(H63,'Player Stats By Team'!C:AC,16,FALSE) -> 1 | Y63: =VLOOKUP(H63,'Player Stats By Team'!C:AC,17,FALSE) -> 0 | Z63: =VLOOKUP(H63,'Player Stats By Team'!C:AC,18,FALSE) -> 0 | AA63: =VLOOKUP(H63,'Player Stats By Team'!C:AC,19,FALSE) -> 0 | AB63: =VLOOKUP(H63,'Player Stats By Team'!C:AC,20,FALSE) -> 0 | AC63: =VLOOKUP(H63,'Player Stats By Team'!C:AC,21,FALSE) -> 0 | AD63: =VLOOKUP(H63,'Player Stats By Team'!C:AC,22,FALSE) -> 0 | AE63: =VLOOKUP(H63,'Player Stats By Team'!C:AC,23,FALSE) -> 0.86 | AF63: =VLOOKUP(H63,'Player Stats By Team'!C:AC,24,FALSE) -> 0.76 | AG63: =VLOOKUP(H63,'Player Stats By Team'!C:AC,25,FALSE) -> 0 | AH63: =VLOOKUP(H63,'Player Stats By Team'!C:AC,26,FALSE) -> 0
G64: OHL | H64: Dylan Blujus | I64: Tampa Bay Lightning | J64: =VLOOKUP(H64,'Player Stats By Team'!C:AC,2,FALSE) -> D | K64: =VLOOKUP(H64,'Player Stats By Team'!C:AC,3,FALSE) -> 21 | L64: =VLOOKUP(H64,'Player Stats By Team'!C:AC,4,FALSE) -> 1 | M64: =VLOOKUP(H64,'Player Stats By Team'!C:AC,5,FALSE) -> 8 | N64: =VLOOKUP(H64,'Player Stats By Team'!C:AC,6,FALSE) -> 9 | O64: =VLOOKUP(H64,'Player Stats By Team'!C:AC,7,FALSE) -> -8 | P64: =VLOOKUP(H64,'Player Stats By Team'!C:AC,8,FALSE) -> 20 | Q64: =VLOOKUP(H64,'Player Stats By Team'!C:AC,9,FALSE) -> 1 | R64: =VLOOKUP(H64,'Player Stats By Team'!C:AC,10,FALSE) -> 5 | S64: =VLOOKUP(H64,'Player Stats By Team'!C:AC,11,FALSE) -> 0 | T64: =VLOOKUP(H64,'Player Stats By Team'!C:AC,12,FALSE) -> 0 | U64: =VLOOKUP(H64,'Player Stats By Team'!C:AC,13,FALSE) -> 0 | V64: =VLOOKUP(H64,'Player Stats By Team'!C:AC,14,FALSE) -> 0 | W64: =VLOOKUP(H64,'Player Stats By Team'!C:AC,15,FALSE) -> 0 | X64: =VLOOKUP(H64,'Player Stats By Team'!C:AC,16,FALSE) -> 0 | Y64: =VLOOKUP(H64,'Player Stats By Team'!C:AC,17,FALSE) -> 0 | Z64: =VLOOKUP(H64,'Player Stats By Team'!C:AC,18,FALSE) -> 0 | AA64: =VLOOKUP(H64,'Player Stats By Team'!C:AC,19,FALSE) -> 0 | AB64: =VLOOKUP(H64,'Player Stats By Team'!C:AC,20,FALSE) -> 0 | AC64: =VLOOKUP(H64,'Player Stats By Team'!C:AC,21,FALSE) -> 0 | AD64: =VLOOKUP(H64,'Player Stats By Team'!C:AC,22,FALSE) -> 0 | AE64: =VLOOKUP(H64,'Player Stats By Team'!C:AC,23,FALSE) -> 0.43 | AF64: =VLOOKUP(H64,'Player Stats By Team'!C:AC,24,FALSE) -> 0.95 | AG64: =VLOOKUP(H64,'Player Stats By Team'!C:AC,25,FALSE) -> 0 | AH64: =VLOOKUP(H64,'Player Stats By Team'!C:AC,26,FALSE) -> 0
G65: OHL | H65: Mitchell Heard | I65: Colorado Avalanche | J65: =VLOOKUP(H65,'Player Stats By Team'!C:AC,2,FALSE) -> C | K65: =VLOOKUP(H65,'Player Stats By Team'!C:AC,3,FALSE) -> 8 | L65: =VLOOKUP(H65,'Player Stats By Team'!C:AC,4,FALSE) -> 0 | M65: =VLOOKUP(H65,'Player Stats By Team'!C:AC,5,FALSE) -> 1 | N65: =VLOOKUP(H65,'Player Stats By Team'!C:AC,6,FALSE) -> 1 | O65: =VLOOKUP(H65,'Player Stats By Team'!C:AC,7,FALSE) -> -2 | P65: =VLOOKUP(H65,'Player Stats By Team'!C:AC,8,FALSE) -> 12 | Q65: =VLOOKUP(H65,'Player Stats By Team'!C:AC,9,FALSE) -> 0 | R65: =VLOOKUP(H65,'Player Stats By Team'!C:AC,10,FALSE) -> 1 | S65: =VLOOKUP(H65,'Player Stats By Team'!C:AC,11,FALSE) -> 0 | T65: =VLOOKUP(H65,'Player Stats By Team'!C:AC,12,FALSE) -> 0 | U65: =VLOOKUP(H65,'Player Stats By Team'!C:AC,13,FALSE) -> 0 | V65: =VLOOKUP(H65,'Player Stats By Team'!C:AC,14,FALSE) -> 0 | W65: =VLOOKUP(H65,'Player Stats By Team'!C:AC,15,FALSE) -> 0 | X65: =VLOOKUP(H65,'Player Stats By Team'!C:AC,16,FALSE) -> 0 | Y65: =VLOOKUP(H65,'Player Stats By Team'!C:AC,17,FALSE) -> 0 | Z65: =VLOOKUP(H65,'Player Stats By Team'!C:AC,18,FALSE) -> 0 | AA65: =VLOOKUP(H65,'Player Stats By Team'!C:AC,19,FALSE) -> 0 | AB65: =VLOOKUP(H65,'Player Stats By Team'!C:AC,20,FALSE) -> 0 | AC65: =VLOOKUP(H65,'Player Stats By Team'!C:AC,21,FALSE) -> 0 | AD65: =VLOOKUP(H65,'Player Stats By Team'!C:AC,22,FALSE) -> 0 | AE65: =VLOOKUP(H65,'Player Stats By Team'!C:AC,23,FALSE) -> 0.13 | AF65: =VLOOKUP(H65,'Player Stats By Team'!C:AC,24,FALSE) -> 1.5 | AG65: =VLOOKUP(H65,'Player Stats By Team'!C:AC,25,FALSE) -> 6 | AH65: =VLOOKUP(H65,'Player Stats By Team'!C:AC,26,FALSE) -> 0
G66: OHL | H66: Brock McGinn | I66: Carolina Hurricanes | J66: =VLOOKUP(H66,'Player Stats By Team'!C:AC,2,FALSE) -> LW | K66: =VLOOKUP(H66,'Player Stats By Team'!C:AC,3,FALSE) -> 21 | L66: =VLOOKUP(H66,'Player Stats By Team'!C:AC,4,FALSE) -> 3 | M66: =VLOOKUP(H66,'Player Stats By Team'!C:AC,5,FALSE) -> 10 | N66: =VLOOKUP(H66,'Player Stats By Team'!C:AC,6,FALSE) -> 13 | O66: =VLOOKUP(H66,'Player Stats By Team'!C:AC,7,FALSE) -> -5 | P66: =VLOOKUP(H66,'Player Stats By Team'!C:AC,8,FALSE) -> 29 | Q66: =VLOOKUP(H66,'Player Stats By Team'!C:AC,9,FALSE) -> 2 | R66: =VLOOKUP(H66,'Player Stats By Team'!C:AC,10,FALSE) -> 3 | S66: =VLOOKUP(H66,'Player Stats By Team'!C:AC,11,FALSE) -> 1 | T66: =VLOOKUP(H66,'Player Stats By Team'!C:AC,12,FALSE) -> 0 | U66: =VLOOKUP(H66,'Player Stats By Team'!C:AC,13,FALSE) -> 0 | V66: =VLOOKUP(H66,'Player Stats By Team'!C:AC,14,FALSE) -> 0 | W66: =VLOOKUP(H66,'Player Stats By Team'!C:AC,15,FALSE) -> 1 | X66: =VLOOKUP(H66,'Player Stats By Team'!C:AC,16,FALSE) -> 0 | Y66: =VLOOKUP(H66,'Player Stats By Team'!C:AC,17,FALSE) -> 0 | Z66: =VLOOKUP(H66,'Player Stats By Team'!C:AC,18,FALSE) -> 0 | AA66: =VLOOKUP(H66,'Player Stats By Team'!C:AC,19,FALSE) -> 1 | AB66: =VLOOKUP(H66,'Player Stats By Team'!C:AC,20,FALSE) -> 1 | AC66: =VLOOKUP(H66,'Player Stats By Team'!C:AC,21,FALSE) -> 1 | AD66: =VLOOKUP(H66,'Player Stats By Team'!C:AC,22,FALSE) -> 1 | AE66: =VLOOKUP(H66,'Player Stats By Team'!C:AC,23,FALSE) -> 0.62 | AF66: =VLOOKUP(H66,'Player Stats By Team'!C:AC,24,FALSE) -> 1.38 | AG66: =VLOOKUP(H66,'Player Stats By Team'!C:AC,25,FALSE) -> 0 | AH66: =VLOOKUP(H66,'Player Stats By Team'!C:AC,26,FALSE) -> 0
G67: OHL | H67: Chris Tierney | I67: San Jose Sharks | J67: =VLOOKUP(H67,'Player Stats By Team'!C:AC,2,FALSE) -> C | K67: =VLOOKUP(H67,'Player Stats By Team'!C:AC,3,FALSE) -> 20 | L67: =VLOOKUP(H67,'Player Stats By Team'!C:AC,4,FALSE) -> 4 | M67: =VLOOKUP(H67,'Player Stats By Team'!C:AC,5,FALSE) -> 6 | N67: =VLOOKUP(H67,'Player Stats By Team'!C:AC,6,FALSE) -> 10 | O67: =VLOOKUP(H67,'Player Stats By Team'!C:AC,7,FALSE) -> 0 | P67: =VLOOKUP(H67,'Player Stats By Team'!C:AC,8,FALSE) -> 4 | Q67: =VLOOKUP(H67,'Player Stats By Team'!C:AC,9,FALSE) -> 0 | R67: =VLOOKUP(H67,'Player Stats By Team'!C:AC,10,FALSE) -> 0 | S67: =VLOOKUP(H67,'Player Stats By Team'!C:AC,11,FALSE) -> 1 | T67: =VLOOKUP(H67,'Player Stats By Team'!C:AC,12,FALSE) -> 0 | U67: =VLOOKUP(H67,'Player Stats By Team'!C:AC,13,FALSE) -> 0 | V67: =VLOOKUP(H67,'Player Stats By Team'!C:AC,14,FALSE) -> 1 | W67: =VLOOKUP(H67,'Player Stats By Team'!C:AC,15,FALSE) -> 1 | X67: =VLOOKUP(H67,'Player Stats By Team'!C:AC,16,FALSE) -> 0 | Y67: =VLOOKUP(H67,'Player Stats By Team'!C:AC,17,FALSE) -> 2 | Z67: =VLOOKUP(H67,'Player Stats By Team'!C:AC,18,FALSE) -> 1 | AA67: =VLOOKUP(H67,'Player Stats By Team'!C:AC,19,FALSE) -> 0 | AB67: =VLOOKUP(H67,'Player Stats By Team'!C:AC,20,FALSE) -> 1 | AC67: =VLOOKUP(H67,'Player Stats By Team'!C:AC,21,FALSE) -> 0 | AD67: =VLOOKUP(H67,'Player Stats By Team'!C:AC,22,FALSE) -> 0 | AE67: =VLOOKUP(H67,'Player Stats By Team'!C:AC,23,FALSE) -> 0.5 | AF67: =VLOOKUP(H67,'Player Stats By Team'!C:AC,24,FALSE) -> 0.2 | AG67: =VLOOKUP(H67,'Player Stats By Team'!C:AC,25,FALSE) -> 0 | AH67: =VLOOKUP(H67,'Player Stats By Team'!C:AC,26,FALSE) -> 0
G68: OHL | H68: Adam Pelech | I68: New York Islanders | J68: =VLOOKUP(H68,'Player Stats By Team'!C:AC,2,FALSE) -> D | K68: =VLOOKUP(H68,'Player Stats By Team'!C:AC,3,FALSE) -> 20 | L68: =VLOOKUP(H68,'Player Stats By Team'!C:AC,4,FALSE) -> 4 | M68: =VLOOKUP(H68,'Player Stats By Team'!C:AC,5,FALSE) -> 15 | N68: =VLOOKUP(H68,'Player Stats By Team'!C:AC,6,FALSE) -> 19 | O68: =VLOOKUP(H68,'Player Stats By Team'!C:AC,7,FALSE) -> -4 | P68: =VLOOKUP(H68,'Player Stats By Team'!C:AC,8,FALSE) -> 38 | Q68: =VLOOKUP(H68,'Player Stats By Team'!C:AC,9,FALSE) -> 1 | R68: =VLOOKUP(H68,'Player Stats By Team'!C:AC,10,FALSE) -> 8 | S68: =VLOOKUP(H68,'Player Stats By Team'!C:AC,11,FALSE) -> 1 | T68: =VLOOKUP(H68,'Player Stats By Team'!C:AC,12,FALSE) -> 1 | U68: =VLOOKUP(H68,'Player Stats By Team'!C:AC,13,FALSE) -> 0 | V68: =VLOOKUP(H68,'Player Stats By Team'!C:AC,14,FALSE) -> 0 | W68: =VLOOKUP(H68,'Player Stats By Team'!C:AC,15,FALSE) -> 0 | X68: =VLOOKUP(H68,'Player Stats By Team'!C:AC,16,FALSE) -> 0 | Y68: =VLOOKUP(H68,'Player Stats By Team'!C:AC,17,FALSE) -> 0 | Z68: =VLOOKUP(H68,'Player Stats By Team'!C:AC,18,FALSE) -> 0 | AA68: =VLOOKUP(H68,'Player Stats By Team'!C:AC,19,FALSE) -> 0 | AB68: =VLOOKUP(H68,'Player Stats By Team'!C:AC,20,FALSE) -> 1 | AC68: =VLOOKUP(H68,'Player Stats By Team'!C:AC,21,FALSE) -> 0 | AD68: =VLOOKUP(H68,'Player Stats By Team'!C:AC,22,FALSE) -> 0 | AE68: =VLOOKUP(H68,'Player Stats By Team'!C:AC,23,FALSE) -> 0.95 | AF68: =VLOOKUP(H68,'Player Stats By Team'!C:AC,24,FALSE) -> 1.9 | AG68: =VLOOKUP(H68,'Player Stats By Team'!C:AC,25,FALSE) -> 0 | AH68: =VLOOKUP(H68,'Player Stats By Team'!C:AC,26,FALSE) -> 0
G69: OHL | H69: Daniel Altshuller | I69: Carolina Hurricanes | J69: =VLOOKUP(H69,'Player Stats By Team'!C:AC,2,FALSE) -> G | K69: =VLOOKUP(H69,'Player Stats By Team'!C:AC,3,FALSE) -> 19 | L69: =VLOOKUP(H69,'Player Stats By Team'!C:AC,4,FALSE) -> 0 | M69: =VLOOKUP(H69,'Player Stats By Team'!C:AC,5,FALSE) -> 2 | N69: =VLOOKUP(H69,'Player Stats By Team'!C:AC,6,FALSE) -> 2 | O69: =VLOOKUP(H69,'Player Stats By Team'!C:AC,7,FALSE) -> 0 | P69: =VLOOKUP(H69,'Player Stats By Team'!C:AC,8,FALSE) -> 2 | Q69: =VLOOKUP(H69,'Player Stats By Team'!C:AC,9,FALSE) -> 0 | R69: =VLOOKUP(H69,'Player Stats By Team'!C:AC,10,FALSE) -> 0 | S69: =VLOOKUP(H69,'Player Stats By Team'!C:AC,11,FALSE) -> 0 | T69: =VLOOKUP(H69,'Player Stats By Team'!C:AC,12,FALSE) -> 0 | U69: =VLOOKUP(H69,'Player Stats By Team'!C:AC,13,FALSE) -> 0 | V69: =VLOOKUP(H69,'Player Stats By Team'!C:AC,14,FALSE) -> 0 | W69: =VLOOKUP(H69,'Player Stats By Team'!C:AC,15,FALSE) -> 0 | X69: =VLOOKUP(H69,'Player Stats By Team'!C:AC,16,FALSE) -> 0 | Y69: =VLOOKUP(H69,'Player Stats By Team'!C:AC,17,FALSE) -> 0 | Z69: =VLOOKUP(H69,'Player Stats By Team'!C:AC,18,FALSE) -> 0 | AA69: =VLOOKUP(H69,'Player Stats By Team'!C:AC,19,FALSE) -> 0 | AB69: =VLOOKUP(H69,'Player Stats By Team'!C:AC,20,FALSE) -> 0 | AC69: =VLOOKUP(H69,'Player Stats By Team'!C:AC,21,FALSE) -> 0 | AD69: =VLOOKUP(H69,'Player Stats By Team'!C:AC,22,FALSE) -> 0 | AE69: =VLOOKUP(H69,'Player Stats By Team'!C:AC,23,FALSE) -> 0.11 | AF69: =VLOOKUP(H69,'Player Stats By Team'!C:AC,24,FALSE) -> 0.11 | AG69: =VLOOKUP(H69,'Player Stats By Team'!C:AC,25,FALSE) -> 0 | AH69: =VLOOKUP(H69,'Player Stats By Team'!C:AC,26,FALSE) -> 0
G70: OHL | H70: Scott Kosmachuk | I70: Winnipeg Jets | J70: =VLOOKUP(H70,'Player Stats By Team'!C:AC,2,FALSE) -> RW | K70: =VLOOKUP(H70,'Player Stats By Team'!C:AC,3,FALSE) -> 21 | L70: =VLOOKUP(H70,'Player Stats By Team'!C:AC,4,FALSE) -> 12 | M70: =VLOOKUP(H70,'Player Stats By Team'!C:AC,5,FALSE) -> 12 | N70: =VLOOKUP(H70,'Player Stats By Team'!C:AC,6,FALSE) -> 24 | O70: =VLOOKUP(H70,'Player Stats By Team'!C:AC,7,FALSE) -> 0 | P70: =VLOOKUP(H70,'Player Stats By Team'!C:AC,8,FALSE) -> 36 | Q70: =VLOOKUP(H70,'Player Stats By Team'!C:AC,9,FALSE) -> 5 | R70: =VLOOKUP(H70,'Player Stats By Team'!C:AC,10,FALSE) -> 5 | S70: =VLOOKUP(H70,'Player Stats By Team'!C:AC,11,FALSE) -> 0 | T70: =VLOOKUP(H70,'Player Stats By Team'!C:AC,12,FALSE) -> 2 | U70: =VLOOKUP(H70,'Player Stats By Team'!C:AC,13,FALSE) -> 1 | V70: =VLOOKUP(H70,'Player Stats By Team'!C:AC,14,FALSE) -> 3 | W70: =VLOOKUP(H70,'Player Stats By Team'!C:AC,15,FALSE) -> 2 | X70: =VLOOKUP(H70,'Player Stats By Team'!C:AC,16,FALSE) -> 0 | Y70: =VLOOKUP(H70,'Player Stats By Team'!C:AC,17,FALSE) -> 0 | Z70: =VLOOKUP(H70,'Player Stats By Team'!C:AC,18,FALSE) -> 0 | AA70: =VLOOKUP(H70,'Player Stats By Team'!C:AC,19,FALSE) -> 0 | AB70: =VLOOKUP(H70,'Player Stats By Team'!C:AC,20,FALSE) -> 1 | AC70: =VLOOKUP(H70,'Player Stats By Team'!C:AC,21,FALSE) -> 0 | AD70: =VLOOKUP(H70,'Player Stats By Team'!C:AC,22,FALSE) -> 0 | AE70: =VLOOKUP(H70,'Player Stats By Team'!C:AC,23,FALSE) -> 1.14 | AF70: =VLOOKUP(H70,'Player Stats By Team'!C:AC,24,FALSE) -> 1.71 | AG70: =VLOOKUP(H70,'Player Stats By Team'!C:AC,25,FALSE) -> 0 | AH70: =VLOOKUP(H70,'Player Stats By Team'!C:AC,26,FALSE) -> 0
G71: OHL | H71: Tanner Richard | I71: Tampa Bay Lightning | J71: =VLOOKUP(H71,'Player Stats By Team'!C:AC,2,FALSE) -> LW | K71: =VLOOKUP(H71,'Player Stats By Team'!C:AC,3,FALSE) -> 18 | L71: =VLOOKUP(H71,'Player Stats By Team'!C:AC,4,FALSE) -> 2 | M71: =VLOOKUP(H71,'Player Stats By Team'!C:AC,5,FALSE) -> 21 | N71: =VLOOKUP(H71,'Player Stats By Team'!C:AC,6,FALSE) -> 23 | O71: =VLOOKUP(H71,'Player Stats By Team'!C:AC,7,FALSE) -> 4 | P71: =VLOOKUP(H71,'Player Stats By Team'!C:AC,8,FALSE) -> 42 | Q71: =VLOOKUP(H71,'Player Stats By Team'!C:AC,9,FALSE) -> 1 | R71: =VLOOKUP(H71,'Player Stats By Team'!C:AC,10,FALSE) -> 8 | S71: =VLOOKUP(H71,'Player Stats By Team'!C:AC,11,FALSE) -> 0 | T71: =VLOOKUP(H71,'Player Stats By Team'!C:AC,12,FALSE) -> 0 | U71: =VLOOKUP(H71,'Player Stats By Team'!C:AC,13,FALSE) -> 0 | V71: =VLOOKUP(H71,'Player Stats By Team'!C:AC,14,FALSE) -> 0 | W71: =VLOOKUP(H71,'Player Stats By Team'!C:AC,15,FALSE) -> 0 | X71: =VLOOKUP(H71,'Player Stats By Team'!C:AC,16,FALSE) -> 0 | Y71: =VLOOKUP(H71,'Player Stats By Team'!C:AC,17,FALSE) -> 1 | Z71: =VLOOKUP(H71,'Player Stats By Team'!C:AC,18,FALSE) -> 1 | AA71: =VLOOKUP(H71,'Player Stats By Team'!C:AC,19,FALSE) -> 0 | AB71: =VLOOKUP(H71,'Player Stats By Team'!C:AC,20,FALSE) -> 0 | AC71: =VLOOKUP(H71,'Player Stats By Team'!C:AC,21,FALSE) -> 0 | AD71: =VLOOKUP(H71,'Player Stats By Team'!C:AC,22,FALSE) -> 0 | AE71: =VLOOKUP(H71,'Player Stats By Team'!C:AC,23,FALSE) -> 1.28 | AF71: =VLOOKUP(H71,'Player Stats By Team'!C:AC,24,FALSE) -> 2.33 | AG71: =VLOOKUP(H71,'Player Stats By Team'!C:AC,25,FALSE) -> 0 | AH71: =VLOOKUP(H71,'Player Stats By Team'!C:AC,26,FALSE) -> 0
G72: OHL | H72: Justin Kea | I72: Buffalo Sabres | J72: =VLOOKUP(H72,'Player Stats By Team'!C:AC,2,FALSE) -> C | K72: =VLOOKUP(H72,'Player Stats By Team'!C:AC,3,FALSE) -> 21 | L72: =VLOOKUP(H72,'Player Stats By Team'!C:AC,4,FALSE) -> 4 | M72: =VLOOKUP(H72,'Player Stats By Team'!C:AC,5,FALSE) -> 10 | N72: =VLOOKUP(H72,'Player Stats By Team'!C:AC,6,FALSE) -> 14 | O72: =VLOOKUP(H72,'Player Stats By Team'!C:AC,7,FALSE) -> 3 | P72: =VLOOKUP(H72,'Player Stats By Team'!C:AC,8,FALSE) -> 40 | Q72: =VLOOKUP(H72,'Player Stats By Team'!C:AC,9,FALSE) -> 1 | R72: =VLOOKUP(H72,'Player Stats By Team'!C:AC,10,FALSE) -> 2 | S72: =VLOOKUP(H72,'Player Stats By Team'!C:AC,11,FALSE) -> 1 | T72: =VLOOKUP(H72,'Player Stats By Team'!C:AC,12,FALSE) -> 0 | U72: =VLOOKUP(H72,'Player Stats By Team'!C:AC,13,FALSE) -> 1 | V72: =VLOOKUP(H72,'Player Stats By Team'!C:AC,14,FALSE) -> 0 | W72: =VLOOKUP(H72,'Player Stats By Team'!C:AC,15,FALSE) -> 0 | X72: =VLOOKUP(H72,'Player Stats By Team'!C:AC,16,FALSE) -> 0 | Y72: =VLOOKUP(H72,'Player Stats By Team'!C:AC,17,FALSE) -> 1 | Z72: =VLOOKUP(H72,'Player Stats By Team'!C:AC,18,FALSE) -> 0 | AA72: =VLOOKUP(H72,'Player Stats By Team'!C:AC,19,FALSE) -> 0 | AB72: =VLOOKUP(H72,'Player Stats By Team'!C:AC,20,FALSE) -> 0 | AC72: =VLOOKUP(H72,'Player Stats By Team'!C:AC,21,FALSE) -> 0 | AD72: =VLOOKUP(H72,'Player Stats By Team'!C:AC,22,FALSE) -> 0 | AE72: =VLOOKUP(H72,'Player Stats By Team'!C:AC,23,FALSE) -> 0.67 | AF72: =VLOOKUP(H72,'Player Stats By Team'!C:AC,24,FALSE) -> 1.9 | AG72: =VLOOKUP(H72,'Player Stats By Team'!C:AC,25,FALSE) -> 0 | AH72: =VLOOKUP(H72,'Player Stats By Team'!C:AC,26,FALSE) -> 0
G73: OHL | H73: Jake Paterson | I73: Detroit Red Wings | J73: =VLOOKUP(H73,'Player Stats By Team'!C:AC,2,FALSE) -> G | K73: =VLOOKUP(H73,'Player Stats By Team'!C:AC,3,FALSE) -> 19 | L73: =VLOOKUP(H73,'Player Stats By Team'!C:AC,4,FALSE) -> 0 | M73: =VLOOKUP(H73,'Player Stats By Team'!C:AC,5,FALSE) -> 4 | N73: =VLOOKUP(H73,'Player Stats By Team'!C:AC,6,FALSE) -> 4 | O73: =VLOOKUP(H73,'Player Stats By Team'!C:AC,7,FALSE) -> 0 | P73: =VLOOKUP(H73,'Player Stats By Team'!C:AC,8,FALSE) -> 0 | Q73: =VLOOKUP(H73,'Player Stats By Team'!C:AC,9,FALSE) -> 0 | R73: =VLOOKUP(H73,'Player Stats By Team'!C:AC,10,FALSE) -> 1 | S73: =VLOOKUP(H73,'Player Stats By Team'!C:AC,11,FALSE) -> 0 | T73: =VLOOKUP(H73,'Player Stats By Team'!C:AC,12,FALSE) -> 0 | U73: =VLOOKUP(H73,'Player Stats By Team'!C:AC,13,FALSE) -> 0 | V73: =VLOOKUP(H73,'Player Stats By Team'!C:AC,14,FALSE) -> 0 | W73: =VLOOKUP(H73,'Player Stats By Team'!C:AC,15,FALSE) -> 0 | X73: =VLOOKUP(H73,'Player Stats By Team'!C:AC,16,FALSE) -> 0 | Y73: =VLOOKUP(H73,'Player Stats By Team'!C:AC,17,FALSE) -> 0 | Z73: =VLOOKUP(H73,'Player Stats By Team'!C:AC,18,FALSE) -> 0 | AA73: =VLOOKUP(H73,'Player Stats By Team'!C:AC,19,FALSE) -> 0 | AB73: =VLOOKUP(H73,'Player Stats By Team'!C:AC,20,FALSE) -> 0 | AC73: =VLOOKUP(H73,'Player Stats By Team'!C:AC,21,FALSE) -> 0 | AD73: =VLOOKUP(H73,'Player Stats By Team'!C:AC,22,FALSE) -> 0 | AE73: =VLOOKUP(H73,'Player Stats By Team'!C:AC,23,FALSE) -> 0.21 | AF73: =VLOOKUP(H73,'Player Stats By Team'!C:AC,24,FALSE) -> 0 | AG73: =VLOOKUP(H73,'Player Stats By Team'!C:AC,25,FALSE) -> 0 | AH73: =VLOOKUP(H73,'Player Stats By Team'!C:AC,26,FALSE) -> 0
G74: OHL | H74: Jarrod Maidens | I74: Ottawa Senators | J74: =VLOOKUP(H74,'Player Stats By Team'!C:AC,2,FALSE) ->  | K74: =VLOOKUP(H74,'Player Stats By Team'!C:AC,3,FALSE) ->  | L74: =VLOOKUP(H74,'Player Stats By Team'!C:AC,4,FALSE) ->  | M74: =VLOOKUP(H74,'Player Stats By Team'!C:AC,5,FALSE) ->  | N74: =VLOOKUP(H74,'Player Stats By Team'!C:AC,6,FALSE) ->  | O74: =VLOOKUP(H74,'Player Stats By Team'!C:AC,7,FALSE) ->  | P74: =VLOOKUP(H74,'Player Stats By Team'!C:AC,8,FALSE) ->  | Q74: =VLOOKUP(H74,'Player Stats By Team'!C:AC,9,FALSE) ->  | R74: =VLOOKUP(H74,'Player Stats By Team'!C:AC,10,FALSE) ->  | S74: =VLOOKUP(H74,'Player Stats By Team'!C:AC,11,FALSE) ->  | T74: =VLOOKUP(H74,'Player Stats By Team'!C:AC,12,FALSE) ->  | U74: =VLOOKUP(H74,'Player Stats By Team'!C:AC,13,FALSE) ->  | V74: =VLOOKUP(H74,'Player Stats By Team'!C:AC,14,FALSE) ->  | W74: =VLOOKUP(H74,'Player Stats By Team'!C:AC,15,FALSE) ->  | X74: =VLOOKUP(H74,'Player Stats By Team'!C:AC,16,FALSE) ->  | Y74: =VLOOKUP(H74,'Player Stats By Team'!C:AC,17,FALSE) ->  | Z74: =VLOOKUP(H74,'Player Stats By Team'!C:AC,18,FALSE) ->  | AA74: =VLOOKUP(H74,'Player Stats By Team'!C:AC,19,FALSE) ->  | AB74: =VLOOKUP(H74,'Player Stats By Team'!C:AC,20,FALSE) ->  | AC74: =VLOOKUP(H74,'Player Stats By Team'!C:AC,21,FALSE) ->  | AD74: =VLOOKUP(H74,'Player Stats By Team'!C:AC,22,FALSE) ->  | AE74: =VLOOKUP(H74,'Player Stats By Team'!C:AC,23,FALSE) ->  | AF74: =VLOOKUP(H74,'Player Stats By Team'!C:AC,24,FALSE) ->  | AG74: =VLOOKUP(H74,'Player Stats By Team'!C:AC,25,FALSE) ->  | AH74: =VLOOKUP(H74,'Player Stats By Team'!C:AC,26,FALSE) -> 
G75: OHL | H75: Matt Murray | I75: Pittsburgh Penguins | J75: =VLOOKUP(H75,'Player Stats By Team'!C:AC,2,FALSE) -> G | K75: =VLOOKUP(H75,'Player Stats By Team'!C:AC,3,FALSE) -> 18 | L75: =VLOOKUP(H75,'Player Stats By Team'!C:AC,4,FALSE) -> 0 | M75: =VLOOKUP(H75,'Player Stats By Team'!C:AC,5,FALSE) -> 1 | N75: =VLOOKUP(H75,'Player Stats By Team'!C:AC,6,FALSE) -> 1 | O75: =VLOOKUP(H75,'Player Stats By Team'!C:AC,7,FALSE) -> 0 | P75: =VLOOKUP(H75,'Player Stats By Team'!C:AC,8,FALSE) -> 0 | Q75: =VLOOKUP(H75,'Player Stats By Team'!C:AC,9,FALSE) -> 0 | R75: =VLOOKUP(H75,'Player Stats By Team'!C:AC,10,FALSE) -> 0 | S75: =VLOOKUP(H75,'Player Stats By Team'!C:AC,11,FALSE) -> 0 | T75: =VLOOKUP(H75,'Player Stats By Team'!C:AC,12,FALSE) -> 0 | U75: =VLOOKUP(H75,'Player Stats By Team'!C:AC,13,FALSE) -> 0 | V75: =VLOOKUP(H75,'Player Stats By Team'!C:AC,14,FALSE) -> 0 | W75: =VLOOKUP(H75,'Player Stats By Team'!C:AC,15,FALSE) -> 0 | X75: =VLOOKUP(H75,'Player Stats By Team'!C:AC,16,FALSE) -> 0 | Y75: =VLOOKUP(H75,'Player Stats By Team'!C:AC,17,FALSE) -> 0 | Z75: =VLOOKUP(H75,'Player Stats By Team'!C:AC,18,FALSE) -> 0 | AA75: =VLOOKUP(H75,'Player Stats By Team'!C:AC,19,FALSE) -> 0 | AB75: =VLOOKUP(H75,'Player Stats By Team'!C:AC,20,FALSE) -> 0 | AC75: =VLOOKUP(H75,'Player Stats By Team'!C:AC,21,FALSE) -> 0 | AD75: =VLOOKUP(H75,'Player Stats By Team'!C:AC,22,FALSE) -> 0 | AE75: =VLOOKUP(H75,'Player Stats By Team'!C:AC,23,FALSE) -> 0.06 | AF75: =VLOOKUP(H75,'Player Stats By Team'!C:AC,24,FALSE) -> 0 | AG75: =VLOOKUP(H75,'Player Stats By Team'!C:AC,25,FALSE) -> 0 | AH75: =VLOOKUP(H75,'Player Stats By Team'!C:AC,26,FALSE) -> 0
G76: OHL | H76: Ben Johnson | I76: New Jersey Devils | J76: =VLOOKUP(H76,'Player Stats By Team'!C:AC,2,FALSE) -> LW | K76: =VLOOKUP(H76,'Player Stats By Team'!C:AC,3,FALSE) -> 20 | L76: =VLOOKUP(H76,'Player Stats By Team'!C:AC,4,FALSE) -> 3 | M76: =VLOOKUP(H76,'Player Stats By Team'!C:AC,5,FALSE) -> 4 | N76: =VLOOKUP(H76,'Player Stats By Team'!C:AC,6,FALSE) -> 7 | O76: =VLOOKUP(H76,'Player Stats By Team'!C:AC,7,FALSE) -> 0 | P76: =VLOOKUP(H76,'Player Stats By Team'!C:AC,8,FALSE) -> 14 | Q76: =VLOOKUP(H76,'Player Stats By Team'!C:AC,9,FALSE) -> 0 | R76: =VLOOKUP(H76,'Player Stats By Team'!C:AC,10,FALSE) -> 0 | S76: =VLOOKUP(H76,'Player Stats By Team'!C:AC,11,FALSE) -> 0 | T76: =VLOOKUP(H76,'Player Stats By Team'!C:AC,12,FALSE) -> 0 | U76: =VLOOKUP(H76,'Player Stats By Team'!C:AC,13,FALSE) -> 1 | V76: =VLOOKUP(H76,'Player Stats By Team'!C:AC,14,FALSE) -> 0 | W76: =VLOOKUP(H76,'Player Stats By Team'!C:AC,15,FALSE) -> 0 | X76: =VLOOKUP(H76,'Player Stats By Team'!C:AC,16,FALSE) -> 0 | Y76: =VLOOKUP(H76,'Player Stats By Team'!C:AC,17,FALSE) -> 0 | Z76: =VLOOKUP(H76,'Player Stats By Team'!C:AC,18,FALSE) -> 1 | AA76: =VLOOKUP(H76,'Player Stats By Team'!C:AC,19,FALSE) -> 0 | AB76: =VLOOKUP(H76,'Player Stats By Team'!C:AC,20,FALSE) -> 0 | AC76: =VLOOKUP(H76,'Player Stats By Team'!C:AC,21,FALSE) -> 0 | AD76: =VLOOKUP(H76,'Player Stats By Team'!C:AC,22,FALSE) -> 0 | AE76: =VLOOKUP(H76,'Player Stats By Team'!C:AC,23,FALSE) -> 0.35 | AF76: =VLOOKUP(H76,'Player Stats By Team'!C:AC,24,FALSE) -> 0.7 | AG76: =VLOOKUP(H76,'Player Stats By Team'!C:AC,25,FALSE) -> 0 | AH76: =VLOOKUP(H76,'Player Stats By Team'!C:AC,26,FALSE) -> 0
G77: OHL | H77: Daniil Zharkov | I77: Edmonton Oilers | J77: =VLOOKUP(H77,'Player Stats By Team'!C:AC,2,FALSE) -> LW | K77: =VLOOKUP(H77,'Player Stats By Team'!C:AC,3,FALSE) -> 19 | L77: =VLOOKUP(H77,'Player Stats By Team'!C:AC,4,FALSE) -> 6 | M77: =VLOOKUP(H77,'Player Stats By Team'!C:AC,5,FALSE) -> 3 | N77: =VLOOKUP(H77,'Player Stats By Team'!C:AC,6,FALSE) -> 9 | O77: =VLOOKUP(H77,'Player Stats By Team'!C:AC,7,FALSE) -> 1 | P77: =VLOOKUP(H77,'Player Stats By Team'!C:AC,8,FALSE) -> 4 | Q77: =VLOOKUP(H77,'Player Stats By Team'!C:AC,9,FALSE) -> 1 | R77: =VLOOKUP(H77,'Player Stats By Team'!C:AC,10,FALSE) -> 1 | S77: =VLOOKUP(H77,'Player Stats By Team'!C:AC,11,FALSE) -> 0 | T77: =VLOOKUP(H77,'Player Stats By Team'!C:AC,12,FALSE) -> 0 | U77: =VLOOKUP(H77,'Player Stats By Team'!C:AC,13,FALSE) -> 1 | V77: =VLOOKUP(H77,'Player Stats By Team'!C:AC,14,FALSE) -> 1 | W77: =VLOOKUP(H77,'Player Stats By Team'!C:AC,15,FALSE) -> 1 | X77: =VLOOKUP(H77,'Player Stats By Team'!C:AC,16,FALSE) -> 0 | Y77: =VLOOKUP(H77,'Player Stats By Team'!C:AC,17,FALSE) -> 0 | Z77: =VLOOKUP(H77,'Player Stats By Team'!C:AC,18,FALSE) -> 0 | AA77: =VLOOKUP(H77,'Player Stats By Team'!C:AC,19,FALSE) -> 0 | AB77: =VLOOKUP(H77,'Player Stats By Team'!C:AC,20,FALSE) -> 1 | AC77: =VLOOKUP(H77,'Player Stats By Team'!C:AC,21,FALSE) -> 0 | AD77: =VLOOKUP(H77,'Player Stats By Team'!C:AC,22,FALSE) -> 0 | AE77: =VLOOKUP(H77,'Player Stats By Team'!C:AC,23,FALSE) -> 0.47 | AF77: =VLOOKUP(H77,'Player Stats By Team'!C:AC,24,FALSE) -> 0.21 | AG77: =VLOOKUP(H77,'Player Stats By Team'!C:AC,25,FALSE) -> 0 | AH77: =VLOOKUP(H77,'Player Stats By Team'!C:AC,26,FALSE) -> 0
G78: OHL | H78: Matia Marcantuoni | I78: Pittsburgh Penguins | J78: =VLOOKUP(H78,'Player Stats By Team'!C:AC,2,FALSE) -> LW | K78: =VLOOKUP(H78,'Player Stats By Team'!C:AC,3,FALSE) -> 16 | L78: =VLOOKUP(H78,'Player Stats By Team'!C:AC,4,FALSE) -> 2 | M78: =VLOOKUP(H78,'Player Stats By Team'!C:AC,5,FALSE) -> 3 | N78: =VLOOKUP(H78,'Player Stats By Team'!C:AC,6,FALSE) -> 5 | O78: =VLOOKUP(H78,'Player Stats By Team'!C:AC,7,FALSE) -> -1 | P78: =VLOOKUP(H78,'Player Stats By Team'!C:AC,8,FALSE) -> 8 | Q78: =VLOOKUP(H78,'Player Stats By Team'!C:AC,9,FALSE) -> 0 | R78: =VLOOKUP(H78,'Player Stats By Team'!C:AC,10,FALSE) -> 0 | S78: =VLOOKUP(H78,'Player Stats By Team'!C:AC,11,FALSE) -> 1 | T78: =VLOOKUP(H78,'Player Stats By Team'!C:AC,12,FALSE) -> 0 | U78: =VLOOKUP(H78,'Player Stats By Team'!C:AC,13,FALSE) -> 0 | V78: =VLOOKUP(H78,'Player Stats By Team'!C:AC,14,FALSE) -> 0 | W78: =VLOOKUP(H78,'Player Stats By Team'!C:AC,15,FALSE) -> 0 | X78: =VLOOKUP(H78,'Player Stats By Team'!C:AC,16,FALSE) -> 0 | Y78: =VLOOKUP(H78,'Player Stats By Team'!C:AC,17,FALSE) -> 0 | Z78: =VLOOKUP(H78,'Player Stats By Team'!C:AC,18,FALSE) -> 0 | AA78: =VLOOKUP(H78,'Player Stats By Team'!C:AC,19,FALSE) -> 1 | AB78: =VLOOKUP(H78,'Player Stats By Team'!C:AC,20,FALSE) -> 1 | AC78: =VLOOKUP(H78,'Player Stats By Team'!C:AC,21,FALSE) -> 1 | AD78: =VLOOKUP(H78,'Player Stats By Team'!C:AC,22,FALSE) -> 1 | AE78: =VLOOKUP(H78,'Player Stats By Team'!C:AC,23,FALSE) -> 0.31 | AF78: =VLOOKUP(H78,'Player Stats By Team'!C:AC,24,FALSE) -> 0.5 | AG78: =VLOOKUP(H78,'Player Stats By Team'!C:AC,25,FALSE) -> 0 | AH78: =VLOOKUP(H78,'Player Stats By Team'!C:AC,26,FALSE) -> 0
G79: OHL | H79: Brady Vail | I79: Montreal Canadiens | J79: =VLOOKUP(H79,'Player Stats By Team'!C:AC,2,FALSE) -> C | K79: =VLOOKUP(H79,'Player Stats By Team'!C:AC,3,FALSE) -> 20 | L79: =VLOOKUP(H79,'Player Stats By Team'!C:AC,4,FALSE) -> 7 | M79: =VLOOKUP(H79,'Player Stats By Team'!C:AC,5,FALSE) -> 15 | N79: =VLOOKUP(H79,'Player Stats By Team'!C:AC,6,FALSE) -> 22 | O79: =VLOOKUP(H79,'Player Stats By Team'!C:AC,7,FALSE) -> -1 | P79: =VLOOKUP(H79,'Player Stats By Team'!C:AC,8,FALSE) -> 16 | Q79: =VLOOKUP(H79,'Player Stats By Team'!C:AC,9,FALSE) -> 2 | R79: =VLOOKUP(H79,'Player Stats By Team'!C:AC,10,FALSE) -> 7 | S79: =VLOOKUP(H79,'Player Stats By Team'!C:AC,11,FALSE) -> 0 | T79: =VLOOKUP(H79,'Player Stats By Team'!C:AC,12,FALSE) -> 0 | U79: =VLOOKUP(H79,'Player Stats By Team'!C:AC,13,FALSE) -> 2 | V79: =VLOOKUP(H79,'Player Stats By Team'!C:AC,14,FALSE) -> 1 | W79: =VLOOKUP(H79,'Player Stats By Team'!C:AC,15,FALSE) -> 0 | X79: =VLOOKUP(H79,'Player Stats By Team'!C:AC,16,FALSE) -> 0 | Y79: =VLOOKUP(H79,'Player Stats By Team'!C:AC,17,FALSE) -> 0 | Z79: =VLOOKUP(H79,'Player Stats By Team'!C:AC,18,FALSE) -> 0 | AA79: =VLOOKUP(H79,'Player Stats By Team'!C:AC,19,FALSE) -> 0 | AB79: =VLOOKUP(H79,'Player Stats By Team'!C:AC,20,FALSE) -> 2 | AC79: =VLOOKUP(H79,'Player Stats By Team'!C:AC,21,FALSE) -> 0 | AD79: =VLOOKUP(H79,'Player Stats By Team'!C:AC,22,FALSE) -> 0 | AE79: =VLOOKUP(H79,'Player Stats By Team'!C:AC,23,FALSE) -> 1.1 | AF79: =VLOOKUP(H79,'Player Stats By Team'!C:AC,24,FALSE) -> 0.8 | AG79: =VLOOKUP(H79,'Player Stats By Team'!C:AC,25,FALSE) -> 0 | AH79: =VLOOKUP(H79,'Player Stats By Team'!C:AC,26,FALSE) -> 0
G80: OHL | H80: Josh Anderson | I80: Columbus Blue Jackets | J80: =VLOOKUP(H80,'Player Stats By Team'!C:AC,2,FALSE) -> RW | K80: =VLOOKUP(H80,'Player Stats By Team'!C:AC,3,FALSE) -> 20 | L80: =VLOOKUP(H80,'Player Stats By Team'!C:AC,4,FALSE) -> 5 | M80: =VLOOKUP(H80,'Player Stats By Team'!C:AC,5,FALSE) -> 10 | N80: =VLOOKUP(H80,'Player Stats By Team'!C:AC,6,FALSE) -> 15 | O80: =VLOOKUP(H80,'Player Stats By Team'!C:AC,7,FALSE) -> 2 | P80: =VLOOKUP(H80,'Player Stats By Team'!C:AC,8,FALSE) -> 25 | Q80: =VLOOKUP(H80,'Player Stats By Team'!C:AC,9,FALSE) -> 1 | R80: =VLOOKUP(H80,'Player Stats By Team'!C:AC,10,FALSE) -> 2 | S80: =VLOOKUP(H80,'Player Stats By Team'!C:AC,11,FALSE) -> 0 | T80: =VLOOKUP(H80,'Player Stats By Team'!C:AC,12,FALSE) -> 0 | U80: =VLOOKUP(H80,'Player Stats By Team'!C:AC,13,FALSE) -> 0 | V80: =VLOOKUP(H80,'Player Stats By Team'!C:AC,14,FALSE) -> 1 | W80: =VLOOKUP(H80,'Player Stats By Team'!C:AC,15,FALSE) -> 1 | X80: =VLOOKUP(H80,'Player Stats By Team'!C:AC,16,FALSE) -> 0 | Y80: =VLOOKUP(H80,'Player Stats By Team'!C:AC,17,FALSE) -> 0 | Z80: =VLOOKUP(H80,'Player Stats By Team'!C:AC,18,FALSE) -> 0 | AA80: =VLOOKUP(H80,'Player Stats By Team'!C:AC,19,FALSE) -> 0 | AB80: =VLOOKUP(H80,'Player Stats By Team'!C:AC,20,FALSE) -> 0 | AC80: =VLOOKUP(H80,'Player Stats By Team'!C:AC,21,FALSE) -> 0 | AD80: =VLOOKUP(H80,'Player Stats By Team'!C:AC,22,FALSE) -> 0 | AE80: =VLOOKUP(H80,'Player Stats By Team'!C:AC,23,FALSE) -> 0.75 | AF80: =VLOOKUP(H80,'Player Stats By Team'!C:AC,24,FALSE) -> 1.25 | AG80: =VLOOKUP(H80,'Player Stats By Team'!C:AC,25,FALSE) -> 0 | AH80: =VLOOKUP(H80,'Player Stats By Team'!C:AC,26,FALSE) -> 0
G81: OHL | H81: Ben Thomson | I81: New Jersey Devils | J81: =VLOOKUP(H81,'Player Stats By Team'!C:AC,2,FALSE) -> LW | K81: =VLOOKUP(H81,'Player Stats By Team'!C:AC,3,FALSE) -> 19 | L81: =VLOOKUP(H81,'Player Stats By Team'!C:AC,4,FALSE) -> 3 | M81: =VLOOKUP(H81,'Player Stats By Team'!C:AC,5,FALSE) -> 6 | N81: =VLOOKUP(H81,'Player Stats By Team'!C:AC,6,FALSE) -> 9 | O81: =VLOOKUP(H81,'Player Stats By Team'!C:AC,7,FALSE) -> -3 | P81: =VLOOKUP(H81,'Player Stats By Team'!C:AC,8,FALSE) -> 25 | Q81: =VLOOKUP(H81,'Player Stats By Team'!C:AC,9,FALSE) -> 0 | R81: =VLOOKUP(H81,'Player Stats By Team'!C:AC,10,FALSE) -> 3 | S81: =VLOOKUP(H81,'Player Stats By Team'!C:AC,11,FALSE) -> 0 | T81: =VLOOKUP(H81,'Player Stats By Team'!C:AC,12,FALSE) -> 1 | U81: =VLOOKUP(H81,'Player Stats By Team'!C:AC,13,FALSE) -> 0 | V81: =VLOOKUP(H81,'Player Stats By Team'!C:AC,14,FALSE) -> 2 | W81: =VLOOKUP(H81,'Player Stats By Team'!C:AC,15,FALSE) -> 1 | X81: =VLOOKUP(H81,'Player Stats By Team'!C:AC,16,FALSE) -> 0 | Y81: =VLOOKUP(H81,'Player Stats By Team'!C:AC,17,FALSE) -> 0 | Z81: =VLOOKUP(H81,'Player Stats By Team'!C:AC,18,FALSE) -> 0 | AA81: =VLOOKUP(H81,'Player Stats By Team'!C:AC,19,FALSE) -> 0 | AB81: =VLOOKUP(H81,'Player Stats By Team'!C:AC,20,FALSE) -> 0 | AC81: =VLOOKUP(H81,'Player Stats By Team'!C:AC,21,FALSE) -> 0 | AD81: =VLOOKUP(H81,'Player Stats By Team'!C:AC,22,FALSE) -> 0 | AE81: =VLOOKUP(H81,'Player Stats By Team'!C:AC,23,FALSE) -> 0.47 | AF81: =VLOOKUP(H81,'Player Stats By Team'!C:AC,24,FALSE) -> 1.32 | AG81: =VLOOKUP(H81,'Player Stats By Team'!C:AC,25,FALSE) -> 0 | AH81: =VLOOKUP(H81,'Player Stats By Team'!C:AC,26,FALSE) -> 0
G82: OHL | H82: Gemel Smith | I82: Dallas Stars | J82: =VLOOKUP(H82,'Player Stats By Team'!C:AC,2,FALSE) -> C | K82: =VLOOKUP(H82,'Player Stats By Team'!C:AC,3,FALSE) -> 20 | L82: =VLOOKUP(H82,'Player Stats By Team'!C:AC,4,FALSE) -> 11 | M82: =VLOOKUP(H82,'Player Stats By Team'!C:AC,5,FALSE) -> 14 | N82: =VLOOKUP(H82,'Player Stats By Team'!C:AC,6,FALSE) -> 25 | O82: =VLOOKUP(H82,'Player Stats By Team'!C:AC,7,FALSE) -> 13 | P82: =VLOOKUP(H82,'Player Stats By Team'!C:AC,8,FALSE) -> 24 | Q82: =VLOOKUP(H82,'Player Stats By Team'!C:AC,9,FALSE) -> 6 | R82: =VLOOKUP(H82,'Player Stats By Team'!C:AC,10,FALSE) -> 4 | S82: =VLOOKUP(H82,'Player Stats By Team'!C:AC,11,FALSE) -> 0 | T82: =VLOOKUP(H82,'Player Stats By Team'!C:AC,12,FALSE) -> 0 | U82: =VLOOKUP(H82,'Player Stats By Team'!C:AC,13,FALSE) -> 1 | V82: =VLOOKUP(H82,'Player Stats By Team'!C:AC,14,FALSE) -> 2 | W82: =VLOOKUP(H82,'Player Stats By Team'!C:AC,15,FALSE) -> 4 | X82: =VLOOKUP(H82,'Player Stats By Team'!C:AC,16,FALSE) -> 0 | Y82: =VLOOKUP(H82,'Player Stats By Team'!C:AC,17,FALSE) -> 1 | Z82: =VLOOKUP(H82,'Player Stats By Team'!C:AC,18,FALSE) -> 0 | AA82: =VLOOKUP(H82,'Player Stats By Team'!C:AC,19,FALSE) -> 0 | AB82: =VLOOKUP(H82,'Player Stats By Team'!C:AC,20,FALSE) -> 1 | AC82: =VLOOKUP(H82,'Player Stats By Team'!C:AC,21,FALSE) -> 0 | AD82: =VLOOKUP(H82,'Player Stats By Team'!C:AC,22,FALSE) -> 0 | AE82: =VLOOKUP(H82,'Player Stats By Team'!C:AC,23,FALSE) -> 1.25 | AF82: =VLOOKUP(H82,'Player Stats By Team'!C:AC,24,FALSE) -> 1.2 | AG82: =VLOOKUP(H82,'Player Stats By Team'!C:AC,25,FALSE) -> 0 | AH82: =VLOOKUP(H82,'Player Stats By Team'!C:AC,26,FALSE) -> 0
G83: OHL | H83: Andreas Athanasiou | I83: Detroit Red Wings | J83: =VLOOKUP(H83,'Player Stats By Team'!C:AC,2,FALSE) -> LW | K83: =VLOOKUP(H83,'Player Stats By Team'!C:AC,3,FALSE) -> 20 | L83: =VLOOKUP(H83,'Player Stats By Team'!C:AC,4,FALSE) -> 9 | M83: =VLOOKUP(H83,'Player Stats By Team'!C:AC,5,FALSE) -> 11 | N83: =VLOOKUP(H83,'Player Stats By Team'!C:AC,6,FALSE) -> 20 | O83: =VLOOKUP(H83,'Player Stats By Team'!C:AC,7,FALSE) -> 2 | P83: =VLOOKUP(H83,'Player Stats By Team'!C:AC,8,FALSE) -> 12 | Q83: =VLOOKUP(H83,'Player Stats By Team'!C:AC,9,FALSE) -> 3 | R83: =VLOOKUP(H83,'Player Stats By Team'!C:AC,10,FALSE) -> 4 | S83: =VLOOKUP(H83,'Player Stats By Team'!C:AC,11,FALSE) -> 0 | T83: =VLOOKUP(H83,'Player Stats By Team'!C:AC,12,FALSE) -> 0 | U83: =VLOOKUP(H83,'Player Stats By Team'!C:AC,13,FALSE) -> 3 | V83: =VLOOKUP(H83,'Player Stats By Team'!C:AC,14,FALSE) -> 2 | W83: =VLOOKUP(H83,'Player Stats By Team'!C:AC,15,FALSE) -> 1 | X83: =VLOOKUP(H83,'Player Stats By Team'!C:AC,16,FALSE) -> 0 | Y83: =VLOOKUP(H83,'Player Stats By Team'!C:AC,17,FALSE) -> 0 | Z83: =VLOOKUP(H83,'Player Stats By Team'!C:AC,18,FALSE) -> 0 | AA83: =VLOOKUP(H83,'Player Stats By Team'!C:AC,19,FALSE) -> 0 | AB83: =VLOOKUP(H83,'Player Stats By Team'!C:AC,20,FALSE) -> 3 | AC83: =VLOOKUP(H83,'Player Stats By Team'!C:AC,21,FALSE) -> 0 | AD83: =VLOOKUP(H83,'Player Stats By Team'!C:AC,22,FALSE) -> 0 | AE83: =VLOOKUP(H83,'Player Stats By Team'!C:AC,23,FALSE) -> 1 | AF83: =VLOOKUP(H83,'Player Stats By Team'!C:AC,24,FALSE) -> 0.6 | AG83: =VLOOKUP(H83,'Player Stats By Team'!C:AC,25,FALSE) -> 0 | AH83: =VLOOKUP(H83,'Player Stats By Team'!C:AC,26,FALSE) -> 0
G84: OHL | H84: Trevor Carrick | I84: Carolina Hurricanes | J84: =VLOOKUP(H84,'Player Stats By Team'!C:AC,2,FALSE) -> D | K84: =VLOOKUP(H84,'Player Stats By Team'!C:AC,3,FALSE) -> 18 | L84: =VLOOKUP(H84,'Player Stats By Team'!C:AC,4,FALSE) -> 3 | M84: =VLOOKUP(H84,'Player Stats By Team'!C:AC,5,FALSE) -> 9 | N84: =VLOOKUP(H84,'Player Stats By Team'!C:AC,6,FALSE) -> 12 | O84: =VLOOKUP(H84,'Player Stats By Team'!C:AC,7,FALSE) -> 7 | P84: =VLOOKUP(H84,'Player Stats By Team'!C:AC,8,FALSE) -> 30 | Q84: =VLOOKUP(H84,'Player Stats By Team'!C:AC,9,FALSE) -> 0 | R84: =VLOOKUP(H84,'Player Stats By Team'!C:AC,10,FALSE) -> 2 | S84: =VLOOKUP(H84,'Player Stats By Team'!C:AC,11,FALSE) -> 0 | T84: =VLOOKUP(H84,'Player Stats By Team'!C:AC,12,FALSE) -> 1 | U84: =VLOOKUP(H84,'Player Stats By Team'!C:AC,13,FALSE) -> 1 | V84: =VLOOKUP(H84,'Player Stats By Team'!C:AC,14,FALSE) -> 0 | W84: =VLOOKUP(H84,'Player Stats By Team'!C:AC,15,FALSE) -> 0 | X84: =VLOOKUP(H84,'Player Stats By Team'!C:AC,16,FALSE) -> 0 | Y84: =VLOOKUP(H84,'Player Stats By Team'!C:AC,17,FALSE) -> 2 | Z84: =VLOOKUP(H84,'Player Stats By Team'!C:AC,18,FALSE) -> 1 | AA84: =VLOOKUP(H84,'Player Stats By Team'!C:AC,19,FALSE) -> 0 | AB84: =VLOOKUP(H84,'Player Stats By Team'!C:AC,20,FALSE) -> 0 | AC84: =VLOOKUP(H84,'Player Stats By Team'!C:AC,21,FALSE) -> 0 | AD84: =VLOOKUP(H84,'Player Stats By Team'!C:AC,22,FALSE) -> 0 | AE84: =VLOOKUP(H84,'Player Stats By Team'!C:AC,23,FALSE) -> 0.67 | AF84: =VLOOKUP(H84,'Player Stats By Team'!C:AC,24,FALSE) -> 1.67 | AG84: =VLOOKUP(H84,'Player Stats By Team'!C:AC,25,FALSE) -> 0 | AH84: =VLOOKUP(H84,'Player Stats By Team'!C:AC,26,FALSE) -> 0
G85: OHL | H85: Seth Griffith | I85: Boston Bruins | J85: =VLOOKUP(H85,'Player Stats By Team'!C:AC,2,FALSE) -> RW | K85: =VLOOKUP(H85,'Player Stats By Team'!C:AC,3,FALSE) -> 20 | L85: =VLOOKUP(H85,'Player Stats By Team'!C:AC,4,FALSE) -> 14 | M85: =VLOOKUP(H85,'Player Stats By Team'!C:AC,5,FALSE) -> 17 | N85: =VLOOKUP(H85,'Player Stats By Team'!C:AC,6,FALSE) -> 31 | O85: =VLOOKUP(H85,'Player Stats By Team'!C:AC,7,FALSE) -> 7 | P85: =VLOOKUP(H85,'Player Stats By Team'!C:AC,8,FALSE) -> 24 | Q85: =VLOOKUP(H85,'Player Stats By Team'!C:AC,9,FALSE) -> 5 | R85: =VLOOKUP(H85,'Player Stats By Team'!C:AC,10,FALSE) -> 8 | S85: =VLOOKUP(H85,'Player Stats By Team'!C:AC,11,FALSE) -> 1 | T85: =VLOOKUP(H85,'Player Stats By Team'!C:AC,12,FALSE) -> 1 | U85: =VLOOKUP(H85,'Player Stats By Team'!C:AC,13,FALSE) -> 1 | V85: =VLOOKUP(H85,'Player Stats By Team'!C:AC,14,FALSE) -> 2 | W85: =VLOOKUP(H85,'Player Stats By Team'!C:AC,15,FALSE) -> 0 | X85: =VLOOKUP(H85,'Player Stats By Team'!C:AC,16,FALSE) -> 0 | Y85: =VLOOKUP(H85,'Player Stats By Team'!C:AC,17,FALSE) -> 0 | Z85: =VLOOKUP(H85,'Player Stats By Team'!C:AC,18,FALSE) -> 0 | AA85: =VLOOKUP(H85,'Player Stats By Team'!C:AC,19,FALSE) -> 0 | AB85: =VLOOKUP(H85,'Player Stats By Team'!C:AC,20,FALSE) -> 4 | AC85: =VLOOKUP(H85,'Player Stats By Team'!C:AC,21,FALSE) -> 0 | AD85: =VLOOKUP(H85,'Player Stats By Team'!C:AC,22,FALSE) -> 0 | AE85: =VLOOKUP(H85,'Player Stats By Team'!C:AC,23,FALSE) -> 1.55 | AF85: =VLOOKUP(H85,'Player Stats By Team'!C:AC,24,FALSE) -> 1.2 | AG85: =VLOOKUP(H85,'Player Stats By Team'!C:AC,25,FALSE) -> 0 | AH85: =VLOOKUP(H85,'Player Stats By Team'!C:AC,26,FALSE) -> 0
G86: OHL | H86: Michael Clarke | I86: Colorado Avalanche | J86: =VLOOKUP(H86,'Player Stats By Team'!C:AC,2,FALSE) -> C | K86: =VLOOKUP(H86,'Player Stats By Team'!C:AC,3,FALSE) -> 20 | L86: =VLOOKUP(H86,'Player Stats By Team'!C:AC,4,FALSE) -> 7 | M86: =VLOOKUP(H86,'Player Stats By Team'!C:AC,5,FALSE) -> 6 | N86: =VLOOKUP(H86,'Player Stats By Team'!C:AC,6,FALSE) -> 13 | O86: =VLOOKUP(H86,'Player Stats By Team'!C:AC,7,FALSE) -> -3 | P86: =VLOOKUP(H86,'Player Stats By Team'!C:AC,8,FALSE) -> 10 | Q86: =VLOOKUP(H86,'Player Stats By Team'!C:AC,9,FALSE) -> 4 | R86: =VLOOKUP(H86,'Player Stats By Team'!C:AC,10,FALSE) -> 3 | S86: =VLOOKUP(H86,'Player Stats By Team'!C:AC,11,FALSE) -> 0 | T86: =VLOOKUP(H86,'Player Stats By Team'!C:AC,12,FALSE) -> 0 | U86: =VLOOKUP(H86,'Player Stats By Team'!C:AC,13,FALSE) -> 1 | V86: =VLOOKUP(H86,'Player Stats By Team'!C:AC,14,FALSE) -> 1 | W86: =VLOOKUP(H86,'Player Stats By Team'!C:AC,15,FALSE) -> 2 | X86: =VLOOKUP(H86,'Player Stats By Team'!C:AC,16,FALSE) -> 0 | Y86: =VLOOKUP(H86,'Player Stats By Team'!C:AC,17,FALSE) -> 2 | Z86: =VLOOKUP(H86,'Player Stats By Team'!C:AC,18,FALSE) -> 2 | AA86: =VLOOKUP(H86,'Player Stats By Team'!C:AC,19,FALSE) -> 0 | AB86: =VLOOKUP(H86,'Player Stats By Team'!C:AC,20,FALSE) -> 3 | AC86: =VLOOKUP(H86,'Player Stats By Team'!C:AC,21,FALSE) -> 0 | AD86: =VLOOKUP(H86,'Player Stats By Team'!C:AC,22,FALSE) -> 0 | AE86: =VLOOKUP(H86,'Player Stats By Team'!C:AC,23,FALSE) -> 0.65 | AF86: =VLOOKUP(H86,'Player Stats By Team'!C:AC,24,FALSE) -> 0.5 | AG86: =VLOOKUP(H86,'Player Stats By Team'!C:AC,25,FALSE) -> 0 | AH86: =VLOOKUP(H86,'Player Stats By Team'!C:AC,26,FALSE) -> 0
G87: OHL | H87: Garret Ross | I87: Chicago Blackhawks | J87: =VLOOKUP(H87,'Player Stats By Team'!C:AC,2,FALSE) -> LW | K87: =VLOOKUP(H87,'Player Stats By Team'!C:AC,3,FALSE) -> 21 | L87: =VLOOKUP(H87,'Player Stats By Team'!C:AC,4,FALSE) -> 11 | M87: =VLOOKUP(H87,'Player Stats By Team'!C:AC,5,FALSE) -> 14 | N87: =VLOOKUP(H87,'Player Stats By Team'!C:AC,6,FALSE) -> 25 | O87: =VLOOKUP(H87,'Player Stats By Team'!C:AC,7,FALSE) -> 7 | P87: =VLOOKUP(H87,'Player Stats By Team'!C:AC,8,FALSE) -> 47 | Q87: =VLOOKUP(H87,'Player Stats By Team'!C:AC,9,FALSE) -> 4 | R87: =VLOOKUP(H87,'Player Stats By Team'!C:AC,10,FALSE) -> 3 | S87: =VLOOKUP(H87,'Player Stats By Team'!C:AC,11,FALSE) -> 0 | T87: =VLOOKUP(H87,'Player Stats By Team'!C:AC,12,FALSE) -> 0 | U87: =VLOOKUP(H87,'Player Stats By Team'!C:AC,13,FALSE) -> 1 | V87: =VLOOKUP(H87,'Player Stats By Team'!C:AC,14,FALSE) -> 1 | W87: =VLOOKUP(H87,'Player Stats By Team'!C:AC,15,FALSE) -> 1 | X87: =VLOOKUP(H87,'Player Stats By Team'!C:AC,16,FALSE) -> 1 | Y87: =VLOOKUP(H87,'Player Stats By Team'!C:AC,17,FALSE) -> 0 | Z87: =VLOOKUP(H87,'Player Stats By Team'!C:AC,18,FALSE) -> 0 | AA87: =VLOOKUP(H87,'Player Stats By Team'!C:AC,19,FALSE) -> 1 | AB87: =VLOOKUP(H87,'Player Stats By Team'!C:AC,20,FALSE) -> 2 | AC87: =VLOOKUP(H87,'Player Stats By Team'!C:AC,21,FALSE) -> 1 | AD87: =VLOOKUP(H87,'Player Stats By Team'!C:AC,22,FALSE) -> 0.5 | AE87: =VLOOKUP(H87,'Player Stats By Team'!C:AC,23,FALSE) -> 1.19 | AF87: =VLOOKUP(H87,'Player Stats By Team'!C:AC,24,FALSE) -> 2.24 | AG87: =VLOOKUP(H87,'Player Stats By Team'!C:AC,25,FALSE) -> 0 | AH87: =VLOOKUP(H87,'Player Stats By Team'!C:AC,26,FALSE) -> 0
G88: OHL | H88: Clark Seymour | I88: Pittsburgh Penguins | J88: =VLOOKUP(H88,'Player Stats By Team'!C:AC,2,FALSE) -> D | K88: =VLOOKUP(H88,'Player Stats By Team'!C:AC,3,FALSE) -> 20 | L88: =VLOOKUP(H88,'Player Stats By Team'!C:AC,4,FALSE) -> 2 | M88: =VLOOKUP(H88,'Player Stats By Team'!C:AC,5,FALSE) -> 6 | N88: =VLOOKUP(H88,'Player Stats By Team'!C:AC,6,FALSE) -> 8 | O88: =VLOOKUP(H88,'Player Stats By Team'!C:AC,7,FALSE) -> -2 | P88: =VLOOKUP(H88,'Player Stats By Team'!C:AC,8,FALSE) -> 17 | Q88: =VLOOKUP(H88,'Player Stats By Team'!C:AC,9,FALSE) -> 0 | R88: =VLOOKUP(H88,'Player Stats By Team'!C:AC,10,FALSE) -> 1 | S88: =VLOOKUP(H88,'Player Stats By Team'!C:AC,11,FALSE) -> 0 | T88: =VLOOKUP(H88,'Player Stats By Team'!C:AC,12,FALSE) -> 0 | U88: =VLOOKUP(H88,'Player Stats By Team'!C:AC,13,FALSE) -> 0 | V88: =VLOOKUP(H88,'Player Stats By Team'!C:AC,14,FALSE) -> 0 | W88: =VLOOKUP(H88,'Player Stats By Team'!C:AC,15,FALSE) -> 0 | X88: =VLOOKUP(H88,'Player Stats By Team'!C:AC,16,FALSE) -> 0 | Y88: =VLOOKUP(H88,'Player Stats By Team'!C:AC,17,FALSE) -> 0 | Z88: =VLOOKUP(H88,'Player Stats By Team'!C:AC,18,FALSE) -> 0 | AA88: =VLOOKUP(H88,'Player Stats By Team'!C:AC,19,FALSE) -> 0 | AB88: =VLOOKUP(H88,'Player Stats By Team'!C:AC,20,FALSE) -> 0 | AC88: =VLOOKUP(H88,'Player Stats By Team'!C:AC,21,FALSE) -> 0 | AD88: =VLOOKUP(H88,'Player Stats By Team'!C:AC,22,FALSE) -> 0 | AE88: =VLOOKUP(H88,'Player Stats By Team'!C:AC,23,FALSE) -> 0.4 | AF88: =VLOOKUP(H88,'Player Stats By Team'!C:AC,24,FALSE) -> 0.85 | AG88: =VLOOKUP(H88,'Player Stats By Team'!C:AC,25,FALSE) -> 0 | AH88: =VLOOKUP(H88,'Player Stats By Team'!C:AC,26,FALSE) -> 0
G89: OHL | H89: Cody Payne | I89: Boston Bruins | J89: =VLOOKUP(H89,'Player Stats By Team'!C:AC,2,FALSE) -> RW | K89: =VLOOKUP(H89,'Player Stats By Team'!C:AC,3,FALSE) -> 19 | L89: =VLOOKUP(H89,'Player Stats By Team'!C:AC,4,FALSE) -> 8 | M89: =VLOOKUP(H89,'Player Stats By Team'!C:AC,5,FALSE) -> 6 | N89: =VLOOKUP(H89,'Player Stats By Team'!C:AC,6,FALSE) -> 14 | O89: =VLOOKUP(H89,'Player Stats By Team'!C:AC,7,FALSE) -> 6 | P89: =VLOOKUP(H89,'Player Stats By Team'!C:AC,8,FALSE) -> 29 | Q89: =VLOOKUP(H89,'Player Stats By Team'!C:AC,9,FALSE) -> 0 | R89: =VLOOKUP(H89,'Player Stats By Team'!C:AC,10,FALSE) -> 1 | S89: =VLOOKUP(H89,'Player Stats By Team'!C:AC,11,FALSE) -> 0 | T89: =VLOOKUP(H89,'Player Stats By Team'!C:AC,12,FALSE) -> 0 | U89: =VLOOKUP(H89,'Player Stats By Team'!C:AC,13,FALSE) -> 1 | V89: =VLOOKUP(H89,'Player Stats By Team'!C:AC,14,FALSE) -> 1 | W89: =VLOOKUP(H89,'Player Stats By Team'!C:AC,15,FALSE) -> 0 | X89: =VLOOKUP(H89,'Player Stats By Team'!C:AC,16,FALSE) -> 0 | Y89: =VLOOKUP(H89,'Player Stats By Team'!C:AC,17,FALSE) -> 1 | Z89: =VLOOKUP(H89,'Player Stats By Team'!C:AC,18,FALSE) -> 0 | AA89: =VLOOKUP(H89,'Player Stats By Team'!C:AC,19,FALSE) -> 0 | AB89: =VLOOKUP(H89,'Player Stats By Team'!C:AC,20,FALSE) -> 0 | AC89: =VLOOKUP(H89,'Player Stats By Team'!C:AC,21,FALSE) -> 0 | AD89: =VLOOKUP(H89,'Player Stats By Team'!C:AC,22,FALSE) -> 0 | AE89: =VLOOKUP(H89,'Player Stats By Team'!C:AC,23,FALSE) -> 0.74 | AF89: =VLOOKUP(H89,'Player Stats By Team'!C:AC,24,FALSE) -> 1.53 | AG89: =VLOOKUP(H89,'Player Stats By Team'!C:AC,25,FALSE) -> 0 | AH89: =VLOOKUP(H89,'Player Stats By Team'!C:AC,26,FALSE) -> 0
G90: OHL | H90: Colin Miller | I90: Los Angeles Kings | J90: =VLOOKUP(H90,'Player Stats By Team'!C:AC,2,FALSE) -> D | K90: =VLOOKUP(H90,'Player Stats By Team'!C:AC,3,FALSE) -> 8 | L90: =VLOOKUP(H90,'Player Stats By Team'!C:AC,4,FALSE) -> 4 | M90: =VLOOKUP(H90,'Player Stats By Team'!C:AC,5,FALSE) -> 3 | N90: =VLOOKUP(H90,'Player Stats By Team'!C:AC,6,FALSE) -> 7 | O90: =VLOOKUP(H90,'Player Stats By Team'!C:AC,7,FALSE) -> -3 | P90: =VLOOKUP(H90,'Player Stats By Team'!C:AC,8,FALSE) -> 13 | Q90: =VLOOKUP(H90,'Player Stats By Team'!C:AC,9,FALSE) -> 3 | R90: =VLOOKUP(H90,'Player Stats By Team'!C:AC,10,FALSE) -> 2 | S90: =VLOOKUP(H90,'Player Stats By Team'!C:AC,11,FALSE) -> 0 | T90: =VLOOKUP(H90,'Player Stats By Team'!C:AC,12,FALSE) -> 0 | U90: =VLOOKUP(H90,'Player Stats By Team'!C:AC,13,FALSE) -> 1 | V90: =VLOOKUP(H90,'Player Stats By Team'!C:AC,14,FALSE) -> 1 | W90: =VLOOKUP(H90,'Player Stats By Team'!C:AC,15,FALSE) -> 0 | X90: =VLOOKUP(H90,'Player Stats By Team'!C:AC,16,FALSE) -> 0 | Y90: =VLOOKUP(H90,'Player Stats By Team'!C:AC,17,FALSE) -> 0 | Z90: =VLOOKUP(H90,'Player Stats By Team'!C:AC,18,FALSE) -> 0 | AA90: =VLOOKUP(H90,'Player Stats By Team'!C:AC,19,FALSE) -> 0 | AB90: =VLOOKUP(H90,'Player Stats By Team'!C:AC,20,FALSE) -> 0 | AC90: =VLOOKUP(H90,'Player Stats By Team'!C:AC,21,FALSE) -> 0 | AD90: =VLOOKUP(H90,'Player Stats By Team'!C:AC,22,FALSE) -> 0 | AE90: =VLOOKUP(H90,'Player Stats By Team'!C:AC,23,FALSE) -> 0.88 | AF90: =VLOOKUP(H90,'Player Stats By Team'!C:AC,24,FALSE) -> 1.63 | AG90: =VLOOKUP(H90,'Player Stats By Team'!C:AC,25,FALSE) -> 0 | AH90: =VLOOKUP(H90,'Player Stats By Team'!C:AC,26,FALSE) -> 0
G91: OHL | H91: Jesse Graham | I91: New York Islanders | J91: =VLOOKUP(H91,'Player Stats By Team'!C:AC,2,FALSE) ->  | K91: =VLOOKUP(H91,'Player Stats By Team'!C:AC,3,FALSE) ->  | L91: =VLOOKUP(H91,'Player Stats By Team'!C:AC,4,FALSE) ->  | M91: =VLOOKUP(H91,'Player Stats By Team'!C:AC,5,FALSE) ->  | N91: =VLOOKUP(H91,'Player Stats By Team'!C:AC,6,FALSE) ->  | O91: =VLOOKUP(H91,'Player Stats By Team'!C:AC,7,FALSE) ->  | P91: =VLOOKUP(H91,'Player Stats By Team'!C:AC,8,FALSE) ->  | Q91: =VLOOKUP(H91,'Player Stats By Team'!C:AC,9,FALSE) ->  | R91: =VLOOKUP(H91,'Player Stats By Team'!C:AC,10,FALSE) ->  | S91: =VLOOKUP(H91,'Player Stats By Team'!C:AC,11,FALSE) ->  | T91: =VLOOKUP(H91,'Player Stats By Team'!C:AC,12,FALSE) ->  | U91: =VLOOKUP(H91,'Player Stats By Team'!C:AC,13,FALSE) ->  | V91: =VLOOKUP(H91,'Player Stats By Team'!C:AC,14,FALSE) ->  | W91: =VLOOKUP(H91,'Player Stats By Team'!C:AC,15,FALSE) ->  | X91: =VLOOKUP(H91,'Player Stats By Team'!C:AC,16,FALSE) ->  | Y91: =VLOOKUP(H91,'Player Stats By Team'!C:AC,17,FALSE) ->  | Z91: =VLOOKUP(H91,'Player Stats By Team'!C:AC,18,FALSE) ->  | AA91: =VLOOKUP(H91,'Player Stats By Team'!C:AC,19,FALSE) ->  | AB91: =VLOOKUP(H91,'Player Stats By Team'!C:AC,20,FALSE) ->  | AC91: =VLOOKUP(H91,'Player Stats By Team'!C:AC,21,FALSE) ->  | AD91: =VLOOKUP(H91,'Player Stats By Team'!C:AC,22,FALSE) ->  | AE91: =VLOOKUP(H91,'Player Stats By Team'!C:AC,23,FALSE) ->  | AF91: =VLOOKUP(H91,'Player Stats By Team'!C:AC,24,FALSE) ->  | AG91: =VLOOKUP(H91,'Player Stats By Team'!C:AC,25,FALSE) ->  | AH91: =VLOOKUP(H91,'Player Stats By Team'!C:AC,26,FALSE) -> 
G92: OHL | H92: Connor Brown | I92: Toronto Maple Leafs | J92: =VLOOKUP(H92,'Player Stats By Team'!C:AC,2,FALSE) -> RW | K92: =VLOOKUP(H92,'Player Stats By Team'!C:AC,3,FALSE) -> 20 | L92: =VLOOKUP(H92,'Player Stats By Team'!C:AC,4,FALSE) -> 16 | M92: =VLOOKUP(H92,'Player Stats By Team'!C:AC,5,FALSE) -> 12 | N92: =VLOOKUP(H92,'Player Stats By Team'!C:AC,6,FALSE) -> 28 | O92: =VLOOKUP(H92,'Player Stats By Team'!C:AC,7,FALSE) -> 2 | P92: =VLOOKUP(H92,'Player Stats By Team'!C:AC,8,FALSE) -> 8 | Q92: =VLOOKUP(H92,'Player Stats By Team'!C:AC,9,FALSE) -> 11 | R92: =VLOOKUP(H92,'Player Stats By Team'!C:AC,10,FALSE) -> 1 | S92: =VLOOKUP(H92,'Player Stats By Team'!C:AC,11,FALSE) -> 0 | T92: =VLOOKUP(H92,'Player Stats By Team'!C:AC,12,FALSE) -> 1 | U92: =VLOOKUP(H92,'Player Stats By Team'!C:AC,13,FALSE) -> 0 | V92: =VLOOKUP(H92,'Player Stats By Team'!C:AC,14,FALSE) -> 1 | W92: =VLOOKUP(H92,'Player Stats By Team'!C:AC,15,FALSE) -> 1 | X92: =VLOOKUP(H92,'Player Stats By Team'!C:AC,16,FALSE) -> 0 | Y92: =VLOOKUP(H92,'Player Stats By Team'!C:AC,17,FALSE) -> 2 | Z92: =VLOOKUP(H92,'Player Stats By Team'!C:AC,18,FALSE) -> 0 | AA92: =VLOOKUP(H92,'Player Stats By Team'!C:AC,19,FALSE) -> 1 | AB92: =VLOOKUP(H92,'Player Stats By Team'!C:AC,20,FALSE) -> 3 | AC92: =VLOOKUP(H92,'Player Stats By Team'!C:AC,21,FALSE) -> 1 | AD92: =VLOOKUP(H92,'Player Stats By Team'!C:AC,22,FALSE) -> 0.333 | AE92: =VLOOKUP(H92,'Player Stats By Team'!C:AC,23,FALSE) -> 1.4 | AF92: =VLOOKUP(H92,'Player Stats By Team'!C:AC,24,FALSE) -> 0.4 | AG92: =VLOOKUP(H92,'Player Stats By Team'!C:AC,25,FALSE) -> 0 | AH92: =VLOOKUP(H92,'Player Stats By Team'!C:AC,26,FALSE) -> 0
G93: OHL | H93: Ryan Rupert | I93: Toronto Maple Leafs | J93: =VLOOKUP(H93,'Player Stats By Team'!C:AC,2,FALSE) -> C | K93: =VLOOKUP(H93,'Player Stats By Team'!C:AC,3,FALSE) -> 15 | L93: =VLOOKUP(H93,'Player Stats By Team'!C:AC,4,FALSE) -> 0 | M93: =VLOOKUP(H93,'Player Stats By Team'!C:AC,5,FALSE) -> 7 | N93: =VLOOKUP(H93,'Player Stats By Team'!C:AC,6,FALSE) -> 7 | O93: =VLOOKUP(H93,'Player Stats By Team'!C:AC,7,FALSE) -> 4 | P93: =VLOOKUP(H93,'Player Stats By Team'!C:AC,8,FALSE) -> 36 | Q93: =VLOOKUP(H93,'Player Stats By Team'!C:AC,9,FALSE) -> 0 | R93: =VLOOKUP(H93,'Player Stats By Team'!C:AC,10,FALSE) -> 2 | S93: =VLOOKUP(H93,'Player Stats By Team'!C:AC,11,FALSE) -> 0 | T93: =VLOOKUP(H93,'Player Stats By Team'!C:AC,12,FALSE) -> 0 | U93: =VLOOKUP(H93,'Player Stats By Team'!C:AC,13,FALSE) -> 0 | V93: =VLOOKUP(H93,'Player Stats By Team'!C:AC,14,FALSE) -> 0 | W93: =VLOOKUP(H93,'Player Stats By Team'!C:AC,15,FALSE) -> 0 | X93: =VLOOKUP(H93,'Player Stats By Team'!C:AC,16,FALSE) -> 0 | Y93: =VLOOKUP(H93,'Player Stats By Team'!C:AC,17,FALSE) -> 0 | Z93: =VLOOKUP(H93,'Player Stats By Team'!C:AC,18,FALSE) -> 0 | AA93: =VLOOKUP(H93,'Player Stats By Team'!C:AC,19,FALSE) -> 0 | AB93: =VLOOKUP(H93,'Player Stats By Team'!C:AC,20,FALSE) -> 2 | AC93: =VLOOKUP(H93,'Player Stats By Team'!C:AC,21,FALSE) -> 0 | AD93: =VLOOKUP(H93,'Player Stats By Team'!C:AC,22,FALSE) -> 0 | AE93: =VLOOKUP(H93,'Player Stats By Team'!C:AC,23,FALSE) -> 0.47 | AF93: =VLOOKUP(H93,'Player Stats By Team'!C:AC,24,FALSE) -> 2.4 | AG93: =VLOOKUP(H93,'Player Stats By Team'!C:AC,25,FALSE) -> 0 | AH93: =VLOOKUP(H93,'Player Stats By Team'!C:AC,26,FALSE) -> 0
G94: OHL | H94: Jake Dotchin | I94: Tampa Bay Lightning | J94: =VLOOKUP(H94,'Player Stats By Team'!C:AC,2,FALSE) -> D | K94: =VLOOKUP(H94,'Player Stats By Team'!C:AC,3,FALSE) -> 20 | L94: =VLOOKUP(H94,'Player Stats By Team'!C:AC,4,FALSE) -> 1 | M94: =VLOOKUP(H94,'Player Stats By Team'!C:AC,5,FALSE) -> 4 | N94: =VLOOKUP(H94,'Player Stats By Team'!C:AC,6,FALSE) -> 5 | O94: =VLOOKUP(H94,'Player Stats By Team'!C:AC,7,FALSE) -> 1 | P94: =VLOOKUP(H94,'Player Stats By Team'!C:AC,8,FALSE) -> 22 | Q94: =VLOOKUP(H94,'Player Stats By Team'!C:AC,9,FALSE) -> 0 | R94: =VLOOKUP(H94,'Player Stats By Team'!C:AC,10,FALSE) -> 2 | S94: =VLOOKUP(H94,'Player Stats By Team'!C:AC,11,FALSE) -> 1 | T94: =VLOOKUP(H94,'Player Stats By Team'!C:AC,12,FALSE) -> 0 | U94: =VLOOKUP(H94,'Player Stats By Team'!C:AC,13,FALSE) -> 0 | V94: =VLOOKUP(H94,'Player Stats By Team'!C:AC,14,FALSE) -> 0 | W94: =VLOOKUP(H94,'Player Stats By Team'!C:AC,15,FALSE) -> 0 | X94: =VLOOKUP(H94,'Player Stats By Team'!C:AC,16,FALSE) -> 0 | Y94: =VLOOKUP(H94,'Player Stats By Team'!C:AC,17,FALSE) -> 0 | Z94: =VLOOKUP(H94,'Player Stats By Team'!C:AC,18,FALSE) -> 1 | AA94: =VLOOKUP(H94,'Player Stats By Team'!C:AC,19,FALSE) -> 0 | AB94: =VLOOKUP(H94,'Player Stats By Team'!C:AC,20,FALSE) -> 0 | AC94: =VLOOKUP(H94,'Player Stats By Team'!C:AC,21,FALSE) -> 0 | AD94: =VLOOKUP(H94,'Player Stats By Team'!C:AC,22,FALSE) -> 0 | AE94: =VLOOKUP(H94,'Player Stats By Team'!C:AC,23,FALSE) -> 0.25 | AF94: =VLOOKUP(H94,'Player Stats By Team'!C:AC,24,FALSE) -> 1.1 | AG94: =VLOOKUP(H94,'Player Stats By Team'!C:AC,25,FALSE) -> 0 | AH94: =VLOOKUP(H94,'Player Stats By Team'!C:AC,26,FALSE) -> 0
G95: OHL | H95: Joseph Blandisi | I95: Colorado Avalanche | J95: =VLOOKUP(H95,'Player Stats By Team'!C:AC,2,FALSE) -> RW | K95: =VLOOKUP(H95,'Player Stats By Team'!C:AC,3,FALSE) -> 19 | L95: =VLOOKUP(H95,'Player Stats By Team'!C:AC,4,FALSE) -> 6 | M95: =VLOOKUP(H95,'Player Stats By Team'!C:AC,5,FALSE) -> 8 | N95: =VLOOKUP(H95,'Player Stats By Team'!C:AC,6,FALSE) -> 14 | O95: =VLOOKUP(H95,'Player Stats By Team'!C:AC,7,FALSE) -> 12 | P95: =VLOOKUP(H95,'Player Stats By Team'!C:AC,8,FALSE) -> 29 | Q95: =VLOOKUP(H95,'Player Stats By Team'!C:AC,9,FALSE) -> 0 | R95: =VLOOKUP(H95,'Player Stats By Team'!C:AC,10,FALSE) -> 1 | S95: =VLOOKUP(H95,'Player Stats By Team'!C:AC,11,FALSE) -> 0 | T95: =VLOOKUP(H95,'Player Stats By Team'!C:AC,12,FALSE) -> 0 | U95: =VLOOKUP(H95,'Player Stats By Team'!C:AC,13,FALSE) -> 3 | V95: =VLOOKUP(H95,'Player Stats By Team'!C:AC,14,FALSE) -> 1 | W95: =VLOOKUP(H95,'Player Stats By Team'!C:AC,15,FALSE) -> 0 | X95: =VLOOKUP(H95,'Player Stats By Team'!C:AC,16,FALSE) -> 0 | Y95: =VLOOKUP(H95,'Player Stats By Team'!C:AC,17,FALSE) -> 3 | Z95: =VLOOKUP(H95,'Player Stats By Team'!C:AC,18,FALSE) -> 0 | AA95: =VLOOKUP(H95,'Player Stats By Team'!C:AC,19,FALSE) -> 0 | AB95: =VLOOKUP(H95,'Player Stats By Team'!C:AC,20,FALSE) -> 4 | AC95: =VLOOKUP(H95,'Player Stats By Team'!C:AC,21,FALSE) -> 0 | AD95: =VLOOKUP(H95,'Player Stats By Team'!C:AC,22,FALSE) -> 0 | AE95: =VLOOKUP(H95,'Player Stats By Team'!C:AC,23,FALSE) -> 0.74 | AF95: =VLOOKUP(H95,'Player Stats By Team'!C:AC,24,FALSE) -> 1.53 | AG95: =VLOOKUP(H95,'Player Stats By Team'!C:AC,25,FALSE) -> 0 | AH95: =VLOOKUP(H95,'Player Stats By Team'!C:AC,26,FALSE) -> 0
G96: OHL | H96: Artur Gavrus | I96: New Jersey Devils | J96: =VLOOKUP(H96,'Player Stats By Team'!C:AC,2,FALSE) ->  | K96: =VLOOKUP(H96,'Player Stats By Team'!C:AC,3,FALSE) ->  | L96: =VLOOKUP(H96,'Player Stats By Team'!C:AC,4,FALSE) ->  | M96: =VLOOKUP(H96,'Player Stats By Team'!C:AC,5,FALSE) ->  | N96: =VLOOKUP(H96,'Player Stats By Team'!C:AC,6,FALSE) ->  | O96: =VLOOKUP(H96,'Player Stats By Team'!C:AC,7,FALSE) ->  | P96: =VLOOKUP(H96,'Player Stats By Team'!C:AC,8,FALSE) ->  | Q96: =VLOOKUP(H96,'Player Stats By Team'!C:AC,9,FALSE) ->  | R96: =VLOOKUP(H96,'Player Stats By Team'!C:AC,10,FALSE) ->  | S96: =VLOOKUP(H96,'Player Stats By Team'!C:AC,11,FALSE) ->  | T96: =VLOOKUP(H96,'Player Stats By Team'!C:AC,12,FALSE) ->  | U96: =VLOOKUP(H96,'Player Stats By Team'!C:AC,13,FALSE) ->  | V96: =VLOOKUP(H96,'Player Stats By Team'!C:AC,14,FALSE) ->  | W96: =VLOOKUP(H96,'Player Stats By Team'!C:AC,15,FALSE) ->  | X96: =VLOOKUP(H96,'Player Stats By Team'!C:AC,16,FALSE) ->  | Y96: =VLOOKUP(H96,'Player Stats By Team'!C:AC,17,FALSE) ->  | Z96: =VLOOKUP(H96,'Player Stats By Team'!C:AC,18,FALSE) ->  | AA96: =VLOOKUP(H96,'Player Stats By Team'!C:AC,19,FALSE) ->  | AB96: =VLOOKUP(H96,'Player Stats By Team'!C:AC,20,FALSE) ->  | AC96: =VLOOKUP(H96,'Player Stats By Team'!C:AC,21,FALSE) ->  | AD96: =VLOOKUP(H96,'Player Stats By Team'!C:AC,22,FALSE) ->  | AE96: =VLOOKUP(H96,'Player Stats By Team'!C:AC,23,FALSE) ->  | AF96: =VLOOKUP(H96,'Player Stats By Team'!C:AC,24,FALSE) ->  | AG96: =VLOOKUP(H96,'Player Stats By Team'!C:AC,25,FALSE) ->  | AH96: =VLOOKUP(H96,'Player Stats By Team'!C:AC,26,FALSE) -> 
G97: OHL | H97: Gianluca Curcuruto | I97: Columbus Blue Jackets | J97: =VLOOKUP(H97,'Player Stats By Team'!C:AC,2,FALSE) -> D | K97: =VLOOKUP(H97,'Player Stats By Team'!C:AC,3,FALSE) -> 19 | L97: =VLOOKUP(H97,'Player Stats By Team'!C:AC,4,FALSE) -> 1 | M97: =VLOOKUP(H97,'Player Stats By Team'!C:AC,5,FALSE) -> 6 | N97: =VLOOKUP(H97,'Player Stats By Team'!C:AC,6,FALSE) -> 7 | O97: =VLOOKUP(H97,'Player Stats By Team'!C:AC,7,FALSE) -> 4 | P97: =VLOOKUP(H97,'Player Stats By Team'!C:AC,8,FALSE) -> 12 | Q97: =VLOOKUP(H97,'Player Stats By Team'!C:AC,9,FALSE) -> 1 | R97: =VLOOKUP(H97,'Player Stats By Team'!C:AC,10,FALSE) -> 2 | S97: =VLOOKUP(H97,'Player Stats By Team'!C:AC,11,FALSE) -> 0 | T97: =VLOOKUP(H97,'Player Stats By Team'!C:AC,12,FALSE) -> 0 | U97: =VLOOKUP(H97,'Player Stats By Team'!C:AC,13,FALSE) -> 0 | V97: =VLOOKUP(H97,'Player Stats By Team'!C:AC,14,FALSE) -> 1 | W97: =VLOOKUP(H97,'Player Stats By Team'!C:AC,15,FALSE) -> 0 | X97: =VLOOKUP(H97,'Player Stats By Team'!C:AC,16,FALSE) -> 0 | Y97: =VLOOKUP(H97,'Player Stats By Team'!C:AC,17,FALSE) -> 0 | Z97: =VLOOKUP(H97,'Player Stats By Team'!C:AC,18,FALSE) -> 0 | AA97: =VLOOKUP(H97,'Player Stats By Team'!C:AC,19,FALSE) -> 0 | AB97: =VLOOKUP(H97,'Player Stats By Team'!C:AC,20,FALSE) -> 0 | AC97: =VLOOKUP(H97,'Player Stats By Team'!C:AC,21,FALSE) -> 0 | AD97: =VLOOKUP(H97,'Player Stats By Team'!C:AC,22,FALSE) -> 0 | AE97: =VLOOKUP(H97,'Player Stats By Team'!C:AC,23,FALSE) -> 0.37 | AF97: =VLOOKUP(H97,'Player Stats By Team'!C:AC,24,FALSE) -> 0.63 | AG97: =VLOOKUP(H97,'Player Stats By Team'!C:AC,25,FALSE) -> 0 | AH97: =VLOOKUP(H97,'Player Stats By Team'!C:AC,26,FALSE) -> 0
G98: OHL | H98: Brady Austin | I98: Buffalo Sabres | J98: =VLOOKUP(H98,'Player Stats By Team'!C:AC,2,FALSE) -> D | K98: =VLOOKUP(H98,'Player Stats By Team'!C:AC,3,FALSE) -> 19 | L98: =VLOOKUP(H98,'Player Stats By Team'!C:AC,4,FALSE) -> 0 | M98: =VLOOKUP(H98,'Player Stats By Team'!C:AC,5,FALSE) -> 6 | N98: =VLOOKUP(H98,'Player Stats By Team'!C:AC,6,FALSE) -> 6 | O98: =VLOOKUP(H98,'Player Stats By Team'!C:AC,7,FALSE) -> 0 | P98: =VLOOKUP(H98,'Player Stats By Team'!C:AC,8,FALSE) -> 6 | Q98: =VLOOKUP(H98,'Player Stats By Team'!C:AC,9,FALSE) -> 0 | R98: =VLOOKUP(H98,'Player Stats By Team'!C:AC,10,FALSE) -> 2 | S98: =VLOOKUP(H98,'Player Stats By Team'!C:AC,11,FALSE) -> 0 | T98: =VLOOKUP(H98,'Player Stats By Team'!C:AC,12,FALSE) -> 0 | U98: =VLOOKUP(H98,'Player Stats By Team'!C:AC,13,FALSE) -> 0 | V98: =VLOOKUP(H98,'Player Stats By Team'!C:AC,14,FALSE) -> 0 | W98: =VLOOKUP(H98,'Player Stats By Team'!C:AC,15,FALSE) -> 0 | X98: =VLOOKUP(H98,'Player Stats By Team'!C:AC,16,FALSE) -> 0 | Y98: =VLOOKUP(H98,'Player Stats By Team'!C:AC,17,FALSE) -> 0 | Z98: =VLOOKUP(H98,'Player Stats By Team'!C:AC,18,FALSE) -> 0 | AA98: =VLOOKUP(H98,'Player Stats By Team'!C:AC,19,FALSE) -> 0 | AB98: =VLOOKUP(H98,'Player Stats By Team'!C:AC,20,FALSE) -> 0 | AC98: =VLOOKUP(H98,'Player Stats By Team'!C:AC,21,FALSE) -> 0 | AD98: =VLOOKUP(H98,'Player Stats By Team'!C:AC,22,FALSE) -> 0 | AE98: =VLOOKUP(H98,'Player Stats By Team'!C:AC,23,FALSE) -> 0.32 | AF98: =VLOOKUP(H98,'Player Stats By Team'!C:AC,24,FALSE) -> 0.32 | AG98: =VLOOKUP(H98,'Player Stats By Team'!C:AC,25,FALSE) -> 0 | AH98: =VLOOKUP(H98,'Player Stats By Team'!C:AC,26,FALSE) -> 0
G99: OHL | H99: Nick Ebert | I99: Los Angeles Kings | J99: =VLOOKUP(H99,'Player Stats By Team'!C:AC,2,FALSE) -> D | K99: =VLOOKUP(H99,'Player Stats By Team'!C:AC,3,FALSE) -> 20 | L99: =VLOOKUP(H99,'Player Stats By Team'!C:AC,4,FALSE) -> 1 | M99: =VLOOKUP(H99,'Player Stats By Team'!C:AC,5,FALSE) -> 11 | N99: =VLOOKUP(H99,'Player Stats By Team'!C:AC,6,FALSE) -> 12 | O99: =VLOOKUP(H99,'Player Stats By Team'!C:AC,7,FALSE) -> -3 | P99: =VLOOKUP(H99,'Player Stats By Team'!C:AC,8,FALSE) -> 28 | Q99: =VLOOKUP(H99,'Player Stats By Team'!C:AC,9,FALSE) -> 0 | R99: =VLOOKUP(H99,'Player Stats By Team'!C:AC,10,FALSE) -> 8 | S99: =VLOOKUP(H99,'Player Stats By Team'!C:AC,11,FALSE) -> 0 | T99: =VLOOKUP(H99,'Player Stats By Team'!C:AC,12,FALSE) -> 0 | U99: =VLOOKUP(H99,'Player Stats By Team'!C:AC,13,FALSE) -> 0 | V99: =VLOOKUP(H99,'Player Stats By Team'!C:AC,14,FALSE) -> 0 | W99: =VLOOKUP(H99,'Player Stats By Team'!C:AC,15,FALSE) -> 0 | X99: =VLOOKUP(H99,'Player Stats By Team'!C:AC,16,FALSE) -> 0 | Y99: =VLOOKUP(H99,'Player Stats By Team'!C:AC,17,FALSE) -> 1 | Z99: =VLOOKUP(H99,'Player Stats By Team'!C:AC,18,FALSE) -> 0 | AA99: =VLOOKUP(H99,'Player Stats By Team'!C:AC,19,FALSE) -> 0 | AB99: =VLOOKUP(H99,'Player Stats By Team'!C:AC,20,FALSE) -> 0 | AC99: =VLOOKUP(H99,'Player Stats By Team'!C:AC,21,FALSE) -> 0 | AD99: =VLOOKUP(H99,'Player Stats By Team'!C:AC,22,FALSE) -> 0 | AE99: =VLOOKUP(H99,'Player Stats By Team'!C:AC,23,FALSE) -> 0.6 | AF99: =VLOOKUP(H99,'Player Stats By Team'!C:AC,24,FALSE) -> 1.4 | AG99: =VLOOKUP(H99,'Player Stats By Team'!C:AC,25,FALSE) -> 0 | AH99: =VLOOKUP(H99,'Player Stats By Team'!C:AC,26,FALSE) -> 0
C100: : | D100: =VLOOKUP(B100,'Player Stats By Team'!C:AC,2,FALSE) ->  | F100: Fourth Rnd12
B101: Josh Shalla | C101: Nashville Predators | D101: =VLOOKUP(B101,'Player Stats By Team'!C:AC,2,FALSE) ->  | H101: QMJHL
B102: Jean-Gabriel Pageau | C102: Ottawa Senators | D102: =VLOOKUP(B102,'Player Stats By Team'!C:AC,2,FALSE) -> C | H102: Player | I102: Draft Team | J102: Pos | K102: GP | L102: G | M102: A | N102: PTS | O102: +/- | P102: PIM | Q102: PP | R102: PPA | S102: SH | T102: SHA | U102: GW | V102: FG | W102: IG | X102: OT | Y102: UA | Z102: EN | AA102: SOG | AB102: SOA | AC102: SOGW | AD102: SO% | AE102: Pt/G | AF102: PIM/G | AG102: Shots | AH102: Sh%
B103: Marcel Noebels | C103: Philadelphia Flyers | D103: =VLOOKUP(B103,'Player Stats By Team'!C:AC,2,FALSE) ->  | G103: QMJHL | H103: Jérôme Gauthier-Leduc | I103: Buffalo Sabres | J103: =VLOOKUP(H103,'Player Stats By Team'!C:AC,2,FALSE) ->  | K103: =VLOOKUP(H103,'Player Stats By Team'!C:AC,3,FALSE) ->  | L103: =VLOOKUP(H103,'Player Stats By Team'!C:AC,4,FALSE) ->  | M103: =VLOOKUP(H103,'Player Stats By Team'!C:AC,5,FALSE) ->  | N103: =VLOOKUP(H103,'Player Stats By Team'!C:AC,6,FALSE) ->  | O103: =VLOOKUP(H103,'Player Stats By Team'!C:AC,7,FALSE) ->  | P103: =VLOOKUP(H103,'Player Stats By Team'!C:AC,8,FALSE) ->  | Q103: =VLOOKUP(H103,'Player Stats By Team'!C:AC,9,FALSE) ->  | R103: =VLOOKUP(H103,'Player Stats By Team'!C:AC,10,FALSE) ->  | S103: =VLOOKUP(H103,'Player Stats By Team'!C:AC,11,FALSE) ->  | T103: =VLOOKUP(H103,'Player Stats By Team'!C:AC,12,FALSE) ->  | U103: =VLOOKUP(H103,'Player Stats By Team'!C:AC,13,FALSE) ->  | V103: =VLOOKUP(H103,'Player Stats By Team'!C:AC,14,FALSE) ->  | W103: =VLOOKUP(H103,'Player Stats By Team'!C:AC,15,FALSE) ->  | X103: =VLOOKUP(H103,'Player Stats By Team'!C:AC,16,FALSE) ->  | Y103: =VLOOKUP(H103,'Player Stats By Team'!C:AC,17,FALSE) ->  | Z103: =VLOOKUP(H103,'Player Stats By Team'!C:AC,18,FALSE) ->  | AA103: =VLOOKUP(H103,'Player Stats By Team'!C:AC,19,FALSE) ->  | AB103: =VLOOKUP(H103,'Player Stats By Team'!C:AC,20,FALSE) ->  | AC103: =VLOOKUP(H103,'Player Stats By Team'!C:AC,21,FALSE) ->  | AD103: =VLOOKUP(H103,'Player Stats By Team'!C:AC,22,FALSE) ->  | AE103: =VLOOKUP(H103,'Player Stats By Team'!C:AC,23,FALSE) ->  | AF103: =VLOOKUP(H103,'Player Stats By Team'!C:AC,24,FALSE) ->  | AG103: =VLOOKUP(H103,'Player Stats By Team'!C:AC,25,FALSE) ->  | AH103: =VLOOKUP(H103,'Player Stats By Team'!C:AC,26,FALSE) -> 
C104: : | D104: =VLOOKUP(B104,'Player Stats By Team'!C:AC,2,FALSE) ->  | F104: Fifth Rnd13 | G104: QMJHL | H104: Morgan Ellis | I104: Montreal Canadiens | J104: =VLOOKUP(H104,'Player Stats By Team'!C:AC,2,FALSE) -> D | K104: =VLOOKUP(H104,'Player Stats By Team'!C:AC,3,FALSE) -> 7 | L104: =VLOOKUP(H104,'Player Stats By Team'!C:AC,4,FALSE) -> 0 | M104: =VLOOKUP(H104,'Player Stats By Team'!C:AC,5,FALSE) -> 0 | N104: =VLOOKUP(H104,'Player Stats By Team'!C:AC,6,FALSE) -> 0 | O104: =VLOOKUP(H104,'Player Stats By Team'!C:AC,7,FALSE) -> -6 | P104: =VLOOKUP(H104,'Player Stats By Team'!C:AC,8,FALSE) -> 4 | Q104: =VLOOKUP(H104,'Player Stats By Team'!C:AC,9,FALSE) -> 0 | R104: =VLOOKUP(H104,'Player Stats By Team'!C:AC,10,FALSE) -> 0 | S104: =VLOOKUP(H104,'Player Stats By Team'!C:AC,11,FALSE) -> 0 | T104: =VLOOKUP(H104,'Player Stats By Team'!C:AC,12,FALSE) -> 0 | U104: =VLOOKUP(H104,'Player Stats By Team'!C:AC,13,FALSE) -> 0 | V104: =VLOOKUP(H104,'Player Stats By Team'!C:AC,14,FALSE) -> 0 | W104: =VLOOKUP(H104,'Player Stats By Team'!C:AC,15,FALSE) -> 0 | X104: =VLOOKUP(H104,'Player Stats By Team'!C:AC,16,FALSE) -> 0 | Y104: =VLOOKUP(H104,'Player Stats By Team'!C:AC,17,FALSE) -> 0 | Z104: =VLOOKUP(H104,'Player Stats By Team'!C:AC,18,FALSE) -> 0 | AA104: =VLOOKUP(H104,'Player Stats By Team'!C:AC,19,FALSE) -> 0 | AB104: =VLOOKUP(H104,'Player Stats By Team'!C:AC,20,FALSE) -> 0 | AC104: =VLOOKUP(H104,'Player Stats By Team'!C:AC,21,FALSE) -> 0 | AD104: =VLOOKUP(H104,'Player Stats By Team'!C:AC,22,FALSE) -> 0 | AE104: =VLOOKUP(H104,'Player Stats By Team'!C:AC,23,FALSE) -> 0 | AF104: =VLOOKUP(H104,'Player Stats By Team'!C:AC,24,FALSE) -> 0.57 | AG104: =VLOOKUP(H104,'Player Stats By Team'!C:AC,25,FALSE) -> 5 | AH104: =VLOOKUP(H104,'Player Stats By Team'!C:AC,26,FALSE) -> 0
B105: Garrett Meurs | C105: Colorado Avalanche | D105: =VLOOKUP(B105,'Player Stats By Team'!C:AC,2,FALSE) -> RW | G105: QMJHL | H105: Jérémie Blain | I105: Edmonton Oilers | J105: =VLOOKUP(H105,'Player Stats By Team'!C:AC,2,FALSE) ->  | K105: =VLOOKUP(H105,'Player Stats By Team'!C:AC,3,FALSE) ->  | L105: =VLOOKUP(H105,'Player Stats By Team'!C:AC,4,FALSE) ->  | M105: =VLOOKUP(H105,'Player Stats By Team'!C:AC,5,FALSE) ->  | N105: =VLOOKUP(H105,'Player Stats By Team'!C:AC,6,FALSE) ->  | O105: =VLOOKUP(H105,'Player Stats By Team'!C:AC,7,FALSE) ->  | P105: =VLOOKUP(H105,'Player Stats By Team'!C:AC,8,FALSE) ->  | Q105: =VLOOKUP(H105,'Player Stats By Team'!C:AC,9,FALSE) ->  | R105: =VLOOKUP(H105,'Player Stats By Team'!C:AC,10,FALSE) ->  | S105: =VLOOKUP(H105,'Player Stats By Team'!C:AC,11,FALSE) ->  | T105: =VLOOKUP(H105,'Player Stats By Team'!C:AC,12,FALSE) ->  | U105: =VLOOKUP(H105,'Player Stats By Team'!C:AC,13,FALSE) ->  | V105: =VLOOKUP(H105,'Player Stats By Team'!C:AC,14,FALSE) ->  | W105: =VLOOKUP(H105,'Player Stats By Team'!C:AC,15,FALSE) ->  | X105: =VLOOKUP(H105,'Player Stats By Team'!C:AC,16,FALSE) ->  | Y105: =VLOOKUP(H105,'Player Stats By Team'!C:AC,17,FALSE) ->  | Z105: =VLOOKUP(H105,'Player Stats By Team'!C:AC,18,FALSE) ->  | AA105: =VLOOKUP(H105,'Player Stats By Team'!C:AC,19,FALSE) ->  | AB105: =VLOOKUP(H105,'Player Stats By Team'!C:AC,20,FALSE) ->  | AC105: =VLOOKUP(H105,'Player Stats By Team'!C:AC,21,FALSE) ->  | AD105: =VLOOKUP(H105,'Player Stats By Team'!C:AC,22,FALSE) ->  | AE105: =VLOOKUP(H105,'Player Stats By Team'!C:AC,23,FALSE) ->  | AF105: =VLOOKUP(H105,'Player Stats By Team'!C:AC,24,FALSE) ->  | AG105: =VLOOKUP(H105,'Player Stats By Team'!C:AC,25,FALSE) ->  | AH105: =VLOOKUP(H105,'Player Stats By Team'!C:AC,26,FALSE) -> 
B106: John Persson | C106: New York Islanders | D106: =VLOOKUP(B106,'Player Stats By Team'!C:AC,2,FALSE) -> LW | G106: QMJHL | H106: Jakub Culek | I106: Ottawa Senators | J106: =VLOOKUP(H106,'Player Stats By Team'!C:AC,2,FALSE) ->  | K106: =VLOOKUP(H106,'Player Stats By Team'!C:AC,3,FALSE) ->  | L106: =VLOOKUP(H106,'Player Stats By Team'!C:AC,4,FALSE) ->  | M106: =VLOOKUP(H106,'Player Stats By Team'!C:AC,5,FALSE) ->  | N106: =VLOOKUP(H106,'Player Stats By Team'!C:AC,6,FALSE) ->  | O106: =VLOOKUP(H106,'Player Stats By Team'!C:AC,7,FALSE) ->  | P106: =VLOOKUP(H106,'Player Stats By Team'!C:AC,8,FALSE) ->  | Q106: =VLOOKUP(H106,'Player Stats By Team'!C:AC,9,FALSE) ->  | R106: =VLOOKUP(H106,'Player Stats By Team'!C:AC,10,FALSE) ->  | S106: =VLOOKUP(H106,'Player Stats By Team'!C:AC,11,FALSE) ->  | T106: =VLOOKUP(H106,'Player Stats By Team'!C:AC,12,FALSE) ->  | U106: =VLOOKUP(H106,'Player Stats By Team'!C:AC,13,FALSE) ->  | V106: =VLOOKUP(H106,'Player Stats By Team'!C:AC,14,FALSE) ->  | W106: =VLOOKUP(H106,'Player Stats By Team'!C:AC,15,FALSE) ->  | X106: =VLOOKUP(H106,'Player Stats By Team'!C:AC,16,FALSE) ->  | Y106: =VLOOKUP(H106,'Player Stats By Team'!C:AC,17,FALSE) ->  | Z106: =VLOOKUP(H106,'Player Stats By Team'!C:AC,18,FALSE) ->  | AA106: =VLOOKUP(H106,'Player Stats By Team'!C:AC,19,FALSE) ->  | AB106: =VLOOKUP(H106,'Player Stats By Team'!C:AC,20,FALSE) ->  | AC106: =VLOOKUP(H106,'Player Stats By Team'!C:AC,21,FALSE) ->  | AD106: =VLOOKUP(H106,'Player Stats By Team'!C:AC,22,FALSE) ->  | AE106: =VLOOKUP(H106,'Player Stats By Team'!C:AC,23,FALSE) ->  | AF106: =VLOOKUP(H106,'Player Stats By Team'!C:AC,24,FALSE) ->  | AG106: =VLOOKUP(H106,'Player Stats By Team'!C:AC,25,FALSE) ->  | AH106: =VLOOKUP(H106,'Player Stats By Team'!C:AC,26,FALSE) -> 
B107: Brenden Kichton | C107: New York Islanders | D107: =VLOOKUP(B107,'Player Stats By Team'!C:AC,2,FALSE) -> D | G107: QMJHL | H107: Petr Straka (total) | I107: Columbus Blue Jackets | J107: =VLOOKUP(H107,'Player Stats By Team'!C:AC,2,FALSE) -> RW | K107: =VLOOKUP(H107,'Player Stats By Team'!C:AC,3,FALSE) -> 16 | L107: =VLOOKUP(H107,'Player Stats By Team'!C:AC,4,FALSE) -> 17 | M107: =VLOOKUP(H107,'Player Stats By Team'!C:AC,5,FALSE) -> 9 | N107: =VLOOKUP(H107,'Player Stats By Team'!C:AC,6,FALSE) -> 26 | O107: =VLOOKUP(H107,'Player Stats By Team'!C:AC,7,FALSE) -> 16 | P107: =VLOOKUP(H107,'Player Stats By Team'!C:AC,8,FALSE) -> 8 | Q107: =VLOOKUP(H107,'Player Stats By Team'!C:AC,9,FALSE) -> 3 | R107: =VLOOKUP(H107,'Player Stats By Team'!C:AC,10,FALSE) -> 2 | S107: =VLOOKUP(H107,'Player Stats By Team'!C:AC,11,FALSE) -> 1 | T107: =VLOOKUP(H107,'Player Stats By Team'!C:AC,12,FALSE) -> 0 | U107: =VLOOKUP(H107,'Player Stats By Team'!C:AC,13,FALSE) -> 2 | V107: =VLOOKUP(H107,'Player Stats By Team'!C:AC,14,FALSE) -> 1 | W107: =VLOOKUP(H107,'Player Stats By Team'!C:AC,15,FALSE) -> 2 | X107: =VLOOKUP(H107,'Player Stats By Team'!C:AC,16,FALSE) -> 0 | Y107: =VLOOKUP(H107,'Player Stats By Team'!C:AC,17,FALSE) -> 0 | Z107: =VLOOKUP(H107,'Player Stats By Team'!C:AC,18,FALSE) -> 0 | AA107: =VLOOKUP(H107,'Player Stats By Team'!C:AC,19,FALSE) -> 1 | AB107: =VLOOKUP(H107,'Player Stats By Team'!C:AC,20,FALSE) -> 1 | AC107: =VLOOKUP(H107,'Player Stats By Team'!C:AC,21,FALSE) -> 1 | AD107: =VLOOKUP(H107,'Player Stats By Team'!C:AC,22,FALSE) -> 1 | AE107: =VLOOKUP(H107,'Player Stats By Team'!C:AC,23,FALSE) -> 1.63 | AF107: =VLOOKUP(H107,'Player Stats By Team'!C:AC,24,FALSE) -> 0.5 | AG107: =VLOOKUP(H107,'Player Stats By Team'!C:AC,25,FALSE) -> 79 | AH107: =VLOOKUP(H107,'Player Stats By Team'!C:AC,26,FALSE) -> 21.5
B108: Shane McColgan | C108: New York Rangers | D108: =VLOOKUP(B108,'Player Stats By Team'!C:AC,2,FALSE) -> C | G108: QMJHL | H108: Adam Janosik | I108: Tampa Bay Lightning | J108: =VLOOKUP(H108,'Player Stats By Team'!C:AC,2,FALSE) ->  | K108: =VLOOKUP(H108,'Player Stats By Team'!C:AC,3,FALSE) ->  | L108: =VLOOKUP(H108,'Player Stats By Team'!C:AC,4,FALSE) ->  | M108: =VLOOKUP(H108,'Player Stats By Team'!C:AC,5,FALSE) ->  | N108: =VLOOKUP(H108,'Player Stats By Team'!C:AC,6,FALSE) ->  | O108: =VLOOKUP(H108,'Player Stats By Team'!C:AC,7,FALSE) ->  | P108: =VLOOKUP(H108,'Player Stats By Team'!C:AC,8,FALSE) ->  | Q108: =VLOOKUP(H108,'Player Stats By Team'!C:AC,9,FALSE) ->  | R108: =VLOOKUP(H108,'Player Stats By Team'!C:AC,10,FALSE) ->  | S108: =VLOOKUP(H108,'Player Stats By Team'!C:AC,11,FALSE) ->  | T108: =VLOOKUP(H108,'Player Stats By Team'!C:AC,12,FALSE) ->  | U108: =VLOOKUP(H108,'Player Stats By Team'!C:AC,13,FALSE) ->  | V108: =VLOOKUP(H108,'Player Stats By Team'!C:AC,14,FALSE) ->  | W108: =VLOOKUP(H108,'Player Stats By Team'!C:AC,15,FALSE) ->  | X108: =VLOOKUP(H108,'Player Stats By Team'!C:AC,16,FALSE) ->  | Y108: =VLOOKUP(H108,'Player Stats By Team'!C:AC,17,FALSE) ->  | Z108: =VLOOKUP(H108,'Player Stats By Team'!C:AC,18,FALSE) ->  | AA108: =VLOOKUP(H108,'Player Stats By Team'!C:AC,19,FALSE) ->  | AB108: =VLOOKUP(H108,'Player Stats By Team'!C:AC,20,FALSE) ->  | AC108: =VLOOKUP(H108,'Player Stats By Team'!C:AC,21,FALSE) ->  | AD108: =VLOOKUP(H108,'Player Stats By Team'!C:AC,22,FALSE) ->  | AE108: =VLOOKUP(H108,'Player Stats By Team'!C:AC,23,FALSE) ->  | AF108: =VLOOKUP(H108,'Player Stats By Team'!C:AC,24,FALSE) ->  | AG108: =VLOOKUP(H108,'Player Stats By Team'!C:AC,25,FALSE) ->  | AH108: =VLOOKUP(H108,'Player Stats By Team'!C:AC,26,FALSE) -> 
B109: Troy Vance | C109: Dallas Stars | D109: =VLOOKUP(B109,'Player Stats By Team'!C:AC,2,FALSE) -> D | G109: QMJHL | H109: Louis Domingue | I109: Phoenix Coyotes | J109: =VLOOKUP(H109,'Player Stats By Team'!C:AC,2,FALSE) ->  | K109: =VLOOKUP(H109,'Player Stats By Team'!C:AC,3,FALSE) ->  | L109: =VLOOKUP(H109,'Player Stats By Team'!C:AC,4,FALSE) ->  | M109: =VLOOKUP(H109,'Player Stats By Team'!C:AC,5,FALSE) ->  | N109: =VLOOKUP(H109,'Player Stats By Team'!C:AC,6,FALSE) ->  | O109: =VLOOKUP(H109,'Player Stats By Team'!C:AC,7,FALSE) ->  | P109: =VLOOKUP(H109,'Player Stats By Team'!C:AC,8,FALSE) ->  | Q109: =VLOOKUP(H109,'Player Stats By Team'!C:AC,9,FALSE) ->  | R109: =VLOOKUP(H109,'Player Stats By Team'!C:AC,10,FALSE) ->  | S109: =VLOOKUP(H109,'Player Stats By Team'!C:AC,11,FALSE) ->  | T109: =VLOOKUP(H109,'Player Stats By Team'!C:AC,12,FALSE) ->  | U109: =VLOOKUP(H109,'Player Stats By Team'!C:AC,13,FALSE) ->  | V109: =VLOOKUP(H109,'Player Stats By Team'!C:AC,14,FALSE) ->  | W109: =VLOOKUP(H109,'Player Stats By Team'!C:AC,15,FALSE) ->  | X109: =VLOOKUP(H109,'Player Stats By Team'!C:AC,16,FALSE) ->  | Y109: =VLOOKUP(H109,'Player Stats By Team'!C:AC,17,FALSE) ->  | Z109: =VLOOKUP(H109,'Player Stats By Team'!C:AC,18,FALSE) ->  | AA109: =VLOOKUP(H109,'Player Stats By Team'!C:AC,19,FALSE) ->  | AB109: =VLOOKUP(H109,'Player Stats By Team'!C:AC,20,FALSE) ->  | AC109: =VLOOKUP(H109,'Player Stats By Team'!C:AC,21,FALSE) ->  | AD109: =VLOOKUP(H109,'Player Stats By Team'!C:AC,22,FALSE) ->  | AE109: =VLOOKUP(H109,'Player Stats By Team'!C:AC,23,FALSE) ->  | AF109: =VLOOKUP(H109,'Player Stats By Team'!C:AC,24,FALSE) ->  | AG109: =VLOOKUP(H109,'Player Stats By Team'!C:AC,25,FALSE) ->  | AH109: =VLOOKUP(H109,'Player Stats By Team'!C:AC,26,FALSE) -> 
B110: Samuel Noreau | C110: New York Rangers | D110: =VLOOKUP(B110,'Player Stats By Team'!C:AC,2,FALSE) -> D | G110: QMJHL | H110: Sawyer Hannay | I110: Vancouver Canucks | J110: =VLOOKUP(H110,'Player Stats By Team'!C:AC,2,FALSE) ->  | K110: =VLOOKUP(H110,'Player Stats By Team'!C:AC,3,FALSE) ->  | L110: =VLOOKUP(H110,'Player Stats By Team'!C:AC,4,FALSE) ->  | M110: =VLOOKUP(H110,'Player Stats By Team'!C:AC,5,FALSE) ->  | N110: =VLOOKUP(H110,'Player Stats By Team'!C:AC,6,FALSE) ->  | O110: =VLOOKUP(H110,'Player Stats By Team'!C:AC,7,FALSE) ->  | P110: =VLOOKUP(H110,'Player Stats By Team'!C:AC,8,FALSE) ->  | Q110: =VLOOKUP(H110,'Player Stats By Team'!C:AC,9,FALSE) ->  | R110: =VLOOKUP(H110,'Player Stats By Team'!C:AC,10,FALSE) ->  | S110: =VLOOKUP(H110,'Player Stats By Team'!C:AC,11,FALSE) ->  | T110: =VLOOKUP(H110,'Player Stats By Team'!C:AC,12,FALSE) ->  | U110: =VLOOKUP(H110,'Player Stats By Team'!C:AC,13,FALSE) ->  | V110: =VLOOKUP(H110,'Player Stats By Team'!C:AC,14,FALSE) ->  | W110: =VLOOKUP(H110,'Player Stats By Team'!C:AC,15,FALSE) ->  | X110: =VLOOKUP(H110,'Player Stats By Team'!C:AC,16,FALSE) ->  | Y110: =VLOOKUP(H110,'Player Stats By Team'!C:AC,17,FALSE) ->  | Z110: =VLOOKUP(H110,'Player Stats By Team'!C:AC,18,FALSE) ->  | AA110: =VLOOKUP(H110,'Player Stats By Team'!C:AC,19,FALSE) ->  | AB110: =VLOOKUP(H110,'Player Stats By Team'!C:AC,20,FALSE) ->  | AC110: =VLOOKUP(H110,'Player Stats By Team'!C:AC,21,FALSE) ->  | AD110: =VLOOKUP(H110,'Player Stats By Team'!C:AC,22,FALSE) ->  | AE110: =VLOOKUP(H110,'Player Stats By Team'!C:AC,23,FALSE) ->  | AF110: =VLOOKUP(H110,'Player Stats By Team'!C:AC,24,FALSE) ->  | AG110: =VLOOKUP(H110,'Player Stats By Team'!C:AC,25,FALSE) ->  | AH110: =VLOOKUP(H110,'Player Stats By Team'!C:AC,26,FALSE) -> 
B111: Alex Lepkowski | C111: Buffalo Sabres | D111: =VLOOKUP(B111,'Player Stats By Team'!C:AC,2,FALSE) -> D | G111: QMJHL | H111: Mathieu Corbeil | I111: Columbus Blue Jackets | J111: =VLOOKUP(H111,'Player Stats By Team'!C:AC,2,FALSE) ->  | K111: =VLOOKUP(H111,'Player Stats By Team'!C:AC,3,FALSE) ->  | L111: =VLOOKUP(H111,'Player Stats By Team'!C:AC,4,FALSE) ->  | M111: =VLOOKUP(H111,'Player Stats By Team'!C:AC,5,FALSE) ->  | N111: =VLOOKUP(H111,'Player Stats By Team'!C:AC,6,FALSE) ->  | O111: =VLOOKUP(H111,'Player Stats By Team'!C:AC,7,FALSE) ->  | P111: =VLOOKUP(H111,'Player Stats By Team'!C:AC,8,FALSE) ->  | Q111: =VLOOKUP(H111,'Player Stats By Team'!C:AC,9,FALSE) ->  | R111: =VLOOKUP(H111,'Player Stats By Team'!C:AC,10,FALSE) ->  | S111: =VLOOKUP(H111,'Player Stats By Team'!C:AC,11,FALSE) ->  | T111: =VLOOKUP(H111,'Player Stats By Team'!C:AC,12,FALSE) ->  | U111: =VLOOKUP(H111,'Player Stats By Team'!C:AC,13,FALSE) ->  | V111: =VLOOKUP(H111,'Player Stats By Team'!C:AC,14,FALSE) ->  | W111: =VLOOKUP(H111,'Player Stats By Team'!C:AC,15,FALSE) ->  | X111: =VLOOKUP(H111,'Player Stats By Team'!C:AC,16,FALSE) ->  | Y111: =VLOOKUP(H111,'Player Stats By Team'!C:AC,17,FALSE) ->  | Z111: =VLOOKUP(H111,'Player Stats By Team'!C:AC,18,FALSE) ->  | AA111: =VLOOKUP(H111,'Player Stats By Team'!C:AC,19,FALSE) ->  | AB111: =VLOOKUP(H111,'Player Stats By Team'!C:AC,20,FALSE) ->  | AC111: =VLOOKUP(H111,'Player Stats By Team'!C:AC,21,FALSE) ->  | AD111: =VLOOKUP(H111,'Player Stats By Team'!C:AC,22,FALSE) ->  | AE111: =VLOOKUP(H111,'Player Stats By Team'!C:AC,23,FALSE) ->  | AF111: =VLOOKUP(H111,'Player Stats By Team'!C:AC,24,FALSE) ->  | AG111: =VLOOKUP(H111,'Player Stats By Team'!C:AC,25,FALSE) ->  | AH111: =VLOOKUP(H111,'Player Stats By Team'!C:AC,26,FALSE) -> 
B112: Darren Dietz | C112: Montreal Canadiens | D112: =VLOOKUP(B112,'Player Stats By Team'!C:AC,2,FALSE) -> D | G112: QMJHL | H112: Alexandre Grenier | I112: Vancouver Canucks | J112: =VLOOKUP(H112,'Player Stats By Team'!C:AC,2,FALSE) -> RW | K112: =VLOOKUP(H112,'Player Stats By Team'!C:AC,3,FALSE) -> 10 | L112: =VLOOKUP(H112,'Player Stats By Team'!C:AC,4,FALSE) -> 0 | M112: =VLOOKUP(H112,'Player Stats By Team'!C:AC,5,FALSE) -> 0 | N112: =VLOOKUP(H112,'Player Stats By Team'!C:AC,6,FALSE) -> 0 | O112: =VLOOKUP(H112,'Player Stats By Team'!C:AC,7,FALSE) -> -3 | P112: =VLOOKUP(H112,'Player Stats By Team'!C:AC,8,FALSE) -> 12 | Q112: =VLOOKUP(H112,'Player Stats By Team'!C:AC,9,FALSE) -> 0 | R112: =VLOOKUP(H112,'Player Stats By Team'!C:AC,10,FALSE) -> 0 | S112: =VLOOKUP(H112,'Player Stats By Team'!C:AC,11,FALSE) -> 0 | T112: =VLOOKUP(H112,'Player Stats By Team'!C:AC,12,FALSE) -> 0 | U112: =VLOOKUP(H112,'Player Stats By Team'!C:AC,13,FALSE) -> 0 | V112: =VLOOKUP(H112,'Player Stats By Team'!C:AC,14,FALSE) -> 0 | W112: =VLOOKUP(H112,'Player Stats By Team'!C:AC,15,FALSE) -> 0 | X112: =VLOOKUP(H112,'Player Stats By Team'!C:AC,16,FALSE) -> 0 | Y112: =VLOOKUP(H112,'Player Stats By Team'!C:AC,17,FALSE) -> 0 | Z112: =VLOOKUP(H112,'Player Stats By Team'!C:AC,18,FALSE) -> 0 | AA112: =VLOOKUP(H112,'Player Stats By Team'!C:AC,19,FALSE) -> 0 | AB112: =VLOOKUP(H112,'Player Stats By Team'!C:AC,20,FALSE) -> 0 | AC112: =VLOOKUP(H112,'Player Stats By Team'!C:AC,21,FALSE) -> 0 | AD112: =VLOOKUP(H112,'Player Stats By Team'!C:AC,22,FALSE) -> 0 | AE112: =VLOOKUP(H112,'Player Stats By Team'!C:AC,23,FALSE) -> 0 | AF112: =VLOOKUP(H112,'Player Stats By Team'!C:AC,24,FALSE) -> 1.2 | AG112: =VLOOKUP(H112,'Player Stats By Team'!C:AC,25,FALSE) -> 4 | AH112: =VLOOKUP(H112,'Player Stats By Team'!C:AC,26,FALSE) -> 0
B113: Andrew Shaw | C113: Chicago Blackhawks | D113: =VLOOKUP(B113,'Player Stats By Team'!C:AC,2,FALSE) -> RW | G113: QMJHL | H113: David Honzik | I113: Vancouver Canucks | J113: =VLOOKUP(H113,'Player Stats By Team'!C:AC,2,FALSE) -> G | K113: =VLOOKUP(H113,'Player Stats By Team'!C:AC,3,FALSE) -> 1 | L113: =VLOOKUP(H113,'Player Stats By Team'!C:AC,4,FALSE) -> 0 | M113: =VLOOKUP(H113,'Player Stats By Team'!C:AC,5,FALSE) -> 0 | N113: =VLOOKUP(H113,'Player Stats By Team'!C:AC,6,FALSE) -> 0 | O113: =VLOOKUP(H113,'Player Stats By Team'!C:AC,7,FALSE) -> 0 | P113: =VLOOKUP(H113,'Player Stats By Team'!C:AC,8,FALSE) -> 0 | Q113: =VLOOKUP(H113,'Player Stats By Team'!C:AC,9,FALSE) -> 0 | R113: =VLOOKUP(H113,'Player Stats By Team'!C:AC,10,FALSE) -> 0 | S113: =VLOOKUP(H113,'Player Stats By Team'!C:AC,11,FALSE) -> 0 | T113: =VLOOKUP(H113,'Player Stats By Team'!C:AC,12,FALSE) -> 0 | U113: =VLOOKUP(H113,'Player Stats By Team'!C:AC,13,FALSE) -> 0 | V113: =VLOOKUP(H113,'Player Stats By Team'!C:AC,14,FALSE) -> 0 | W113: =VLOOKUP(H113,'Player Stats By Team'!C:AC,15,FALSE) -> 0 | X113: =VLOOKUP(H113,'Player Stats By Team'!C:AC,16,FALSE) -> 0 | Y113: =VLOOKUP(H113,'Player Stats By Team'!C:AC,17,FALSE) -> 0 | Z113: =VLOOKUP(H113,'Player Stats By Team'!C:AC,18,FALSE) -> 0 | AA113: =VLOOKUP(H113,'Player Stats By Team'!C:AC,19,FALSE) -> 0 | AB113: =VLOOKUP(H113,'Player Stats By Team'!C:AC,20,FALSE) -> 0 | AC113: =VLOOKUP(H113,'Player Stats By Team'!C:AC,21,FALSE) -> 0 | AD113: =VLOOKUP(H113,'Player Stats By Team'!C:AC,22,FALSE) -> 0 | AE113: =VLOOKUP(H113,'Player Stats By Team'!C:AC,23,FALSE) -> 0 | AF113: =VLOOKUP(H113,'Player Stats By Team'!C:AC,24,FALSE) -> 0 | AG113: =VLOOKUP(H113,'Player Stats By Team'!C:AC,25,FALSE) -> 0 | AH113: =VLOOKUP(H113,'Player Stats By Team'!C:AC,26,FALSE) -> 0
B114: Darren Dziurzynski | C114: Phoenix Coyotes | D114: =VLOOKUP(B114,'Player Stats By Team'!C:AC,2,FALSE) ->  | G114: QMJHL | H114: Jonathan Huberdeau | I114: Florida Panthers | J114: =VLOOKUP(H114,'Player Stats By Team'!C:AC,2,FALSE) -> LW | K114: =VLOOKUP(H114,'Player Stats By Team'!C:AC,3,FALSE) -> 21 | L114: =VLOOKUP(H114,'Player Stats By Team'!C:AC,4,FALSE) -> 12 | M114: =VLOOKUP(H114,'Player Stats By Team'!C:AC,5,FALSE) -> 17 | N114: =VLOOKUP(H114,'Player Stats By Team'!C:AC,6,FALSE) -> 29 | O114: =VLOOKUP(H114,'Player Stats By Team'!C:AC,7,FALSE) -> -6 | P114: =VLOOKUP(H114,'Player Stats By Team'!C:AC,8,FALSE) -> 31 | Q114: =VLOOKUP(H114,'Player Stats By Team'!C:AC,9,FALSE) -> 4 | R114: =VLOOKUP(H114,'Player Stats By Team'!C:AC,10,FALSE) -> 10 | S114: =VLOOKUP(H114,'Player Stats By Team'!C:AC,11,FALSE) -> 0 | T114: =VLOOKUP(H114,'Player Stats By Team'!C:AC,12,FALSE) -> 0 | U114: =VLOOKUP(H114,'Player Stats By Team'!C:AC,13,FALSE) -> 2 | V114: =VLOOKUP(H114,'Player Stats By Team'!C:AC,14,FALSE) -> 1 | W114: =VLOOKUP(H114,'Player Stats By Team'!C:AC,15,FALSE) -> 0 | X114: =VLOOKUP(H114,'Player Stats By Team'!C:AC,16,FALSE) -> 0 | Y114: =VLOOKUP(H114,'Player Stats By Team'!C:AC,17,FALSE) -> 3 | Z114: =VLOOKUP(H114,'Player Stats By Team'!C:AC,18,FALSE) -> 0 | AA114: =VLOOKUP(H114,'Player Stats By Team'!C:AC,19,FALSE) -> 2 | AB114: =VLOOKUP(H114,'Player Stats By Team'!C:AC,20,FALSE) -> 2 | AC114: =VLOOKUP(H114,'Player Stats By Team'!C:AC,21,FALSE) -> 2 | AD114: =VLOOKUP(H114,'Player Stats By Team'!C:AC,22,FALSE) -> 1 | AE114: =VLOOKUP(H114,'Player Stats By Team'!C:AC,23,FALSE) -> 1.38 | AF114: =VLOOKUP(H114,'Player Stats By Team'!C:AC,24,FALSE) -> 1.48 | AG114: =VLOOKUP(H114,'Player Stats By Team'!C:AC,25,FALSE) -> 86 | AH114: =VLOOKUP(H114,'Player Stats By Team'!C:AC,26,FALSE) -> 14
B115: Dalton Prout | C115: Columbus Blue Jackets | D115: =VLOOKUP(B115,'Player Stats By Team'!C:AC,2,FALSE) -> D | G115: QMJHL | H115: Stephen MacAulay | I115: St Louis Blues | J115: =VLOOKUP(H115,'Player Stats By Team'!C:AC,2,FALSE) -> C | K115: =VLOOKUP(H115,'Player Stats By Team'!C:AC,3,FALSE) -> 17 | L115: =VLOOKUP(H115,'Player Stats By Team'!C:AC,4,FALSE) -> 11 | M115: =VLOOKUP(H115,'Player Stats By Team'!C:AC,5,FALSE) -> 9 | N115: =VLOOKUP(H115,'Player Stats By Team'!C:AC,6,FALSE) -> 20 | O115: =VLOOKUP(H115,'Player Stats By Team'!C:AC,7,FALSE) -> -8 | P115: =VLOOKUP(H115,'Player Stats By Team'!C:AC,8,FALSE) -> 24 | Q115: =VLOOKUP(H115,'Player Stats By Team'!C:AC,9,FALSE) -> 9 | R115: =VLOOKUP(H115,'Player Stats By Team'!C:AC,10,FALSE) -> 6 | S115: =VLOOKUP(H115,'Player Stats By Team'!C:AC,11,FALSE) -> 0 | T115: =VLOOKUP(H115,'Player Stats By Team'!C:AC,12,FALSE) -> 0 | U115: =VLOOKUP(H115,'Player Stats By Team'!C:AC,13,FALSE) -> 1 | V115: =VLOOKUP(H115,'Player Stats By Team'!C:AC,14,FALSE) -> 3 | W115: =VLOOKUP(H115,'Player Stats By Team'!C:AC,15,FALSE) -> 0 | X115: =VLOOKUP(H115,'Player Stats By Team'!C:AC,16,FALSE) -> 0 | Y115: =VLOOKUP(H115,'Player Stats By Team'!C:AC,17,FALSE) -> 1 | Z115: =VLOOKUP(H115,'Player Stats By Team'!C:AC,18,FALSE) -> 0 | AA115: =VLOOKUP(H115,'Player Stats By Team'!C:AC,19,FALSE) -> 0 | AB115: =VLOOKUP(H115,'Player Stats By Team'!C:AC,20,FALSE) -> 1 | AC115: =VLOOKUP(H115,'Player Stats By Team'!C:AC,21,FALSE) -> 0 | AD115: =VLOOKUP(H115,'Player Stats By Team'!C:AC,22,FALSE) -> 0 | AE115: =VLOOKUP(H115,'Player Stats By Team'!C:AC,23,FALSE) -> 1.18 | AF115: =VLOOKUP(H115,'Player Stats By Team'!C:AC,24,FALSE) -> 1.41 | AG115: =VLOOKUP(H115,'Player Stats By Team'!C:AC,25,FALSE) -> 58 | AH115: =VLOOKUP(H115,'Player Stats By Team'!C:AC,26,FALSE) -> 19
B116: Dominik Uher | C116: Pittsburgh Penguins | D116: =VLOOKUP(B116,'Player Stats By Team'!C:AC,2,FALSE) -> C | G116: QMJHL | H116: Michael St. Croix | I116: New York Rangers | J116: =VLOOKUP(H116,'Player Stats By Team'!C:AC,2,FALSE) -> C | K116: =VLOOKUP(H116,'Player Stats By Team'!C:AC,3,FALSE) -> 21 | L116: =VLOOKUP(H116,'Player Stats By Team'!C:AC,4,FALSE) -> 12 | M116: =VLOOKUP(H116,'Player Stats By Team'!C:AC,5,FALSE) -> 17 | N116: =VLOOKUP(H116,'Player Stats By Team'!C:AC,6,FALSE) -> 29 | O116: =VLOOKUP(H116,'Player Stats By Team'!C:AC,7,FALSE) -> 2 | P116: =VLOOKUP(H116,'Player Stats By Team'!C:AC,8,FALSE) -> 10 | Q116: =VLOOKUP(H116,'Player Stats By Team'!C:AC,9,FALSE) -> 7 | R116: =VLOOKUP(H116,'Player Stats By Team'!C:AC,10,FALSE) -> 10 | S116: =VLOOKUP(H116,'Player Stats By Team'!C:AC,11,FALSE) -> 0 | T116: =VLOOKUP(H116,'Player Stats By Team'!C:AC,12,FALSE) -> 0 | U116: =VLOOKUP(H116,'Player Stats By Team'!C:AC,13,FALSE) -> 4 | V116: =VLOOKUP(H116,'Player Stats By Team'!C:AC,14,FALSE) -> 2 | W116: =VLOOKUP(H116,'Player Stats By Team'!C:AC,15,FALSE) -> 1 | X116: =VLOOKUP(H116,'Player Stats By Team'!C:AC,16,FALSE) -> 0 | Y116: =VLOOKUP(H116,'Player Stats By Team'!C:AC,17,FALSE) -> 0 | Z116: =VLOOKUP(H116,'Player Stats By Team'!C:AC,18,FALSE) -> 0 | AA116: =VLOOKUP(H116,'Player Stats By Team'!C:AC,19,FALSE) -> 0 | AB116: =VLOOKUP(H116,'Player Stats By Team'!C:AC,20,FALSE) -> 0 | AC116: =VLOOKUP(H116,'Player Stats By Team'!C:AC,21,FALSE) -> 0 | AD116: =VLOOKUP(H116,'Player Stats By Team'!C:AC,22,FALSE) -> 0 | AE116: =VLOOKUP(H116,'Player Stats By Team'!C:AC,23,FALSE) -> 1.38 | AF116: =VLOOKUP(H116,'Player Stats By Team'!C:AC,24,FALSE) -> 0.48 | AG116: =VLOOKUP(H116,'Player Stats By Team'!C:AC,25,FALSE) -> 0 | AH116: =VLOOKUP(H116,'Player Stats By Team'!C:AC,26,FALSE) -> 0
B117: Austen Brassard | C117: Winnipeg Jets | D117: =VLOOKUP(B117,'Player Stats By Team'!C:AC,2,FALSE) -> RW | G117: QMJHL | H117: Phillip Danault | I117: Chicago Blackhawks | J117: =VLOOKUP(H117,'Player Stats By Team'!C:AC,2,FALSE) -> C | K117: =VLOOKUP(H117,'Player Stats By Team'!C:AC,3,FALSE) -> 20 | L117: =VLOOKUP(H117,'Player Stats By Team'!C:AC,4,FALSE) -> 12 | M117: =VLOOKUP(H117,'Player Stats By Team'!C:AC,5,FALSE) -> 19 | N117: =VLOOKUP(H117,'Player Stats By Team'!C:AC,6,FALSE) -> 31 | O117: =VLOOKUP(H117,'Player Stats By Team'!C:AC,7,FALSE) -> 2 | P117: =VLOOKUP(H117,'Player Stats By Team'!C:AC,8,FALSE) -> 20 | Q117: =VLOOKUP(H117,'Player Stats By Team'!C:AC,9,FALSE) -> 5 | R117: =VLOOKUP(H117,'Player Stats By Team'!C:AC,10,FALSE) -> 10 | S117: =VLOOKUP(H117,'Player Stats By Team'!C:AC,11,FALSE) -> 1 | T117: =VLOOKUP(H117,'Player Stats By Team'!C:AC,12,FALSE) -> 1 | U117: =VLOOKUP(H117,'Player Stats By Team'!C:AC,13,FALSE) -> 1 | V117: =VLOOKUP(H117,'Player Stats By Team'!C:AC,14,FALSE) -> 2 | W117: =VLOOKUP(H117,'Player Stats By Team'!C:AC,15,FALSE) -> 0 | X117: =VLOOKUP(H117,'Player Stats By Team'!C:AC,16,FALSE) -> 0 | Y117: =VLOOKUP(H117,'Player Stats By Team'!C:AC,17,FALSE) -> 1 | Z117: =VLOOKUP(H117,'Player Stats By Team'!C:AC,18,FALSE) -> 0 | AA117: =VLOOKUP(H117,'Player Stats By Team'!C:AC,19,FALSE) -> 0 | AB117: =VLOOKUP(H117,'Player Stats By Team'!C:AC,20,FALSE) -> 1 | AC117: =VLOOKUP(H117,'Player Stats By Team'!C:AC,21,FALSE) -> 0 | AD117: =VLOOKUP(H117,'Player Stats By Team'!C:AC,22,FALSE) -> 0 | AE117: =VLOOKUP(H117,'Player Stats By Team'!C:AC,23,FALSE) -> 1.55 | AF117: =VLOOKUP(H117,'Player Stats By Team'!C:AC,24,FALSE) -> 1 | AG117: =VLOOKUP(H117,'Player Stats By Team'!C:AC,25,FALSE) -> 82 | AH117: =VLOOKUP(H117,'Player Stats By Team'!C:AC,26,FALSE) -> 14.6
B118: Frank Corrado | C118: Vancouver Canucks | D118: =VLOOKUP(B118,'Player Stats By Team'!C:AC,2,FALSE) -> D | G118: QMJHL | H118: Logan Shaw | I118: Florida Panthers | J118: =VLOOKUP(H118,'Player Stats By Team'!C:AC,2,FALSE) -> RW | K118: =VLOOKUP(H118,'Player Stats By Team'!C:AC,3,FALSE) -> 19 | L118: =VLOOKUP(H118,'Player Stats By Team'!C:AC,4,FALSE) -> 8 | M118: =VLOOKUP(H118,'Player Stats By Team'!C:AC,5,FALSE) -> 15 | N118: =VLOOKUP(H118,'Player Stats By Team'!C:AC,6,FALSE) -> 23 | O118: =VLOOKUP(H118,'Player Stats By Team'!C:AC,7,FALSE) -> 14 | P118: =VLOOKUP(H118,'Player Stats By Team'!C:AC,8,FALSE) -> 13 | Q118: =VLOOKUP(H118,'Player Stats By Team'!C:AC,9,FALSE) -> 5 | R118: =VLOOKUP(H118,'Player Stats By Team'!C:AC,10,FALSE) -> 4 | S118: =VLOOKUP(H118,'Player Stats By Team'!C:AC,11,FALSE) -> 0 | T118: =VLOOKUP(H118,'Player Stats By Team'!C:AC,12,FALSE) -> 0 | U118: =VLOOKUP(H118,'Player Stats By Team'!C:AC,13,FALSE) -> 3 | V118: =VLOOKUP(H118,'Player Stats By Team'!C:AC,14,FALSE) -> 2 | W118: =VLOOKUP(H118,'Player Stats By Team'!C:AC,15,FALSE) -> 2 | X118: =VLOOKUP(H118,'Player Stats By Team'!C:AC,16,FALSE) -> 0 | Y118: =VLOOKUP(H118,'Player Stats By Team'!C:AC,17,FALSE) -> 0 | Z118: =VLOOKUP(H118,'Player Stats By Team'!C:AC,18,FALSE) -> 0 | AA118: =VLOOKUP(H118,'Player Stats By Team'!C:AC,19,FALSE) -> 0 | AB118: =VLOOKUP(H118,'Player Stats By Team'!C:AC,20,FALSE) -> 0 | AC118: =VLOOKUP(H118,'Player Stats By Team'!C:AC,21,FALSE) -> 0 | AD118: =VLOOKUP(H118,'Player Stats By Team'!C:AC,22,FALSE) -> 0 | AE118: =VLOOKUP(H118,'Player Stats By Team'!C:AC,23,FALSE) -> 1.21 | AF118: =VLOOKUP(H118,'Player Stats By Team'!C:AC,24,FALSE) -> 0.68 | AG118: =VLOOKUP(H118,'Player Stats By Team'!C:AC,25,FALSE) -> 74 | AH118: =VLOOKUP(H118,'Player Stats By Team'!C:AC,26,FALSE) -> 10.8
C119: : | D119: =VLOOKUP(B119,'Player Stats By Team'!C:AC,2,FALSE) ->  | F119: Sixth Rnd12 | G119: QMJHL | H119: Xavier Ouellet | I119: Detroit Red Wings | J119: =VLOOKUP(H119,'Player Stats By Team'!C:AC,2,FALSE) -> D | K119: =VLOOKUP(H119,'Player Stats By Team'!C:AC,3,FALSE) -> 21 | L119: =VLOOKUP(H119,'Player Stats By Team'!C:AC,4,FALSE) -> 4 | M119: =VLOOKUP(H119,'Player Stats By Team'!C:AC,5,FALSE) -> 18 | N119: =VLOOKUP(H119,'Player Stats By Team'!C:AC,6,FALSE) -> 22 | O119: =VLOOKUP(H119,'Player Stats By Team'!C:AC,7,FALSE) -> 8 | P119: =VLOOKUP(H119,'Player Stats By Team'!C:AC,8,FALSE) -> 26 | Q119: =VLOOKUP(H119,'Player Stats By Team'!C:AC,9,FALSE) -> 4 | R119: =VLOOKUP(H119,'Player Stats By Team'!C:AC,10,FALSE) -> 8 | S119: =VLOOKUP(H119,'Player Stats By Team'!C:AC,11,FALSE) -> 0 | T119: =VLOOKUP(H119,'Player Stats By Team'!C:AC,12,FALSE) -> 0 | U119: =VLOOKUP(H119,'Player Stats By Team'!C:AC,13,FALSE) -> 0 | V119: =VLOOKUP(H119,'Player Stats By Team'!C:AC,14,FALSE) -> 0 | W119: =VLOOKUP(H119,'Player Stats By Team'!C:AC,15,FALSE) -> 1 | X119: =VLOOKUP(H119,'Player Stats By Team'!C:AC,16,FALSE) -> 0 | Y119: =VLOOKUP(H119,'Player Stats By Team'!C:AC,17,FALSE) -> 0 | Z119: =VLOOKUP(H119,'Player Stats By Team'!C:AC,18,FALSE) -> 0 | AA119: =VLOOKUP(H119,'Player Stats By Team'!C:AC,19,FALSE) -> 0 | AB119: =VLOOKUP(H119,'Player Stats By Team'!C:AC,20,FALSE) -> 2 | AC119: =VLOOKUP(H119,'Player Stats By Team'!C:AC,21,FALSE) -> 0 | AD119: =VLOOKUP(H119,'Player Stats By Team'!C:AC,22,FALSE) -> 0 | AE119: =VLOOKUP(H119,'Player Stats By Team'!C:AC,23,FALSE) -> 1.05 | AF119: =VLOOKUP(H119,'Player Stats By Team'!C:AC,24,FALSE) -> 1.24 | AG119: =VLOOKUP(H119,'Player Stats By Team'!C:AC,25,FALSE) -> 77 | AH119: =VLOOKUP(H119,'Player Stats By Team'!C:AC,26,FALSE) -> 5.2
B120: David Broll | C120: Toronto Maple Leafs | D120: =VLOOKUP(B120,'Player Stats By Team'!C:AC,2,FALSE) -> LW | G120: QMJHL | H120: Konrad Abeltshauser | I120: San Jose Sharks | J120: =VLOOKUP(H120,'Player Stats By Team'!C:AC,2,FALSE) -> D | K120: =VLOOKUP(H120,'Player Stats By Team'!C:AC,3,FALSE) -> 20 | L120: =VLOOKUP(H120,'Player Stats By Team'!C:AC,4,FALSE) -> 1 | M120: =VLOOKUP(H120,'Player Stats By Team'!C:AC,5,FALSE) -> 23 | N120: =VLOOKUP(H120,'Player Stats By Team'!C:AC,6,FALSE) -> 24 | O120: =VLOOKUP(H120,'Player Stats By Team'!C:AC,7,FALSE) -> 16 | P120: =VLOOKUP(H120,'Player Stats By Team'!C:AC,8,FALSE) -> 10 | Q120: =VLOOKUP(H120,'Player Stats By Team'!C:AC,9,FALSE) -> 0 | R120: =VLOOKUP(H120,'Player Stats By Team'!C:AC,10,FALSE) -> 12 | S120: =VLOOKUP(H120,'Player Stats By Team'!C:AC,11,FALSE) -> 0 | T120: =VLOOKUP(H120,'Player Stats By Team'!C:AC,12,FALSE) -> 2 | U120: =VLOOKUP(H120,'Player Stats By Team'!C:AC,13,FALSE) -> 1 | V120: =VLOOKUP(H120,'Player Stats By Team'!C:AC,14,FALSE) -> 0 | W120: =VLOOKUP(H120,'Player Stats By Team'!C:AC,15,FALSE) -> 0 | X120: =VLOOKUP(H120,'Player Stats By Team'!C:AC,16,FALSE) -> 0 | Y120: =VLOOKUP(H120,'Player Stats By Team'!C:AC,17,FALSE) -> 0 | Z120: =VLOOKUP(H120,'Player Stats By Team'!C:AC,18,FALSE) -> 0 | AA120: =VLOOKUP(H120,'Player Stats By Team'!C:AC,19,FALSE) -> 0 | AB120: =VLOOKUP(H120,'Player Stats By Team'!C:AC,20,FALSE) -> 1 | AC120: =VLOOKUP(H120,'Player Stats By Team'!C:AC,21,FALSE) -> 0 | AD120: =VLOOKUP(H120,'Player Stats By Team'!C:AC,22,FALSE) -> 0 | AE120: =VLOOKUP(H120,'Player Stats By Team'!C:AC,23,FALSE) -> 1.2 | AF120: =VLOOKUP(H120,'Player Stats By Team'!C:AC,24,FALSE) -> 0.5 | AG120: =VLOOKUP(H120,'Player Stats By Team'!C:AC,25,FALSE) -> 50 | AH120: =VLOOKUP(H120,'Player Stats By Team'!C:AC,26,FALSE) -> 2
B121: Stephen MacAulay | C121: St Louis Blues | D121: =VLOOKUP(B121,'Player Stats By Team'!C:AC,2,FALSE) -> C | G121: QMJHL | H121: Ryan Tesink | I121: St Louis Blues | J121: =VLOOKUP(H121,'Player Stats By Team'!C:AC,2,FALSE) -> RW | K121: =VLOOKUP(H121,'Player Stats By Team'!C:AC,3,FALSE) -> 19 | L121: =VLOOKUP(H121,'Player Stats By Team'!C:AC,4,FALSE) -> 11 | M121: =VLOOKUP(H121,'Player Stats By Team'!C:AC,5,FALSE) -> 11 | N121: =VLOOKUP(H121,'Player Stats By Team'!C:AC,6,FALSE) -> 22 | O121: =VLOOKUP(H121,'Player Stats By Team'!C:AC,7,FALSE) -> 5 | P121: =VLOOKUP(H121,'Player Stats By Team'!C:AC,8,FALSE) -> 40 | Q121: =VLOOKUP(H121,'Player Stats By Team'!C:AC,9,FALSE) -> 5 | R121: =VLOOKUP(H121,'Player Stats By Team'!C:AC,10,FALSE) -> 3 | S121: =VLOOKUP(H121,'Player Stats By Team'!C:AC,11,FALSE) -> 1 | T121: =VLOOKUP(H121,'Player Stats By Team'!C:AC,12,FALSE) -> 0 | U121: =VLOOKUP(H121,'Player Stats By Team'!C:AC,13,FALSE) -> 0 | V121: =VLOOKUP(H121,'Player Stats By Team'!C:AC,14,FALSE) -> 1 | W121: =VLOOKUP(H121,'Player Stats By Team'!C:AC,15,FALSE) -> 2 | X121: =VLOOKUP(H121,'Player Stats By Team'!C:AC,16,FALSE) -> 0 | Y121: =VLOOKUP(H121,'Player Stats By Team'!C:AC,17,FALSE) -> 3 | Z121: =VLOOKUP(H121,'Player Stats By Team'!C:AC,18,FALSE) -> 2 | AA121: =VLOOKUP(H121,'Player Stats By Team'!C:AC,19,FALSE) -> 0 | AB121: =VLOOKUP(H121,'Player Stats By Team'!C:AC,20,FALSE) -> 0 | AC121: =VLOOKUP(H121,'Player Stats By Team'!C:AC,21,FALSE) -> 0 | AD121: =VLOOKUP(H121,'Player Stats By Team'!C:AC,22,FALSE) -> 0 | AE121: =VLOOKUP(H121,'Player Stats By Team'!C:AC,23,FALSE) -> 1.16 | AF121: =VLOOKUP(H121,'Player Stats By Team'!C:AC,24,FALSE) -> 2.11 | AG121: =VLOOKUP(H121,'Player Stats By Team'!C:AC,25,FALSE) -> 75 | AH121: =VLOOKUP(H121,'Player Stats By Team'!C:AC,26,FALSE) -> 14.7
B122: Philipp Grubauer | C122: Washington Capitals | D122: =VLOOKUP(B122,'Player Stats By Team'!C:AC,2,FALSE) -> G | G122: QMJHL | H122: Olivier Archambault | I122: Montreal Canadiens | J122: =VLOOKUP(H122,'Player Stats By Team'!C:AC,2,FALSE) -> LW | K122: =VLOOKUP(H122,'Player Stats By Team'!C:AC,3,FALSE) -> 21 | L122: =VLOOKUP(H122,'Player Stats By Team'!C:AC,4,FALSE) -> 9 | M122: =VLOOKUP(H122,'Player Stats By Team'!C:AC,5,FALSE) -> 10 | N122: =VLOOKUP(H122,'Player Stats By Team'!C:AC,6,FALSE) -> 19 | O122: =VLOOKUP(H122,'Player Stats By Team'!C:AC,7,FALSE) -> -1 | P122: =VLOOKUP(H122,'Player Stats By Team'!C:AC,8,FALSE) -> 14 | Q122: =VLOOKUP(H122,'Player Stats By Team'!C:AC,9,FALSE) -> 5 | R122: =VLOOKUP(H122,'Player Stats By Team'!C:AC,10,FALSE) -> 4 | S122: =VLOOKUP(H122,'Player Stats By Team'!C:AC,11,FALSE) -> 0 | T122: =VLOOKUP(H122,'Player Stats By Team'!C:AC,12,FALSE) -> 0 | U122: =VLOOKUP(H122,'Player Stats By Team'!C:AC,13,FALSE) -> 1 | V122: =VLOOKUP(H122,'Player Stats By Team'!C:AC,14,FALSE) -> 3 | W122: =VLOOKUP(H122,'Player Stats By Team'!C:AC,15,FALSE) -> 0 | X122: =VLOOKUP(H122,'Player Stats By Team'!C:AC,16,FALSE) -> 0 | Y122: =VLOOKUP(H122,'Player Stats By Team'!C:AC,17,FALSE) -> 0 | Z122: =VLOOKUP(H122,'Player Stats By Team'!C:AC,18,FALSE) -> 0 | AA122: =VLOOKUP(H122,'Player Stats By Team'!C:AC,19,FALSE) -> 0 | AB122: =VLOOKUP(H122,'Player Stats By Team'!C:AC,20,FALSE) -> 0 | AC122: =VLOOKUP(H122,'Player Stats By Team'!C:AC,21,FALSE) -> 0 | AD122: =VLOOKUP(H122,'Player Stats By Team'!C:AC,22,FALSE) -> 0 | AE122: =VLOOKUP(H122,'Player Stats By Team'!C:AC,23,FALSE) -> 0.9 | AF122: =VLOOKUP(H122,'Player Stats By Team'!C:AC,24,FALSE) -> 0.67 | AG122: =VLOOKUP(H122,'Player Stats By Team'!C:AC,25,FALSE) -> 56 | AH122: =VLOOKUP(H122,'Player Stats By Team'!C:AC,26,FALSE) -> 16.1
B123: Gabriel Beaupre | C123: Colorado Avalanche | D123: =VLOOKUP(B123,'Player Stats By Team'!C:AC,2,FALSE) ->  | G123: QMJHL | H123: Cédrick Henley | I123: Buffalo Sabres | J123: =VLOOKUP(H123,'Player Stats By Team'!C:AC,2,FALSE) -> LW | K123: =VLOOKUP(H123,'Player Stats By Team'!C:AC,3,FALSE) -> 17 | L123: =VLOOKUP(H123,'Player Stats By Team'!C:AC,4,FALSE) -> 4 | M123: =VLOOKUP(H123,'Player Stats By Team'!C:AC,5,FALSE) -> 10 | N123: =VLOOKUP(H123,'Player Stats By Team'!C:AC,6,FALSE) -> 14 | O123: =VLOOKUP(H123,'Player Stats By Team'!C:AC,7,FALSE) -> 6 | P123: =VLOOKUP(H123,'Player Stats By Team'!C:AC,8,FALSE) -> 38 | Q123: =VLOOKUP(H123,'Player Stats By Team'!C:AC,9,FALSE) -> 2 | R123: =VLOOKUP(H123,'Player Stats By Team'!C:AC,10,FALSE) -> 3 | S123: =VLOOKUP(H123,'Player Stats By Team'!C:AC,11,FALSE) -> 0 | T123: =VLOOKUP(H123,'Player Stats By Team'!C:AC,12,FALSE) -> 0 | U123: =VLOOKUP(H123,'Player Stats By Team'!C:AC,13,FALSE) -> 0 | V123: =VLOOKUP(H123,'Player Stats By Team'!C:AC,14,FALSE) -> 1 | W123: =VLOOKUP(H123,'Player Stats By Team'!C:AC,15,FALSE) -> 0 | X123: =VLOOKUP(H123,'Player Stats By Team'!C:AC,16,FALSE) -> 0 | Y123: =VLOOKUP(H123,'Player Stats By Team'!C:AC,17,FALSE) -> 0 | Z123: =VLOOKUP(H123,'Player Stats By Team'!C:AC,18,FALSE) -> 0 | AA123: =VLOOKUP(H123,'Player Stats By Team'!C:AC,19,FALSE) -> 0 | AB123: =VLOOKUP(H123,'Player Stats By Team'!C:AC,20,FALSE) -> 0 | AC123: =VLOOKUP(H123,'Player Stats By Team'!C:AC,21,FALSE) -> 0 | AD123: =VLOOKUP(H123,'Player Stats By Team'!C:AC,22,FALSE) -> 0 | AE123: =VLOOKUP(H123,'Player Stats By Team'!C:AC,23,FALSE) -> 0.82 | AF123: =VLOOKUP(H123,'Player Stats By Team'!C:AC,24,FALSE) -> 2.24 | AG123: =VLOOKUP(H123,'Player Stats By Team'!C:AC,25,FALSE) -> 59 | AH123: =VLOOKUP(H123,'Player Stats By Team'!C:AC,26,FALSE) -> 6.8
B124: Andrew Fritsch | C124: Phoenix Coyotes | D124: =VLOOKUP(B124,'Player Stats By Team'!C:AC,2,FALSE) -> RW | G124: QMJHL | H124: Brent Andrews | I124: Nashville Predators | J124: =VLOOKUP(H124,'Player Stats By Team'!C:AC,2,FALSE) -> C | K124: =VLOOKUP(H124,'Player Stats By Team'!C:AC,3,FALSE) -> 20 | L124: =VLOOKUP(H124,'Player Stats By Team'!C:AC,4,FALSE) -> 5 | M124: =VLOOKUP(H124,'Player Stats By Team'!C:AC,5,FALSE) -> 9 | N124: =VLOOKUP(H124,'Player Stats By Team'!C:AC,6,FALSE) -> 14 | O124: =VLOOKUP(H124,'Player Stats By Team'!C:AC,7,FALSE) -> 5 | P124: =VLOOKUP(H124,'Player Stats By Team'!C:AC,8,FALSE) -> 16 | Q124: =VLOOKUP(H124,'Player Stats By Team'!C:AC,9,FALSE) -> 0 | R124: =VLOOKUP(H124,'Player Stats By Team'!C:AC,10,FALSE) -> 0 | S124: =VLOOKUP(H124,'Player Stats By Team'!C:AC,11,FALSE) -> 1 | T124: =VLOOKUP(H124,'Player Stats By Team'!C:AC,12,FALSE) -> 1 | U124: =VLOOKUP(H124,'Player Stats By Team'!C:AC,13,FALSE) -> 1 | V124: =VLOOKUP(H124,'Player Stats By Team'!C:AC,14,FALSE) -> 1 | W124: =VLOOKUP(H124,'Player Stats By Team'!C:AC,15,FALSE) -> 0 | X124: =VLOOKUP(H124,'Player Stats By Team'!C:AC,16,FALSE) -> 0 | Y124: =VLOOKUP(H124,'Player Stats By Team'!C:AC,17,FALSE) -> 1 | Z124: =VLOOKUP(H124,'Player Stats By Team'!C:AC,18,FALSE) -> 0 | AA124: =VLOOKUP(H124,'Player Stats By Team'!C:AC,19,FALSE) -> 0 | AB124: =VLOOKUP(H124,'Player Stats By Team'!C:AC,20,FALSE) -> 1 | AC124: =VLOOKUP(H124,'Player Stats By Team'!C:AC,21,FALSE) -> 0 | AD124: =VLOOKUP(H124,'Player Stats By Team'!C:AC,22,FALSE) -> 0 | AE124: =VLOOKUP(H124,'Player Stats By Team'!C:AC,23,FALSE) -> 0.7 | AF124: =VLOOKUP(H124,'Player Stats By Team'!C:AC,24,FALSE) -> 0.8 | AG124: =VLOOKUP(H124,'Player Stats By Team'!C:AC,25,FALSE) -> 43 | AH124: =VLOOKUP(H124,'Player Stats By Team'!C:AC,26,FALSE) -> 11.6
B125: Tyler Stahl | C125: Carolina Hurricanes | D125: =VLOOKUP(B125,'Player Stats By Team'!C:AC,2,FALSE) -> D | G125: QMJHL | H125: Troy Vance | I125: Dallas Stars | J125: =VLOOKUP(H125,'Player Stats By Team'!C:AC,2,FALSE) -> D | K125: =VLOOKUP(H125,'Player Stats By Team'!C:AC,3,FALSE) -> 18 | L125: =VLOOKUP(H125,'Player Stats By Team'!C:AC,4,FALSE) -> 2 | M125: =VLOOKUP(H125,'Player Stats By Team'!C:AC,5,FALSE) -> 9 | N125: =VLOOKUP(H125,'Player Stats By Team'!C:AC,6,FALSE) -> 11 | O125: =VLOOKUP(H125,'Player Stats By Team'!C:AC,7,FALSE) -> 4 | P125: =VLOOKUP(H125,'Player Stats By Team'!C:AC,8,FALSE) -> 18 | Q125: =VLOOKUP(H125,'Player Stats By Team'!C:AC,9,FALSE) -> 1 | R125: =VLOOKUP(H125,'Player Stats By Team'!C:AC,10,FALSE) -> 5 | S125: =VLOOKUP(H125,'Player Stats By Team'!C:AC,11,FALSE) -> 0 | T125: =VLOOKUP(H125,'Player Stats By Team'!C:AC,12,FALSE) -> 0 | U125: =VLOOKUP(H125,'Player Stats By Team'!C:AC,13,FALSE) -> 2 | V125: =VLOOKUP(H125,'Player Stats By Team'!C:AC,14,FALSE) -> 0 | W125: =VLOOKUP(H125,'Player Stats By Team'!C:AC,15,FALSE) -> 0 | X125: =VLOOKUP(H125,'Player Stats By Team'!C:AC,16,FALSE) -> 1 | Y125: =VLOOKUP(H125,'Player Stats By Team'!C:AC,17,FALSE) -> 0 | Z125: =VLOOKUP(H125,'Player Stats By Team'!C:AC,18,FALSE) -> 0 | AA125: =VLOOKUP(H125,'Player Stats By Team'!C:AC,19,FALSE) -> 0 | AB125: =VLOOKUP(H125,'Player Stats By Team'!C:AC,20,FALSE) -> 0 | AC125: =VLOOKUP(H125,'Player Stats By Team'!C:AC,21,FALSE) -> 0 | AD125: =VLOOKUP(H125,'Player Stats By Team'!C:AC,22,FALSE) -> 0 | AE125: =VLOOKUP(H125,'Player Stats By Team'!C:AC,23,FALSE) -> 0.61 | AF125: =VLOOKUP(H125,'Player Stats By Team'!C:AC,24,FALSE) -> 1 | AG125: =VLOOKUP(H125,'Player Stats By Team'!C:AC,25,FALSE) -> 24 | AH125: =VLOOKUP(H125,'Player Stats By Team'!C:AC,26,FALSE) -> 8.3
B126: Darren Kramer | C126: Ottawa Senators | D126: =VLOOKUP(B126,'Player Stats By Team'!C:AC,2,FALSE) -> LW | G126: QMJHL | H126: Jonathan Racine | I126: Florida Panthers | J126: =VLOOKUP(H126,'Player Stats By Team'!C:AC,2,FALSE) -> D | K126: =VLOOKUP(H126,'Player Stats By Team'!C:AC,3,FALSE) -> 20 | L126: =VLOOKUP(H126,'Player Stats By Team'!C:AC,4,FALSE) -> 3 | M126: =VLOOKUP(H126,'Player Stats By Team'!C:AC,5,FALSE) -> 6 | N126: =VLOOKUP(H126,'Player Stats By Team'!C:AC,6,FALSE) -> 9 | O126: =VLOOKUP(H126,'Player Stats By Team'!C:AC,7,FALSE) -> 5 | P126: =VLOOKUP(H126,'Player Stats By Team'!C:AC,8,FALSE) -> 49 | Q126: =VLOOKUP(H126,'Player Stats By Team'!C:AC,9,FALSE) -> 2 | R126: =VLOOKUP(H126,'Player Stats By Team'!C:AC,10,FALSE) -> 4 | S126: =VLOOKUP(H126,'Player Stats By Team'!C:AC,11,FALSE) -> 0 | T126: =VLOOKUP(H126,'Player Stats By Team'!C:AC,12,FALSE) -> 0 | U126: =VLOOKUP(H126,'Player Stats By Team'!C:AC,13,FALSE) -> 2 | V126: =VLOOKUP(H126,'Player Stats By Team'!C:AC,14,FALSE) -> 0 | W126: =VLOOKUP(H126,'Player Stats By Team'!C:AC,15,FALSE) -> 0 | X126: =VLOOKUP(H126,'Player Stats By Team'!C:AC,16,FALSE) -> 1 | Y126: =VLOOKUP(H126,'Player Stats By Team'!C:AC,17,FALSE) -> 0 | Z126: =VLOOKUP(H126,'Player Stats By Team'!C:AC,18,FALSE) -> 0 | AA126: =VLOOKUP(H126,'Player Stats By Team'!C:AC,19,FALSE) -> 0 | AB126: =VLOOKUP(H126,'Player Stats By Team'!C:AC,20,FALSE) -> 0 | AC126: =VLOOKUP(H126,'Player Stats By Team'!C:AC,21,FALSE) -> 0 | AD126: =VLOOKUP(H126,'Player Stats By Team'!C:AC,22,FALSE) -> 0 | AE126: =VLOOKUP(H126,'Player Stats By Team'!C:AC,23,FALSE) -> 0.45 | AF126: =VLOOKUP(H126,'Player Stats By Team'!C:AC,24,FALSE) -> 2.45 | AG126: =VLOOKUP(H126,'Player Stats By Team'!C:AC,25,FALSE) -> 30 | AH126: =VLOOKUP(H126,'Player Stats By Team'!C:AC,26,FALSE) -> 10
B127: Maxime Clermont | C127: New Jersey Devils | D127: =VLOOKUP(B127,'Player Stats By Team'!C:AC,2,FALSE) ->  | G127: QMJHL | H127: Yannick Veilleux | I127: St Louis Blues | J127: =VLOOKUP(H127,'Player Stats By Team'!C:AC,2,FALSE) -> RW | K127: =VLOOKUP(H127,'Player Stats By Team'!C:AC,3,FALSE) -> 20 | L127: =VLOOKUP(H127,'Player Stats By Team'!C:AC,4,FALSE) -> 7 | M127: =VLOOKUP(H127,'Player Stats By Team'!C:AC,5,FALSE) -> 10 | N127: =VLOOKUP(H127,'Player Stats By Team'!C:AC,6,FALSE) -> 17 | O127: =VLOOKUP(H127,'Player Stats By Team'!C:AC,7,FALSE) -> 7 | P127: =VLOOKUP(H127,'Player Stats By Team'!C:AC,8,FALSE) -> 25 | Q127: =VLOOKUP(H127,'Player Stats By Team'!C:AC,9,FALSE) -> 4 | R127: =VLOOKUP(H127,'Player Stats By Team'!C:AC,10,FALSE) -> 2 | S127: =VLOOKUP(H127,'Player Stats By Team'!C:AC,11,FALSE) -> 1 | T127: =VLOOKUP(H127,'Player Stats By Team'!C:AC,12,FALSE) -> 0 | U127: =VLOOKUP(H127,'Player Stats By Team'!C:AC,13,FALSE) -> 2 | V127: =VLOOKUP(H127,'Player Stats By Team'!C:AC,14,FALSE) -> 1 | W127: =VLOOKUP(H127,'Player Stats By Team'!C:AC,15,FALSE) -> 0 | X127: =VLOOKUP(H127,'Player Stats By Team'!C:AC,16,FALSE) -> 0 | Y127: =VLOOKUP(H127,'Player Stats By Team'!C:AC,17,FALSE) -> 1 | Z127: =VLOOKUP(H127,'Player Stats By Team'!C:AC,18,FALSE) -> 1 | AA127: =VLOOKUP(H127,'Player Stats By Team'!C:AC,19,FALSE) -> 1 | AB127: =VLOOKUP(H127,'Player Stats By Team'!C:AC,20,FALSE) -> 1 | AC127: =VLOOKUP(H127,'Player Stats By Team'!C:AC,21,FALSE) -> 0 | AD127: =VLOOKUP(H127,'Player Stats By Team'!C:AC,22,FALSE) -> 1 | AE127: =VLOOKUP(H127,'Player Stats By Team'!C:AC,23,FALSE) -> 0.85 | AF127: =VLOOKUP(H127,'Player Stats By Team'!C:AC,24,FALSE) -> 1.25 | AG127: =VLOOKUP(H127,'Player Stats By Team'!C:AC,25,FALSE) -> 74 | AH127: =VLOOKUP(H127,'Player Stats By Team'!C:AC,26,FALSE) -> 9.5
B128: Teigan Zahn | C128: Tampa Bay Lightning | D128: =VLOOKUP(B128,'Player Stats By Team'!C:AC,2,FALSE) -> D | G128: QMJHL | H128: Samuel Carrier | I128: Washington Capitals | J128: =VLOOKUP(H128,'Player Stats By Team'!C:AC,2,FALSE) -> D | K128: =VLOOKUP(H128,'Player Stats By Team'!C:AC,3,FALSE) -> 22 | L128: =VLOOKUP(H128,'Player Stats By Team'!C:AC,4,FALSE) -> 1 | M128: =VLOOKUP(H128,'Player Stats By Team'!C:AC,5,FALSE) -> 10 | N128: =VLOOKUP(H128,'Player Stats By Team'!C:AC,6,FALSE) -> 11 | O128: =VLOOKUP(H128,'Player Stats By Team'!C:AC,7,FALSE) -> 12 | P128: =VLOOKUP(H128,'Player Stats By Team'!C:AC,8,FALSE) -> 22 | Q128: =VLOOKUP(H128,'Player Stats By Team'!C:AC,9,FALSE) -> 1 | R128: =VLOOKUP(H128,'Player Stats By Team'!C:AC,10,FALSE) -> 7 | S128: =VLOOKUP(H128,'Player Stats By Team'!C:AC,11,FALSE) -> 0 | T128: =VLOOKUP(H128,'Player Stats By Team'!C:AC,12,FALSE) -> 0 | U128: =VLOOKUP(H128,'Player Stats By Team'!C:AC,13,FALSE) -> 0 | V128: =VLOOKUP(H128,'Player Stats By Team'!C:AC,14,FALSE) -> 0 | W128: =VLOOKUP(H128,'Player Stats By Team'!C:AC,15,FALSE) -> 0 | X128: =VLOOKUP(H128,'Player Stats By Team'!C:AC,16,FALSE) -> 0 | Y128: =VLOOKUP(H128,'Player Stats By Team'!C:AC,17,FALSE) -> 0 | Z128: =VLOOKUP(H128,'Player Stats By Team'!C:AC,18,FALSE) -> 0 | AA128: =VLOOKUP(H128,'Player Stats By Team'!C:AC,19,FALSE) -> 1 | AB128: =VLOOKUP(H128,'Player Stats By Team'!C:AC,20,FALSE) -> 2 | AC128: =VLOOKUP(H128,'Player Stats By Team'!C:AC,21,FALSE) -> 0 | AD128: =VLOOKUP(H128,'Player Stats By Team'!C:AC,22,FALSE) -> 0.5 | AE128: =VLOOKUP(H128,'Player Stats By Team'!C:AC,23,FALSE) -> 0.5 | AF128: =VLOOKUP(H128,'Player Stats By Team'!C:AC,24,FALSE) -> 1 | AG128: =VLOOKUP(H128,'Player Stats By Team'!C:AC,25,FALSE) -> 66 | AH128: =VLOOKUP(H128,'Player Stats By Team'!C:AC,26,FALSE) -> 1.5
B129: Reece Scarlett | C129: New Jersey Devils | D129: =VLOOKUP(B129,'Player Stats By Team'!C:AC,2,FALSE) -> D | G129: QMJHL | H129: Gabriel Beaupré | I129: Colorado Avalanche | J129: =VLOOKUP(H129,'Player Stats By Team'!C:AC,2,FALSE) -> D | K129: =VLOOKUP(H129,'Player Stats By Team'!C:AC,3,FALSE) -> 4 | L129: =VLOOKUP(H129,'Player Stats By Team'!C:AC,4,FALSE) -> 0 | M129: =VLOOKUP(H129,'Player Stats By Team'!C:AC,5,FALSE) -> 0 | N129: =VLOOKUP(H129,'Player Stats By Team'!C:AC,6,FALSE) -> 0 | O129: =VLOOKUP(H129,'Player Stats By Team'!C:AC,7,FALSE) -> -1 | P129: =VLOOKUP(H129,'Player Stats By Team'!C:AC,8,FALSE) -> 6 | Q129: =VLOOKUP(H129,'Player Stats By Team'!C:AC,9,FALSE) -> 0 | R129: =VLOOKUP(H129,'Player Stats By Team'!C:AC,10,FALSE) -> 0 | S129: =VLOOKUP(H129,'Player Stats By Team'!C:AC,11,FALSE) -> 0 | T129: =VLOOKUP(H129,'Player Stats By Team'!C:AC,12,FALSE) -> 0 | U129: =VLOOKUP(H129,'Player Stats By Team'!C:AC,13,FALSE) -> 0 | V129: =VLOOKUP(H129,'Player Stats By Team'!C:AC,14,FALSE) -> 0 | W129: =VLOOKUP(H129,'Player Stats By Team'!C:AC,15,FALSE) -> 0 | X129: =VLOOKUP(H129,'Player Stats By Team'!C:AC,16,FALSE) -> 0 | Y129: =VLOOKUP(H129,'Player Stats By Team'!C:AC,17,FALSE) -> 0 | Z129: =VLOOKUP(H129,'Player Stats By Team'!C:AC,18,FALSE) -> 0 | AA129: =VLOOKUP(H129,'Player Stats By Team'!C:AC,19,FALSE) -> 0 | AB129: =VLOOKUP(H129,'Player Stats By Team'!C:AC,20,FALSE) -> 0 | AC129: =VLOOKUP(H129,'Player Stats By Team'!C:AC,21,FALSE) -> 0 | AD129: =VLOOKUP(H129,'Player Stats By Team'!C:AC,22,FALSE) -> 0 | AE129: =VLOOKUP(H129,'Player Stats By Team'!C:AC,23,FALSE) -> 0 | AF129: =VLOOKUP(H129,'Player Stats By Team'!C:AC,24,FALSE) -> 1.5 | AG129: =VLOOKUP(H129,'Player Stats By Team'!C:AC,25,FALSE) -> 3 | AH129: =VLOOKUP(H129,'Player Stats By Team'!C:AC,26,FALSE) -> 0
B130: Corey Durocher | C130: Florida Panthers | D130: =VLOOKUP(B130,'Player Stats By Team'!C:AC,2,FALSE) ->  | G130: QMJHL | H130: Samuel Noreau | I130: New York Rangers | J130: =VLOOKUP(H130,'Player Stats By Team'!C:AC,2,FALSE) -> D | K130: =VLOOKUP(H130,'Player Stats By Team'!C:AC,3,FALSE) -> 20 | L130: =VLOOKUP(H130,'Player Stats By Team'!C:AC,4,FALSE) -> 4 | M130: =VLOOKUP(H130,'Player Stats By Team'!C:AC,5,FALSE) -> 11 | N130: =VLOOKUP(H130,'Player Stats By Team'!C:AC,6,FALSE) -> 15 | O130: =VLOOKUP(H130,'Player Stats By Team'!C:AC,7,FALSE) -> 11 | P130: =VLOOKUP(H130,'Player Stats By Team'!C:AC,8,FALSE) -> 32 | Q130: =VLOOKUP(H130,'Player Stats By Team'!C:AC,9,FALSE) -> 4 | R130: =VLOOKUP(H130,'Player Stats By Team'!C:AC,10,FALSE) -> 5 | S130: =VLOOKUP(H130,'Player Stats By Team'!C:AC,11,FALSE) -> 0 | T130: =VLOOKUP(H130,'Player Stats By Team'!C:AC,12,FALSE) -> 0 | U130: =VLOOKUP(H130,'Player Stats By Team'!C:AC,13,FALSE) -> 2 | V130: =VLOOKUP(H130,'Player Stats By Team'!C:AC,14,FALSE) -> 0 | W130: =VLOOKUP(H130,'Player Stats By Team'!C:AC,15,FALSE) -> 0 | X130: =VLOOKUP(H130,'Player Stats By Team'!C:AC,16,FALSE) -> 0 | Y130: =VLOOKUP(H130,'Player Stats By Team'!C:AC,17,FALSE) -> 0 | Z130: =VLOOKUP(H130,'Player Stats By Team'!C:AC,18,FALSE) -> 0 | AA130: =VLOOKUP(H130,'Player Stats By Team'!C:AC,19,FALSE) -> 0 | AB130: =VLOOKUP(H130,'Player Stats By Team'!C:AC,20,FALSE) -> 0 | AC130: =VLOOKUP(H130,'Player Stats By Team'!C:AC,21,FALSE) -> 0 | AD130: =VLOOKUP(H130,'Player Stats By Team'!C:AC,22,FALSE) -> 0 | AE130: =VLOOKUP(H130,'Player Stats By Team'!C:AC,23,FALSE) -> 0.75 | AF130: =VLOOKUP(H130,'Player Stats By Team'!C:AC,24,FALSE) -> 1.6 | AG130: =VLOOKUP(H130,'Player Stats By Team'!C:AC,25,FALSE) -> 45 | AH130: =VLOOKUP(H130,'Player Stats By Team'!C:AC,26,FALSE) -> 8.9
B131: Ryan Tesink | C131: St Louis Blues | D131: =VLOOKUP(B131,'Player Stats By Team'!C:AC,2,FALSE) -> RW | G131: QMJHL | H131: Dillon Donnelly | I131: Colorado Avalanche | J131: =VLOOKUP(H131,'Player Stats By Team'!C:AC,2,FALSE) -> D | K131: =VLOOKUP(H131,'Player Stats By Team'!C:AC,3,FALSE) -> 7 | L131: =VLOOKUP(H131,'Player Stats By Team'!C:AC,4,FALSE) -> 0 | M131: =VLOOKUP(H131,'Player Stats By Team'!C:AC,5,FALSE) -> 2 | N131: =VLOOKUP(H131,'Player Stats By Team'!C:AC,6,FALSE) -> 2 | O131: =VLOOKUP(H131,'Player Stats By Team'!C:AC,7,FALSE) -> -6 | P131: =VLOOKUP(H131,'Player Stats By Team'!C:AC,8,FALSE) -> 20 | Q131: =VLOOKUP(H131,'Player Stats By Team'!C:AC,9,FALSE) -> 0 | R131: =VLOOKUP(H131,'Player Stats By Team'!C:AC,10,FALSE) -> 0 | S131: =VLOOKUP(H131,'Player Stats By Team'!C:AC,11,FALSE) -> 0 | T131: =VLOOKUP(H131,'Player Stats By Team'!C:AC,12,FALSE) -> 0 | U131: =VLOOKUP(H131,'Player Stats By Team'!C:AC,13,FALSE) -> 0 | V131: =VLOOKUP(H131,'Player Stats By Team'!C:AC,14,FALSE) -> 0 | W131: =VLOOKUP(H131,'Player Stats By Team'!C:AC,15,FALSE) -> 0 | X131: =VLOOKUP(H131,'Player Stats By Team'!C:AC,16,FALSE) -> 0 | Y131: =VLOOKUP(H131,'Player Stats By Team'!C:AC,17,FALSE) -> 0 | Z131: =VLOOKUP(H131,'Player Stats By Team'!C:AC,18,FALSE) -> 0 | AA131: =VLOOKUP(H131,'Player Stats By Team'!C:AC,19,FALSE) -> 0 | AB131: =VLOOKUP(H131,'Player Stats By Team'!C:AC,20,FALSE) -> 0 | AC131: =VLOOKUP(H131,'Player Stats By Team'!C:AC,21,FALSE) -> 0 | AD131: =VLOOKUP(H131,'Player Stats By Team'!C:AC,22,FALSE) -> 0 | AE131: =VLOOKUP(H131,'Player Stats By Team'!C:AC,23,FALSE) -> 0.29 | AF131: =VLOOKUP(H131,'Player Stats By Team'!C:AC,24,FALSE) -> 2.86 | AG131: =VLOOKUP(H131,'Player Stats By Team'!C:AC,25,FALSE) -> 1 | AH131: =VLOOKUP(H131,'Player Stats By Team'!C:AC,26,FALSE) -> 0
B132: Matt Mahalak | C132: Carolina Hurricanes | D132: =VLOOKUP(B132,'Player Stats By Team'!C:AC,2,FALSE) -> G | G132: QMJHL | H132: Christopher Gibson | I132: Los Angeles Kings | J132: =VLOOKUP(H132,'Player Stats By Team'!C:AC,2,FALSE) -> G | K132: =VLOOKUP(H132,'Player Stats By Team'!C:AC,3,FALSE) -> 5 | L132: =VLOOKUP(H132,'Player Stats By Team'!C:AC,4,FALSE) -> 0 | M132: =VLOOKUP(H132,'Player Stats By Team'!C:AC,5,FALSE) -> 0 | N132: =VLOOKUP(H132,'Player Stats By Team'!C:AC,6,FALSE) -> 0 | O132: =VLOOKUP(H132,'Player Stats By Team'!C:AC,7,FALSE) -> 0 | P132: =VLOOKUP(H132,'Player Stats By Team'!C:AC,8,FALSE) -> 0 | Q132: =VLOOKUP(H132,'Player Stats By Team'!C:AC,9,FALSE) -> 0 | R132: =VLOOKUP(H132,'Player Stats By Team'!C:AC,10,FALSE) -> 0 | S132: =VLOOKUP(H132,'Player Stats By Team'!C:AC,11,FALSE) -> 0 | T132: =VLOOKUP(H132,'Player Stats By Team'!C:AC,12,FALSE) -> 0 | U132: =VLOOKUP(H132,'Player Stats By Team'!C:AC,13,FALSE) -> 0 | V132: =VLOOKUP(H132,'Player Stats By Team'!C:AC,14,FALSE) -> 0 | W132: =VLOOKUP(H132,'Player Stats By Team'!C:AC,15,FALSE) -> 0 | X132: =VLOOKUP(H132,'Player Stats By Team'!C:AC,16,FALSE) -> 0 | Y132: =VLOOKUP(H132,'Player Stats By Team'!C:AC,17,FALSE) -> 0 | Z132: =VLOOKUP(H132,'Player Stats By Team'!C:AC,18,FALSE) -> 0 | AA132: =VLOOKUP(H132,'Player Stats By Team'!C:AC,19,FALSE) -> 0 | AB132: =VLOOKUP(H132,'Player Stats By Team'!C:AC,20,FALSE) -> 0 | AC132: =VLOOKUP(H132,'Player Stats By Team'!C:AC,21,FALSE) -> 0 | AD132: =VLOOKUP(H132,'Player Stats By Team'!C:AC,22,FALSE) -> 0 | AE132: =VLOOKUP(H132,'Player Stats By Team'!C:AC,23,FALSE) -> 0 | AF132: =VLOOKUP(H132,'Player Stats By Team'!C:AC,24,FALSE) -> 0 | AG132: =VLOOKUP(H132,'Player Stats By Team'!C:AC,25,FALSE) -> 0 | AH132: =VLOOKUP(H132,'Player Stats By Team'!C:AC,26,FALSE) -> 0
G133: QMJHL | H133: Mikhail Grigorenko | I133: Buffalo Sabres | J133: =VLOOKUP(H133,'Player Stats By Team'!C:AC,2,FALSE) -> C | K133: =VLOOKUP(H133,'Player Stats By Team'!C:AC,3,FALSE) -> 18 | L133: =VLOOKUP(H133,'Player Stats By Team'!C:AC,4,FALSE) -> 16 | M133: =VLOOKUP(H133,'Player Stats By Team'!C:AC,5,FALSE) -> 20 | N133: =VLOOKUP(H133,'Player Stats By Team'!C:AC,6,FALSE) -> 36 | O133: =VLOOKUP(H133,'Player Stats By Team'!C:AC,7,FALSE) -> 9 | P133: =VLOOKUP(H133,'Player Stats By Team'!C:AC,8,FALSE) -> 4 | Q133: =VLOOKUP(H133,'Player Stats By Team'!C:AC,9,FALSE) -> 7 | R133: =VLOOKUP(H133,'Player Stats By Team'!C:AC,10,FALSE) -> 7 | S133: =VLOOKUP(H133,'Player Stats By Team'!C:AC,11,FALSE) -> 0 | T133: =VLOOKUP(H133,'Player Stats By Team'!C:AC,12,FALSE) -> 0 | U133: =VLOOKUP(H133,'Player Stats By Team'!C:AC,13,FALSE) -> 2 | V133: =VLOOKUP(H133,'Player Stats By Team'!C:AC,14,FALSE) -> 1 | W133: =VLOOKUP(H133,'Player Stats By Team'!C:AC,15,FALSE) -> 4 | X133: =VLOOKUP(H133,'Player Stats By Team'!C:AC,16,FALSE) -> 1 | Y133: =VLOOKUP(H133,'Player Stats By Team'!C:AC,17,FALSE) -> 0 | Z133: =VLOOKUP(H133,'Player Stats By Team'!C:AC,18,FALSE) -> 1 | AA133: =VLOOKUP(H133,'Player Stats By Team'!C:AC,19,FALSE) -> 0 | AB133: =VLOOKUP(H133,'Player Stats By Team'!C:AC,20,FALSE) -> 1 | AC133: =VLOOKUP(H133,'Player Stats By Team'!C:AC,21,FALSE) -> 0 | AD133: =VLOOKUP(H133,'Player Stats By Team'!C:AC,22,FALSE) -> 0 | AE133: =VLOOKUP(H133,'Player Stats By Team'!C:AC,23,FALSE) -> 2 | AF133: =VLOOKUP(H133,'Player Stats By Team'!C:AC,24,FALSE) -> 0.22 | AG133: =VLOOKUP(H133,'Player Stats By Team'!C:AC,25,FALSE) -> 62 | AH133: =VLOOKUP(H133,'Player Stats By Team'!C:AC,26,FALSE) -> 25.8
G134: QMJHL | H134: Raphaël Bussières | I134: Minnesota Wild | J134: =VLOOKUP(H134,'Player Stats By Team'!C:AC,2,FALSE) -> LW | K134: =VLOOKUP(H134,'Player Stats By Team'!C:AC,3,FALSE) -> 20 | L134: =VLOOKUP(H134,'Player Stats By Team'!C:AC,4,FALSE) -> 9 | M134: =VLOOKUP(H134,'Player Stats By Team'!C:AC,5,FALSE) -> 13 | N134: =VLOOKUP(H134,'Player Stats By Team'!C:AC,6,FALSE) -> 22 | O134: =VLOOKUP(H134,'Player Stats By Team'!C:AC,7,FALSE) -> 11 | P134: =VLOOKUP(H134,'Player Stats By Team'!C:AC,8,FALSE) -> 14 | Q134: =VLOOKUP(H134,'Player Stats By Team'!C:AC,9,FALSE) -> 2 | R134: =VLOOKUP(H134,'Player Stats By Team'!C:AC,10,FALSE) -> 4 | S134: =VLOOKUP(H134,'Player Stats By Team'!C:AC,11,FALSE) -> 0 | T134: =VLOOKUP(H134,'Player Stats By Team'!C:AC,12,FALSE) -> 1 | U134: =VLOOKUP(H134,'Player Stats By Team'!C:AC,13,FALSE) -> 2 | V134: =VLOOKUP(H134,'Player Stats By Team'!C:AC,14,FALSE) -> 2 | W134: =VLOOKUP(H134,'Player Stats By Team'!C:AC,15,FALSE) -> 1 | X134: =VLOOKUP(H134,'Player Stats By Team'!C:AC,16,FALSE) -> 0 | Y134: =VLOOKUP(H134,'Player Stats By Team'!C:AC,17,FALSE) -> 0 | Z134: =VLOOKUP(H134,'Player Stats By Team'!C:AC,18,FALSE) -> 0 | AA134: =VLOOKUP(H134,'Player Stats By Team'!C:AC,19,FALSE) -> 0 | AB134: =VLOOKUP(H134,'Player Stats By Team'!C:AC,20,FALSE) -> 1 | AC134: =VLOOKUP(H134,'Player Stats By Team'!C:AC,21,FALSE) -> 0 | AD134: =VLOOKUP(H134,'Player Stats By Team'!C:AC,22,FALSE) -> 0 | AE134: =VLOOKUP(H134,'Player Stats By Team'!C:AC,23,FALSE) -> 1.1 | AF134: =VLOOKUP(H134,'Player Stats By Team'!C:AC,24,FALSE) -> 0.7 | AG134: =VLOOKUP(H134,'Player Stats By Team'!C:AC,25,FALSE) -> 56 | AH134: =VLOOKUP(H134,'Player Stats By Team'!C:AC,26,FALSE) -> 16.1
G135: QMJHL | H135: Dillon Fournier | I135: Chicago Blackhawks | J135: =VLOOKUP(H135,'Player Stats By Team'!C:AC,2,FALSE) -> D | K135: =VLOOKUP(H135,'Player Stats By Team'!C:AC,3,FALSE) -> 15 | L135: =VLOOKUP(H135,'Player Stats By Team'!C:AC,4,FALSE) -> 4 | M135: =VLOOKUP(H135,'Player Stats By Team'!C:AC,5,FALSE) -> 6 | N135: =VLOOKUP(H135,'Player Stats By Team'!C:AC,6,FALSE) -> 10 | O135: =VLOOKUP(H135,'Player Stats By Team'!C:AC,7,FALSE) -> 8 | P135: =VLOOKUP(H135,'Player Stats By Team'!C:AC,8,FALSE) -> 14 | Q135: =VLOOKUP(H135,'Player Stats By Team'!C:AC,9,FALSE) -> 2 | R135: =VLOOKUP(H135,'Player Stats By Team'!C:AC,10,FALSE) -> 4 | S135: =VLOOKUP(H135,'Player Stats By Team'!C:AC,11,FALSE) -> 0 | T135: =VLOOKUP(H135,'Player Stats By Team'!C:AC,12,FALSE) -> 1 | U135: =VLOOKUP(H135,'Player Stats By Team'!C:AC,13,FALSE) -> 0 | V135: =VLOOKUP(H135,'Player Stats By Team'!C:AC,14,FALSE) -> 1 | W135: =VLOOKUP(H135,'Player Stats By Team'!C:AC,15,FALSE) -> 0 | X135: =VLOOKUP(H135,'Player Stats By Team'!C:AC,16,FALSE) -> 0 | Y135: =VLOOKUP(H135,'Player Stats By Team'!C:AC,17,FALSE) -> 0 | Z135: =VLOOKUP(H135,'Player Stats By Team'!C:AC,18,FALSE) -> 0 | AA135: =VLOOKUP(H135,'Player Stats By Team'!C:AC,19,FALSE) -> 0 | AB135: =VLOOKUP(H135,'Player Stats By Team'!C:AC,20,FALSE) -> 0 | AC135: =VLOOKUP(H135,'Player Stats By Team'!C:AC,21,FALSE) -> 0 | AD135: =VLOOKUP(H135,'Player Stats By Team'!C:AC,22,FALSE) -> 0 | AE135: =VLOOKUP(H135,'Player Stats By Team'!C:AC,23,FALSE) -> 0.67 | AF135: =VLOOKUP(H135,'Player Stats By Team'!C:AC,24,FALSE) -> 0.93 | AG135: =VLOOKUP(H135,'Player Stats By Team'!C:AC,25,FALSE) -> 29 | AH135: =VLOOKUP(H135,'Player Stats By Team'!C:AC,26,FALSE) -> 13.8
G136: QMJHL | H136: Martin Frk | I136: Detroit Red Wings | J136: =VLOOKUP(H136,'Player Stats By Team'!C:AC,2,FALSE) -> RW | K136: =VLOOKUP(H136,'Player Stats By Team'!C:AC,3,FALSE) -> 18 | L136: =VLOOKUP(H136,'Player Stats By Team'!C:AC,4,FALSE) -> 8 | M136: =VLOOKUP(H136,'Player Stats By Team'!C:AC,5,FALSE) -> 15 | N136: =VLOOKUP(H136,'Player Stats By Team'!C:AC,6,FALSE) -> 23 | O136: =VLOOKUP(H136,'Player Stats By Team'!C:AC,7,FALSE) -> 5 | P136: =VLOOKUP(H136,'Player Stats By Team'!C:AC,8,FALSE) -> 32 | Q136: =VLOOKUP(H136,'Player Stats By Team'!C:AC,9,FALSE) -> 4 | R136: =VLOOKUP(H136,'Player Stats By Team'!C:AC,10,FALSE) -> 4 | S136: =VLOOKUP(H136,'Player Stats By Team'!C:AC,11,FALSE) -> 0 | T136: =VLOOKUP(H136,'Player Stats By Team'!C:AC,12,FALSE) -> 0 | U136: =VLOOKUP(H136,'Player Stats By Team'!C:AC,13,FALSE) -> 1 | V136: =VLOOKUP(H136,'Player Stats By Team'!C:AC,14,FALSE) -> 1 | W136: =VLOOKUP(H136,'Player Stats By Team'!C:AC,15,FALSE) -> 0 | X136: =VLOOKUP(H136,'Player Stats By Team'!C:AC,16,FALSE) -> 0 | Y136: =VLOOKUP(H136,'Player Stats By Team'!C:AC,17,FALSE) -> 0 | Z136: =VLOOKUP(H136,'Player Stats By Team'!C:AC,18,FALSE) -> 0 | AA136: =VLOOKUP(H136,'Player Stats By Team'!C:AC,19,FALSE) -> 0 | AB136: =VLOOKUP(H136,'Player Stats By Team'!C:AC,20,FALSE) -> 0 | AC136: =VLOOKUP(H136,'Player Stats By Team'!C:AC,21,FALSE) -> 0 | AD136: =VLOOKUP(H136,'Player Stats By Team'!C:AC,22,FALSE) -> 0 | AE136: =VLOOKUP(H136,'Player Stats By Team'!C:AC,23,FALSE) -> 1.28 | AF136: =VLOOKUP(H136,'Player Stats By Team'!C:AC,24,FALSE) -> 1.78 | AG136: =VLOOKUP(H136,'Player Stats By Team'!C:AC,25,FALSE) -> 51 | AH136: =VLOOKUP(H136,'Player Stats By Team'!C:AC,26,FALSE) -> 15.7
